Workbook

Sheet e2g-format 2006 (hidden)
B1: Forbrug | C1: Naturgas | D1: Kul | E1: Affald (ikke-bionedbrydeligt) | F1: Biobrændsler | G1: Halm | H1: Skovflis | I1: Brænde | J1: Træpiller | K1: Træaffald | L1: Biogas | M1: Biomasse | N1: Affald (bionedbrydeligt) | O1: Ikke-brændsel VE | P1: Sol | Q1: Vind | R1: Havvind | S1: Landvind | T1: Vand | U1: Geotermisk | V1: Varmepumpe - omgivelsesvarme | W1: Bioolie, biodiesel og bioethanol | X1: Olieprodukter | Y1: Raffinaderigas | Z1: LPG | AA1: Flybenzin | AB1: Benzin | AC1: Petroleum / Kerosen | AD1: JP1 | AE1: Gasolie/Dieselolie | AF1: Fuelolie | AG1: Spildolie | AH1: Petrokoks | AI1: Terpentin, smøreolie og bitumen | AJ1: El | AK1: Fjernvarme | AL1: Overskudsvarme | AM1: Energitjenester | AN1: Total energiforbrug | AO1: Brutto brændsel | AP1: =Andet!B4 -> Fredericia | AS1: Faktor | AT1: Brutto produktion | AU1: Virkningsgrad | AV1: Produktion | AW1: Naturgas | AX1: Kul | AY1: Affald (ikke-bionedbrydeligt) | AZ1: Biobrændsler | BA1: Halm | BB1: Skovflis | BC1: Brænde | BD1: Træpiller | BE1: Træaffald | BF1: Biogas | BG1: Biomasse | BH1: Affald (bionedbrydeligt) | BI1: Ikke-brændsel VE | BJ1: Sol | BK1: Vind | BL1: Havvind | BM1: Landvind | BN1: Vand | BO1: Geotermisk | BP1: Varmepumpe - omgivelsesvarme | BQ1: Bioolie, biodiesel og bioethanol | BR1: Olieprodukter | BS1: Raffinaderigas | BT1: LPG | BU1: Flybenzin | BV1: Benzin | BW1: Petroleum / Kerosen | BX1: JP1 | BY1: Gasolie/Dieselolie | BZ1: Fuelolie | CA1: Spildolie | CB1: Petrokoks | CC1: Terpentin, smøreolie og bitumen | CD1: El | CE1: Fjernvarme | CF1: Nyttiggjort overskudsvarme | CG1: Energitjenester | CH1: Total energiforbrug | CI1: Tab | CJ1: CO2-udledning
A2: ID | B2: F | C2: FN | D2: FK | E2: FMA | F2: FVB | G2: FB1 | H2: FB2 | I2: FB3 | J2: FB4 | K2: FB5 | L2: FB6 | M2: FB7 | N2: FB8 | O2: FLVE | P2: FLVE1 | Q2: FLVE2 | R2: FLVE21 | S2: FLVE22 | T2: FLVE3 | U2: FLVE4 | V2: FLVE5 | W2: FS | X2: FOO | Y2: FO1 | Z2: FO2 | AA2: FO3 | AB2: FO4 | AC2: FO5 | AD2: FO6 | AE2: FO7 | AF2: FO8 | AG2: FO9 | AH2: FOO1 | AI2: FOO2 | AJ2: FE | AK2: FF | AL2: FOV | AM2: FWEN | AN2: FTOTAL | AO2: fbrbr | AQ2: ID | AR2: ID Parent | AS2: factor | AT2: pbrpr | AU2: pvrkg | AV2: P | AW2: PN | AX2: PK | AY2: PMA | AZ2: PVB | BA2: PB1 | BB2: PB2 | BC2: PB3 | BD2: PB4 | BE2: PB5 | BF2: PB6 | BG2: PB7 | BH2: PB8 | BI2: PLVE | BJ2: PLVE1 | BK2: PLVE2 | BL2: PLVE21 | BM2: PLVE22 | BN2: PLVE3 | BO2: PLVE4 | BP2: PLVE5 | BQ2: PS | BR2: POO | BS2: PO1 | BT2: PO2 | BU2: PO3 | BV2: PO4 | BW2: PO5 | BX2: PO6 | BY2: PO7 | BZ2: PO8 | CA2: PO9 | CB2: POO1 | CC2: POO2 | CD2: PE | CE2: PF | CF2: POV | CG2: PWEN | CH2: PTOTAL | CI2: PTAB | CJ2: PCO2
A3: ID Parent | C3: F | D3: F | E3: F | F3: F | G3: FVB | H3: FVB | I3: FVB | J3: FVB | K3: FVB | L3: FVB | M3: FVB | N3: FVB | O3: F | P3: FLVE | Q3: FLVE | R3: FLVE2 | S3: FLVE2 | T3: FLVE | U3: FLVE | V3: FLVE | W3: F | X3: F | Y3: FOO | Z3: FOO | AA3: FOO | AB3: FOO | AC3: FOO | AD3: FOO | AE3: FOO | AF3: FOO | AG3: FOO | AH3: FOO | AI3: FOO | AJ3: F | AK3: F | AL3: F | AM3: F | AN3: F | AP3: Structures | AW3: P | AX3: P | AY3: P | AZ3: P | BA3: PVB | BB3: PVB | BC3: PVB | BD3: PVB | BE3: PVB | BF3: PVB | BG3: PVB | BH3: PVB | BI3: P | BJ3: PLVE | BK3: PLVE | BL3: PLVE2 | BM3: PLVE2 | BN3: PLVE | BO3: PLVE | BP3: PLVE | BQ3: P | BR3: P | BS3: POO | BT3: POO | BU3: POO | BV3: POO | BW3: POO | BX3: POO | BY3: POO | BZ3: POO | CA3: POO | CB3: POO | CC3: POO | CD3: P | CE3: P | CF3: P | CG3: P | CH3: P
AV4: =B4 -> 0 | AZ4: =F4 -> 0 | BI4: =O4 -> 0 | BK4: =Q4 -> 0 | BR4: =X4 -> 0 | CI4: =B4 -> 0
F5: =SUM(G5:N5) -> 0 | O5: =P5+Q5+T5+U5+V5 -> 0 | Q5: =R5+S5 -> 0 | X5: =SUM(Y5:AI5) -> 0 | AN5: 0 | AO5: =SUM(C5:F5,O5,W5,X5,AJ5:AL5) -> 0 | AP5: Indgang for brændsler (bio, kul mv.) | AQ5: TP | AT5: =SUM(AW5:AZ5,BI5,BQ5,BR5,CD5:CG5) -> 8693.54797 | AW5: =-C6 -> 8122.73727 | AX5: 0 | AY5: 122.16546 | AZ5: 448.64524 | BA5: 39 | BB5: 174 | BC5: 0 | BD5: 67.3366 | BE5: 0 | BF5: 0 | BG5: 0 | BH5: 168.30864 | BI5: =BJ5+BK5+BN5+BO5+BP5 -> 0 | BK5: =BL5+BM5 -> 0 | BR5: =SUM(BS5:CC5) -> 0
C6: =-AW6 -> -8122.73727 | D6: =-AX6 -> 0 | E6: -122.16546 | F6: -448.64524 | G6: -39 | H6: -174 | I6: 0 | J6: -67.3366 | K6: 0 | L6: 0 | M6: 0 | N6: -168.30864 | O6: 0 | Q6: 0 | X6: 0 | AN6: 0 | AO6: -8693.54797 | AP6: Transport af brændsler | AQ6: TRAP | AT6: 8693.54797 | AW6: =-1*(C8+C20) -> 8122.73727 | AX6: 0 | AY6: 122.16546 | AZ6: 448.64524 | BA6: 39 | BB6: 174 | BC6: 0 | BD6: 67.3366 | BE6: 0 | BF6: 0 | BG6: 0 | BH6: 168.30864 | BI6: =BJ6+BK6+BN6+BO6+BP6 -> 0 | BK6: 0 | BR6: =SUM(BS6:CC6) -> 0
F7: 0 | O7: 0 | Q7: 0 | X7: 0 | AN7: 0 | AO7: 0 | AP7: Indgang nettilsluttet VE | AQ7: TLP1 | AT7: 14.16 | AZ7: =SUM(BA7:BH7) -> 0 | BI7: =BJ7+BK7+BN7+BO7+BP7 -> 14.16 | BJ7: =P8*-1 -> 0 | BK7: 14.16 | BL7: =R8*-1 -> 0 | BM7: =S8*-1 -> 14.16 | BR7: =SUM(BS7:CC7) -> 0
C8: =SUM(C9:C11,C14:C17) -> -2870.78527 | D8: 0 | E8: -122.16546 | F8: -199.94524 | G8: 0 | H8: 0 | I8: 0 | J8: -31.6366 | K8: 0 | L8: 0 | M8: 0 | N8: -168.30864 | O8: -14.16 | P8: 0 | Q8: -14.16 | R8: 0 | S8: -14.16 | T8: 0 | U8: 0 | V8: 0 | W8: 0 | X8: -64.6997 | Y8: 0 | Z8: 0 | AA8: 0 | AB8: 0 | AC8: 0 | AD8: 0 | AE8: 0 | AF8: -64.6997 | AG8: 0 | AH8: 0 | AI8: 0 | AJ8: 0 | AK8: 0 | AL8: -407.36085 | AM8: =SUM(AM9:AM11,AM14:AM17) -> 0 | AN8: 0 | AO8: -3679.11652 | AP8: Indgang el, varme og olieprodukter | AQ8: TS | AT8: 6181.723018 | AW8: =SUM(AW9:AW11,AW14:AW17) -> 0 | AX8: 0 | AY8: 0 | AZ8: 0 | BA8: 0 | BB8: 0 | BC8: 0 | BD8: 0 | BE8: 0 | BF8: 0 | BG8: 0 | BH8: 0 | BI8: =BJ8+BK8+BN8+BO8+BP8 -> 0 | BJ8: 0 | BK8: 0 | BL8: 0 | BM8: 0 | BN8: 0 | BO8: 0 | BP8: 0 | BQ8: 0 | BR8: 2891.107585 | BS8: 0 | BT8: 0 | BU8: 0 | BV8: 732.357585 | BW8: 0 | BX8: 352.5 | BY8: 929.75 | BZ8: 0 | CA8: 0 | CB8: 0 | CC8: 0 | CD8: 1233.081653 | CE8: 2057.53378 | CF8: 0 | CG8: 0 | CH8: 0 | CI8: 798.965406 | CJ8: 267.289182
F9: 0 | O9: 0 | Q9: 0 | X9: 0 | AN9: 0 | AO9: 0 | AP9: Netto import/lager | AQ9: IMP | AR9: TS | AT9: 3302.223904 | AZ9: 0 | BI9: =BJ9+BK9+BN9+BO9+BP9 -> 0 | BK9: 0 | BR9: =IF(BR17+X18<0,(BR17+X18)*-1,0) -> 2891.107585 | BV9: =IF(BV17+AB18<0,(BV17+AB18)*-1) -> 732.357585 | BX9: =IF(BX17+AD18<0,(BX17+AD18)*-1) -> 352.5 | BY9: =IF(BY17+AE20<0,(BY17+AE20)*-1,0) -> 929.75 | CD9: =IF(CD10+CD11+CD14+AJ18<0,(CD10+CD11+CD14+AJ18)*-1,0) -> 411.1163192 | CJ9: =CD9*'Plan Energi 2006'!A89/1000 -> 89.86180505
C10: =('Plan Energi 2006'!I32+'Plan Energi 2006'!I33+'Plan Energi 2006'!I34+'Plan Energi 2006'!I35+'Plan Energi 2006'!I40+'Plan Energi 2006'!I42+'Plan Energi 2006'!I44+'Plan Energi 2006'!I45+'Plan Energi 2006'!I46+'Plan Energi 2006'!I51+'Plan Energi 2006'!I53+'Plan Energi 2006'!I61+'Plan Energi 2006'!I63+'Plan Energi 2006'!I64+'Plan Energi 2006'!I65+'Plan Energi 2006'!I67)*-1 -> -2870.78527 | D10: =('Plan Energi 2006'!C32+'Plan Energi 2006'!C33+'Plan Energi 2006'!C34+'Plan Energi 2006'!C35+'Plan Energi 2006'!C40+'Plan Energi 2006'!C42+'Plan Energi 2006'!C44+'Plan Energi 2006'!C45+'Plan Energi 2006'!C46+'Plan Energi 2006'!C51+'Plan Energi 2006'!C53+'Plan Energi 2006'!C61+'Plan Energi 2006'!C63+'Plan Energi 2006'!C64+'Plan Energi 2006'!C65+'Plan Energi 2006'!C67)*-1 -> 0 | E10: =('Plan Energi 2006'!W32+'Plan Energi 2006'!W33+'Plan Energi 2006'!W34+'Plan Energi 2006'!W35+'Plan Energi 2006'!W40+'Plan Energi 2006'!W42+'Plan Energi 2006'!W44+'Plan Energi 2006'!W45+'Plan Energi 2006'!W46+'Plan Energi 2006'!W51+'Plan Energi 2006'!W53+'Plan Energi 2006'!W61+'Plan Energi 2006'!W63+'Plan Energi 2006'!W64+'Plan Energi 2006'!W65+'Plan Energi 2006'!W67)*-1 -> -122.16546 | F10: -199.94524 | G10: =('Plan Energi 2006'!Q32+'Plan Energi 2006'!Q33+'Plan Energi 2006'!Q34+'Plan Energi 2006'!Q35+'Plan Energi 2006'!Q40+'Plan Energi 2006'!Q42+'Plan Energi 2006'!Q44+'Plan Energi 2006'!Q45+'Plan Energi 2006'!Q46+'Plan Energi 2006'!Q51+'Plan Energi 2006'!Q53+'Plan Energi 2006'!Q61+'Plan Energi 2006'!Q63+'Plan Energi 2006'!Q64+'Plan Energi 2006'!Q65+'Plan Energi 2006'!Q67)*-1 -> 0 | H10: =('Plan Energi 2006'!R32+'Plan Energi 2006'!R33+'Plan Energi 2006'!R34+'Plan Energi 2006'!R35+'Plan Energi 2006'!R40+'Plan Energi 2006'!R42+'Plan Energi 2006'!R44+'Plan Energi 2006'!R45+'Plan Energi 2006'!R46+'Plan Energi 2006'!R51+'Plan Energi 2006'!R53+'Plan Energi 2006'!R61+'Plan Energi 2006'!R63+'Plan Energi 2006'!R64+'Plan Energi 2006'!R65+'Plan Energi 2006'!R67)*-1 -> 0 | J10: =('Plan Energi 2006'!S32+'Plan Energi 2006'!S33+'Plan Energi 2006'!S34+'Plan Energi 2006'!S35+'Plan Energi 2006'!S40+'Plan Energi 2006'!S42+'Plan Energi 2006'!S44+'Plan Energi 2006'!S45+'Plan Energi 2006'!S46+'Plan Energi 2006'!S51+'Plan Energi 2006'!S53+'Plan Energi 2006'!S61+'Plan Energi 2006'!S63+'Plan Energi 2006'!S64+'Plan Energi 2006'!S65+'Plan Energi 2006'!S67)*-1 -> -31.6366 | L10: =('Plan Energi 2006'!O32+'Plan Energi 2006'!O33+'Plan Energi 2006'!O34+'Plan Energi 2006'!O35+'Plan Energi 2006'!O40+'Plan Energi 2006'!O42+'Plan Energi 2006'!O44+'Plan Energi 2006'!O45+'Plan Energi 2006'!O46+'Plan Energi 2006'!O51+'Plan Energi 2006'!O53+'Plan Energi 2006'!O61+'Plan Energi 2006'!O63+'Plan Energi 2006'!O64+'Plan Energi 2006'!O65+'Plan Energi 2006'!O67)*-1 -> 0 | N10: =('Plan Energi 2006'!T32+'Plan Energi 2006'!T33+'Plan Energi 2006'!T34+'Plan Energi 2006'!T35+'Plan Energi 2006'!T40+'Plan Energi 2006'!T42+'Plan Energi 2006'!T44+'Plan Energi 2006'!T45+'Plan Energi 2006'!T46+'Plan Energi 2006'!T51+'Plan Energi 2006'!T53+'Plan Energi 2006'!T61+'Plan Energi 2006'!T63+'Plan Energi 2006'!T64+'Plan Energi 2006'!T65+'Plan Energi 2006'!T67+'Plan Energi 2006'!U32+'Plan Energi 2006'!U33+'Plan Energi 2006'!U34+'Plan Energi 2006'!U35+'Plan Energi 2006'!U40+'Plan Energi 2006'!U42+'Plan Energi 2006'!U44+'Plan Energi 2006'!U45+'Plan Energi 2006'!U46+'Plan Energi 2006'!U51+'Plan Energi 2006'!U53+'Plan Energi 2006'!U61+'Plan Energi 2006'!U63+'Plan Energi 2006'!U64+'Plan Energi 2006'!U65+'Plan Energi 2006'!U67+'Plan Energi 2006'!V32+'Plan Energi 2006'!V33+'Plan Energi 2006'!V34+'Plan Energi 2006'!V35+'Plan Energi 2006'!V40+'Plan Energi 2006'!V42+'Plan Energi 2006'!V44+'Plan Energi 2006'!V45+'Plan Energi 2006'!V46+'Plan Energi 2006'!V51+'Plan Energi 2006'!V53+'Plan Energi 2006'!V61+'Plan Energi 2006'!V63+'Plan Energi 2006'!V64+'Plan Energi 2006'!V65+'Plan Energi 2006'!V67)*-1 -> -168.30864 | O10: 0 | Q10: 0 | X10: -64.6997 | AE10: =('Plan Energi 2006'!F32+'Plan Energi 2006'!F33+'Plan Energi 2006'!F34+'Plan Energi 2006'!F35+'Plan Energi 2006'!F40+'Plan Energi 2006'!F42+'Plan Energi 2006'!F44+'Plan Energi 2006'!F45+'Plan Energi 2006'!F46+'Plan Energi 2006'!F51+'Plan Energi 2006'!F53+'Plan Energi 2006'!F61+'Plan Energi 2006'!F63+'Plan Energi 2006'!F64+'Plan Energi 2006'!F65+'Plan Energi 2006'!F67)*-1 -> 0 | AF10: =('Plan Energi 2006'!D32+'Plan Energi 2006'!D33+'Plan Energi 2006'!D34+'Plan Energi 2006'!D35+'Plan Energi 2006'!D40+'Plan Energi 2006'!D42+'Plan Energi 2006'!D44+'Plan Energi 2006'!D45+'Plan Energi 2006'!D46+'Plan Energi 2006'!D51+'Plan Energi 2006'!D53+'Plan Energi 2006'!D61+'Plan Energi 2006'!D63+'Plan Energi 2006'!D64+'Plan Energi 2006'!D65+'Plan Energi 2006'!D67+'Plan Energi 2006'!E32+'Plan Energi 2006'!E33+'Plan Energi 2006'!E34+'Plan Energi 2006'!E35+'Plan Energi 2006'!E40+'Plan Energi 2006'!E42+'Plan Energi 2006'!E44+'Plan Energi 2006'!E45+'Plan Energi 2006'!E46+'Plan Energi 2006'!E51+'Plan Energi 2006'!E53+'Plan Energi 2006'!E61+'Plan Energi 2006'!E63+'Plan Energi 2006'!E64+'Plan Energi 2006'!E65+'Plan Energi 2006'!E67)*-1 -> -64.6997 | AN10: 0 | AO10: -3257.59567 | AP10: El og varmeproduktion | AQ10: ELOGVARME | AR10: TS | AT10: 2458.630264 | AU10: =AT10/AO10*-1 -> 0.7547377002 | AZ10: 0 | BI10: =BJ10+BK10+BN10+BO10+BP10 -> 0 | BK10: 0 | BR10: =SUM(BS10:CC10) -> 0 | CD10: ='Plan Energi 2006'!AD32+'Plan Energi 2006'!AD33+'Plan Energi 2006'!AD34+'Plan Energi 2006'!AD35+'Plan Energi 2006'!AD40+'Plan Energi 2006'!AD41+'Plan Energi 2006'!AD42+'Plan Energi 2006'!AD44+'Plan Energi 2006'!AD45+'Plan Energi 2006'!AD46+'Plan Energi 2006'!AD51+'Plan Energi 2006'!AD53+'Plan Energi 2006'!AD54+'Plan Energi 2006'!AD47+'Plan Energi 2006'!AD61+'Plan Energi 2006'!AD63+'Plan Energi 2006'!AD64+'Plan Energi 2006'!AD65+'Plan Energi 2006'!AD66+'Plan Energi 2006'!AD67+'Plan Energi 2006'!AD68 -> 808.4573338 | CE10: ='Plan Energi 2006'!AF32+'Plan Energi 2006'!AF33+'Plan Energi 2006'!AF34+'Plan Energi 2006'!AF35+'Plan Energi 2006'!AF40+'Plan Energi 2006'!AF42+'Plan Energi 2006'!AF44+'Plan Energi 2006'!AF45+'Plan Energi 2006'!AF46+'Plan Energi 2006'!AF51+'Plan Energi 2006'!AF53+'Plan Energi 2006'!AF61+'Plan Energi 2006'!AF63+'Plan Energi 2006'!AF64+'Plan Energi 2006'!AF65+'Plan Energi 2006'!AF67 -> 1650.17293 | CI10: =(AT10+AO10)*-1 -> 798.965406 | CJ10: =-(C10*'Plan Energi 2006'!$I$89/1000+D10*'Plan Energi 2006'!$C$89/1000+E10*'Plan Energi 2006'!$W$89/1000+X10*'Plan Energi 2006'!$F$89/1000) -> 177.4273769
C11: =C12+C13 -> 0 | D11: 0 | E11: 0 | F11: 0 | G11: 0 | H11: 0 | I11: 0 | J11: 0 | K11: 0 | L11: 0 | M11: 0 | N11: 0 | O11: -14.16 | P11: 0 | Q11: -14.16 | R11: 0 | S11: -14.16 | T11: 0 | U11: 0 | V11: 0 | W11: 0 | X11: 0 | Y11: 0 | Z11: 0 | AA11: 0 | AB11: 0 | AC11: 0 | AD11: 0 | AE11: 0 | AF11: 0 | AG11: 0 | AH11: 0 | AI11: 0 | AJ11: 0 | AK11: 0 | AL11: 0 | AM11: 0 | AN11: 0 | AO11: -14.16 | AP11: Vindmøller | AQ11: VIND | AR11: TS | AT11: 13.508 | AW11: =AW12+AW13 -> 0 | AX11: 0 | AY11: 0 | AZ11: 0 | BA11: =BA12+BA13 -> 0 | BB11: 0 | BC11: 0 | BD11: 0 | BE11: 0 | BF11: 0 | BG11: 0 | BH11: 0 | BI11: 0 | BJ11: =BJ12+BJ13 -> 0 | BK11: 0 | BL11: =BL12+BL13 -> 0 | BM11: 0 | BN11: 0 | BO11: 0 | BP11: 0 | BQ11: 0 | BR11: 0 | BS11: =BS12+BS13 -> 0 | BT11: 0 | BU11: 0 | BV11: 0 | BW11: 0 | BX11: 0 | BY11: 0 | BZ11: 0 | CA11: 0 | CB11: 0 | CC11: 0 | CD11: =('Plan Energi 2006'!J27+'Plan Energi 2006'!J28) -> 13.508 | CE11: 0 | CF11: 0 | CG11: 0 | CH11: 0 | CI11: 0 | CJ11: 0
F12: 0 | O12: 0 | Q12: 0 | R12: =CD12*-1 -> 0 | X12: 0 | AN12: 0 | AO12: 0 | AP12: Kystvindmøller | AQ12: KYST | AR12: VIND | AT12: 0 | AZ12: 0 | BI12: =BJ12+BK12+BN12+BO12+BP12 -> 0 | BK12: 0 | BR12: =SUM(BS12:CC12) -> 0 | CD12: =Energi!B34*0.0000036 -> 0 | CI12: 0 | CJ12: =-(C12*'Plan Energi 2006'!$I$89/1000+D12*'Plan Energi 2006'!$C$89/1000+E12*'Plan Energi 2006'!$W$89/1000+X12*'Plan Energi 2006'!$F$89/1000) -> 0
F13: 0 | O13: -14.16 | Q13: -14.16 | S13: =CD13*-1 -> -14.16 | X13: 0 | AN13: 0 | AO13: -14.16 | AP13: Landvindmøller | AQ13: LAND | AR13: VIND | AT13: 14.16 | AZ13: 0 | BI13: =BJ13+BK13+BN13+BO13+BP13 -> 0 | BK13: 0 | BR13: =SUM(BS13:CC13) -> 0 | CD13: =Energi!B35*0.0000036 -> 14.16 | CI13: 0 | CJ13: =-(C13*'Plan Energi 2006'!$I$89/1000+D13*'Plan Energi 2006'!$C$89/1000+E13*'Plan Energi 2006'!$W$89/1000+X13*'Plan Energi 2006'!$F$89/1000) -> 0
F14: 0 | O14: 0 | P14: =CD14*-1 -> 0 | Q14: 0 | X14: 0 | AN14: 0 | AO14: 0 | AP14: Solceller | AQ14: SOLSTR | AR14: TS | AT14: 0 | AZ14: 0 | BI14: =BJ14+BK14+BN14+BO14+BP14 -> 0 | BK14: 0 | BR14: =SUM(BS14:CC14) -> 0 | CD14: ='Plan Energi 2006'!L26 -> 0 | CI14: 0 | CJ14: =-(C14*'Plan Energi 2006'!$I$89/1000+D14*'Plan Energi 2006'!$C$89/1000+E14*'Plan Energi 2006'!$W$89/1000+X14*'Plan Energi 2006'!$F$89/1000) -> 0
C15: =('Plan Energi 2006'!I36+'Plan Energi 2006'!I41+'Plan Energi 2006'!I47+'Plan Energi 2006'!I54+'Plan Energi 2006'!I56+'Plan Energi 2006'!I66)*-1 -> 0 | D15: =('Plan Energi 2006'!C36+'Plan Energi 2006'!C41+'Plan Energi 2006'!C47+'Plan Energi 2006'!C54+'Plan Energi 2006'!C56+'Plan Energi 2006'!C66)*-1 -> 0 | E15: =('Plan Energi 2006'!W36+'Plan Energi 2006'!W41+'Plan Energi 2006'!W47+'Plan Energi 2006'!W54+'Plan Energi 2006'!W56+'Plan Energi 2006'!W66)*-1 -> 0 | F15: 0 | G15: =('Plan Energi 2006'!Q36+'Plan Energi 2006'!Q41+'Plan Energi 2006'!Q47+'Plan Energi 2006'!Q54+'Plan Energi 2006'!Q56+'Plan Energi 2006'!Q66)*-1 -> 0 | H15: =('Plan Energi 2006'!R36+'Plan Energi 2006'!R41+'Plan Energi 2006'!R47+'Plan Energi 2006'!R54+'Plan Energi 2006'!R56+'Plan Energi 2006'!R66)*-1 -> 0 | J15: =('Plan Energi 2006'!S36+'Plan Energi 2006'!S41+'Plan Energi 2006'!S47+'Plan Energi 2006'!S54+'Plan Energi 2006'!S56+'Plan Energi 2006'!S66)*-1 -> 0 | L15: =('Plan Energi 2006'!O36+'Plan Energi 2006'!O41+'Plan Energi 2006'!O47+'Plan Energi 2006'!O54+'Plan Energi 2006'!O56+'Plan Energi 2006'!O66)*-1 -> 0 | N15: =('Plan Energi 2006'!T36+'Plan Energi 2006'!T41+'Plan Energi 2006'!T47+'Plan Energi 2006'!T54+'Plan Energi 2006'!T56+'Plan Energi 2006'!T66+'Plan Energi 2006'!U36+'Plan Energi 2006'!U41+'Plan Energi 2006'!U47+'Plan Energi 2006'!U54+'Plan Energi 2006'!U56+'Plan Energi 2006'!U66+'Plan Energi 2006'!V36+'Plan Energi 2006'!V41+'Plan Energi 2006'!V47+'Plan Energi 2006'!V54+'Plan Energi 2006'!V56+'Plan Energi 2006'!V66)*-1 -> 0 | O15: 0 | Q15: 0 | X15: 0 | AE15: =('Plan Energi 2006'!F36+'Plan Energi 2006'!F41+'Plan Energi 2006'!F47+'Plan Energi 2006'!F54+'Plan Energi 2006'!F56+'Plan Energi 2006'!F66)*-1 -> 0 | AF15: =('Plan Energi 2006'!D36+'Plan Energi 2006'!D41+'Plan Energi 2006'!D47+'Plan Energi 2006'!D54+'Plan Energi 2006'!D56+'Plan Energi 2006'!D66+'Plan Energi 2006'!E36+'Plan Energi 2006'!E41+'Plan Energi 2006'!E47+'Plan Energi 2006'!E54+'Plan Energi 2006'!E56+'Plan Energi 2006'!E66)*-1 -> 0 | AN15: 0 | AO15: 0 | AP15: Fjernvarmekedler | AQ15: KEDLER | AR15: TS | AT15: 0 | AZ15: 0 | BI15: 0 | BK15: 0 | BR15: 0 | CE15: ='Plan Energi 2006'!AF36+'Plan Energi 2006'!AF41+'Plan Energi 2006'!AF47+'Plan Energi 2006'!AF54+'Plan Energi 2006'!AF56+'Plan Energi 2006'!AF66 -> 0 | CI15: 0 | CJ15: =-(C15*'Plan Energi 2006'!$I$89/1000+D15*'Plan Energi 2006'!$C$89/1000+E15*'Plan Energi 2006'!$W$89/1000+X15*'Plan Energi 2006'!$F$89/1000) -> 0
F16: 0 | O16: 0 | P16: =('Plan Energi 2006'!L37+'Plan Energi 2006'!L38+'Plan Energi 2006'!L48+'Plan Energi 2006'!L49+'Plan Energi 2006'!L50+'Plan Energi 2006'!L57+'Plan Energi 2006'!L58+'Plan Energi 2006'!L59+'Plan Energi 2006'!L60+'Plan Energi 2006'!L68)*-1 -> 0 | Q16: 0 | U16: =('Plan Energi 2006'!M37+'Plan Energi 2006'!M38+'Plan Energi 2006'!M48+'Plan Energi 2006'!M49+'Plan Energi 2006'!M50+'Plan Energi 2006'!M57+'Plan Energi 2006'!M58+'Plan Energi 2006'!M59+'Plan Energi 2006'!M60+'Plan Energi 2006'!M68)*-1 -> 0 | V16: =('Plan Energi 2006'!N37+'Plan Energi 2006'!N38+'Plan Energi 2006'!N48+'Plan Energi 2006'!N49+'Plan Energi 2006'!N50+'Plan Energi 2006'!N57+'Plan Energi 2006'!N58+'Plan Energi 2006'!N59+'Plan Energi 2006'!N60+'Plan Energi 2006'!N68)*-1 -> 0 | X16: 0 | AJ16: =('Plan Energi 2006'!AD37+'Plan Energi 2006'!AD38+'Plan Energi 2006'!AD48+'Plan Energi 2006'!AD49+'Plan Energi 2006'!AD50+'Plan Energi 2006'!AD57+'Plan Energi 2006'!AD58+'Plan Energi 2006'!AD59+'Plan Energi 2006'!AD60+'Plan Energi 2006'!AD68) -> 0 | AL16: ='Plan Energi 2006'!AF68*-1 -> -407.36085 | AN16: 0 | AO16: -407.36085 | AP16: Anden varmeproduktion | AQ16: ANDENV | AR16: TS | AT16: 407.36085 | AU16: =AT16/AO16*-1 -> 1 | AZ16: 0 | BI16: 0 | BK16: 0 | BR16: 0 | CE16: ='Plan Energi 2006'!AF37+'Plan Energi 2006'!AF38+'Plan Energi 2006'!AF48+'Plan Energi 2006'!AF49+'Plan Energi 2006'!AF50+'Plan Energi 2006'!AF57+'Plan Energi 2006'!AF58+'Plan Energi 2006'!AF59+'Plan Energi 2006'!AF60+'Plan Energi 2006'!AF68 -> 407.36085 | CI16: 0 | CJ16: =-(C16*'Plan Energi 2006'!$I$89/1000+D16*'Plan Energi 2006'!$C$89/1000+E16*'Plan Energi 2006'!$W$89/1000+X16*'Plan Energi 2006'!$F$89/1000) -> 0
F17: 0 | O17: 0 | Q17: 0 | X17: 0 | AN17: 0 | AO17: 0 | AP17: Raffinaderi | AQ17: RAF | AR17: TS | AT17: 0 | AZ17: 0 | BI17: 0 | BK17: 0 | BR17: 0 | CI17: 0 | CJ17: =-(C17*'Plan Energi 2006'!$I$89/1000+D17*'Plan Energi 2006'!$C$89/1000+E17*'Plan Energi 2006'!$W$89/1000+X17*'Plan Energi 2006'!$F$89/1000) -> 0
F18: 0 | O18: 0 | Q18: 0 | X18: -2891.107585 | Y18: =BS18*-1 -> 0 | Z18: =BT18*-1 -> -31.9 | AA18: 0 | AB18: -732.357585 | AC18: 0 | AD18: -352.5 | AE18: -929.75 | AF18: -844.6 | AG18: 0 | AH18: 0 | AI18: 0 | AJ18: =CD18*-1/'Plan Energi 2006'!D2*100 -> -1233.081653 | AK18: =CE18*('Plan Energi 2006'!AF39+'Plan Energi 2006'!AF43+'Plan Energi 2006'!AF52+'Plan Energi 2006'!AF55+'Plan Energi 2006'!AF62+'Plan Energi 2006'!AF71)/('Plan Energi 2006'!AG39+'Plan Energi 2006'!AG43+'Plan Energi 2006'!AG52+'Plan Energi 2006'!AG55+'Plan Energi 2006'!AG62+'Plan Energi 2006'!AG71) -> -2057.53378 | AN18: 0 | AO18: -6181.723018 | AP18: Transport af el, fjernvarme, mv. | AQ18: TRAS | AT18: 5622.590356 | AZ18: 0 | BI18: =BJ18+BK18+BN18+BO18+BP18 -> 0 | BK18: =BL18+BM18 -> 0 | BR18: =X20*-1 -> 2891.107585 | BS18: 0 | BT18: 31.9 | BU18: 0 | BV18: 732.357585 | BW18: 0 | BX18: 352.5 | BY18: 929.75 | BZ18: 844.6 | CA18: 0 | CB18: 0 | CC18: 0 | CD18: 1143.066692 | CE18: 1588.416078 | CI18: 559.1326626
F19: 0 | O19: 0 | Q19: 0 | X19: 0 | AN19: 0 | AO19: 0 | AP19: Indgang ikke-nettilsluttet VE | AQ19: TLP2 | AT19: 2.762 | AZ19: 0 | BI19: =BJ19+BK19+BN19+BO19+BP19 -> 2.762 | BJ19: =P20*-1 -> 2.4 | BK19: =BL19+BM19 -> 0 | BL19: =R20*-1 -> 0 | BM19: =S20*-1 -> 0 | BN19: 0 | BO19: 0 | BP19: 0.362 | BR19: =SUM(BS19:CC19) -> 0 | CI19: 0
C20: =SUM(C21:C22,C32,C33,C34,C35,C36) -> -5251.952 | D20: 0 | E20: 0 | F20: -248.7 | G20: -39 | H20: -174 | I20: 0 | J20: -35.7 | K20: 0 | L20: 0 | M20: 0 | N20: 0 | O20: -2.762 | P20: -2.4 | Q20: 0 | R20: 0 | S20: 0 | T20: 0 | U20: 0 | V20: -0.362 | W20: -1.392415 | X20: -2891.107585 | Y20: 0 | Z20: -31.9 | AA20: 0 | AB20: -732.357585 | AC20: 0 | AD20: -352.5 | AE20: -929.75 | AF20: -844.6 | AG20: 0 | AH20: 0 | AI20: 0 | AJ20: -1143.066692 | AK20: -1588.416078 | AL20: 0 | AM20: 0 | AN20: 0 | AO20: -11127.39677 | AP20: Afgang fra energisystemet | AQ20: A | AT20: 8760.367119 | AW20: =SUM(AW21:AW22,AW32,AW33,AW34,AW35,AW36) -> 0 | AX20: 0 | AY20: 0 | AZ20: 0 | BA20: 0 | BB20: 0 | BC20: 0 | BD20: 0 | BE20: 0 | BF20: 0 | BG20: 0 | BH20: 0 | BI20: 0 | BJ20: 0 | BK20: 0 | BL20: 0 | BM20: 0 | BN20: 0 | BO20: 0 | BP20: 0 | BQ20: 0 | BR20: 0 | BS20: 0 | BT20: 0 | BU20: 0 | BV20: 0 | BW20: 0 | BX20: 0 | BY20: 0 | BZ20: 0 | CA20: 0 | CB20: 0 | CC20: 0 | CD20: 0 | CE20: 0 | CF20: 0 | CG20: 8760.367119 | CH20: 0 | CI20: 2367.029652 | CJ20: 512.1477958
F21: 0 | O21: 0 | Q21: 0 | X21: 0 | AJ21: =IF(CD10+CD11+CD14+(1+Energi!B29/100)*(AJ22+AJ32+AJ33+AJ34+AJ35)>0,(CD10+CD11+CD14+(1+Energi!B29/100)*(AJ22+AJ32+AJ33+AJ34+AJ35))*-1,0) -> 0 | AN21: 0 | AO21: 0 | AP21: Netto eksport/lager | AQ21: AES | AR21: A | AT21: 0 | AZ21: 0 | BI21: =BJ21+BK21+BN21+BO21+BP21 -> 0 | BK21: =BL21+BM21 -> 0 | BR21: =SUM(BS21:CC21) -> 0 | CI21: 0 | CJ21: =AJ9*'Plan Energi 2006'!A89/1000 -> 0
C22: =C23+SUM(C28:C31) -> 0 | D22: =D23+SUM(D28:D31) -> 0 | E22: 0 | F22: 0 | G22: 0 | H22: 0 | I22: 0 | J22: 0 | K22: 0 | L22: 0 | M22: 0 | N22: 0 | O22: 0 | P22: 0 | Q22: 0 | R22: 0 | S22: 0 | T22: 0 | U22: 0 | V22: 0 | W22: -1.392415 | X22: -2032.587585 | Y22: 0 | Z22: -6.38 | AA22: 0 | AB22: -732.357585 | AC22: 0 | AD22: -352.5 | AE22: -929.75 | AF22: -11.6 | AG22: 0 | AH22: 0 | AI22: 0 | AJ22: 0 | AK22: 0 | AL22: 0 | AM22: 0 | AN22: 0 | AO22: -2033.98 | AP22: Transport | AQ22: AT | AR22: A | AT22: 547.1507 | AU22: 0.3 | AW22: =AW23+SUM(AW28:AW31) -> 0 | AX22: 0 | AY22: 0 | AZ22: 0 | BA22: 0 | BB22: 0 | BC22: 0 | BD22: 0 | BE22: 0 | BF22: 0 | BG22: 0 | BH22: 0 | BI22: 0 | BJ22: 0 | BK22: 0 | BL22: 0 | BM22: 0 | BN22: 0 | BO22: 0 | BP22: 0 | BQ22: 0 | BR22: 0 | BS22: 0 | BT22: 0 | BU22: 0 | BV22: 0 | BW22: 0 | BX22: 0 | BY22: 0 | BZ22: 0 | CA22: 0 | CB22: 0 | CC22: 0 | CD22: 0 | CE22: 0 | CF22: 0 | CG22: 547.1507 | CH22: 0 | CI22: 1486.8293 | CJ22: 150.4114813
C23: =SUM(C24:C27) -> 0 | D23: =SUM(D24:D27) -> 0 | E23: =SUM(E24:E27) -> 0 | F23: 0 | G23: =SUM(G24:G27) -> 0 | H23: 0 | I23: 0 | J23: 0 | K23: 0 | L23: 0 | M23: 0 | N23: 0 | O23: 0 | P23: =SUM(P24:P27) -> 0 | Q23: 0 | R23: =SUM(R24:R27) -> 0 | S23: 0 | T23: 0 | U23: 0 | V23: 0 | W23: -1.392415 | X23: -1548.607585 | Y23: =SUM(Y24:Y27) -> 0 | Z23: 0 | AA23: 0 | AB23: -731.457585 | AC23: 0 | AD23: 0 | AE23: -817.15 | AF23: 0 | AG23: 0 | AH23: 0 | AI23: 0 | AJ23: 0 | AK23: 0 | AL23: 0 | AM23: 0 | AN23: 0 | AO23: -1550 | AP23: Vejtrafik | AQ23: ATV | AR23: AT | AT23: 389.5427 | AU23: 0.3 | AW23: =SUM(AW24:AW27) -> 0 | AX23: =SUM(AX24:AX27) -> 0 | AY23: =SUM(AY24:AY27) -> 0 | AZ23: 0 | BA23: =SUM(BA24:BA27) -> 0 | BB23: 0 | BC23: 0 | BD23: 0 | BE23: 0 | BF23: 0 | BG23: 0 | BH23: 0 | BI23: =BJ23+BK23+BN23+BO23+BP23 -> 0 | BJ23: =SUM(BJ24:BJ27) -> 0 | BK23: =BL23+BM23 -> 0 | BL23: =SUM(BL24:BL27) -> 0 | BM23: 0 | BN23: 0 | BO23: 0 | BP23: 0 | BQ23: 0 | BR23: =SUM(BS23:CC23) -> 0 | BS23: =SUM(BS24:BS27) -> 0 | BT23: 0 | BU23: 0 | BV23: 0 | BW23: 0 | BX23: 0 | BY23: 0 | BZ23: 0 | CA23: 0 | CB23: 0 | CC23: 0 | CD23: 0 | CE23: 0 | CF23: 0 | CG23: 389.5427 | CH23: 0 | CI23: 1160.4573 | CJ23: 114.5969613
F24: 0 | O24: 0 | Q24: 0 | W24: =('Plan Energi 2006'!P72+'Plan Energi 2006'!P73)*-1 -> -1.392415 | X24: =SUM(Y24:AI24) -> -909.347585 | AB24: ='Plan Energi 2006'!H72*-1 -> -731.457585 | AE24: ='Plan Energi 2006'!F73*-1 -> -177.89 | AN24: 0 | AO24: -910.74 | AP24: Personbil | AQ24: PERSON | AR24: ATV | AT24: 191.0425 | AU24: 0.3 | AZ24: 0 | BI24: =BJ24+BK24+BN24+BO24+BP24 -> 0 | BK24: =BL24+BM24 -> 0 | BR24: =SUM(BS24:CC24) -> 0 | CG24: ='Plan Energi 2006'!AQ72+'Plan Energi 2006'!AQ73 -> 191.0425 | CI24: 719.6975 | CJ24: =-(C24*'Plan Energi 2006'!$I$89/1000+D24*'Plan Energi 2006'!$C$89/1000+E24*'Plan Energi 2006'!$W$89/1000+X24*'Plan Energi 2006'!$F$89/1000) -> 67.29172129
F25: 0 | O25: 0 | Q25: 0 | W25: ='Plan Energi 2006'!P76*-1 -> 0 | X25: =SUM(Y25:AI25) -> -437.26 | AB25: 0 | AE25: ='Plan Energi 2006'!F76*-1 -> -437.26 | AN25: 0 | AO25: -437.26 | AP25: Lastbil | AQ25: LAST | AR25: ATV | AT25: 144.2958 | AU25: 0.3 | AZ25: 0 | BI25: =BJ25+BK25+BN25+BO25+BP25 -> 0 | BK25: =BL25+BM25 -> 0 | BR25: =SUM(BS25:CC25) -> 0 | CG25: ='Plan Energi 2006'!AQ76 -> 144.2958 | CI25: 292.9642 | CJ25: =-(C25*'Plan Energi 2006'!$I$89/1000+D25*'Plan Energi 2006'!$C$89/1000+E25*'Plan Energi 2006'!$W$89/1000+X25*'Plan Energi 2006'!$F$89/1000) -> 32.35724
F26: 0 | O26: 0 | Q26: 0 | W26: ='Plan Energi 2006'!P74*-1 -> 0 | X26: -186 | AB26: 0 | AE26: ='Plan Energi 2006'!F74*-1 -> -186 | AN26: 0 | AO26: -186 | AP26: Varebil | AQ26: VARE | AR26: ATV | AT26: 46.5 | AU26: 0.3 | AZ26: 0 | BI26: 0 | BK26: 0 | BR26: 0 | CG26: ='Plan Energi 2006'!AQ74 -> 46.5 | CI26: 139.5 | CJ26: =-(C26*'Plan Energi 2006'!$I$89/1000+D26*'Plan Energi 2006'!$C$89/1000+E26*'Plan Energi 2006'!$W$89/1000+X26*'Plan Energi 2006'!$F$89/1000) -> 13.764
F27: 0 | O27: 0 | Q27: 0 | W27: ='Plan Energi 2006'!P75*-1 -> 0 | X27: -16 | AB27: 0 | AE27: ='Plan Energi 2006'!F75*-1 -> -16 | AN27: 0 | AO27: -16 | AP27: Bus | AQ27: BUS | AR27: ATV | AT27: 7.7044 | AU27: 0.3 | AZ27: 0 | BI27: 0 | BK27: 0 | BR27: 0 | CG27: ='Plan Energi 2006'!AQ75+'Plan Energi 2006'!AQ16 -> 7.7044 | CI27: 8.2956 | CJ27: =-(C27*'Plan Energi 2006'!$I$89/1000+D27*'Plan Energi 2006'!$C$89/1000+E27*'Plan Energi 2006'!$W$89/1000+X27*'Plan Energi 2006'!$F$89/1000) -> 1.184
C28: 0 | D28: 0 | E28: 0 | F28: 0 | G28: 0 | H28: 0 | I28: 0 | J28: 0 | K28: 0 | L28: 0 | M28: 0 | N28: 0 | O28: 0 | P28: 0 | Q28: 0 | R28: 0 | S28: 0 | T28: 0 | U28: 0 | V28: 0 | W28: 0 | X28: -27.8 | Y28: 0 | Z28: 0 | AA28: 0 | AB28: 0 | AC28: 0 | AD28: 0 | AE28: ='Plan Energi 2006'!F78*-1 -> -27.8 | AF28: 0 | AG28: 0 | AH28: 0 | AI28: 0 | AJ28: ='Plan Energi 2006'!AQ13*-1 -> 0 | AK28: 0 | AL28: 0 | AM28: 0 | AN28: 0 | AO28: -27.8 | AP28: Tog | AQ28: ATT | AR28: AT | AT28: 9.174 | AU28: 0.3 | AW28: 0 | AX28: 0 | AY28: 0 | AZ28: 0 | BA28: 0 | BB28: 0 | BC28: 0 | BD28: 0 | BE28: 0 | BF28: 0 | BG28: 0 | BH28: 0 | BI28: 0 | BJ28: 0 | BK28: 0 | BL28: 0 | BM28: 0 | BN28: 0 | BO28: 0 | BP28: 0 | BQ28: 0 | BR28: 0 | BS28: 0 | BT28: 0 | BU28: 0 | BV28: 0 | BW28: 0 | BX28: 0 | BY28: 0 | BZ28: 0 | CA28: 0 | CB28: 0 | CC28: 0 | CD28: 0 | CE28: 0 | CF28: 0 | CG28: ='Plan Energi 2006'!AQ78+'Plan Energi 2006'!AQ13 -> 9.174 | CH28: 0 | CI28: 18.626 | CJ28: =-(C28*'Plan Energi 2006'!$I$89/1000+D28*'Plan Energi 2006'!$C$89/1000+E28*'Plan Energi 2006'!$W$89/1000+X28*'Plan Energi 2006'!$F$89/1000) -> 2.0572
C29: 0 | D29: 0 | E29: 0 | F29: 0 | G29: 0 | H29: 0 | I29: 0 | J29: 0 | K29: 0 | L29: 0 | M29: 0 | N29: 0 | O29: 0 | P29: 0 | Q29: 0 | R29: 0 | S29: 0 | T29: 0 | U29: 0 | V29: 0 | W29: 0 | X29: -353.4 | Y29: 0 | Z29: 0 | AA29: 0 | AB29: ='Plan Energi 2006'!H79*-1 -> -0.9 | AC29: 0 | AD29: ='Plan Energi 2006'!G79*-1 -> -352.5 | AE29: 0 | AF29: 0 | AG29: 0 | AH29: 0 | AI29: 0 | AJ29: 0 | AK29: 0 | AL29: 0 | AM29: 0 | AN29: 0 | AO29: -353.4 | AP29: Fly | AQ29: ATF | AR29: AT | AT29: 116.622 | AU29: 0.3 | AW29: 0 | AX29: 0 | AY29: 0 | AZ29: 0 | BA29: 0 | BB29: 0 | BC29: 0 | BD29: 0 | BE29: 0 | BF29: 0 | BG29: 0 | BH29: 0 | BI29: 0 | BJ29: 0 | BK29: 0 | BL29: 0 | BM29: 0 | BN29: 0 | BO29: 0 | BP29: 0 | BQ29: 0 | BR29: 0 | BS29: 0 | BT29: 0 | BU29: 0 | BV29: 0 | BW29: 0 | BX29: 0 | BY29: 0 | BZ29: 0 | CA29: 0 | CB29: 0 | CC29: 0 | CD29: 0 | CE29: 0 | CF29: 0 | CG29: ='Plan Energi 2006'!AQ79 -> 116.622 | CH29: 0 | CI29: 236.778 | CJ29: =-(C29*'Plan Energi 2006'!$I$89/1000+D29*'Plan Energi 2006'!$C$89/1000+E29*'Plan Energi 2006'!$W$89/1000+X29*'Plan Energi 2006'!$F$89/1000) -> 26.1516
C30: 0 | D30: 0 | E30: 0 | F30: 0 | G30: 0 | H30: 0 | I30: 0 | J30: 0 | K30: 0 | L30: 0 | M30: 0 | N30: 0 | O30: 0 | P30: 0 | Q30: 0 | R30: 0 | S30: 0 | T30: 0 | U30: 0 | V30: 0 | W30: 0 | X30: -65.9 | Y30: 0 | Z30: 0 | AA30: 0 | AB30: 0 | AC30: 0 | AD30: 0 | AE30: ='Plan Energi 2006'!F80*-1 -> -54.3 | AF30: ='Plan Energi 2006'!D80*-1 -> -11.6 | AG30: 0 | AH30: 0 | AI30: 0 | AJ30: 0 | AK30: 0 | AL30: 0 | AM30: 0 | AN30: 0 | AO30: -65.9 | AP30: Færge | AQ30: ATFÆRGE | AR30: AT | AT30: 21.747 | AU30: 0.3 | AW30: 0 | AX30: 0 | AY30: 0 | AZ30: 0 | BA30: 0 | BB30: 0 | BC30: 0 | BD30: 0 | BE30: 0 | BF30: 0 | BG30: 0 | BH30: 0 | BI30: 0 | BJ30: 0 | BK30: 0 | BL30: 0 | BM30: 0 | BN30: 0 | BO30: 0 | BP30: 0 | BQ30: 0 | BR30: 0 | BS30: 0 | BT30: 0 | BU30: 0 | BV30: 0 | BW30: 0 | BX30: 0 | BY30: 0 | BZ30: 0 | CA30: 0 | CB30: 0 | CC30: 0 | CD30: 0 | CE30: 0 | CF30: 0 | CG30: ='Plan Energi 2006'!AQ80 -> 21.747 | CH30: 0 | CI30: 44.153 | CJ30: =-(C30*'Plan Energi 2006'!$I$89/1000+D30*'Plan Energi 2006'!$C$89/1000+E30*'Plan Energi 2006'!$W$89/1000+X30*'Plan Energi 2006'!$F$89/1000) -> 4.8766
C31: 0 | D31: 0 | E31: 0 | F31: 0 | G31: 0 | H31: 0 | I31: 0 | J31: 0 | K31: 0 | L31: 0 | M31: 0 | N31: 0 | O31: 0 | P31: 0 | Q31: 0 | R31: 0 | S31: 0 | T31: 0 | U31: 0 | V31: 0 | W31: 0 | X31: -36.88 | Y31: 0 | Z31: ='Plan Energi 2006'!B16*'Plan Energi 2006'!AQ16/SUM('Plan Energi 2006'!AI16:AQ16)*-1 -> -6.38 | AA31: 0 | AB31: 0 | AC31: 0 | AD31: 0 | AE31: ='Plan Energi 2006'!F77*-1 -> -30.5 | AF31: 0 | AG31: 0 | AH31: 0 | AI31: 0 | AJ31: 0 | AK31: 0 | AL31: 0 | AM31: 0 | AN31: 0 | AO31: -36.88 | AP31: Non-Road (landbrug) | AQ31: ATNONR | AR31: AT | AT31: 10.065 | AU31: 0.3 | AW31: 0 | AX31: 0 | AY31: 0 | AZ31: 0 | BA31: 0 | BB31: 0 | BC31: 0 | BD31: 0 | BE31: 0 | BF31: 0 | BG31: 0 | BH31: 0 | BI31: 0 | BJ31: 0 | BK31: 0 | BL31: 0 | BM31: 0 | BN31: 0 | BO31: 0 | BP31: 0 | BQ31: 0 | BR31: 0 | BS31: 0 | BT31: 0 | BU31: 0 | BV31: 0 | BW31: 0 | BX31: 0 | BY31: 0 | BZ31: 0 | CA31: 0 | CB31: 0 | CC31: 0 | CD31: 0 | CE31: 0 | CF31: 0 | CG31: ='Plan Energi 2006'!AP77 -> 10.065 | CH31: 0 | CI31: 26.815 | CJ31: =-(C31*'Plan Energi 2006'!$I$89/1000+D31*'Plan Energi 2006'!$C$89/1000+E31*'Plan Energi 2006'!$W$89/1000+X31*'Plan Energi 2006'!$F$89/1000) -> 2.72912
C32: =SUM('Plan Energi 2006'!I17:I22)*-1 -> -0.63 | D32: =SUM('Plan Energi 2006'!C17:C22)*-1 -> 0 | E32: =SUM('Plan Energi 2006'!W17:W22)*-1 -> 0 | F32: -245 | G32: =SUM('Plan Energi 2006'!Q17:Q22)*-1 -> -39 | H32: =SUM('Plan Energi 2006'!R17:R22)*-1 -> -174 | I32: 0 | J32: =SUM('Plan Energi 2006'!S17:S22)*-1 -> -32 | K32: 0 | L32: =SUM('Plan Energi 2006'!O17:O22)*-1 -> 0 | M32: 0 | N32: =SUM('Plan Energi 2006'!T17:V22)*-1 -> 0 | O32: -2.762 | P32: =SUM('Plan Energi 2006'!L17:L22)*-1 -> -2.4 | Q32: =SUM('Plan Energi 2006'!J17:J22)*-1 -> 0 | R32: 0 | S32: 0 | T32: 0 | U32: =SUM('Plan Energi 2006'!M17:M22)*-1 -> 0 | V32: =('Plan Energi 2006'!N14+SUM('Plan Energi 2006'!N17:N22))*-1 -> -0.362 | W32: =SUM('Plan Energi 2006'!P17:P22)*-1 -> 0 | X32: -172.38 | Y32: 0 | Z32: ='Plan Energi 2006'!B16*'Plan Energi 2006'!AI16/SUM('Plan Energi 2006'!AI16:AQ16)*-1 -> -6.38 | AA32: 0 | AB32: =SUM('Plan Energi 2006'!H17:H22)*-1 -> 0 | AC32: 0 | AD32: =SUM('Plan Energi 2006'!G17:G22)*-1 -> 0 | AE32: =SUM('Plan Energi 2006'!F17:F22)*-1 -> 0 | AF32: =SUM('Plan Energi 2006'!D17:E22)*-1 -> -166 | AG32: 0 | AH32: 0 | AI32: 0 | AJ32: =('Plan Energi 2006'!AE14+'Plan Energi 2006'!AI8*'Plan Energi 2006'!AE8/'Plan Energi 2006'!AH8+'Plan Energi 2006'!AI9*'Plan Energi 2006'!AE9/'Plan Energi 2006'!AH9+'Plan Energi 2006'!AI10*'Plan Energi 2006'!AE10/'Plan Energi 2006'!AH10+'Plan Energi 2006'!AI11*'Plan Energi 2006'!AE11/'Plan Energi 2006'!AH11+'Plan Energi 2006'!AI12*'Plan Energi 2006'!AE12/'Plan Energi 2006'!AH12+'Plan Energi 2006'!AI13*'Plan Energi 2006'!AE13/'Plan Energi 2006'!AH13)*-1 -> -311.1279899 | AK32: =('Plan Energi 2006'!AI39+'Plan Energi 2006'!AI43+'Plan Energi 2006'!AI52+'Plan Energi 2006'!AI55+'Plan Energi 2006'!AI62+'Plan Energi 2006'!AI71)*-1 -> -996.0957227 | AL32: 0 | AM32: 0 | AN32: 0 | AO32: -1727.995713 | AP32: Husholdninger | AQ32: AH | AR32: A | AT32: 1565.605526 | AU32: 1 | AW32: 0 | AX32: 0 | AY32: 0 | AZ32: 0 | BA32: 0 | BB32: 0 | BC32: 0 | BD32: 0 | BE32: 0 | BF32: 0 | BG32: 0 | BH32: 0 | BI32: 0 | BJ32: 0 | BK32: 0 | BL32: 0 | BM32: 0 | BN32: 0 | BO32: 0 | BP32: 0 | BQ32: 0 | BR32: 0 | BS32: 0 | BT32: 0 | BU32: 0 | BV32: 0 | BW32: 0 | BX32: 0 | BY32: 0 | BZ32: 0 | CA32: 0 | CB32: 0 | CC32: 0 | CD32: 0 | CE32: 0 | CF32: 0 | CG32: ='Plan Energi 2006'!AI81 -> 1565.605526 | CH32: 0 | CI32: 162.3901862 | CJ32: =-(C32*'Plan Energi 2006'!$I$89/1000+D32*'Plan Energi 2006'!$C$89/1000+E32*'Plan Energi 2006'!$W$89/1000+X32*'Plan Energi 2006'!$F$89/1000) -> 12.7918914
C33: 0 | D33: 0 | E33: 0 | F33: 0 | G33: 0 | H33: 0 | I33: 0 | J33: 0 | K33: 0 | L33: 0 | M33: 0 | N33: 0 | O33: 0 | P33: 0 | Q33: 0 | R33: 0 | S33: 0 | T33: 0 | U33: 0 | V33: 0 | W33: 0 | X33: 0 | Y33: 0 | Z33: 0 | AA33: 0 | AB33: 0 | AC33: 0 | AD33: 0 | AE33: 0 | AF33: 0 | AG33: 0 | AH33: 0 | AI33: 0 | AJ33: =('Plan Energi 2006'!AJ8*'Plan Energi 2006'!AE8/'Plan Energi 2006'!AH8+'Plan Energi 2006'!AJ9*'Plan Energi 2006'!AE9/'Plan Energi 2006'!AH9+'Plan Energi 2006'!AJ10*'Plan Energi 2006'!AE10/'Plan Energi 2006'!AH10+'Plan Energi 2006'!AJ11*'Plan Energi 2006'!AE11/'Plan Energi 2006'!AH11+'Plan Energi 2006'!AJ12*'Plan Energi 2006'!AE12/'Plan Energi 2006'!AH12+'Plan Energi 2006'!AJ13*'Plan Energi 2006'!AE13/'Plan Energi 2006'!AH13)*-1 -> -184.8754692 | AK33: =('Plan Energi 2006'!AJ39+'Plan Energi 2006'!AJ43+'Plan Energi 2006'!AJ52+'Plan Energi 2006'!AJ55+'Plan Energi 2006'!AJ62+'Plan Energi 2006'!AJ71)*-1 -> -154.3940428 | AL33: 0 | AM33: 0 | AN33: 0 | AO33: -339.269512 | AP33: Offentlig | AQ33: AO | AR33: A | AT33: 298.1706598 | AU33: 1 | AW33: 0 | AX33: 0 | AY33: 0 | AZ33: 0 | BA33: 0 | BB33: 0 | BC33: 0 | BD33: 0 | BE33: 0 | BF33: 0 | BG33: 0 | BH33: 0 | BI33: 0 | BJ33: 0 | BK33: 0 | BL33: 0 | BM33: 0 | BN33: 0 | BO33: 0 | BP33: 0 | BQ33: 0 | BR33: 0 | BS33: 0 | BT33: 0 | BU33: 0 | BV33: 0 | BW33: 0 | BX33: 0 | BY33: 0 | BZ33: 0 | CA33: 0 | CB33: 0 | CC33: 0 | CD33: 0 | CE33: 0 | CF33: 0 | CG33: ='Plan Energi 2006'!AJ81 -> 298.1706598 | CH33: 0 | CI33: 41.09885222 | CJ33: =-(C33*'Plan Energi 2006'!$I$89/1000+D33*'Plan Energi 2006'!$C$89/1000+E33*'Plan Energi 2006'!$W$89/1000+X33*'Plan Energi 2006'!$F$89/1000) -> 0
C34: 0 | D34: 0 | E34: 0 | F34: 0 | G34: 0 | H34: 0 | I34: 0 | J34: 0 | K34: 0 | L34: 0 | M34: 0 | N34: 0 | O34: 0 | P34: 0 | Q34: 0 | R34: 0 | S34: 0 | T34: 0 | U34: 0 | V34: 0 | W34: 0 | X34: 0 | Y34: 0 | Z34: 0 | AA34: 0 | AB34: 0 | AC34: 0 | AD34: 0 | AE34: 0 | AF34: 0 | AG34: 0 | AH34: 0 | AI34: 0 | AJ34: =(SUM('Plan Energi 2006'!AK8:AP8)*'Plan Energi 2006'!AE8/'Plan Energi 2006'!AH8+SUM('Plan Energi 2006'!AK9:AP9)*'Plan Energi 2006'!AE9/'Plan Energi 2006'!AH9+SUM('Plan Energi 2006'!AK10:AP10)*'Plan Energi 2006'!AE10/'Plan Energi 2006'!AH10+SUM('Plan Energi 2006'!AK11:AP11)*'Plan Energi 2006'!AE11/'Plan Energi 2006'!AH11)*-1 -> -79.33375645 | AK34: =(SUM('Plan Energi 2006'!AK39:AP39)+SUM('Plan Energi 2006'!AK43:AP43)+SUM('Plan Energi 2006'!AK52:AP52)+SUM('Plan Energi 2006'!AK55:AP55)+SUM('Plan Energi 2006'!AK62:AP62)+SUM('Plan Energi 2006'!AK71:AP71))*-1 -> -437.9263128 | AL34: 0 | AM34: 0 | AN34: 0 | AO34: -517.2600693 | AP34: Erhverv | AQ34: AE | AR34: A | AT34: 477.6038355 | AU34: 1 | AW34: 0 | AX34: 0 | AY34: 0 | AZ34: 0 | BA34: 0 | BB34: 0 | BC34: 0 | BD34: 0 | BE34: 0 | BF34: 0 | BG34: 0 | BH34: 0 | BI34: 0 | BJ34: 0 | BK34: 0 | BL34: 0 | BM34: 0 | BN34: 0 | BO34: 0 | BP34: 0 | BQ34: 0 | BR34: 0 | BS34: 0 | BT34: 0 | BU34: 0 | BV34: 0 | BW34: 0 | BX34: 0 | BY34: 0 | BZ34: 0 | CA34: 0 | CB34: 0 | CC34: 0 | CD34: 0 | CE34: 0 | CF34: 0 | CG34: ='Plan Energi 2006'!AK11+'Plan Energi 2006'!AL11+'Plan Energi 2006'!AM11+'Plan Energi 2006'!AN11+'Plan Energi 2006'!AO11+'Plan Energi 2006'!AP11+SUM('Plan Energi 2006'!AK39:AP71)-SUM('Plan Energi 2006'!AK69:AP69) -> 477.6038355 | CH34: 0 | CI34: 39.65623375 | CJ34: =-(C34*'Plan Energi 2006'!$I$89/1000+D34*'Plan Energi 2006'!$C$89/1000+E34*'Plan Energi 2006'!$W$89/1000+X34*'Plan Energi 2006'!$F$89/1000) -> 0
C35: =SUM('Plan Energi 2006'!I23:I25)*-1 -> -5251.322 | D35: =SUM('Plan Energi 2006'!C23:C25)*-1 -> 0 | E35: =SUM('Plan Energi 2006'!W23:W25)*-1 -> 0 | F35: -3.7 | G35: =SUM('Plan Energi 2006'!Q23:Q25)*-1 -> 0 | H35: =SUM('Plan Energi 2006'!R23:R25)*-1 -> 0 | I35: 0 | J35: =SUM('Plan Energi 2006'!S23:S25)*-1 -> -3.7 | K35: 0 | L35: =SUM('Plan Energi 2006'!O23:O25)*-1 -> 0 | M35: 0 | N35: =SUM('Plan Energi 2006'!T23:V25)*-1 -> 0 | O35: 0 | P35: =SUM('Plan Energi 2006'!L23:L25)*-1 -> 0 | Q35: =SUM('Plan Energi 2006'!J23:J25)*-1 -> 0 | R35: 0 | S35: 0 | T35: 0 | U35: =SUM('Plan Energi 2006'!M23:M25)*-1 -> 0 | V35: =SUM('Plan Energi 2006'!N23:N25)*-1 -> 0 | W35: =SUM('Plan Energi 2006'!P23:P25)*-1 -> 0 | X35: -686.14 | Y35: 0 | Z35: ='Plan Energi 2006'!B16*'Plan Energi 2006'!AN16/SUM('Plan Energi 2006'!AI16:AQ16)*-1 -> -19.14 | AA35: 0 | AB35: =SUM('Plan Energi 2006'!H23:H25)*-1 -> 0 | AC35: 0 | AD35: =SUM('Plan Energi 2006'!G23:G25)*-1 -> 0 | AE35: =SUM('Plan Energi 2006'!F23:F25)*-1 -> 0 | AF35: =SUM('Plan Energi 2006'!D23:E25)*-1 -> -667 | AG35: 0 | AH35: 0 | AI35: 0 | AJ35: =(SUM('Plan Energi 2006'!AK12:AP12)*'Plan Energi 2006'!AE12/'Plan Energi 2006'!AH12+SUM('Plan Energi 2006'!AK13:AP13)*'Plan Energi 2006'!AE13/'Plan Energi 2006'!AH13+SUM('Plan Energi 2006'!AK69:AP69)*'Plan Energi 2006'!D2/100)*-1 -> -567.7294767 | AK35: =SUM('Plan Energi 2006'!AK70:AP70)*-1 -> 0 | AL35: 0 | AM35: 0 | AN35: 0 | AO35: -6508.891477 | AP35: Energi proces | AQ35: AP | AR35: A | AT35: 5871.836397 | AU35: 0.9 | AW35: 0 | AX35: 0 | AY35: 0 | AZ35: 0 | BA35: 0 | BB35: 0 | BC35: 0 | BD35: 0 | BE35: 0 | BF35: 0 | BG35: 0 | BH35: 0 | BI35: 0 | BJ35: 0 | BK35: 0 | BL35: 0 | BM35: 0 | BN35: 0 | BO35: 0 | BP35: 0 | BQ35: 0 | BR35: 0 | BS35: 0 | BT35: 0 | BU35: 0 | BV35: 0 | BW35: 0 | BX35: 0 | BY35: 0 | BZ35: 0 | CA35: 0 | CB35: 0 | CC35: 0 | CD35: 0 | CE35: 0 | CF35: 0 | CG35: =SUM('Plan Energi 2006'!AK12:AP13)+'Plan Energi 2006'!AN23+'Plan Energi 2006'!AN24+'Plan Energi 2006'!AN25+'Plan Energi 2006'!AN69 -> 5871.836397 | CH35: 0 | CI35: 637.0550799 | CJ35: =-(C35*'Plan Energi 2006'!$I$89/1000+D35*'Plan Energi 2006'!$C$89/1000+E35*'Plan Energi 2006'!$W$89/1000+X35*'Plan Energi 2006'!$F$89/1000) -> 348.9444232
F36: 0 | O36: 0 | Q36: 0 | X36: 0 | AN36: 0 | AO36: 0 | AP36: Ikke energiformål | AQ36: AIE | AR36: A | AU36: 0.9 | AZ36: 0 | BI36: 0 | BK36: 0 | BR36: 0 | CG36: =AO36*AU36*-1 -> 0 | CI36: 0
AP37: Energitjenester | AQ37: EN
C38: =C6+'Plan Energi 2006'!I81 -> 0 | D38: =D6+'Plan Energi 2006'!C81 -> 0 | E38: =E6+'Plan Energi 2006'!W81 -> 0 | G38: =G6+'Plan Energi 2006'!Q81 -> 0 | H38: =H6+'Plan Energi 2006'!R81 -> 0 | J38: =J6+'Plan Energi 2006'!S81 -> 0 | L38: =L6+'Plan Energi 2006'!O81 -> 0 | N38: =N6+'Plan Energi 2006'!T81+'Plan Energi 2006'!U81+'Plan Energi 2006'!V81 -> 0 | P38: =P8+P20+'Plan Energi 2006'!L81 -> 0 | Q38: =Q20+Q8+'Plan Energi 2006'!J81 -> -0.652 | U38: =U20+U8+'Plan Energi 2006'!M81 -> 0 | V38: =V20+V8+'Plan Energi 2006'!N81 -> 0 | W38: =W20+W8+'Plan Energi 2006'!P81 -> 0 | Z38: =Z18+Z8+'Plan Energi 2006'!B81 -> 0 | AB38: =AB18+AB8+'Plan Energi 2006'!H81 -> 0 | AD38: =AD18+AD8+'Plan Energi 2006'!G81 -> 0 | AE38: =AE18+AE8+'Plan Energi 2006'!F81 -> 0 | AF38: =AF18+AF8+'Plan Energi 2006'!D81+'Plan Energi 2006'!E81 -> 0 | AJ38: =AJ9+'Plan Energi 2006'!A15 -> 411.1163192 | AK38: =AK18-('Plan Energi 2006'!AF32+'Plan Energi 2006'!AF39+'Plan Energi 2006'!AF43+'Plan Energi 2006'!AF52+'Plan Energi 2006'!AF55+'Plan Energi 2006'!AF62+'Plan Energi 2006'!AF71) -> 0
AJ39: =CD9-'Plan Energi 2006'!A15 -> 0

Sheet Plan Energi 2006 (hidden)
A1: Antal indbyggere: | D1: 49252 | Y1: Geografisk energibalance for
A2: Elnetvirkningsgrad: | D2: 92.7 | E2: %
A3: Enheder: | D3: TJ, tons | Y3: Fredericia Kommune 2006
A6: Brændsel | Y6: Anlægstype | Z6: Virkningsgrad | AD6: Elnet | AF6: Fjernvarmenet | AI6: Slutforbrug
A7: Elimport | B7: LPG og petroleum | C7: Kul | D7: Fuelolie | E7: Brændselsolie | F7: Dieselolie | G7: JP1 | H7: Benzin | I7: Naturgas | J7: Vindenergi | K7: Vandenergi | L7: Solenergi | M7: Geotermi | N7: Varmekilder til varmepumper | O7: Husdyrsgødning | P7: Biobrændstof og energiafgrøder | Q7: Halm | R7: Brænde og træflis | S7: Træpiller og træaffald | T7: Organisk affald, industri | U7: Organisk affald, husholdninger | V7: Deponi, slam, renseanlæg | W7: Affald, ikke bionedbrydeligt | X7: Faktisk energiforbrug | Z7: El | AA7: Proces | AB7: Varme | AC7: Fjernvarmenet | AD7: Ab værk | AE7: An forbruger | AF7: Ab værk | AG7: An forbruger | AH7: Samlet | AI7: Boliger og fritidshuse | AJ7: Offentlig service | AK7: Privat service | AL7: Detail- og engroshandel | AM7: Bygge- og anlægsvirksomhed | AN7: Fremstillingsvirksomhed | AO7: Gartneri | AP7: Landbrug | AQ7: Transport
X8: 0 | Y8: Elkomfur | AA8: 44 | AD8: =-AE8/$D$2% -> -47.23232523 | AE8: =AH8/AA8% -> 43.78436549 | AH8: =SUM(AI8:AQ8) -> 19.26512081 | AI8: 19.26512081
X9: 0 | Y9: Elvandvarmer | AB9: 90 | AD9: -5.85729619 | AE9: =AH9/AB9% -> 5.429713568 | AH9: =SUM(AI9:AQ9) -> 4.886742211 | AI9: 4.886742211
X10: 0 | Y10: Elradiator | AB10: 100 | AD10: -24.85167098 | AE10: =AH10/AB10% -> 23.037499 | AH10: 23.037499 | AI10: 23.037499
X11: 0 | Y11: Belysning | AA11: 50 | AD11: -186.6607321 | AE11: =AH11/AA11% -> 173.0344986 | AH11: 86.51724931 | AI11: 21.89218274 | AJ11: 24.95818834 | AK11: 12.14939745 | AL11: 13.2947046 | AM11: 0.412805052 | AN11: 12.280865 | AO11: 0.10235889 | AP11: 1.42674723
X12: 0 | Y12: Elkompressorer | AA12: 150 | AD12: -154.4228879 | AE12: =AH12/AA12% -> 143.1500171 | AH12: 214.7250257 | AI12: 77.54069888 | AJ12: 0 | AK12: 40.82197543 | AL12: 44.67020746 | AM12: 1.651220208 | AN12: 49.12346002 | AO12: 0.061415334 | AP12: 0.856048338
X13: 0 | Y13: Elmotorer m.m. | AA13: 85 | AD13: -813.8614871 | AE13: =AH13/AA13% -> 754.4495985 | AH13: 641.2821587 | AI13: 121.73466 | AJ13: 114.7152286 | AK13: 38.82947425 | AL13: 42.4898759 | AM13: 10.0586831 | AN13: 299.2437439 | AO13: 0.9512552844 | AP13: 13.25923759
N14: =AH14-AE14 -> 0.362 | X14: 0.362 | Y14: Varmepumper, individuel | AB14: 300 | AD14: -0.1952535059 | AE14: 0.181 | AH14: 0.543 | AI14: 0.543
A15: =Z15%*AD15 -> 411.1163192 | X15: 411.1163192 | Y15: Elimport | Z15: 100 | AD15: =-SUM(AD16:AD80,AD8:AD14) -> 411.1163192 | AH15: 0
B16: 31.9 | X16: 31.9 | Y16: Gaskomfur, proces, m.m. | AB16: 38 | AH16: 12.122 | AI16: =X16*AB16/100*0.2 -> 2.4244 | AN16: =X16*AB16/100*0.6 -> 7.2732 | AQ16: =X16*AB16/100*0.2 -> 2.4244
E17: 166 | X17: 166 | Y17: Gasoliekedel, individuel | AB17: 80 | AH17: 132.8 | AI17: =X17*AB17/100 -> 132.8
I18: 0.63 | X18: 0.63 | Y18: Naturgaskedel, individuel | AB18: 85 | AH18: 0.5355 | AI18: 0.5355
S19: 32 | X19: 32 | Y19: Træpillekedel, individuel | AB19: 75 | AH19: 24 | AI19: 24
R20: 174 | X20: 174 | Y20: Brændekedel og -ovn, individuel | AB20: 65 | AH20: 113.1 | AI20: 113.1
Q21: 39 | X21: 39 | Y21: Halmfyr, individuel | AB21: 65 | AH21: 25.35 | AI21: 25.35
L22: 2.4 | X22: 2.4 | Y22: Solvarmeanlæg | AB22: 100 | AH22: 2.4 | AI22: 2.4
E23: 27 | X23: 27 | Y23: Gasoliekedel, erhverv | AA23: 90 | AH23: 24.3 | AN23: =X23*AA23/100 -> 24.3
I24: 347.982 | X24: 347.982 | Y24: Naturgaskedel, erhverv | AA24: 90 | AH24: 313.1838 | AN24: =X24*AA24/100 -> 313.1838
D25: 640 | I25: 4903.34 | S25: 3.7 | X25: 5547.04 | Y25: Industrikedel, erhverv | AA25: 90 | AH25: 4992.336 | AN25: =X25*AA25/100 -> 4992.336
X26: 0 | Y26: Solcelleanlæg | Z26: 100 | AD26: =X26*Z26/100 -> 0 | AH26: 0
J27: 13.508 | X27: 13.508 | Y27: Vindkraftanlæg, land | Z27: 100 | AD27: =Z27*X27/100 -> 13.508 | AH27: 0
X28: 0 | Y28: Vindkraftanlæg, kystnære (50 %) | Z28: 100 | AD28: =Z28*X28/100 -> 0 | AH28: 0
X29: 0 | Y29: Vandkraftanlæg | Z29: 100 | AD29: =Z29*X29/100 -> 0 | AH29: 0
X30: 0 | Y30: Bølgekraftanlæg | Z30: 100 | AD30: =Z30*X30/100 -> 0 | AH30: 0
I31: =-(O31+T31)*AA31% -> 0 | X31: =SUM(A31:W31) -> 0 | Y31: Biogasanlæg, opgradering
Y32: Biogasanlæg, motor | AD32: =X32*Z32/100 -> 0 | AF32: =X32*AB32/100 -> 0 | AH32: =SUM(AI32:AQ32) -> 0
X33: =SUM(A33:W33) -> 0 | Y33: Centrale kraftværker, dampturbine | Z33: 38.7 | AB33: 53 | AD33: =X33*Z33/100 -> 0 | AF33: =X33*AB33/100 -> 0 | AH33: 0
X34: 0 | Y34: Centrale kraftværker, forbrændingsmotor | AD34: =X34*Z34/100 -> 0 | AF34: =X34*AB34 -> 0 | AH34: 0
X35: 0 | Y35: Centrale kraftværker, gasturbine | AD35: =X35*Z35/100 -> 0 | AF35: =X35*AB35 -> 0 | AH35: 0
X36: 0 | Y36: Centrale kraftværker, kedel | AF36: =X36*AB36/100 -> 0 | AH36: 0
N37: =AF37-AE37 -> 0 | X37: 0 | Y37: Centrale kraftværker, varmepumpe | AD37: =-AE37/$D$2% -> 0 | AF37: =AE37*AB37% -> 0
X38: 0 | Y38: Centrale kraftværker, elpatron | AD38: =-AE38/$D$2% -> 0 | AF38: =AE38*AB38% -> 0
X39: 0 | Y39: Centrale kraftværker, fjernvarmeproduktion | AC39: 77.2 | AF39: =-SUM(AF33:AF36) -> 0 | AG39: =-AF39*AC39/100 -> 0 | AH39: =SUM(AI39:AQ39) -> 0 | AI39: =AG39*62.71% -> 0 | AJ39: =AG39*9.72% -> 0 | AK39: =AG39*12.13% -> 0 | AL39: =AG39*7.13% -> 0 | AM39: =AG39*0% -> 0 | AN39: =AG39*6.34% -> 0 | AO39: =AG39*1.97% -> 0
X40: 0 | Y40: Affaldsforbrændingsanlæg, dampturbine | AD40: =X40*Z40/100 -> 0 | AF40: =X40*AB40/100 -> 0 | AH40: 0
X41: 0 | Y41: Affaldsforbrændingsanlæg, kedel | AD41: =X41*Z41/100 -> 0 | AF41: =X41*AB41/100 -> 0 | AH41: 0
X42: 0 | Y42: Affaldsforbrændingsanlæg, kombianlæg | AD42: =X42*Z42/100 -> 0 | AF42: =X42*AB42/100 -> 0 | AH42: 0
X43: 0 | Y43: Affaldsforbrændingsanlæg, fjernvarmeproduktion | AC43: 77.2 | AF43: =-SUM(AF40:AF42) -> 0 | AG43: =-AF43*AC43/100 -> 0 | AH43: 0 | AI43: =AG43*62.71% -> 0 | AJ43: =AG43*9.72% -> 0 | AK43: =AG43*12.13% -> 0 | AL43: =AG43*7.13% -> 0 | AM43: =AG43*0% -> 0 | AN43: =AG43*6.34% -> 0 | AO43: =AG43*1.97% -> 0
X44: 0 | Y44: Decentrale KV-værker, dampturbine | AD44: =X44*Z44/100 -> 0 | AF44: =X44*AB44/100 -> 0 | AH44: 0
X45: 0 | Y45: Decentrale KV-værker, forbrændingsmotor | AD45: =X45*Z45/100 -> 0 | AF45: 0 | AH45: 0
X46: 0 | Y46: Decentrale KV-værker, gasturbine | AD46: =X46*Z46/100 -> 0 | AF46: 0 | AH46: 0
X47: 0 | Y47: Decentrale KV-værker, kedel | AD47: =X47*Z47/100 -> 0 | AF47: 0 | AH47: 0
N48: =AH48-AE48 -> 0 | X48: 0 | Y48: Decentrale KV-værker, varmepumpe | AD48: =-AG48/$D$2% -> 0 | AF48: =X48*AB48/100 -> 0
X49: 0 | Y49: Decentrale KV-værker, elpatron | AD49: =-AG49/$D$2% -> 0 | AF49: =X49*AB49/100 -> 0
X50: 0 | Y50: Decentrale KV-værker, solvarme | AF50: 0 | AH50: 0
X51: 0 | Y51: Decentrale KV-værker, kombianlæg | AD51: =X51*Z51/100 -> 0 | AF51: 0 | AH51: 0
X52: 0 | Y52: Decentrale KV-værker, fjernvarmeproduktion | AC52: 77.2 | AF52: =-SUM(AF44:AF51) -> 0 | AG52: =-AF52*AC52/100 -> 0 | AH52: 0 | AI52: =AG52*62.71% -> 0 | AJ52: =AG52*9.72% -> 0 | AK52: =AG52*12.13% -> 0 | AL52: =AG52*7.13% -> 0 | AM52: =AG52*0% -> 0 | AN52: =AG52*6.34% -> 0 | AO52: =AG52*1.97% -> 0
V53: 9.2 | X53: 9.2 | Y53: Lokale KV-værker, motor | Z53: 31 | AA53: 44.6 | AD53: =X53*Z53/100 -> 2.852 | AF53: =X53*AB53/100 -> 0 | AH53: =SUM(AI53:AQ53) -> 4.1032 | AJ53: =X53*AA53/100 -> 4.1032
X54: 0 | Y54: Lokale KV-værker, kedel | AD54: =X54*Z54/100 -> 0 | AF54: =X54*AB54/100 -> 0 | AH54: 0
X55: 0 | Y55: Lokale KV-værker, fjernvarmeproduktion | AC55: 77.2 | AF55: =-SUM(AF53:AF54) -> 0 | AG55: =-AF55*AC55/100 -> 0 | AH55: 0 | AI55: =AG55*62.71% -> 0 | AJ55: =AG55*9.72% -> 0 | AK55: =AG55*12.13% -> 0 | AL55: =AG55*7.13% -> 0 | AM55: =AG55*0% -> 0 | AN55: =AG55*6.34% -> 0 | AO55: =AG55*1.97% -> 0
X56: 0 | Y56: Fjernvarmeværker, kedel | AF56: =X56*AB56/100 -> 0 | AH56: 0
N57: =AF57-AE57 -> 0 | X57: 0 | Y57: Fjernvarmeværker, varmepumpe | AD57: =-AG57/$D$2% -> 0 | AF57: =AE57*AB57% -> 0
X58: 0 | Y58: Fjernvarmeværker, elpatron | AF58: =X58*AB58/100 -> 0
X59: 0 | Y59: Fjernvarmeværker, geotermi | AF59: =X59*AB59/100 -> 0
X60: 0 | Y60: Fjernvarmeværker, sol | AF60: =X60*AB60/100 -> 0 | AH60: 0
E61: 64.6997 | I61: 2870.76151 | S61: 31.6366 | U61: 149.31334 | V61: 9.7953 | W61: 122.16546 | X61: 3248.37191 | Y61: Import fjernvarme | Z61: 24.8 | AB61: 50.8 | AD61: =X61*Z61% -> 805.5962337 | AF61: =X61*AB61% -> 1650.17293 | AH61: 0
X62: 0 | Y62: Fjernvarmeværker, fjernvarmeproduktion | AC62: 77.2 | AF62: =-SUM(AF56:AF61) -> -1650.17293 | AG62: =-AF62*AC62/100 -> 1273.933502 | AH62: 1273.933502 | AI62: =AG62*62.71% -> 798.8836992 | AJ62: =AG62*9.72% -> 123.8263364 | AK62: =AG62*12.13% -> 154.5281338 | AL62: =AG62*7.13% -> 90.83145871 | AM62: =AG62*0% -> 0 | AN62: =AG62*6.34% -> 80.76738404 | AO62: =AG62*1.97% -> 25.09648999
X63: 0 | Y63: Industrielle KV-værker, dampturbine | AD63: =Z63/100*X63 -> 0 | AF63: =X63*AB63/100 -> 0 | AH63: 0
I64: 0.02376 | X64: 0.02376 | Y64: Industrielle KV-værker, forbrændingsmotor | Z64: 38.3 | AA64: 44.8 | AD64: 0.00910008 | AF64: =X64*AB64/100 -> 0 | AH64: 0.01064448 | AM64: =X64*AA64/100 -> 0.01064448
X65: 0 | Y65: Industrielle KV-værker, gasturbine | AD65: 0 | AF65: =X65*AB65/100 -> 0 | AH65: 0
X66: 0 | Y66: Industrielle KV-værker, kedel | AD66: 0 | AF66: =X66*AB66/100 -> 0 | AH66: 0
X67: 0 | Y67: Industrielle KV-værker, kombianlæg | AD67: 0 | AF67: =X67*AB67/100 -> 0 | AH67: 0
X68: 0 | Y68: Industrielle KV-værker, overskudsvarme | AD68: 0 | AF68: 407.36085 | AH68: 0
X69: 0 | Y69: Industrielle KV-værker, forbrug, eget forbrug, el | AD69: 0 | AE69: 0 | AH69: 0 | AN69: =AE69 -> 0
X70: 0 | Y70: Industrielle KV-værker, forbrug, eget forbrug, varme | AH70: 0 | AN70: =-AF70 -> 0
X71: 0 | Y71: Industrielle KV-værker, fjernvarmeproduktion | AC71: 77.2 | AF71: =-SUM(AF63:AF70) -> -407.36085 | AG71: =-AF71*AC71/100 -> 314.4825762 | AH71: 314.4825762 | AI71: =AG71*62.71% -> 197.2120235 | AJ71: =AG71*9.72% -> 30.56770641 | AK71: =AG71*12.13% -> 38.14673649 | AL71: =AG71*7.13% -> 22.42260768 | AM71: =AG71*0% -> 0 | AN71: =AG71*6.34% -> 19.93819533 | AO71: =AG71*1.97% -> 6.195306751
H72: 731.457585 | P72: 1.392415 | X72: 732.85 | Y72: Benzinbiler | AA72: 20 | AH72: 146.57 | AQ72: =X72*AA72/100 -> 146.57
F73: 177.89 | X73: 177.89 | Y73: Dieselbiler | AA73: 25 | AH73: 44.4725 | AQ73: =X73*AA73/100 -> 44.4725
F74: =186 -> 186 | X74: =SUM(A74:W74) -> 186 | Y74: Varebiler | AA74: 25 | AH74: 46.5 | AQ74: =X74*AA74/100 -> 46.5
F75: 16 | X75: 16 | Y75: Busser | AA75: 33 | AH75: 5.28 | AQ75: =X75*AA75/100 -> 5.28
F76: 437.26 | X76: 437.26 | Y76: Lastbiler m.m. | AA76: 33 | AH76: 144.2958 | AQ76: =X76*AA76/100 -> 144.2958
F77: 30.5 | X77: 30.5 | Y77: Traktorer | AA77: 33 | AH77: 10.065 | AP77: =X77*AA77% -> 10.065
F78: 27.8 | X78: 27.8 | Y78: Tog | AA78: 33 | AD78: =-AE78/$D$2% -> 0 | AH78: 9.174 | AQ78: =X78*AA78/100+AE78*AA78% -> 9.174
G79: 352.5 | H79: 0.9 | X79: 353.4 | Y79: Fly | AA79: 33 | AH79: 116.622 | AQ79: =X79*AA79/100 -> 116.622
D80: 11.6 | F80: 54.3 | X80: 65.9 | Y80: Skibe | AA80: 33 | AH80: 21.747 | AQ80: =X80*AA80/100 -> 21.747
A81: =SUM(A8:A80) -> 411.1163192 | B81: 31.9 | C81: 0 | D81: 651.6 | E81: 257.6997 | F81: 929.75 | G81: 352.5 | H81: 732.357585 | I81: 8122.73727 | J81: 13.508 | K81: 0 | L81: 2.4 | M81: 0 | N81: 0.362 | O81: 0 | P81: 1.392415 | Q81: 39 | R81: 174 | S81: 67.3366 | T81: 0 | U81: 149.31334 | V81: 18.9953 | W81: 122.16546 | X81: =SUM(X8:X80) -> 12078.13399 | Y81: Samlet | AD81: =SUM(AD8:AD80) -> -5.291427019e-14 | AE81: 1143.066692 | AF81: 0 | AG81: 1588.416078 | AH81: 8767.640319 | AI81: 1565.605526 | AJ81: 298.1706598 | AK81: 284.4757174 | AL81: 213.7088543 | AM81: 12.13335284 | AN81: 5798.446648 | AO81: 32.40682625 | AP81: 25.60703316 | AQ81: 537.0857
A82: =A81*A89/1000 -> 89.86180505 | B82: =B81*B87/1000 -> 0 | C82: =C81*C87/1000 -> 0 | D82: =D81*D89/1000 -> 50.8248 | E82: 19.0697778 | F82: 68.8015 | G82: 25.38 | H82: 53.46210371 | I82: 461.2090222 | J82: 0 | K82: 0 | L82: 0 | M82: 0 | N82: 0 | O82: 0 | P82: 0 | Q82: 0 | R82: 0 | S82: 0 | T82: 0 | U82: 0 | V82: 0 | W82: =W81*W89/1000 -> 9.636411485 | X82: =SUM(A82:W82) -> 778.2454202 | Y82: CO2-emissioner (1.000 tons) | Z82: =X82*1000/D1 -> 15.80129579 | AA82: tons/indbygger
O83: 229.6636516 | P83: 674.5806144 | Q83: 690.9963311 | R83: 438.6526335 | X83: =SUM(A83:W83) -> 2033.893231 | Y83: Lokalt biomassepotentiale | Z83: =(SUM(J14:V14)+AD15*A87%+SUM(J19:V19)+SUM(J20:V20)+SUM(J21:V21)+SUM(J22:V22)+SUM(J25:V25)+SUM(J72:V72)+SUM(J73:V73)+SUM(J74:V74)+SUM(J75:V75)+SUM(J76:V76)+SUM(J77:V77)+SUM(J78:V78)+SUM(J79:V79)+SUM(J80:V80)+SUM(J26:V26)*(Z26%+AB26%)+SUM(J27:V27)*(Z27%+AB27%)+SUM(J28:V28)*(Z28%+AB28%)+SUM(J29:V29)*(Z29%+AB29%)+SUM(J30:V30)*(Z30%+AB30%)+SUM(J32:V32)*(Z32%+AA32%+AB32%)+SUM(J31:V31)*(AA31%)+SUM(J33:V33)*(Z33%+AB33%)+SUM(J34:V34)*(Z34%+AB34%)+SUM(J35:V35)*(Z35%+AB35%)+SUM(J36:V36)*(Z36%+AB36%)+SUM(J37:V37)*(Z37%+AB37%)+SUM(J40:V40)*(Z40%+AB40%)+SUM(J41:V41)*(Z41%+AB41%)+SUM(J42:V42)*(Z42%+AB42%)+SUM(J44:V44)*(Z44%+AB44%)+SUM(J45:V45)*(Z45%+AB45%)+SUM(J46:V46)*(Z46%+AB46%)+SUM(J47:V47)*(Z47%+AB47%)+SUM(J48:V48)*(Z48%+AB48%)+SUM(J50:V50)*(Z50%+AB50%)+SUM(J51:V51)*(Z51%+AB51%)+SUM(J53:V53)*(Z53%+AA53%+AB53%)+SUM(J54:V54)*(Z54%+AA54%+AB54%)+SUM(J56:V56)*(Z56%+AB56%)+SUM(J57:V57)*(Z57%+AB57%)+SUM(J59:V59)*(Z59%+AB59%)+SUM(J60:V60)*(Z60%+AB60%)+SUM(J61:V61)*(Z61%+AB61%)+SUM(J63:V63)*(Z63%+AB63%)+SUM(J64:V64)*(Z64%+AB64%)+SUM(J65:V65)*(Z65%+AB65%)+SUM(J66:V66)*(Z66%+AB66%)+SUM(J67:V67)*(Z67%+AB67%)+SUM(J68:V68)*(Z68%+AB68%))/(SUM(X8:X14)+SUM(X16:X25)+SUM(X72:X80)+(AG39/AC39%+AG43/AC43%+AG52/AC52%+AG55/AC55%+AG62/AC62%+AG71/AC71%)+AE81+SUM(AE8:AE14)*(1-D2%)+(-AF70))*100 -> 3.961861832 | AA83: % VE (Global)
O84: 0 | P84: 0.2064119499 | Q84: 5.644024179 | R84: 39.66692246 | S84: =IF(S83>0,S81/S83*100,"") ->  | T84: =IF(T83>0,T81/T83*100,"") ->  | U84: =IF(U83>0,U81/U83*100,"") ->  | V84: =IF(V83>0,V81/V83*100,"") ->  | W84: =IF(W83>0,W81/W83*100,"") ->  | X84: =SUMIF(J83:W83,">0",J81:W81)/SUM(J83:W83)% -> 10.5409867 | Y84: Udnyttelsesprocent af lokalt biomassepotentiale
A86: %) | B86: =B7 -> LPG og petroleum | C86: Kul | D86: Fuelolie | E86: Brændselsolie | F86: Dieselolie | G86: JP1 | H86: Benzin | I86: Naturgas | J86: Vindenergi | K86: Vandenergi | L86: Solenergi | M86: Geotermi | N86: Varmekilder til varmepumper | O86: Husdyrsgødning | P86: Biobrændstof og energiafgrøder | Q86: Halm | R86: Brænde og træflis | S86: Træpiller og træaffald | T86: Organisk affald, industri | U86: Organisk affald, husholdninger | V86: Deponi, slam, renseanlæg | W86: Affald, ikke bionedbrydeligt
A87: 11
A88: Elimport (heraf VE-andel:
A89: 218.58 | B89: 65 | C89: 95 | D89: 78 | E89: 74 | F89: 74 | G89: 72 | H89: 73 | I89: 56.78 | W89: 78.88 | X89: CO2-emission (tons/TJ)

Sheet e2g-format 2008 (hidden)
B1: Forbrug | C1: Naturgas | D1: Kul | E1: Affald (ikke-bionedbrydeligt) | F1: Biobrændsler | G1: Halm | H1: Skovflis | I1: Brænde | J1: Træpiller | K1: Træaffald | L1: Biogas | M1: Biomasse | N1: Affald (bionedbrydeligt) | O1: Ikke-brændsel VE | P1: Sol | Q1: Vind | R1: Havvind | S1: Landvind | T1: Vand | U1: Geotermisk | V1: Varmepumpe - omgivelsesvarme | W1: Bioolie, biodiesel og bioethanol | X1: Olieprodukter | Y1: Raffinaderigas | Z1: LPG | AA1: Flybenzin | AB1: Benzin | AC1: Petroleum / Kerosen | AD1: JP1 | AE1: Gasolie/Dieselolie | AF1: Fuelolie | AG1: Spildolie | AH1: Petrokoks | AI1: Terpentin, smøreolie og bitumen | AJ1: El | AK1: Fjernvarme | AL1: Overskudsvarme | AM1: Energitjenester | AN1: Total energiforbrug | AO1: Brutto brændsel | AP1: =Andet!B4 -> Fredericia | AS1: Faktor | AT1: Brutto produktion | AU1: Virkningsgrad | AV1: Produktion | AW1: Naturgas | AX1: Kul | AY1: Affald (ikke-bionedbrydeligt) | AZ1: Biobrændsler | BA1: Halm | BB1: Skovflis | BC1: Brænde | BD1: Træpiller | BE1: Træaffald | BF1: Biogas | BG1: Biomasse | BH1: Affald (bionedbrydeligt) | BI1: Ikke-brændsel VE | BJ1: Sol | BK1: Vind | BL1: Havvind | BM1: Landvind | BN1: Vand | BO1: Geotermisk | BP1: Varmepumpe - omgivelsesvarme | BQ1: Bioolie, biodiesel og bioethanol | BR1: Olieprodukter | BS1: Raffinaderigas | BT1: LPG | BU1: Flybenzin | BV1: Benzin | BW1: Petroleum / Kerosen | BX1: JP1 | BY1: Gasolie/Dieselolie | BZ1: Fuelolie | CA1: Spildolie | CB1: Petrokoks | CC1: Terpentin, smøreolie og bitumen | CD1: El | CE1: Fjernvarme | CF1: Nyttiggjort overskudsvarme | CG1: Energitjenester | CH1: Total energiforbrug | CI1: Tab | CJ1: CO2-udledning
A2: ID | B2: F | C2: FN | D2: FK | E2: FMA | F2: FVB | G2: FB1 | H2: FB2 | I2: FB3 | J2: FB4 | K2: FB5 | L2: FB6 | M2: FB7 | N2: FB8 | O2: FLVE | P2: FLVE1 | Q2: FLVE2 | R2: FLVE21 | S2: FLVE22 | T2: FLVE3 | U2: FLVE4 | V2: FLVE5 | W2: FS | X2: FOO | Y2: FO1 | Z2: FO2 | AA2: FO3 | AB2: FO4 | AC2: FO5 | AD2: FO6 | AE2: FO7 | AF2: FO8 | AG2: FO9 | AH2: FOO1 | AI2: FOO2 | AJ2: FE | AK2: FF | AL2: FOV | AM2: FWEN | AN2: FTOTAL | AO2: fbrbr | AQ2: ID | AR2: ID Parent | AS2: factor | AT2: pbrpr | AU2: pvrkg | AV2: P | AW2: PN | AX2: PK | AY2: PMA | AZ2: PVB | BA2: PB1 | BB2: PB2 | BC2: PB3 | BD2: PB4 | BE2: PB5 | BF2: PB6 | BG2: PB7 | BH2: PB8 | BI2: PLVE | BJ2: PLVE1 | BK2: PLVE2 | BL2: PLVE21 | BM2: PLVE22 | BN2: PLVE3 | BO2: PLVE4 | BP2: PLVE5 | BQ2: PS | BR2: POO | BS2: PO1 | BT2: PO2 | BU2: PO3 | BV2: PO4 | BW2: PO5 | BX2: PO6 | BY2: PO7 | BZ2: PO8 | CA2: PO9 | CB2: POO1 | CC2: POO2 | CD2: PE | CE2: PF | CF2: POV | CG2: PWEN | CH2: PTOTAL | CI2: PTAB | CJ2: PCO2
A3: ID Parent | C3: F | D3: F | E3: F | F3: F | G3: FVB | H3: FVB | I3: FVB | J3: FVB | K3: FVB | L3: FVB | M3: FVB | N3: FVB | O3: F | P3: FLVE | Q3: FLVE | R3: FLVE2 | S3: FLVE2 | T3: FLVE | U3: FLVE | V3: FLVE | W3: F | X3: F | Y3: FOO | Z3: FOO | AA3: FOO | AB3: FOO | AC3: FOO | AD3: FOO | AE3: FOO | AF3: FOO | AG3: FOO | AH3: FOO | AI3: FOO | AJ3: F | AK3: F | AL3: F | AM3: F | AN3: F | AP3: Structures | AW3: P | AX3: P | AY3: P | AZ3: P | BA3: PVB | BB3: PVB | BC3: PVB | BD3: PVB | BE3: PVB | BF3: PVB | BG3: PVB | BH3: PVB | BI3: P | BJ3: PLVE | BK3: PLVE | BL3: PLVE2 | BM3: PLVE2 | BN3: PLVE | BO3: PLVE | BP3: PLVE | BQ3: P | BR3: P | BS3: POO | BT3: POO | BU3: POO | BV3: POO | BW3: POO | BX3: POO | BY3: POO | BZ3: POO | CA3: POO | CB3: POO | CC3: POO | CD3: P | CE3: P | CF3: P | CG3: P | CH3: P
AV4: =B4 -> 0 | AZ4: =F4 -> 0 | BI4: =O4 -> 0 | BK4: =Q4 -> 0 | BR4: =X4 -> 0 | CI4: =B4 -> 0
F5: =SUM(G5:N5) -> 0 | O5: =P5+Q5+T5+U5+V5 -> 0 | Q5: =R5+S5 -> 0 | X5: =SUM(Y5:AI5) -> 0 | AN5: 0 | AO5: =SUM(C5:F5,O5,W5,X5,AJ5:AL5) -> 0 | AP5: Indgang for brændsler (bio, kul mv.) | AQ5: TP | AT5: =SUM(AW5:AZ5,BI5,BQ5,BR5,CD5:CG5) -> 8100.38629 | AW5: =-C6 -> 7394.830186 | AX5: 0 | AY5: 197.58816 | AZ5: 507.967944 | BA5: 32 | BB5: 172.5792 | BC5: 0 | BD5: 48.6568 | BE5: 0 | BF5: 0 | BG5: 0 | BH5: 254.731944 | BI5: =BJ5+BK5+BN5+BO5+BP5 -> 0 | BK5: =BL5+BM5 -> 0 | BR5: =SUM(BS5:CC5) -> 0
C6: =-AW6 -> -7394.830186 | D6: =-AX6 -> 0 | E6: -197.58816 | F6: -507.967944 | G6: -32 | H6: -172.5792 | I6: 0 | J6: -48.6568 | K6: 0 | L6: 0 | M6: 0 | N6: -254.731944 | O6: 0 | Q6: 0 | X6: 0 | AN6: 0 | AO6: -8100.38629 | AP6: Transport af brændsler | AQ6: TRAP | AT6: 8100.38629 | AW6: =-1*(C8+C20) -> 7394.830186 | AX6: 0 | AY6: 197.58816 | AZ6: 507.967944 | BA6: 32 | BB6: 172.5792 | BC6: 0 | BD6: 48.6568 | BE6: 0 | BF6: 0 | BG6: 0 | BH6: 254.731944 | BI6: =BJ6+BK6+BN6+BO6+BP6 -> 0 | BK6: 0 | BR6: =SUM(BS6:CC6) -> 0
F7: 0 | O7: 0 | Q7: 0 | X7: 0 | AN7: 0 | AO7: 0 | AP7: Indgang nettilsluttet VE | AQ7: TLP1 | AT7: 14.16 | AZ7: =SUM(BA7:BH7) -> 0 | BI7: =BJ7+BK7+BN7+BO7+BP7 -> 14.16 | BJ7: =P8*-1 -> 0 | BK7: 14.16 | BL7: =R8*-1 -> 0 | BM7: =S8*-1 -> 14.16 | BR7: =SUM(BS7:CC7) -> 0
C8: =SUM(C9:C11,C14:C17) -> -2915.219186 | D8: 0 | E8: -197.58816 | F8: -259.267944 | G8: 0 | H8: -1.5792 | I8: 0 | J8: -2.9568 | K8: 0 | L8: 0 | M8: 0 | N8: -254.731944 | O8: -14.16 | P8: 0 | Q8: -14.16 | R8: 0 | S8: -14.16 | T8: 0 | U8: 0 | V8: 0 | W8: 0 | X8: -101.9424 | Y8: 0 | Z8: 0 | AA8: 0 | AB8: 0 | AC8: 0 | AD8: 0 | AE8: 0 | AF8: -101.9424 | AG8: 0 | AH8: 0 | AI8: 0 | AJ8: 0 | AK8: 0 | AL8: -399.3528 | AM8: =SUM(AM9:AM11,AM14:AM17) -> 0 | AN8: 0 | AO8: -3887.53049 | AP8: Indgang el, varme og olieprodukter | AQ8: TS | AT8: 6770.540233 | AW8: =SUM(AW9:AW11,AW14:AW17) -> 0 | AX8: 0 | AY8: 0 | AZ8: 0 | BA8: 0 | BB8: 0 | BC8: 0 | BD8: 0 | BE8: 0 | BF8: 0 | BG8: 0 | BH8: 0 | BI8: =BJ8+BK8+BN8+BO8+BP8 -> 0 | BJ8: 0 | BK8: 0 | BL8: 0 | BM8: 0 | BN8: 0 | BO8: 0 | BP8: 0 | BQ8: 0 | BR8: 3136.284471 | BS8: 0 | BT8: 0 | BU8: 0 | BV8: 644.423076 | BW8: 0 | BX8: 359.1 | BY8: 977.661395 | BZ8: 0 | CA8: 0 | CB8: 0 | CC8: 0 | CD8: 1437.070665 | CE8: 2197.185097 | CF8: 0 | CG8: 0 | CH8: 0 | CI8: 929.1041756 | CJ8: 334.1844455
F9: 0 | O9: 0 | Q9: 0 | X9: 0 | AN9: 0 | AO9: 0 | AP9: Netto import/lager | AQ9: IMP | AR9: TS | AT9: 3810.163918 | AZ9: 0 | BI9: =BJ9+BK9+BN9+BO9+BP9 -> 0 | BK9: 0 | BR9: =IF(BR17+X18<0,(BR17+X18)*-1,0) -> 3136.284471 | BV9: =IF(BV17+AB18<0,(BV17+AB18)*-1) -> 644.423076 | BX9: =IF(BX17+AD18<0,(BX17+AD18)*-1) -> 359.1 | BY9: =IF(BY17+AE20<0,(BY17+AE20)*-1,0) -> 977.661395 | CD9: =IF(CD10+CD11+CD14+AJ18<0,(CD10+CD11+CD14+AJ18)*-1,0) -> 673.8794472 | CJ9: =CD9*'Plan Energi 2008'!A89/1000 -> 145.5579606
C10: =('Plan Energi 2008'!I32+'Plan Energi 2008'!I33+'Plan Energi 2008'!I34+'Plan Energi 2008'!I35+'Plan Energi 2008'!I40+'Plan Energi 2008'!I42+'Plan Energi 2008'!I44+'Plan Energi 2008'!I45+'Plan Energi 2008'!I46+'Plan Energi 2008'!I51+'Plan Energi 2008'!I53+'Plan Energi 2008'!I61+'Plan Energi 2008'!I63+'Plan Energi 2008'!I64+'Plan Energi 2008'!I65+'Plan Energi 2008'!I67)*-1 -> -2915.219186 | D10: =('Plan Energi 2008'!C32+'Plan Energi 2008'!C33+'Plan Energi 2008'!C34+'Plan Energi 2008'!C35+'Plan Energi 2008'!C40+'Plan Energi 2008'!C42+'Plan Energi 2008'!C44+'Plan Energi 2008'!C45+'Plan Energi 2008'!C46+'Plan Energi 2008'!C51+'Plan Energi 2008'!C53+'Plan Energi 2008'!C61+'Plan Energi 2008'!C63+'Plan Energi 2008'!C64+'Plan Energi 2008'!C65+'Plan Energi 2008'!C67)*-1 -> 0 | E10: =('Plan Energi 2008'!W32+'Plan Energi 2008'!W33+'Plan Energi 2008'!W34+'Plan Energi 2008'!W35+'Plan Energi 2008'!W40+'Plan Energi 2008'!W42+'Plan Energi 2008'!W44+'Plan Energi 2008'!W45+'Plan Energi 2008'!W46+'Plan Energi 2008'!W51+'Plan Energi 2008'!W53+'Plan Energi 2008'!W61+'Plan Energi 2008'!W63+'Plan Energi 2008'!W64+'Plan Energi 2008'!W65+'Plan Energi 2008'!W67)*-1 -> -197.58816 | F10: -259.267944 | G10: =('Plan Energi 2008'!Q32+'Plan Energi 2008'!Q33+'Plan Energi 2008'!Q34+'Plan Energi 2008'!Q35+'Plan Energi 2008'!Q40+'Plan Energi 2008'!Q42+'Plan Energi 2008'!Q44+'Plan Energi 2008'!Q45+'Plan Energi 2008'!Q46+'Plan Energi 2008'!Q51+'Plan Energi 2008'!Q53+'Plan Energi 2008'!Q61+'Plan Energi 2008'!Q63+'Plan Energi 2008'!Q64+'Plan Energi 2008'!Q65+'Plan Energi 2008'!Q67)*-1 -> 0 | H10: =('Plan Energi 2008'!R32+'Plan Energi 2008'!R33+'Plan Energi 2008'!R34+'Plan Energi 2008'!R35+'Plan Energi 2008'!R40+'Plan Energi 2008'!R42+'Plan Energi 2008'!R44+'Plan Energi 2008'!R45+'Plan Energi 2008'!R46+'Plan Energi 2008'!R51+'Plan Energi 2008'!R53+'Plan Energi 2008'!R61+'Plan Energi 2008'!R63+'Plan Energi 2008'!R64+'Plan Energi 2008'!R65+'Plan Energi 2008'!R67)*-1 -> -1.5792 | J10: =('Plan Energi 2008'!S32+'Plan Energi 2008'!S33+'Plan Energi 2008'!S34+'Plan Energi 2008'!S35+'Plan Energi 2008'!S40+'Plan Energi 2008'!S42+'Plan Energi 2008'!S44+'Plan Energi 2008'!S45+'Plan Energi 2008'!S46+'Plan Energi 2008'!S51+'Plan Energi 2008'!S53+'Plan Energi 2008'!S61+'Plan Energi 2008'!S63+'Plan Energi 2008'!S64+'Plan Energi 2008'!S65+'Plan Energi 2008'!S67)*-1 -> -2.9568 | L10: =('Plan Energi 2008'!O32+'Plan Energi 2008'!O33+'Plan Energi 2008'!O34+'Plan Energi 2008'!O35+'Plan Energi 2008'!O40+'Plan Energi 2008'!O42+'Plan Energi 2008'!O44+'Plan Energi 2008'!O45+'Plan Energi 2008'!O46+'Plan Energi 2008'!O51+'Plan Energi 2008'!O53+'Plan Energi 2008'!O61+'Plan Energi 2008'!O63+'Plan Energi 2008'!O64+'Plan Energi 2008'!O65+'Plan Energi 2008'!O67)*-1 -> 0 | N10: =('Plan Energi 2008'!T32+'Plan Energi 2008'!T33+'Plan Energi 2008'!T34+'Plan Energi 2008'!T35+'Plan Energi 2008'!T40+'Plan Energi 2008'!T42+'Plan Energi 2008'!T44+'Plan Energi 2008'!T45+'Plan Energi 2008'!T46+'Plan Energi 2008'!T51+'Plan Energi 2008'!T53+'Plan Energi 2008'!T61+'Plan Energi 2008'!T63+'Plan Energi 2008'!T64+'Plan Energi 2008'!T65+'Plan Energi 2008'!T67+'Plan Energi 2008'!U32+'Plan Energi 2008'!U33+'Plan Energi 2008'!U34+'Plan Energi 2008'!U35+'Plan Energi 2008'!U40+'Plan Energi 2008'!U42+'Plan Energi 2008'!U44+'Plan Energi 2008'!U45+'Plan Energi 2008'!U46+'Plan Energi 2008'!U51+'Plan Energi 2008'!U53+'Plan Energi 2008'!U61+'Plan Energi 2008'!U63+'Plan Energi 2008'!U64+'Plan Energi 2008'!U65+'Plan Energi 2008'!U67+'Plan Energi 2008'!V32+'Plan Energi 2008'!V33+'Plan Energi 2008'!V34+'Plan Energi 2008'!V35+'Plan Energi 2008'!V40+'Plan Energi 2008'!V42+'Plan Energi 2008'!V44+'Plan Energi 2008'!V45+'Plan Energi 2008'!V46+'Plan Energi 2008'!V51+'Plan Energi 2008'!V53+'Plan Energi 2008'!V61+'Plan Energi 2008'!V63+'Plan Energi 2008'!V64+'Plan Energi 2008'!V65+'Plan Energi 2008'!V67)*-1 -> -254.731944 | O10: 0 | Q10: 0 | X10: -101.9424 | AE10: =('Plan Energi 2008'!F32+'Plan Energi 2008'!F33+'Plan Energi 2008'!F34+'Plan Energi 2008'!F35+'Plan Energi 2008'!F40+'Plan Energi 2008'!F42+'Plan Energi 2008'!F44+'Plan Energi 2008'!F45+'Plan Energi 2008'!F46+'Plan Energi 2008'!F51+'Plan Energi 2008'!F53+'Plan Energi 2008'!F61+'Plan Energi 2008'!F63+'Plan Energi 2008'!F64+'Plan Energi 2008'!F65+'Plan Energi 2008'!F67)*-1 -> 0 | AF10: =('Plan Energi 2008'!D32+'Plan Energi 2008'!D33+'Plan Energi 2008'!D34+'Plan Energi 2008'!D35+'Plan Energi 2008'!D40+'Plan Energi 2008'!D42+'Plan Energi 2008'!D44+'Plan Energi 2008'!D45+'Plan Energi 2008'!D46+'Plan Energi 2008'!D51+'Plan Energi 2008'!D53+'Plan Energi 2008'!D61+'Plan Energi 2008'!D63+'Plan Energi 2008'!D64+'Plan Energi 2008'!D65+'Plan Energi 2008'!D67+'Plan Energi 2008'!E32+'Plan Energi 2008'!E33+'Plan Energi 2008'!E34+'Plan Energi 2008'!E35+'Plan Energi 2008'!E40+'Plan Energi 2008'!E42+'Plan Energi 2008'!E44+'Plan Energi 2008'!E45+'Plan Energi 2008'!E46+'Plan Energi 2008'!E51+'Plan Energi 2008'!E53+'Plan Energi 2008'!E61+'Plan Energi 2008'!E63+'Plan Energi 2008'!E64+'Plan Energi 2008'!E65+'Plan Energi 2008'!E67)*-1 -> -101.9424 | AN10: 0 | AO10: -3474.01769 | AP10: El og varmeproduktion | AQ10: ELOGVARME | AR10: TS | AT10: 2544.913515 | AU10: =AT10/AO10*-1 -> 0.7325562912 | AZ10: 0 | BI10: =BJ10+BK10+BN10+BO10+BP10 -> 0 | BK10: 0 | BR10: =SUM(BS10:CC10) -> 0 | CD10: ='Plan Energi 2008'!AD32+'Plan Energi 2008'!AD33+'Plan Energi 2008'!AD34+'Plan Energi 2008'!AD35+'Plan Energi 2008'!AD40+'Plan Energi 2008'!AD41+'Plan Energi 2008'!AD42+'Plan Energi 2008'!AD44+'Plan Energi 2008'!AD45+'Plan Energi 2008'!AD46+'Plan Energi 2008'!AD51+'Plan Energi 2008'!AD53+'Plan Energi 2008'!AD54+'Plan Energi 2008'!AD47+'Plan Energi 2008'!AD61+'Plan Energi 2008'!AD63+'Plan Energi 2008'!AD64+'Plan Energi 2008'!AD65+'Plan Energi 2008'!AD66+'Plan Energi 2008'!AD67+'Plan Energi 2008'!AD68 -> 747.0812178 | CE10: ='Plan Energi 2008'!AF32+'Plan Energi 2008'!AF33+'Plan Energi 2008'!AF34+'Plan Energi 2008'!AF35+'Plan Energi 2008'!AF40+'Plan Energi 2008'!AF42+'Plan Energi 2008'!AF44+'Plan Energi 2008'!AF45+'Plan Energi 2008'!AF46+'Plan Energi 2008'!AF51+'Plan Energi 2008'!AF53+'Plan Energi 2008'!AF61+'Plan Energi 2008'!AF63+'Plan Energi 2008'!AF64+'Plan Energi 2008'!AF65+'Plan Energi 2008'!AF67 -> 1797.832297 | CI10: =(AT10+AO10)*-1 -> 929.1041756 | CJ10: =-(C10*'Plan Energi 2008'!$I$89/1000+D10*'Plan Energi 2008'!$C$89/1000+E10*'Plan Energi 2008'!$W$89/1000+X10*'Plan Energi 2008'!$F$89/1000) -> 188.6264849
C11: =C12+C13 -> 0 | D11: 0 | E11: 0 | F11: 0 | G11: 0 | H11: 0 | I11: 0 | J11: 0 | K11: 0 | L11: 0 | M11: 0 | N11: 0 | O11: -14.16 | P11: 0 | Q11: -14.16 | R11: 0 | S11: -14.16 | T11: 0 | U11: 0 | V11: 0 | W11: 0 | X11: 0 | Y11: 0 | Z11: 0 | AA11: 0 | AB11: 0 | AC11: 0 | AD11: 0 | AE11: 0 | AF11: 0 | AG11: 0 | AH11: 0 | AI11: 0 | AJ11: 0 | AK11: 0 | AL11: 0 | AM11: 0 | AN11: 0 | AO11: -14.16 | AP11: Vindmøller | AQ11: VIND | AR11: TS | AT11: 16.11 | AW11: =AW12+AW13 -> 0 | AX11: 0 | AY11: 0 | AZ11: 0 | BA11: =BA12+BA13 -> 0 | BB11: 0 | BC11: 0 | BD11: 0 | BE11: 0 | BF11: 0 | BG11: 0 | BH11: 0 | BI11: 0 | BJ11: =BJ12+BJ13 -> 0 | BK11: 0 | BL11: =BL12+BL13 -> 0 | BM11: 0 | BN11: 0 | BO11: 0 | BP11: 0 | BQ11: 0 | BR11: 0 | BS11: =BS12+BS13 -> 0 | BT11: 0 | BU11: 0 | BV11: 0 | BW11: 0 | BX11: 0 | BY11: 0 | BZ11: 0 | CA11: 0 | CB11: 0 | CC11: 0 | CD11: =('Plan Energi 2008'!J27+'Plan Energi 2008'!J28) -> 16.11 | CE11: 0 | CF11: 0 | CG11: 0 | CH11: 0 | CI11: 0 | CJ11: 0
F12: 0 | O12: 0 | Q12: 0 | R12: =CD12*-1 -> 0 | X12: 0 | AN12: 0 | AO12: 0 | AP12: Kystvindmøller | AQ12: KYST | AR12: VIND | AT12: 0 | AZ12: 0 | BI12: =BJ12+BK12+BN12+BO12+BP12 -> 0 | BK12: 0 | BR12: =SUM(BS12:CC12) -> 0 | CD12: =Energi!B34*0.0000036 -> 0 | CI12: 0 | CJ12: =-(C12*'Plan Energi 2008'!$I$89/1000+D12*'Plan Energi 2008'!$C$89/1000+E12*'Plan Energi 2008'!$W$89/1000+X12*'Plan Energi 2008'!$F$89/1000) -> 0
F13: 0 | O13: -14.16 | Q13: -14.16 | S13: =CD13*-1 -> -14.16 | X13: 0 | AN13: 0 | AO13: -14.16 | AP13: Landvindmøller | AQ13: LAND | AR13: VIND | AT13: 14.16 | AZ13: 0 | BI13: =BJ13+BK13+BN13+BO13+BP13 -> 0 | BK13: 0 | BR13: =SUM(BS13:CC13) -> 0 | CD13: =Energi!B35*0.0000036 -> 14.16 | CI13: 0 | CJ13: =-(C13*'Plan Energi 2008'!$I$89/1000+D13*'Plan Energi 2008'!$C$89/1000+E13*'Plan Energi 2008'!$W$89/1000+X13*'Plan Energi 2008'!$F$89/1000) -> 0
F14: 0 | O14: 0 | P14: =CD14*-1 -> 0 | Q14: 0 | X14: 0 | AN14: 0 | AO14: 0 | AP14: Solceller | AQ14: SOLSTR | AR14: TS | AT14: 0 | AZ14: 0 | BI14: =BJ14+BK14+BN14+BO14+BP14 -> 0 | BK14: 0 | BR14: =SUM(BS14:CC14) -> 0 | CD14: ='Plan Energi 2008'!L26 -> 0 | CI14: 0 | CJ14: =-(C14*'Plan Energi 2008'!$I$89/1000+D14*'Plan Energi 2008'!$C$89/1000+E14*'Plan Energi 2008'!$W$89/1000+X14*'Plan Energi 2008'!$F$89/1000) -> 0
C15: =('Plan Energi 2008'!I36+'Plan Energi 2008'!I41+'Plan Energi 2008'!I47+'Plan Energi 2008'!I54+'Plan Energi 2008'!I56+'Plan Energi 2008'!I66)*-1 -> 0 | D15: =('Plan Energi 2008'!C36+'Plan Energi 2008'!C41+'Plan Energi 2008'!C47+'Plan Energi 2008'!C54+'Plan Energi 2008'!C56+'Plan Energi 2008'!C66)*-1 -> 0 | E15: =('Plan Energi 2008'!W36+'Plan Energi 2008'!W41+'Plan Energi 2008'!W47+'Plan Energi 2008'!W54+'Plan Energi 2008'!W56+'Plan Energi 2008'!W66)*-1 -> 0 | F15: 0 | G15: =('Plan Energi 2008'!Q36+'Plan Energi 2008'!Q41+'Plan Energi 2008'!Q47+'Plan Energi 2008'!Q54+'Plan Energi 2008'!Q56+'Plan Energi 2008'!Q66)*-1 -> 0 | H15: =('Plan Energi 2008'!R36+'Plan Energi 2008'!R41+'Plan Energi 2008'!R47+'Plan Energi 2008'!R54+'Plan Energi 2008'!R56+'Plan Energi 2008'!R66)*-1 -> 0 | J15: =('Plan Energi 2008'!S36+'Plan Energi 2008'!S41+'Plan Energi 2008'!S47+'Plan Energi 2008'!S54+'Plan Energi 2008'!S56+'Plan Energi 2008'!S66)*-1 -> 0 | L15: =('Plan Energi 2008'!O36+'Plan Energi 2008'!O41+'Plan Energi 2008'!O47+'Plan Energi 2008'!O54+'Plan Energi 2008'!O56+'Plan Energi 2008'!O66)*-1 -> 0 | N15: =('Plan Energi 2008'!T36+'Plan Energi 2008'!T41+'Plan Energi 2008'!T47+'Plan Energi 2008'!T54+'Plan Energi 2008'!T56+'Plan Energi 2008'!T66+'Plan Energi 2008'!U36+'Plan Energi 2008'!U41+'Plan Energi 2008'!U47+'Plan Energi 2008'!U54+'Plan Energi 2008'!U56+'Plan Energi 2008'!U66+'Plan Energi 2008'!V36+'Plan Energi 2008'!V41+'Plan Energi 2008'!V47+'Plan Energi 2008'!V54+'Plan Energi 2008'!V56+'Plan Energi 2008'!V66)*-1 -> 0 | O15: 0 | Q15: 0 | X15: 0 | AE15: =('Plan Energi 2008'!F36+'Plan Energi 2008'!F41+'Plan Energi 2008'!F47+'Plan Energi 2008'!F54+'Plan Energi 2008'!F56+'Plan Energi 2008'!F66)*-1 -> 0 | AF15: =('Plan Energi 2008'!D36+'Plan Energi 2008'!D41+'Plan Energi 2008'!D47+'Plan Energi 2008'!D54+'Plan Energi 2008'!D56+'Plan Energi 2008'!D66+'Plan Energi 2008'!E36+'Plan Energi 2008'!E41+'Plan Energi 2008'!E47+'Plan Energi 2008'!E54+'Plan Energi 2008'!E56+'Plan Energi 2008'!E66)*-1 -> 0 | AN15: 0 | AO15: 0 | AP15: Fjernvarmekedler | AQ15: KEDLER | AR15: TS | AT15: 0 | AZ15: 0 | BI15: 0 | BK15: 0 | BR15: 0 | CE15: ='Plan Energi 2008'!AF36+'Plan Energi 2008'!AF41+'Plan Energi 2008'!AF47+'Plan Energi 2008'!AF54+'Plan Energi 2008'!AF56+'Plan Energi 2008'!AF66 -> 0 | CI15: 0 | CJ15: =-(C15*'Plan Energi 2008'!$I$89/1000+D15*'Plan Energi 2008'!$C$89/1000+E15*'Plan Energi 2008'!$W$89/1000+X15*'Plan Energi 2008'!$F$89/1000) -> 0
F16: 0 | O16: 0 | P16: =('Plan Energi 2008'!L37+'Plan Energi 2008'!L38+'Plan Energi 2008'!L48+'Plan Energi 2008'!L49+'Plan Energi 2008'!L50+'Plan Energi 2008'!L57+'Plan Energi 2008'!L58+'Plan Energi 2008'!L59+'Plan Energi 2008'!L60+'Plan Energi 2008'!L68)*-1 -> 0 | Q16: 0 | U16: =('Plan Energi 2008'!M37+'Plan Energi 2008'!M38+'Plan Energi 2008'!M48+'Plan Energi 2008'!M49+'Plan Energi 2008'!M50+'Plan Energi 2008'!M57+'Plan Energi 2008'!M58+'Plan Energi 2008'!M59+'Plan Energi 2008'!M60+'Plan Energi 2008'!M68)*-1 -> 0 | V16: =('Plan Energi 2008'!N37+'Plan Energi 2008'!N38+'Plan Energi 2008'!N48+'Plan Energi 2008'!N49+'Plan Energi 2008'!N50+'Plan Energi 2008'!N57+'Plan Energi 2008'!N58+'Plan Energi 2008'!N59+'Plan Energi 2008'!N60+'Plan Energi 2008'!N68)*-1 -> 0 | X16: 0 | AJ16: =('Plan Energi 2008'!AD37+'Plan Energi 2008'!AD38+'Plan Energi 2008'!AD48+'Plan Energi 2008'!AD49+'Plan Energi 2008'!AD50+'Plan Energi 2008'!AD57+'Plan Energi 2008'!AD58+'Plan Energi 2008'!AD59+'Plan Energi 2008'!AD60+'Plan Energi 2008'!AD68) -> 0 | AL16: ='Plan Energi 2008'!AF68*-1 -> -399.3528 | AN16: 0 | AO16: -399.3528 | AP16: Anden varmeproduktion | AQ16: ANDENV | AR16: TS | AT16: 399.3528 | AU16: =AT16/AO16*-1 -> 1 | AZ16: 0 | BI16: 0 | BK16: 0 | BR16: 0 | CE16: ='Plan Energi 2008'!AF37+'Plan Energi 2008'!AF38+'Plan Energi 2008'!AF48+'Plan Energi 2008'!AF49+'Plan Energi 2008'!AF50+'Plan Energi 2008'!AF57+'Plan Energi 2008'!AF58+'Plan Energi 2008'!AF59+'Plan Energi 2008'!AF60+'Plan Energi 2008'!AF68 -> 399.3528 | CI16: 0 | CJ16: =-(C16*'Plan Energi 2008'!$I$89/1000+D16*'Plan Energi 2008'!$C$89/1000+E16*'Plan Energi 2008'!$W$89/1000+X16*'Plan Energi 2008'!$F$89/1000) -> 0
F17: 0 | O17: 0 | Q17: 0 | X17: 0 | AN17: 0 | AO17: 0 | AP17: Raffinaderi | AQ17: RAF | AR17: TS | AT17: 0 | AZ17: 0 | BI17: 0 | BK17: 0 | BR17: 0 | CI17: 0 | CJ17: =-(C17*'Plan Energi 2008'!$I$89/1000+D17*'Plan Energi 2008'!$C$89/1000+E17*'Plan Energi 2008'!$W$89/1000+X17*'Plan Energi 2008'!$F$89/1000) -> 0
F18: 0 | O18: 0 | Q18: 0 | X18: -3136.284471 | Y18: =BS18*-1 -> 0 | Z18: =BT18*-1 -> -25.6 | AA18: 0 | AB18: -644.423076 | AC18: 0 | AD18: -359.1 | AE18: -977.661395 | AF18: -1129.5 | AG18: 0 | AH18: 0 | AI18: 0 | AJ18: =CD18*-1/'Plan Energi 2008'!D2*100 -> -1437.070665 | AK18: =CE18*('Plan Energi 2008'!AF39+'Plan Energi 2008'!AF43+'Plan Energi 2008'!AF52+'Plan Energi 2008'!AF55+'Plan Energi 2008'!AF62+'Plan Energi 2008'!AF71)/('Plan Energi 2008'!AG39+'Plan Energi 2008'!AG43+'Plan Energi 2008'!AG52+'Plan Energi 2008'!AG55+'Plan Energi 2008'!AG62+'Plan Energi 2008'!AG71) -> -2197.185097 | AN18: 0 | AO18: -6770.540233 | AP18: Transport af el, fjernvarme, mv. | AQ18: TRAS | AT18: 6164.675872 | AZ18: 0 | BI18: =BJ18+BK18+BN18+BO18+BP18 -> 0 | BK18: =BL18+BM18 -> 0 | BR18: =X20*-1 -> 3136.284471 | BS18: 0 | BT18: 25.6 | BU18: 0 | BV18: 644.423076 | BW18: 0 | BX18: 359.1 | BY18: 977.661395 | BZ18: 1129.5 | CA18: 0 | CB18: 0 | CC18: 0 | CD18: 1332.164506 | CE18: 1696.226895 | CI18: 605.8643606
F19: 0 | O19: 0 | Q19: 0 | X19: 0 | AN19: 0 | AO19: 0 | AP19: Indgang ikke-nettilsluttet VE | AQ19: TLP2 | AT19: 3.024 | AZ19: 0 | BI19: =BJ19+BK19+BN19+BO19+BP19 -> 3.024 | BJ19: =P20*-1 -> 2.6 | BK19: =BL19+BM19 -> 0 | BL19: =R20*-1 -> 0 | BM19: =S20*-1 -> 0 | BN19: 0 | BO19: 0 | BP19: 0.424 | BR19: =SUM(BS19:CC19) -> 0 | CI19: 0
C20: =SUM(C21:C22,C32,C33,C34,C35,C36) -> -4479.611 | D20: 0 | E20: 0 | F20: -248.7 | G20: -32 | H20: -171 | I20: 0 | J20: -45.7 | K20: 0 | L20: 0 | M20: 0 | N20: 0 | O20: -3.024 | P20: -2.6 | Q20: 0 | R20: 0 | S20: 0 | T20: 0 | U20: 0 | V20: -0.424 | W20: -1.891889 | X20: -3136.284471 | Y20: 0 | Z20: -25.6 | AA20: 0 | AB20: -644.423076 | AC20: 0 | AD20: -359.1 | AE20: -977.661395 | AF20: -1129.5 | AG20: 0 | AH20: 0 | AI20: 0 | AJ20: -1332.164506 | AK20: -1696.226895 | AL20: 0 | AM20: 0 | AN20: 0 | AO20: -10897.90276 | AP20: Afgang fra energisystemet | AQ20: A | AT20: 8622.979309 | AW20: =SUM(AW21:AW22,AW32,AW33,AW34,AW35,AW36) -> 0 | AX20: 0 | AY20: 0 | AZ20: 0 | BA20: 0 | BB20: 0 | BC20: 0 | BD20: 0 | BE20: 0 | BF20: 0 | BG20: 0 | BH20: 0 | BI20: 0 | BJ20: 0 | BK20: 0 | BL20: 0 | BM20: 0 | BN20: 0 | BO20: 0 | BP20: 0 | BQ20: 0 | BR20: 0 | BS20: 0 | BT20: 0 | BU20: 0 | BV20: 0 | BW20: 0 | BX20: 0 | BY20: 0 | BZ20: 0 | CA20: 0 | CB20: 0 | CC20: 0 | CD20: 0 | CE20: 0 | CF20: 0 | CG20: 8622.979309 | CH20: 0 | CI20: 2274.923452 | CJ20: 486.3925673
F21: 0 | O21: 0 | Q21: 0 | X21: 0 | AJ21: =IF(CD10+CD11+CD14+(1+Energi!B29/100)*(AJ22+AJ32+AJ33+AJ34+AJ35)>0,(CD10+CD11+CD14+(1+Energi!B29/100)*(AJ22+AJ32+AJ33+AJ34+AJ35))*-1,0) -> 0 | AN21: 0 | AO21: 0 | AP21: Netto eksport/lager | AQ21: AES | AR21: A | AT21: 0 | AZ21: 0 | BI21: =BJ21+BK21+BN21+BO21+BP21 -> 0 | BK21: =BL21+BM21 -> 0 | BR21: =SUM(BS21:CC21) -> 0 | CI21: 0 | CJ21: =AJ9*'Plan Energi 2008'!A89/1000 -> 0
C22: =C23+SUM(C28:C31) -> 0 | D22: =D23+SUM(D28:D31) -> 0 | E22: 0 | F22: 0 | G22: 0 | H22: 0 | I22: 0 | J22: 0 | K22: 0 | L22: 0 | M22: 0 | N22: 0 | O22: 0 | P22: 0 | Q22: 0 | R22: 0 | S22: 0 | T22: 0 | U22: 0 | V22: 0 | W22: -1.891889 | X22: -1996.804471 | Y22: 0 | Z22: -5.12 | AA22: 0 | AB22: -644.423076 | AC22: 0 | AD22: -359.1 | AE22: -977.661395 | AF22: -10.5 | AG22: 0 | AH22: 0 | AI22: 0 | AJ22: 0 | AK22: 0 | AL22: 0 | AM22: 0 | AN22: 0 | AO22: -1998.69636 | AP22: Transport | AQ22: AT | AR22: A | AT22: 538.2181 | AU22: 0.3 | AW22: =AW23+SUM(AW28:AW31) -> 0 | AX22: 0 | AY22: 0 | AZ22: 0 | BA22: 0 | BB22: 0 | BC22: 0 | BD22: 0 | BE22: 0 | BF22: 0 | BG22: 0 | BH22: 0 | BI22: 0 | BJ22: 0 | BK22: 0 | BL22: 0 | BM22: 0 | BN22: 0 | BO22: 0 | BP22: 0 | BQ22: 0 | BR22: 0 | BS22: 0 | BT22: 0 | BU22: 0 | BV22: 0 | BW22: 0 | BX22: 0 | BY22: 0 | BZ22: 0 | CA22: 0 | CB22: 0 | CC22: 0 | CD22: 0 | CE22: 0 | CF22: 0 | CG22: 538.2181 | CH22: 0 | CI22: 1460.47826 | CJ22: 147.7635309
C23: =SUM(C24:C27) -> 0 | D23: =SUM(D24:D27) -> 0 | E23: =SUM(E24:E27) -> 0 | F23: 0 | G23: =SUM(G24:G27) -> 0 | H23: 0 | I23: 0 | J23: 0 | K23: 0 | L23: 0 | M23: 0 | N23: 0 | O23: 0 | P23: =SUM(P24:P27) -> 0 | Q23: 0 | R23: =SUM(R24:R27) -> 0 | S23: 0 | T23: 0 | U23: 0 | V23: 0 | W23: -1.891889 | X23: -1493.088111 | Y23: =SUM(Y24:Y27) -> 0 | Z23: 0 | AA23: 0 | AB23: -643.523076 | AC23: 0 | AD23: 0 | AE23: -849.565035 | AF23: 0 | AG23: 0 | AH23: 0 | AI23: 0 | AJ23: 0 | AK23: 0 | AL23: 0 | AM23: 0 | AN23: 0 | AO23: -1494.98 | AP23: Vejtrafik | AQ23: ATV | AR23: AT | AT23: 373.6801 | AU23: 0.3 | AW23: =SUM(AW24:AW27) -> 0 | AX23: =SUM(AX24:AX27) -> 0 | AY23: =SUM(AY24:AY27) -> 0 | AZ23: 0 | BA23: =SUM(BA24:BA27) -> 0 | BB23: 0 | BC23: 0 | BD23: 0 | BE23: 0 | BF23: 0 | BG23: 0 | BH23: 0 | BI23: =BJ23+BK23+BN23+BO23+BP23 -> 0 | BJ23: =SUM(BJ24:BJ27) -> 0 | BK23: =BL23+BM23 -> 0 | BL23: =SUM(BL24:BL27) -> 0 | BM23: 0 | BN23: 0 | BO23: 0 | BP23: 0 | BQ23: 0 | BR23: =SUM(BS23:CC23) -> 0 | BS23: =SUM(BS24:BS27) -> 0 | BT23: 0 | BU23: 0 | BV23: 0 | BW23: 0 | BX23: 0 | BY23: 0 | BZ23: 0 | CA23: 0 | CB23: 0 | CC23: 0 | CD23: 0 | CE23: 0 | CF23: 0 | CG23: 373.6801 | CH23: 0 | CI23: 1121.2999 | CJ23: 110.4885202
F24: 0 | O24: 0 | Q24: 0 | W24: =('Plan Energi 2008'!P72+'Plan Energi 2008'!P73)*-1 -> -1.836656 | X24: =SUM(Y24:AI24) -> -940.813344 | AB24: ='Plan Energi 2008'!H72*-1 -> -643.523076 | AE24: ='Plan Energi 2008'!F73*-1 -> -297.290268 | AN24: 0 | AO24: -942.65 | AP24: Personbil | AQ24: PERSON | AR24: ATV | AT24: 203.396 | AU24: 0.3 | AZ24: 0 | BI24: =BJ24+BK24+BN24+BO24+BP24 -> 0 | BK24: =BL24+BM24 -> 0 | BR24: =SUM(BS24:CC24) -> 0 | CG24: ='Plan Energi 2008'!AQ72+'Plan Energi 2008'!AQ73 -> 203.396 | CI24: 739.254 | CJ24: =-(C24*'Plan Energi 2008'!$I$89/1000+D24*'Plan Energi 2008'!$C$89/1000+E24*'Plan Energi 2008'!$W$89/1000+X24*'Plan Energi 2008'!$F$89/1000) -> 69.62018746
F25: 0 | O25: 0 | Q25: 0 | W25: ='Plan Energi 2008'!P76*-1 -> -0.036214 | X25: =SUM(Y25:AI25) -> -362.103786 | AB25: 0 | AE25: ='Plan Energi 2008'!F76*-1 -> -362.103786 | AN25: 0 | AO25: -362.14 | AP25: Lastbil | AQ25: LAST | AR25: ATV | AT25: 119.5062 | AU25: 0.3 | AZ25: 0 | BI25: =BJ25+BK25+BN25+BO25+BP25 -> 0 | BK25: =BL25+BM25 -> 0 | BR25: =SUM(BS25:CC25) -> 0 | CG25: ='Plan Energi 2008'!AQ76 -> 119.5062 | CI25: 242.6338 | CJ25: =-(C25*'Plan Energi 2008'!$I$89/1000+D25*'Plan Energi 2008'!$C$89/1000+E25*'Plan Energi 2008'!$W$89/1000+X25*'Plan Energi 2008'!$F$89/1000) -> 26.79568016
F26: 0 | O26: 0 | Q26: 0 | W26: ='Plan Energi 2008'!P74*-1 -> -0.017413 | X26: -174.112587 | AB26: 0 | AE26: ='Plan Energi 2008'!F74*-1 -> -174.112587 | AN26: 0 | AO26: -174.13 | AP26: Varebil | AQ26: VARE | AR26: ATV | AT26: 43.5325 | AU26: 0.3 | AZ26: 0 | BI26: 0 | BK26: 0 | BR26: 0 | CG26: ='Plan Energi 2008'!AQ74 -> 43.5325 | CI26: 130.5975 | CJ26: =-(C26*'Plan Energi 2008'!$I$89/1000+D26*'Plan Energi 2008'!$C$89/1000+E26*'Plan Energi 2008'!$W$89/1000+X26*'Plan Energi 2008'!$F$89/1000) -> 12.88433144
F27: 0 | O27: 0 | Q27: 0 | W27: ='Plan Energi 2008'!P75*-1 -> -0.001606 | X27: -16.058394 | AB27: 0 | AE27: ='Plan Energi 2008'!F75*-1 -> -16.058394 | AN27: 0 | AO27: -16.06 | AP27: Bus | AQ27: BUS | AR27: ATV | AT27: 7.2454 | AU27: 0.3 | AZ27: 0 | BI27: 0 | BK27: 0 | BR27: 0 | CG27: ='Plan Energi 2008'!AQ75+'Plan Energi 2008'!AQ16 -> 7.2454 | CI27: 8.8146 | CJ27: =-(C27*'Plan Energi 2008'!$I$89/1000+D27*'Plan Energi 2008'!$C$89/1000+E27*'Plan Energi 2008'!$W$89/1000+X27*'Plan Energi 2008'!$F$89/1000) -> 1.188321156
C28: 0 | D28: 0 | E28: 0 | F28: 0 | G28: 0 | H28: 0 | I28: 0 | J28: 0 | K28: 0 | L28: 0 | M28: 0 | N28: 0 | O28: 0 | P28: 0 | Q28: 0 | R28: 0 | S28: 0 | T28: 0 | U28: 0 | V28: 0 | W28: 0 | X28: -28.9 | Y28: 0 | Z28: 0 | AA28: 0 | AB28: 0 | AC28: 0 | AD28: 0 | AE28: ='Plan Energi 2008'!F78*-1 -> -28.9 | AF28: 0 | AG28: 0 | AH28: 0 | AI28: 0 | AJ28: ='Plan Energi 2008'!AQ13*-1 -> 0 | AK28: 0 | AL28: 0 | AM28: 0 | AN28: 0 | AO28: -28.9 | AP28: Tog | AQ28: ATT | AR28: AT | AT28: 9.537 | AU28: 0.3 | AW28: 0 | AX28: 0 | AY28: 0 | AZ28: 0 | BA28: 0 | BB28: 0 | BC28: 0 | BD28: 0 | BE28: 0 | BF28: 0 | BG28: 0 | BH28: 0 | BI28: 0 | BJ28: 0 | BK28: 0 | BL28: 0 | BM28: 0 | BN28: 0 | BO28: 0 | BP28: 0 | BQ28: 0 | BR28: 0 | BS28: 0 | BT28: 0 | BU28: 0 | BV28: 0 | BW28: 0 | BX28: 0 | BY28: 0 | BZ28: 0 | CA28: 0 | CB28: 0 | CC28: 0 | CD28: 0 | CE28: 0 | CF28: 0 | CG28: ='Plan Energi 2008'!AQ78+'Plan Energi 2008'!AQ13 -> 9.537 | CH28: 0 | CI28: 19.363 | CJ28: =-(C28*'Plan Energi 2008'!$I$89/1000+D28*'Plan Energi 2008'!$C$89/1000+E28*'Plan Energi 2008'!$W$89/1000+X28*'Plan Energi 2008'!$F$89/1000) -> 2.1386
C29: 0 | D29: 0 | E29: 0 | F29: 0 | G29: 0 | H29: 0 | I29: 0 | J29: 0 | K29: 0 | L29: 0 | M29: 0 | N29: 0 | O29: 0 | P29: 0 | Q29: 0 | R29: 0 | S29: 0 | T29: 0 | U29: 0 | V29: 0 | W29: 0 | X29: -360 | Y29: 0 | Z29: 0 | AA29: 0 | AB29: ='Plan Energi 2008'!H79*-1 -> -0.9 | AC29: 0 | AD29: ='Plan Energi 2008'!G79*-1 -> -359.1 | AE29: 0 | AF29: 0 | AG29: 0 | AH29: 0 | AI29: 0 | AJ29: 0 | AK29: 0 | AL29: 0 | AM29: 0 | AN29: 0 | AO29: -360 | AP29: Fly | AQ29: ATF | AR29: AT | AT29: 118.8 | AU29: 0.3 | AW29: 0 | AX29: 0 | AY29: 0 | AZ29: 0 | BA29: 0 | BB29: 0 | BC29: 0 | BD29: 0 | BE29: 0 | BF29: 0 | BG29: 0 | BH29: 0 | BI29: 0 | BJ29: 0 | BK29: 0 | BL29: 0 | BM29: 0 | BN29: 0 | BO29: 0 | BP29: 0 | BQ29: 0 | BR29: 0 | BS29: 0 | BT29: 0 | BU29: 0 | BV29: 0 | BW29: 0 | BX29: 0 | BY29: 0 | BZ29: 0 | CA29: 0 | CB29: 0 | CC29: 0 | CD29: 0 | CE29: 0 | CF29: 0 | CG29: ='Plan Energi 2008'!AQ79 -> 118.8 | CH29: 0 | CI29: 241.2 | CJ29: =-(C29*'Plan Energi 2008'!$I$89/1000+D29*'Plan Energi 2008'!$C$89/1000+E29*'Plan Energi 2008'!$W$89/1000+X29*'Plan Energi 2008'!$F$89/1000) -> 26.64
C30: 0 | D30: 0 | E30: 0 | F30: 0 | G30: 0 | H30: 0 | I30: 0 | J30: 0 | K30: 0 | L30: 0 | M30: 0 | N30: 0 | O30: 0 | P30: 0 | Q30: 0 | R30: 0 | S30: 0 | T30: 0 | U30: 0 | V30: 0 | W30: 0 | X30: -73.3 | Y30: 0 | Z30: 0 | AA30: 0 | AB30: 0 | AC30: 0 | AD30: 0 | AE30: ='Plan Energi 2008'!F80*-1 -> -62.8 | AF30: ='Plan Energi 2008'!D80*-1 -> -10.5 | AG30: 0 | AH30: 0 | AI30: 0 | AJ30: 0 | AK30: 0 | AL30: 0 | AM30: 0 | AN30: 0 | AO30: -73.3 | AP30: Færge | AQ30: ATFÆRGE | AR30: AT | AT30: 24.189 | AU30: 0.3 | AW30: 0 | AX30: 0 | AY30: 0 | AZ30: 0 | BA30: 0 | BB30: 0 | BC30: 0 | BD30: 0 | BE30: 0 | BF30: 0 | BG30: 0 | BH30: 0 | BI30: 0 | BJ30: 0 | BK30: 0 | BL30: 0 | BM30: 0 | BN30: 0 | BO30: 0 | BP30: 0 | BQ30: 0 | BR30: 0 | BS30: 0 | BT30: 0 | BU30: 0 | BV30: 0 | BW30: 0 | BX30: 0 | BY30: 0 | BZ30: 0 | CA30: 0 | CB30: 0 | CC30: 0 | CD30: 0 | CE30: 0 | CF30: 0 | CG30: ='Plan Energi 2008'!AQ80 -> 24.189 | CH30: 0 | CI30: 49.111 | CJ30: =-(C30*'Plan Energi 2008'!$I$89/1000+D30*'Plan Energi 2008'!$C$89/1000+E30*'Plan Energi 2008'!$W$89/1000+X30*'Plan Energi 2008'!$F$89/1000) -> 5.4242
C31: 0 | D31: 0 | E31: 0 | F31: 0 | G31: 0 | H31: 0 | I31: 0 | J31: 0 | K31: 0 | L31: 0 | M31: 0 | N31: 0 | O31: 0 | P31: 0 | Q31: 0 | R31: 0 | S31: 0 | T31: 0 | U31: 0 | V31: 0 | W31: 0 | X31: -41.51636 | Y31: 0 | Z31: ='Plan Energi 2008'!B16*'Plan Energi 2008'!AQ16/SUM('Plan Energi 2008'!AI16:AQ16)*-1 -> -5.12 | AA31: 0 | AB31: 0 | AC31: 0 | AD31: 0 | AE31: ='Plan Energi 2008'!F77*-1 -> -36.39636 | AF31: 0 | AG31: 0 | AH31: 0 | AI31: 0 | AJ31: 0 | AK31: 0 | AL31: 0 | AM31: 0 | AN31: 0 | AO31: -41.51636 | AP31: Non-Road (landbrug) | AQ31: ATNONR | AR31: AT | AT31: 12.012 | AU31: 0.3 | AW31: 0 | AX31: 0 | AY31: 0 | AZ31: 0 | BA31: 0 | BB31: 0 | BC31: 0 | BD31: 0 | BE31: 0 | BF31: 0 | BG31: 0 | BH31: 0 | BI31: 0 | BJ31: 0 | BK31: 0 | BL31: 0 | BM31: 0 | BN31: 0 | BO31: 0 | BP31: 0 | BQ31: 0 | BR31: 0 | BS31: 0 | BT31: 0 | BU31: 0 | BV31: 0 | BW31: 0 | BX31: 0 | BY31: 0 | BZ31: 0 | CA31: 0 | CB31: 0 | CC31: 0 | CD31: 0 | CE31: 0 | CF31: 0 | CG31: ='Plan Energi 2008'!AP77 -> 12.012 | CH31: 0 | CI31: 29.50436 | CJ31: =-(C31*'Plan Energi 2008'!$I$89/1000+D31*'Plan Energi 2008'!$C$89/1000+E31*'Plan Energi 2008'!$W$89/1000+X31*'Plan Energi 2008'!$F$89/1000) -> 3.07221064
C32: =SUM('Plan Energi 2008'!I17:I22)*-1 -> -0.839 | D32: =SUM('Plan Energi 2008'!C17:C22)*-1 -> 0 | E32: =SUM('Plan Energi 2008'!W17:W22)*-1 -> 0 | F32: -245 | G32: =SUM('Plan Energi 2008'!Q17:Q22)*-1 -> -32 | H32: =SUM('Plan Energi 2008'!R17:R22)*-1 -> -171 | I32: 0 | J32: =SUM('Plan Energi 2008'!S17:S22)*-1 -> -42 | K32: 0 | L32: =SUM('Plan Energi 2008'!O17:O22)*-1 -> 0 | M32: 0 | N32: =SUM('Plan Energi 2008'!T17:V22)*-1 -> 0 | O32: -3.024 | P32: =SUM('Plan Energi 2008'!L17:L22)*-1 -> -2.6 | Q32: =SUM('Plan Energi 2008'!J17:J22)*-1 -> 0 | R32: 0 | S32: 0 | T32: 0 | U32: =SUM('Plan Energi 2008'!M17:M22)*-1 -> 0 | V32: =('Plan Energi 2008'!N14+SUM('Plan Energi 2008'!N17:N22))*-1 -> -0.424 | W32: =SUM('Plan Energi 2008'!P17:P22)*-1 -> 0 | X32: -148.12 | Y32: 0 | Z32: ='Plan Energi 2008'!B16*'Plan Energi 2008'!AI16/SUM('Plan Energi 2008'!AI16:AQ16)*-1 -> -5.12 | AA32: 0 | AB32: =SUM('Plan Energi 2008'!H17:H22)*-1 -> 0 | AC32: 0 | AD32: =SUM('Plan Energi 2008'!G17:G22)*-1 -> 0 | AE32: =SUM('Plan Energi 2008'!F17:F22)*-1 -> 0 | AF32: =SUM('Plan Energi 2008'!D17:E22)*-1 -> -143 | AG32: 0 | AH32: 0 | AI32: 0 | AJ32: =('Plan Energi 2008'!AE14+'Plan Energi 2008'!AI8*'Plan Energi 2008'!AE8/'Plan Energi 2008'!AH8+'Plan Energi 2008'!AI9*'Plan Energi 2008'!AE9/'Plan Energi 2008'!AH9+'Plan Energi 2008'!AI10*'Plan Energi 2008'!AE10/'Plan Energi 2008'!AH10+'Plan Energi 2008'!AI11*'Plan Energi 2008'!AE11/'Plan Energi 2008'!AH11+'Plan Energi 2008'!AI12*'Plan Energi 2008'!AE12/'Plan Energi 2008'!AH12+'Plan Energi 2008'!AI13*'Plan Energi 2008'!AE13/'Plan Energi 2008'!AH13)*-1 -> -312.4577924 | AK32: =('Plan Energi 2008'!AI39+'Plan Energi 2008'!AI43+'Plan Energi 2008'!AI52+'Plan Energi 2008'!AI55+'Plan Energi 2008'!AI62+'Plan Energi 2008'!AI71)*-1 -> -1077.104078 | AL32: 0 | AM32: 0 | AN32: 0 | AO32: -1786.544871 | AP32: Husholdninger | AQ32: AH | AR32: A | AT32: 1630.305721 | AU32: 1 | AW32: 0 | AX32: 0 | AY32: 0 | AZ32: 0 | BA32: 0 | BB32: 0 | BC32: 0 | BD32: 0 | BE32: 0 | BF32: 0 | BG32: 0 | BH32: 0 | BI32: 0 | BJ32: 0 | BK32: 0 | BL32: 0 | BM32: 0 | BN32: 0 | BO32: 0 | BP32: 0 | BQ32: 0 | BR32: 0 | BS32: 0 | BT32: 0 | BU32: 0 | BV32: 0 | BW32: 0 | BX32: 0 | BY32: 0 | BZ32: 0 | CA32: 0 | CB32: 0 | CC32: 0 | CD32: 0 | CE32: 0 | CF32: 0 | CG32: ='Plan Energi 2008'!AI81 -> 1630.305721 | CH32: 0 | CI32: 156.2391498 | CJ32: =-(C32*'Plan Energi 2008'!$I$89/1000+D32*'Plan Energi 2008'!$C$89/1000+E32*'Plan Energi 2008'!$W$89/1000+X32*'Plan Energi 2008'!$F$89/1000) -> 11.00851003
C33: 0 | D33: 0 | E33: 0 | F33: 0 | G33: 0 | H33: 0 | I33: 0 | J33: 0 | K33: 0 | L33: 0 | M33: 0 | N33: 0 | O33: 0 | P33: 0 | Q33: 0 | R33: 0 | S33: 0 | T33: 0 | U33: 0 | V33: 0 | W33: 0 | X33: 0 | Y33: 0 | Z33: 0 | AA33: 0 | AB33: 0 | AC33: 0 | AD33: 0 | AE33: 0 | AF33: 0 | AG33: 0 | AH33: 0 | AI33: 0 | AJ33: =('Plan Energi 2008'!AJ8*'Plan Energi 2008'!AE8/'Plan Energi 2008'!AH8+'Plan Energi 2008'!AJ9*'Plan Energi 2008'!AE9/'Plan Energi 2008'!AH9+'Plan Energi 2008'!AJ10*'Plan Energi 2008'!AE10/'Plan Energi 2008'!AH10+'Plan Energi 2008'!AJ11*'Plan Energi 2008'!AE11/'Plan Energi 2008'!AH11+'Plan Energi 2008'!AJ12*'Plan Energi 2008'!AE12/'Plan Energi 2008'!AH12+'Plan Energi 2008'!AJ13*'Plan Energi 2008'!AE13/'Plan Energi 2008'!AH13)*-1 -> -189.062622 | AK33: =('Plan Energi 2008'!AJ39+'Plan Energi 2008'!AJ43+'Plan Energi 2008'!AJ52+'Plan Energi 2008'!AJ55+'Plan Energi 2008'!AJ62+'Plan Energi 2008'!AJ71)*-1 -> -157.7491012 | AL33: 0 | AM33: 0 | AN33: 0 | AO33: -346.8117232 | AP33: Offentlig | AQ33: AO | AR33: A | AT33: 301.7785622 | AU33: 1 | AW33: 0 | AX33: 0 | AY33: 0 | AZ33: 0 | BA33: 0 | BB33: 0 | BC33: 0 | BD33: 0 | BE33: 0 | BF33: 0 | BG33: 0 | BH33: 0 | BI33: 0 | BJ33: 0 | BK33: 0 | BL33: 0 | BM33: 0 | BN33: 0 | BO33: 0 | BP33: 0 | BQ33: 0 | BR33: 0 | BS33: 0 | BT33: 0 | BU33: 0 | BV33: 0 | BW33: 0 | BX33: 0 | BY33: 0 | BZ33: 0 | CA33: 0 | CB33: 0 | CC33: 0 | CD33: 0 | CE33: 0 | CF33: 0 | CG33: ='Plan Energi 2008'!AJ81 -> 301.7785622 | CH33: 0 | CI33: 45.03316098 | CJ33: =-(C33*'Plan Energi 2008'!$I$89/1000+D33*'Plan Energi 2008'!$C$89/1000+E33*'Plan Energi 2008'!$W$89/1000+X33*'Plan Energi 2008'!$F$89/1000) -> 0
C34: 0 | D34: 0 | E34: 0 | F34: 0 | G34: 0 | H34: 0 | I34: 0 | J34: 0 | K34: 0 | L34: 0 | M34: 0 | N34: 0 | O34: 0 | P34: 0 | Q34: 0 | R34: 0 | S34: 0 | T34: 0 | U34: 0 | V34: 0 | W34: 0 | X34: 0 | Y34: 0 | Z34: 0 | AA34: 0 | AB34: 0 | AC34: 0 | AD34: 0 | AE34: 0 | AF34: 0 | AG34: 0 | AH34: 0 | AI34: 0 | AJ34: =(SUM('Plan Energi 2008'!AK8:AP8)*'Plan Energi 2008'!AE8/'Plan Energi 2008'!AH8+SUM('Plan Energi 2008'!AK9:AP9)*'Plan Energi 2008'!AE9/'Plan Energi 2008'!AH9+SUM('Plan Energi 2008'!AK10:AP10)*'Plan Energi 2008'!AE10/'Plan Energi 2008'!AH10+SUM('Plan Energi 2008'!AK11:AP11)*'Plan Energi 2008'!AE11/'Plan Energi 2008'!AH11)*-1 -> -81.15126142 | AK34: =(SUM('Plan Energi 2008'!AK39:AP39)+SUM('Plan Energi 2008'!AK43:AP43)+SUM('Plan Energi 2008'!AK52:AP52)+SUM('Plan Energi 2008'!AK55:AP55)+SUM('Plan Energi 2008'!AK62:AP62)+SUM('Plan Energi 2008'!AK71:AP71))*-1 -> -461.3737154 | AL34: 0 | AM34: 0 | AN34: 0 | AO34: -542.5249768 | AP34: Erhverv | AQ34: AE | AR34: A | AT34: 501.9990867 | AU34: 1 | AW34: 0 | AX34: 0 | AY34: 0 | AZ34: 0 | BA34: 0 | BB34: 0 | BC34: 0 | BD34: 0 | BE34: 0 | BF34: 0 | BG34: 0 | BH34: 0 | BI34: 0 | BJ34: 0 | BK34: 0 | BL34: 0 | BM34: 0 | BN34: 0 | BO34: 0 | BP34: 0 | BQ34: 0 | BR34: 0 | BS34: 0 | BT34: 0 | BU34: 0 | BV34: 0 | BW34: 0 | BX34: 0 | BY34: 0 | BZ34: 0 | CA34: 0 | CB34: 0 | CC34: 0 | CD34: 0 | CE34: 0 | CF34: 0 | CG34: ='Plan Energi 2008'!AK11+'Plan Energi 2008'!AL11+'Plan Energi 2008'!AM11+'Plan Energi 2008'!AN11+'Plan Energi 2008'!AO11+'Plan Energi 2008'!AP11+SUM('Plan Energi 2008'!AK39:AP71)-SUM('Plan Energi 2008'!AK69:AP69) -> 501.9990867 | CH34: 0 | CI34: 40.5258901 | CJ34: =-(C34*'Plan Energi 2008'!$I$89/1000+D34*'Plan Energi 2008'!$C$89/1000+E34*'Plan Energi 2008'!$W$89/1000+X34*'Plan Energi 2008'!$F$89/1000) -> 0
C35: =SUM('Plan Energi 2008'!I23:I25)*-1 -> -4478.772 | D35: =SUM('Plan Energi 2008'!C23:C25)*-1 -> 0 | E35: =SUM('Plan Energi 2008'!W23:W25)*-1 -> 0 | F35: -3.7 | G35: =SUM('Plan Energi 2008'!Q23:Q25)*-1 -> 0 | H35: =SUM('Plan Energi 2008'!R23:R25)*-1 -> 0 | I35: 0 | J35: =SUM('Plan Energi 2008'!S23:S25)*-1 -> -3.7 | K35: 0 | L35: =SUM('Plan Energi 2008'!O23:O25)*-1 -> 0 | M35: 0 | N35: =SUM('Plan Energi 2008'!T23:V25)*-1 -> 0 | O35: 0 | P35: =SUM('Plan Energi 2008'!L23:L25)*-1 -> 0 | Q35: =SUM('Plan Energi 2008'!J23:J25)*-1 -> 0 | R35: 0 | S35: 0 | T35: 0 | U35: =SUM('Plan Energi 2008'!M23:M25)*-1 -> 0 | V35: =SUM('Plan Energi 2008'!N23:N25)*-1 -> 0 | W35: =SUM('Plan Energi 2008'!P23:P25)*-1 -> 0 | X35: -991.36 | Y35: 0 | Z35: ='Plan Energi 2008'!B16*'Plan Energi 2008'!AN16/SUM('Plan Energi 2008'!AI16:AQ16)*-1 -> -15.36 | AA35: 0 | AB35: =SUM('Plan Energi 2008'!H23:H25)*-1 -> 0 | AC35: 0 | AD35: =SUM('Plan Energi 2008'!G23:G25)*-1 -> 0 | AE35: =SUM('Plan Energi 2008'!F23:F25)*-1 -> 0 | AF35: =SUM('Plan Energi 2008'!D23:E25)*-1 -> -976 | AG35: 0 | AH35: 0 | AI35: 0 | AJ35: =(SUM('Plan Energi 2008'!AK12:AP12)*'Plan Energi 2008'!AE12/'Plan Energi 2008'!AH12+SUM('Plan Energi 2008'!AK13:AP13)*'Plan Energi 2008'!AE13/'Plan Energi 2008'!AH13+SUM('Plan Energi 2008'!AK69:AP69)*'Plan Energi 2008'!D2/100)*-1 -> -749.4928306 | AK35: =SUM('Plan Energi 2008'!AK70:AP70)*-1 -> 0 | AL35: 0 | AM35: 0 | AN35: 0 | AO35: -6223.324831 | AP35: Energi proces | AQ35: AP | AR35: A | AT35: 5650.67784 | AU35: 0.9 | AW35: 0 | AX35: 0 | AY35: 0 | AZ35: 0 | BA35: 0 | BB35: 0 | BC35: 0 | BD35: 0 | BE35: 0 | BF35: 0 | BG35: 0 | BH35: 0 | BI35: 0 | BJ35: 0 | BK35: 0 | BL35: 0 | BM35: 0 | BN35: 0 | BO35: 0 | BP35: 0 | BQ35: 0 | BR35: 0 | BS35: 0 | BT35: 0 | BU35: 0 | BV35: 0 | BW35: 0 | BX35: 0 | BY35: 0 | BZ35: 0 | CA35: 0 | CB35: 0 | CC35: 0 | CD35: 0 | CE35: 0 | CF35: 0 | CG35: =SUM('Plan Energi 2008'!AK12:AP13)+'Plan Energi 2008'!AN23+'Plan Energi 2008'!AN24+'Plan Energi 2008'!AN25+'Plan Energi 2008'!AN69 -> 5650.67784 | CH35: 0 | CI35: 572.6469909 | CJ35: =-(C35*'Plan Energi 2008'!$I$89/1000+D35*'Plan Energi 2008'!$C$89/1000+E35*'Plan Energi 2008'!$W$89/1000+X35*'Plan Energi 2008'!$F$89/1000) -> 327.6205264
F36: 0 | O36: 0 | Q36: 0 | X36: 0 | AN36: 0 | AO36: 0 | AP36: Ikke energiformål | AQ36: AIE | AR36: A | AU36: 0.9 | AZ36: 0 | BI36: 0 | BK36: 0 | BR36: 0 | CG36: =AO36*AU36*-1 -> 0 | CI36: 0
AP37: Energitjenester | AQ37: EN
C38: =C6+'Plan Energi 2008'!I81 -> 0 | D38: =D6+'Plan Energi 2008'!C81 -> 0 | E38: =E6+'Plan Energi 2008'!W81 -> 0 | G38: =G6+'Plan Energi 2008'!Q81 -> 0 | H38: =H6+'Plan Energi 2008'!R81 -> 0 | J38: =J6+'Plan Energi 2008'!S81 -> 0 | L38: =L6+'Plan Energi 2008'!O81 -> 0 | N38: =N6+'Plan Energi 2008'!T81+'Plan Energi 2008'!U81+'Plan Energi 2008'!V81 -> -1.421085472e-14 | P38: =P8+P20+'Plan Energi 2008'!L81 -> 0 | Q38: =Q20+Q8+'Plan Energi 2008'!J81 -> 1.95 | U38: =U20+U8+'Plan Energi 2008'!M81 -> 0 | V38: =V20+V8+'Plan Energi 2008'!N81 -> 0 | W38: =W20+W8+'Plan Energi 2008'!P81 -> 0.00364 | Z38: =Z18+Z8+'Plan Energi 2008'!B81 -> 0.01008 | AB38: =AB18+AB8+'Plan Energi 2008'!H81 -> 0 | AD38: =AD18+AD8+'Plan Energi 2008'!G81 -> 0 | AE38: =AE18+AE8+'Plan Energi 2008'!F81 -> 0 | AF38: =AF18+AF8+'Plan Energi 2008'!D81+'Plan Energi 2008'!E81 -> 0 | AJ38: =AJ9+'Plan Energi 2008'!A15 -> 673.8794472 | AK38: =AK18-('Plan Energi 2008'!AF32+'Plan Energi 2008'!AF39+'Plan Energi 2008'!AF43+'Plan Energi 2008'!AF52+'Plan Energi 2008'!AF55+'Plan Energi 2008'!AF62+'Plan Energi 2008'!AF71) -> 0
AJ39: =CD9-'Plan Energi 2008'!A15 -> 0

Sheet Plan Energi 2008 (hidden)
A1: Antal indbyggere: | D1: 49463 | Y1: Geografisk energibalance for
A2: Elnetvirkningsgrad: | D2: 92.7 | E2: %
A3: Enheder: | D3: TJ, tons | Y3: Fredericia Kommune 2008
A6: Brændsel | Y6: Anlægstype | Z6: Virkningsgrad | AD6: Elnet | AF6: Fjernvarmenet | AI6: Slutforbrug
A7: Elimport | B7: LPG og petroleum | C7: Kul | D7: Fuelolie | E7: Brændselsolie | F7: Dieselolie | G7: JP1 | H7: Benzin | I7: Naturgas | J7: Vindenergi | K7: Vandenergi | L7: Solenergi | M7: Geotermi | N7: Varmekilder til varmepumper | O7: Husdyrsgødning | P7: Biobrændstof og energiafgrøder | Q7: Halm | R7: Brænde og træflis | S7: Træpiller og træaffald | T7: Organisk affald, industri | U7: Organisk affald, husholdninger | V7: Deponi, slam, renseanlæg | W7: Affald, ikke bionedbrydeligt | X7: Faktisk energiforbrug | Z7: El | AA7: Proces | AB7: Varme | AC7: Fjernvarmenet | AD7: Ab værk | AE7: An forbruger | AF7: Ab værk | AG7: An forbruger | AH7: Samlet | AI7: Boliger og fritidshuse | AJ7: Offentlig service | AK7: Privat service | AL7: Detail- og engroshandel | AM7: Bygge- og anlægsvirksomhed | AN7: Fremstillingsvirksomhed | AO7: Gartneri | AP7: Landbrug | AQ7: Transport
X8: =SUM(A8:W8) -> 0 | Y8: Elkomfur | AA8: 44 | AD8: =-AE8/$D$2% -> -47.45656214 | AE8: =AH8/AA8% -> 43.99223311 | AH8: =SUM(AI8:AQ8) -> 19.35658257 | AI8: 19.35658257
X9: 0 | Y9: Elvandvarmer | AB9: 90 | AD9: -5.848597061 | AE9: =AH9/AB9% -> 5.421649475 | AH9: 4.879484528 | AI9: 4.879484528
X10: 0 | Y10: Elradiator | AB10: 100 | AD10: -24.81476181 | AE10: =AH10/AB10% -> 23.0032842 | AH10: 23.0032842 | AI10: 23.0032842
X11: 0 | Y11: Belysning | AA11: 50 | AD11: -190.0651591 | AE11: =AH11/AA11% -> 176.1904025 | AH11: 88.09520123 | AI11: 21.99611655 | AJ11: 25.52345397 | AK11: 13.2657885 | AL11: 13.0474431 | AM11: 0.397554372 | AN11: 12.3027862 | AO11: 0.10759986 | AP11: 1.45445868
X12: 0 | Y12: Elkompressorer | AA12: 150 | AD12: -156.8212019 | AE12: =AH12/AA12% -> 145.3732542 | AH12: 218.0598813 | AI12: 77.90882573 | AJ12: 0 | AK12: 44.57304936 | AL12: 43.83940882 | AM12: 1.590217488 | AN12: 49.21114478 | AO12: 0.064559916 | AP12: 0.872675208
X13: 0 | Y13: Elmotorer m.m. | AA13: 85 | AD13: -822.0124882 | AE13: =AH13/AA13% -> 762.0055766 | AH13: 647.7047401 | AI13: 122.3125991 | AJ13: 117.313357 | AK13: 42.39746005 | AL13: 41.69962815 | AM13: 9.687074864 | AN13: 299.7778903 | AO13: 0.9999613656 | AP13: 13.51676933
N14: =AH14-AE14 -> 0.424 | X14: 0.424 | Y14: Varmepumper, individuel | AB14: 300 | AD14: -0.2286947141 | AE14: 0.212 | AH14: 0.636 | AI14: 0.636
A15: =Z15%*AD15 -> 673.8794472 | X15: 673.8794472 | Y15: Elimport | Z15: 100 | AD15: =-SUM(AD16:AD80,AD8:AD14) -> 673.8794472 | AH15: =SUM(AI15:AQ15) -> 0
B16: 25.6 | X16: 25.6 | Y16: Gaskomfur, proces, m.m. | AB16: 38 | AH16: 9.728 | AI16: =X16*AB16/100*0.2 -> 1.9456 | AN16: =X16*AB16/100*0.6 -> 5.8368 | AQ16: =X16*AB16/100*0.2 -> 1.9456
E17: 143 | X17: 143 | Y17: Gasoliekedel, individuel | AB17: 80 | AH17: 114.4 | AI17: =X17*AB17/100 -> 114.4
I18: 0.839 | X18: 0.839 | Y18: Naturgaskedel, individuel | AB18: 85 | AH18: 0.71315 | AI18: 0.71315
S19: 42 | X19: 42 | Y19: Træpillekedel, individuel | AB19: 75 | AH19: 31.5 | AI19: 31.5
R20: 171 | X20: 171 | Y20: Brændekedel og -ovn, individuel | AB20: 65 | AH20: 111.15 | AI20: 111.15
Q21: 32 | X21: 32 | Y21: Halmfyr, individuel | AB21: 65 | AH21: 20.8 | AI21: 20.8
L22: 2.6 | X22: 2.6 | Y22: Solvarmeanlæg | AB22: 100 | AH22: 2.6 | AI22: 2.6
E23: 28 | X23: 28 | Y23: Gasoliekedel, erhverv | AA23: 90 | AH23: 25.2 | AN23: =X23*AA23/100 -> 25.2
I24: 295.992 | X24: 295.992 | Y24: Naturgaskedel, erhverv | AA24: 90 | AH24: 266.3928 | AN24: =X24*AA24/100 -> 266.3928
D25: 948 | I25: 4182.78 | S25: 3.7 | X25: 5134.48 | Y25: Industrikedel, erhverv | AA25: 90 | AH25: 4621.032 | AN25: =X25*AA25/100 -> 4621.032
X26: 0 | Y26: Solcelleanlæg | Z26: 100 | AD26: =X26*Z26/100 -> 0 | AH26: 0
J27: 16.11 | X27: 16.11 | Y27: Vindkraftanlæg, land | Z27: 100 | AD27: =Z27*X27/100 -> 16.11 | AH27: 0
X28: 0 | Y28: Vindkraftanlæg, kystnære (50 %) | Z28: 100 | AD28: =Z28*X28/100 -> 0 | AH28: 0
X29: 0 | Y29: Vandkraftanlæg | Z29: 100 | AD29: =Z29*X29/100 -> 0 | AH29: 0
X30: 0 | Y30: Bølgekraftanlæg | Z30: 100 | AD30: =Z30*X30/100 -> 0 | AH30: 0
I31: =-(O31+T31)*AA31% -> 0 | X31: 0 | Y31: Biogasanlæg, opgradering
X32: 0 | Y32: Biogasanlæg, motor | AD32: =X32*Z32/100 -> 0 | AF32: =X32*AB32/100 -> 0 | AH32: =SUM(AI32:AQ32) -> 0
X33: 0 | Y33: Centrale kraftværker, dampturbine | AD33: =X33*Z33/100 -> 0 | AF33: =X33*AB33/100 -> 0 | AH33: 0
X34: 0 | Y34: Centrale kraftværker, forbrændingsmotor | AB34: 0 | AD34: =X34*Z34/100 -> 0 | AF34: =X34*AB34 -> 0 | AH34: 0
X35: 0 | Y35: Centrale kraftværker, gasturbine | AB35: 0 | AD35: =X35*Z35/100 -> 0 | AF35: =X35*AB35 -> 0 | AH35: 0
X36: 0 | Y36: Centrale kraftværker, kedel | AF36: =X36*AB36/100 -> 0 | AH36: 0
N37: =AF37-AE37 -> 0 | X37: 0 | Y37: Centrale kraftværker, varmepumpe | AD37: =-AE37/$D$2% -> 0 | AF37: =AE37*AB37% -> 0
X38: 0 | Y38: Centrale kraftværker, elpatron | AD38: =-AE38/$D$2% -> 0 | AF38: =AE38*AB38% -> 0
X39: 0 | Y39: Centrale kraftværker, fjernvarmeproduktion | AC39: 77.2 | AF39: =-SUM(AF33:AF36) -> 0 | AG39: =-AF39*AC39/100 -> 0 | AH39: 0
X40: 0 | Y40: Affaldsforbrændingsanlæg, dampturbine | AD40: =X40*Z40/100 -> 0 | AF40: =X40*AB40/100 -> 0 | AH40: 0
X41: 0 | Y41: Affaldsforbrændingsanlæg, kedel | AD41: =X41*Z41/100 -> 0 | AF41: =X41*AB41/100 -> 0 | AH41: 0
X42: 0 | Y42: Affaldsforbrændingsanlæg, kombianlæg | AD42: =X42*Z42/100 -> 0 | AF42: =X42*AB42/100 -> 0 | AH42: 0
X43: 0 | Y43: Affaldsforbrændingsanlæg, fjernvarmeproduktion | AC43: 77.2 | AF43: =-SUM(AF40:AF42) -> 0 | AG43: =-AF43*AC43/100 -> 0 | AH43: 0
X44: 0 | Y44: Decentrale KV-værker, dampturbine | AD44: =X44*Z44/100 -> 0 | AF44: =X44*AB44/100 -> 0 | AH44: 0
X45: 0 | Y45: Decentrale KV-værker, forbrændingsmotor | AD45: =X45*Z45/100 -> 0 | AF45: 0 | AH45: 0
X46: 0 | Y46: Decentrale KV-værker, gasturbine | AD46: =X46*Z46/100 -> 0 | AF46: 0 | AH46: 0
X47: 0 | Y47: Decentrale KV-værker, kedel | AD47: =X47*Z47/100 -> 0 | AF47: 0 | AH47: 0
N48: =AH48-AE48 -> 0 | X48: 0 | Y48: Decentrale KV-værker, varmepumpe | AD48: =-AG48/$D$2% -> 0 | AF48: =X48*AB48/100 -> 0
X49: 0 | Y49: Decentrale KV-værker, elpatron | AD49: =-AG49/$D$2% -> 0 | AF49: =X49*AB49/100 -> 0
X50: 0 | Y50: Decentrale KV-værker, solvarme | AF50: 0 | AH50: 0
X51: 0 | Y51: Decentrale KV-værker, kombianlæg | AD51: =X51*Z51/100 -> 0 | AF51: 0 | AH51: 0
X52: 0 | Y52: Decentrale KV-værker, fjernvarmeproduktion | AC52: 77.2 | AF52: =-SUM(AF44:AF51) -> 0 | AG52: =-AF52*AC52/100 -> 0 | AH52: 0
V53: 3.188904 | X53: 3.188904 | Y53: Lokale KV-værker, motor | Z53: 26 | AA53: 37.4 | AD53: =X53*Z53/100 -> 0.82911504 | AF53: =X53*AB53/100 -> 0 | AH53: =SUM(AI53:AQ53) -> 1.192650096 | AJ53: =X53*AA53/100 -> 1.192650096
X54: 0 | Y54: Lokale KV-værker, kedel | AD54: =X54*Z54/100 -> 0 | AF54: =X54*AB54/100 -> 0 | AH54: =SUM(AI54:AQ54) -> 0
X55: 0 | Y55: Lokale KV-værker, fjernvarmeproduktion | AC55: 77.2 | AF55: =-SUM(AF53:AF54) -> 0 | AH55: =SUM(AI55:AQ55) -> 0
X56: 0 | Y56: Fjernvarmeværker, kedel | AF56: =X56*AB56/100 -> 0 | AH56: 0
N57: =AF57-AE57 -> 0 | X57: 0 | Y57: Fjernvarmeværker, varmepumpe | AD57: =-AG57/$D$2% -> 0 | AF57: =AE57*AB57% -> 0
X58: 0 | Y58: Fjernvarmeværker, elpatron | AF58: =X58*AB58/100 -> 0
X59: 0 | Y59: Fjernvarmeværker, geotermi | AF59: =X59*AB59/100 -> 0
X60: 0 | Y60: Fjernvarmeværker, sol | AF60: =X60*AB60/100 -> 0 | AH60: 0
B61: 0.01008 | E61: 101.9424 | I61: 2915.09904 | R61: 1.5792 | S61: 2.9568 | U61: 241.49664 | V61: 10.0464 | W61: 197.58816 | X61: 3470.71872 | Y61: Import fjernvarme | Z61: 21.5 | AB61: 51.8 | AD61: =X61*Z61% -> 746.2045248 | AF61: =X61*AB61% -> 1797.832297 | AH61: 0
X62: 0 | Y62: Fjernvarmeværker, fjernvarmeproduktion | AC62: 77.2 | AF62: =-SUM(AF56:AF61) -> -1797.832297 | AG62: =-AF62*AC62/100 -> 1387.926533 | AH62: 1387.926533 | AI62: =AG62*63.5% -> 881.3333486 | AJ62: =AG62*9.3% -> 129.0771676 | AK62: =AG62*12.9% -> 179.0425228 | AL62: =AG62*7.1% -> 98.54278386 | AM62: =AG62*0% -> 0 | AN62: =AG62*5.2% -> 72.17217973 | AO62: =AG62*2% -> 27.75853067
X63: 0 | Y63: Industrielle KV-værker, dampturbine | AD63: =Z63/100*X63 -> 0 | AF63: =X63*AB63/100 -> 0 | AH63: 0
I64: 0.1201464 | X64: 0.1201464 | Y64: Industrielle KV-værker, forbrændingsmotor | Z64: 39.6 | AA64: 41.4 | AD64: 0.0475779744 | AF64: =X64*AB64/100 -> 0 | AH64: 0.0497406096 | AN64: =X64*AA64/100 -> 0.0497406096
Y65: Industrielle KV-værker, gasturbine | AD65: 0 | AF65: =X65*AB65/100 -> 0 | AH65: 0
Y66: Industrielle KV-værker, kedel | AD66: 0 | AF66: =X66*AB66/100 -> 0 | AH66: 0
Y67: Industrielle KV-værker, kombianlæg | AD67: 0 | AF67: =X67*AB67/100 -> 0 | AH67: 0
Y68: Industrielle KV-værker, overskudsvarme | AD68: 0 | AF68: =(16.55+1172)*0.336 -> 399.3528 | AH68: 0
Y69: Industrielle KV-værker, forbrug, eget forbrug, el | AD69: =-AE69 -> -189.8232 | AE69: =564.95*0.336 -> 189.8232 | AH69: 189.8232 | AN69: =AE69 -> 189.8232
Y70: Industrielle KV-værker, forbrug, eget forbrug, varme | AH70: 0 | AN70: =-AF70 -> 0
Y71: Industrielle KV-værker, fjernvarmeproduktion | AC71: 77.2 | AF71: =-SUM(AF63:AF70) -> -399.3528 | AG71: =-AF71*AC71/100 -> 308.3003616 | AH71: 308.3003616 | AI71: =AG71*63.5% -> 195.7707296 | AJ71: =AG71*9.3% -> 28.67193363 | AK71: =AG71*12.9% -> 39.77074665 | AL71: =AG71*7.1% -> 21.88932567 | AM71: =AG71*0% -> 0 | AN71: =AG71*5.2% -> 16.0316188 | AO71: =AG71*2% -> 6.166007232
H72: 643.523076 | P72: 1.806924 | X72: =SUM(A72:W72) -> 645.33 | Y72: Benzinbiler | AA72: 20 | AH72: 129.066 | AQ72: =X72*AA72/100 -> 129.066
F73: 297.290268 | P73: 0.029732 | X73: =SUM(A73:W73) -> 297.32 | Y73: Dieselbiler | AA73: 25 | AH73: 74.33 | AQ73: =X73*AA73/100 -> 74.33
F74: =174.13*(1-0.01%) -> 174.112587 | P74: =174.13*(0.01%) -> 0.017413 | X74: =SUM(A74:W74) -> 174.13 | Y74: Varebiler | AA74: 25 | AH74: 43.5325 | AQ74: =X74*AA74/100 -> 43.5325
F75: =16.06*(1-0.01%) -> 16.058394 | P75: =16.06*(0.01%) -> 0.001606 | X75: =SUM(A75:W75) -> 16.06 | Y75: Busser | AA75: 33 | AH75: 5.2998 | AQ75: =X75*AA75/100 -> 5.2998
F76: 362.103786 | P76: 0.036214 | X76: 362.14 | Y76: Lastbiler m.m. | AA76: 33 | AH76: 119.5062 | AQ76: =X76*AA76/100 -> 119.5062
F77: 36.39636 | P77: 0.00364 | X77: 36.4 | Y77: Traktorer | AA77: 33 | AH77: 12.012 | AP77: =X77*AA77% -> 12.012
F78: 28.9 | X78: 28.9 | Y78: Tog | AA78: 33 | AD78: =-AE78/$D$2% -> 0 | AH78: 9.537 | AQ78: =X78*AA78/100+AE78*AA78% -> 9.537
G79: 359.1 | H79: 0.9 | X79: 360 | Y79: Fly | AA79: 33 | AH79: 118.8 | AQ79: =X79*AA79/100 -> 118.8
D80: 10.5 | F80: 62.8 | X80: 73.3 | Y80: Skibe | AA80: 33 | AH80: 24.189 | AQ80: =X80*AA80/100 -> 24.189
A81: =SUM(A8:A80) -> 673.8794472 | B81: 25.61008 | C81: 0 | D81: 958.5 | E81: 272.9424 | F81: 977.661395 | G81: 359.1 | H81: 644.423076 | I81: 7394.830186 | J81: 16.11 | K81: 0 | L81: 2.6 | M81: 0 | N81: 0.424 | O81: 0 | P81: 1.895529 | Q81: 32 | R81: 172.5792 | S81: 48.6568 | T81: 0 | U81: 241.49664 | V81: 13.235304 | W81: 197.58816 | X81: =SUM(X8:X80) -> 12033.53222 | Y81: Samlet | AD81: =SUM(AD8:AD80) -> 2.273736754e-13 | AE81: 1346.0216 | AF81: 0 | AG81: 1696.226895 | AH81: 8628.816109 | AI81: 1630.305721 | AJ81: 301.7785622 | AK81: 319.0495673 | AL81: 219.0185896 | AM81: 11.67484672 | AN81: 5557.83016 | AO81: 35.09665904 | AP81: 27.85590322 | AQ81: 526.2061
A82: =A81*A89/1000 -> 145.5579606 | B82: =B81*B89/1000 -> 1.6646552 | C82: 0 | D82: 74.763 | E82: 20.1977376 | F82: 72.34694323 | G82: 25.8552 | H82: 47.04288455 | I82: 419.8045097 | J82: 0 | K82: 0 | L82: 0 | M82: 0 | N82: 0 | O82: 0 | P82: 0 | Q82: 0 | R82: 0 | S82: 0 | T82: 0 | U82: 0 | V82: 0 | W82: 15.58575406 | X82: =SUM(A82:W82) -> 822.8186449 | Y82: CO2-emissioner (1.000 tons) | Z82: =X82*1000/D1 -> 16.63503315 | AA82: tons/indbygger
O83: 229.6636516 | P83: 674.5806144 | Q83: 690.9963311 | R83: 438.6526335 | X83: =SUM(A83:W83) -> 2033.893231 | Y83: Lokalt biomassepotentiale | Z83: =(SUM(J14:V14)+AD15*A87%+SUM(J19:V19)+SUM(J20:V20)+SUM(J21:V21)+SUM(J22:V22)+SUM(J25:V25)+SUM(J72:V72)+SUM(J73:V73)+SUM(J74:V74)+SUM(J75:V75)+SUM(J76:V76)+SUM(J77:V77)+SUM(J78:V78)+SUM(J79:V79)+SUM(J80:V80)+SUM(J26:V26)*(Z26%+AB26%)+SUM(J27:V27)*(Z27%+AB27%)+SUM(J28:V28)*(Z28%+AB28%)+SUM(J29:V29)*(Z29%+AB29%)+SUM(J30:V30)*(Z30%+AB30%)+SUM(J32:V32)*(Z32%+AA32%+AB32%)+SUM(J31:V31)*(AA31%)+SUM(J33:V33)*(Z33%+AB33%)+SUM(J34:V34)*(Z34%+AB34%)+SUM(J35:V35)*(Z35%+AB35%)+SUM(J36:V36)*(Z36%+AB36%)+SUM(J37:V37)*(Z37%+AB37%)+SUM(J40:V40)*(Z40%+AB40%)+SUM(J41:V41)*(Z41%+AB41%)+SUM(J42:V42)*(Z42%+AB42%)+SUM(J44:V44)*(Z44%+AB44%)+SUM(J45:V45)*(Z45%+AB45%)+SUM(J46:V46)*(Z46%+AB46%)+SUM(J47:V47)*(Z47%+AB47%)+SUM(J48:V48)*(Z48%+AB48%)+SUM(J50:V50)*(Z50%+AB50%)+SUM(J51:V51)*(Z51%+AB51%)+SUM(J53:V53)*(Z53%+AA53%+AB53%)+SUM(J54:V54)*(Z54%+AA54%+AB54%)+SUM(J56:V56)*(Z56%+AB56%)+SUM(J57:V57)*(Z57%+AB57%)+SUM(J59:V59)*(Z59%+AB59%)+SUM(J60:V60)*(Z60%+AB60%)+SUM(J61:V61)*(Z61%+AB61%)+SUM(J63:V63)*(Z63%+AB63%)+SUM(J64:V64)*(Z64%+AB64%)+SUM(J65:V65)*(Z65%+AB65%)+SUM(J66:V66)*(Z66%+AB66%)+SUM(J67:V67)*(Z67%+AB67%)+SUM(J68:V68)*(Z68%+AB68%))/(SUM(X8:X14)+SUM(X16:X25)+SUM(X72:X80)+(AG39/AC39%+AG43/AC43%+AG52/AC52%+AG55/AC55%+AG62/AC62%+AG71/AC71%)+AE81+SUM(AE8:AE14)*(1-D2%)+(-AF70))*100 -> 4.699634062 | AA83: % VE (Global)
O84: 0 | P84: 0.2781743145 | Q84: 4.630994198 | R84: 39.34302152 | X84: =SUMIF(J83:W83,">0",J81:W81)/SUM(J83:W83)% -> 10.1516995 | Y84: Udnyttelsesprocent af lokalt biomassepotentiale
A86: %) | B86: =B7 -> LPG og petroleum | C86: Kul | D86: Fuelolie | E86: Brændselsolie | F86: Dieselolie | G86: JP1 | H86: Benzin | I86: Naturgas | J86: Vindenergi | K86: Vandenergi | L86: Solenergi | M86: Geotermi | N86: Varmekilder til varmepumper | O86: Husdyrsgødning | P86: Biobrændstof og energiafgrøder | Q86: Halm | R86: Brænde og træflis | S86: Træpiller og træaffald | T86: Organisk affald, industri | U86: Organisk affald, husholdninger | V86: Deponi, slam, renseanlæg | W86: Affald, ikke bionedbrydeligt
A87: 12
A88: Elimport (heraf VE-andel:
A89: 216 | B89: 65 | C89: 95 | D89: 78 | E89: 74 | F89: 74 | G89: 72 | H89: 73 | I89: 56.77 | W89: 78.88 | X89: CO2-emission (tons/TJ)

Sheet e2g-format 2009 (hidden)
B1: Forbrug | C1: Naturgas | D1: Kul | E1: Affald (ikke-bionedbrydeligt) | F1: Biobrændsler | G1: Halm | H1: Skovflis | I1: Brænde | J1: Træpiller | K1: Træaffald | L1: Biogas | M1: Biomasse | N1: Affald (bionedbrydeligt) | O1: Ikke-brændsel VE | P1: Sol | Q1: Vind | R1: Havvind | S1: Landvind | T1: Vand | U1: Geotermisk | V1: Varmepumpe - omgivelsesvarme | W1: Bioolie, biodiesel og bioethanol | X1: Olieprodukter | Y1: Raffinaderigas | Z1: LPG | AA1: Flybenzin | AB1: Benzin | AC1: Petroleum / Kerosen | AD1: JP1 | AE1: Gasolie/Dieselolie | AF1: Fuelolie | AG1: Spildolie | AH1: Petrokoks | AI1: Terpentin, smøreolie og bitumen | AJ1: El | AK1: Fjernvarme | AL1: Overskudsvarme | AM1: Energitjenester | AN1: Total energiforbrug | AO1: Brutto brændsel | AP1: =Andet!B4 -> Fredericia | AS1: Faktor | AT1: Brutto produktion | AU1: Virkningsgrad | AV1: Produktion | AW1: Naturgas | AX1: Kul | AY1: Affald (ikke-bionedbrydeligt) | AZ1: Biobrændsler | BA1: Halm | BB1: Skovflis | BC1: Brænde | BD1: Træpiller | BE1: Træaffald | BF1: Biogas | BG1: Biomasse | BH1: Affald (bionedbrydeligt) | BI1: Ikke-brændsel VE | BJ1: Sol | BK1: Vind | BL1: Havvind | BM1: Landvind | BN1: Vand | BO1: Geotermisk | BP1: Varmepumpe - omgivelsesvarme | BQ1: Bioolie, biodiesel og bioethanol | BR1: Olieprodukter | BS1: Raffinaderigas | BT1: LPG | BU1: Flybenzin | BV1: Benzin | BW1: Petroleum / Kerosen | BX1: JP1 | BY1: Gasolie/Dieselolie | BZ1: Fuelolie | CA1: Spildolie | CB1: Petrokoks | CC1: Terpentin, smøreolie og bitumen | CD1: El | CE1: Fjernvarme | CF1: Nyttiggjort overskudsvarme | CG1: Energitjenester | CH1: Total energiforbrug | CI1: Tab | CJ1: CO2-udledning
A2: ID | B2: F | C2: FN | D2: FK | E2: FMA | F2: FVB | G2: FB1 | H2: FB2 | I2: FB3 | J2: FB4 | K2: FB5 | L2: FB6 | M2: FB7 | N2: FB8 | O2: FLVE | P2: FLVE1 | Q2: FLVE2 | R2: FLVE21 | S2: FLVE22 | T2: FLVE3 | U2: FLVE4 | V2: FLVE5 | W2: FS | X2: FOO | Y2: FO1 | Z2: FO2 | AA2: FO3 | AB2: FO4 | AC2: FO5 | AD2: FO6 | AE2: FO7 | AF2: FO8 | AG2: FO9 | AH2: FOO1 | AI2: FOO2 | AJ2: FE | AK2: FF | AL2: FOV | AM2: FWEN | AN2: FTOTAL | AO2: fbrbr | AQ2: ID | AR2: ID Parent | AS2: factor | AT2: pbrpr | AU2: pvrkg | AV2: P | AW2: PN | AX2: PK | AY2: PMA | AZ2: PVB | BA2: PB1 | BB2: PB2 | BC2: PB3 | BD2: PB4 | BE2: PB5 | BF2: PB6 | BG2: PB7 | BH2: PB8 | BI2: PLVE | BJ2: PLVE1 | BK2: PLVE2 | BL2: PLVE21 | BM2: PLVE22 | BN2: PLVE3 | BO2: PLVE4 | BP2: PLVE5 | BQ2: PS | BR2: POO | BS2: PO1 | BT2: PO2 | BU2: PO3 | BV2: PO4 | BW2: PO5 | BX2: PO6 | BY2: PO7 | BZ2: PO8 | CA2: PO9 | CB2: POO1 | CC2: POO2 | CD2: PE | CE2: PF | CF2: POV | CG2: PWEN | CH2: PTOTAL | CI2: PTAB | CJ2: PCO2
A3: ID Parent | C3: F | D3: F | E3: F | F3: F | G3: FVB | H3: FVB | I3: FVB | J3: FVB | K3: FVB | L3: FVB | M3: FVB | N3: FVB | O3: F | P3: FLVE | Q3: FLVE | R3: FLVE2 | S3: FLVE2 | T3: FLVE | U3: FLVE | V3: FLVE | W3: F | X3: F | Y3: FOO | Z3: FOO | AA3: FOO | AB3: FOO | AC3: FOO | AD3: FOO | AE3: FOO | AF3: FOO | AG3: FOO | AH3: FOO | AI3: FOO | AJ3: F | AK3: F | AL3: F | AM3: F | AN3: F | AP3: Structures | AW3: P | AX3: P | AY3: P | AZ3: P | BA3: PVB | BB3: PVB | BC3: PVB | BD3: PVB | BE3: PVB | BF3: PVB | BG3: PVB | BH3: PVB | BI3: P | BJ3: PLVE | BK3: PLVE | BL3: PLVE2 | BM3: PLVE2 | BN3: PLVE | BO3: PLVE | BP3: PLVE | BQ3: P | BR3: P | BS3: POO | BT3: POO | BU3: POO | BV3: POO | BW3: POO | BX3: POO | BY3: POO | BZ3: POO | CA3: POO | CB3: POO | CC3: POO | CD3: P | CE3: P | CF3: P | CG3: P | CH3: P
AV4: =B4 -> 0 | AZ4: =F4 -> 0 | BI4: =O4 -> 0 | BK4: =Q4 -> 0 | BR4: =X4 -> 0 | CI4: =B4 -> 0
F5: =SUM(G5:N5) -> 0 | O5: =P5+Q5+T5+U5+V5 -> 0 | Q5: =R5+S5 -> 0 | X5: =SUM(Y5:AI5) -> 0 | AN5: 0 | AO5: =SUM(C5:F5,O5,W5,X5,AJ5:AL5) -> 0 | AP5: Indgang for brændsler (bio, kul mv.) | AQ5: TP | AT5: =SUM(AW5:AZ5,BI5,BQ5,BR5,CD5:CG5) -> 7865.81826 | AW5: =-C6 -> 7173.45226 | AX5: 0 | AY5: 187.9119 | AZ5: 504.4541 | BA5: 33 | BB5: 173.917 | BC5: 0 | BD5: 48.934 | BE5: 0 | BF5: 0 | BG5: 0 | BH5: 248.6031 | BI5: =BJ5+BK5+BN5+BO5+BP5 -> 0 | BK5: =BL5+BM5 -> 0 | BR5: =SUM(BS5:CC5) -> 0
C6: =-AW6 -> -7173.45226 | D6: =-AX6 -> 0 | E6: -187.9119 | F6: -504.4541 | G6: -33 | H6: -173.917 | I6: 0 | J6: -48.934 | K6: 0 | L6: 0 | M6: 0 | N6: -248.6031 | O6: 0 | Q6: 0 | X6: 0 | AN6: 0 | AO6: -7865.81826 | AP6: Transport af brændsler | AQ6: TRAP | AT6: 7865.81826 | AW6: =-1*(C8+C20) -> 7173.45226 | AX6: 0 | AY6: 187.9119 | AZ6: 504.4541 | BA6: 33 | BB6: 173.917 | BC6: 0 | BD6: 48.934 | BE6: 0 | BF6: 0 | BG6: 0 | BH6: 248.6031 | BI6: =BJ6+BK6+BN6+BO6+BP6 -> 0 | BK6: 0 | BR6: =SUM(BS6:CC6) -> 0
F7: 0 | O7: 0 | Q7: 0 | X7: 0 | AN7: 0 | AO7: 0 | AP7: Indgang nettilsluttet VE | AQ7: TLP1 | AT7: 14.16 | AZ7: =SUM(BA7:BH7) -> 0 | BI7: =BJ7+BK7+BN7+BO7+BP7 -> 14.16 | BJ7: =P8*-1 -> 0 | BK7: 14.16 | BL7: =R8*-1 -> 0 | BM7: =S8*-1 -> 14.16 | BR7: =SUM(BS7:CC7) -> 0
C8: =SUM(C9:C11,C14:C17) -> -2402.57226 | D8: 0 | E8: -187.9119 | F8: -256.7541 | G8: 0 | H8: -4.917 | I8: 0 | J8: -3.234 | K8: 0 | L8: 0 | M8: 0 | N8: -248.6031 | O8: -14.16 | P8: 0 | Q8: -14.16 | R8: 0 | S8: -14.16 | T8: 0 | U8: 0 | V8: 0 | W8: 0 | X8: -345.51 | Y8: 0 | Z8: 0 | AA8: 0 | AB8: 0 | AC8: 0 | AD8: 0 | AE8: 0 | AF8: -345.51 | AG8: 0 | AH8: 0 | AI8: 0 | AJ8: 0 | AK8: 0 | AL8: -406.7415 | AM8: =SUM(AM9:AM11,AM14:AM17) -> 0 | AN8: 0 | AO8: -3613.64976 | AP8: Indgang el, varme og olieprodukter | AQ8: TS | AT8: 6582.95247 | AW8: =SUM(AW9:AW11,AW14:AW17) -> 0 | AX8: 0 | AY8: 0 | AZ8: 0 | BA8: 0 | BB8: 0 | BC8: 0 | BD8: 0 | BE8: 0 | BF8: 0 | BG8: 0 | BH8: 0 | BI8: =BJ8+BK8+BN8+BO8+BP8 -> 0 | BJ8: 0 | BK8: 0 | BL8: 0 | BM8: 0 | BN8: 0 | BO8: 0 | BP8: 0 | BQ8: 0 | BR8: 2907.912384 | BS8: 0 | BT8: 0 | BU8: 0 | BV8: 657.85508 | BW8: 0 | BX8: 318.2 | BY8: 959.257304 | BZ8: 0 | CA8: 0 | CB8: 0 | CC8: 0 | CD8: 1466.310519 | CE8: 2208.729567 | CF8: 0 | CG8: 0 | CH8: 0 | CI8: 684.8262635 | CJ8: 333.3143359
F9: 0 | O9: 0 | Q9: 0 | X9: 0 | AN9: 0 | AO9: 0 | AP9: Netto import/lager | AQ9: IMP | AR9: TS | AT9: 3654.208973 | AZ9: 0 | BI9: =BJ9+BK9+BN9+BO9+BP9 -> 0 | BK9: 0 | BR9: =IF(BR17+X18<0,(BR17+X18)*-1,0) -> 2907.912384 | BV9: =IF(BV17+AB18<0,(BV17+AB18)*-1) -> 657.85508 | BX9: =IF(BX17+AD18<0,(BX17+AD18)*-1) -> 318.2 | BY9: =IF(BY17+AE20<0,(BY17+AE20)*-1,0) -> 959.257304 | CD9: =IF(CD10+CD11+CD14+AJ18<0,(CD10+CD11+CD14+AJ18)*-1,0) -> 746.2965894 | CJ9: =CD9*'Plan Energi 2009'!A89/1000 -> 156.7222838
C10: =('Plan Energi 2009'!I32+'Plan Energi 2009'!I33+'Plan Energi 2009'!I34+'Plan Energi 2009'!I35+'Plan Energi 2009'!I40+'Plan Energi 2009'!I42+'Plan Energi 2009'!I44+'Plan Energi 2009'!I45+'Plan Energi 2009'!I46+'Plan Energi 2009'!I51+'Plan Energi 2009'!I53+'Plan Energi 2009'!I61+'Plan Energi 2009'!I63+'Plan Energi 2009'!I64+'Plan Energi 2009'!I65+'Plan Energi 2009'!I67)*-1 -> -2402.57226 | D10: =('Plan Energi 2009'!C32+'Plan Energi 2009'!C33+'Plan Energi 2009'!C34+'Plan Energi 2009'!C35+'Plan Energi 2009'!C40+'Plan Energi 2009'!C42+'Plan Energi 2009'!C44+'Plan Energi 2009'!C45+'Plan Energi 2009'!C46+'Plan Energi 2009'!C51+'Plan Energi 2009'!C53+'Plan Energi 2009'!C61+'Plan Energi 2009'!C63+'Plan Energi 2009'!C64+'Plan Energi 2009'!C65+'Plan Energi 2009'!C67)*-1 -> 0 | E10: =('Plan Energi 2009'!W32+'Plan Energi 2009'!W33+'Plan Energi 2009'!W34+'Plan Energi 2009'!W35+'Plan Energi 2009'!W40+'Plan Energi 2009'!W42+'Plan Energi 2009'!W44+'Plan Energi 2009'!W45+'Plan Energi 2009'!W46+'Plan Energi 2009'!W51+'Plan Energi 2009'!W53+'Plan Energi 2009'!W61+'Plan Energi 2009'!W63+'Plan Energi 2009'!W64+'Plan Energi 2009'!W65+'Plan Energi 2009'!W67)*-1 -> -187.9119 | F10: -256.7541 | G10: =('Plan Energi 2009'!Q32+'Plan Energi 2009'!Q33+'Plan Energi 2009'!Q34+'Plan Energi 2009'!Q35+'Plan Energi 2009'!Q40+'Plan Energi 2009'!Q42+'Plan Energi 2009'!Q44+'Plan Energi 2009'!Q45+'Plan Energi 2009'!Q46+'Plan Energi 2009'!Q51+'Plan Energi 2009'!Q53+'Plan Energi 2009'!Q61+'Plan Energi 2009'!Q63+'Plan Energi 2009'!Q64+'Plan Energi 2009'!Q65+'Plan Energi 2009'!Q67)*-1 -> 0 | H10: =('Plan Energi 2009'!R32+'Plan Energi 2009'!R33+'Plan Energi 2009'!R34+'Plan Energi 2009'!R35+'Plan Energi 2009'!R40+'Plan Energi 2009'!R42+'Plan Energi 2009'!R44+'Plan Energi 2009'!R45+'Plan Energi 2009'!R46+'Plan Energi 2009'!R51+'Plan Energi 2009'!R53+'Plan Energi 2009'!R61+'Plan Energi 2009'!R63+'Plan Energi 2009'!R64+'Plan Energi 2009'!R65+'Plan Energi 2009'!R67)*-1 -> -4.917 | J10: =('Plan Energi 2009'!S32+'Plan Energi 2009'!S33+'Plan Energi 2009'!S34+'Plan Energi 2009'!S35+'Plan Energi 2009'!S40+'Plan Energi 2009'!S42+'Plan Energi 2009'!S44+'Plan Energi 2009'!S45+'Plan Energi 2009'!S46+'Plan Energi 2009'!S51+'Plan Energi 2009'!S53+'Plan Energi 2009'!S61+'Plan Energi 2009'!S63+'Plan Energi 2009'!S64+'Plan Energi 2009'!S65+'Plan Energi 2009'!S67)*-1 -> -3.234 | L10: =('Plan Energi 2009'!O32+'Plan Energi 2009'!O33+'Plan Energi 2009'!O34+'Plan Energi 2009'!O35+'Plan Energi 2009'!O40+'Plan Energi 2009'!O42+'Plan Energi 2009'!O44+'Plan Energi 2009'!O45+'Plan Energi 2009'!O46+'Plan Energi 2009'!O51+'Plan Energi 2009'!O53+'Plan Energi 2009'!O61+'Plan Energi 2009'!O63+'Plan Energi 2009'!O64+'Plan Energi 2009'!O65+'Plan Energi 2009'!O67)*-1 -> 0 | N10: =('Plan Energi 2009'!T32+'Plan Energi 2009'!T33+'Plan Energi 2009'!T34+'Plan Energi 2009'!T35+'Plan Energi 2009'!T40+'Plan Energi 2009'!T42+'Plan Energi 2009'!T44+'Plan Energi 2009'!T45+'Plan Energi 2009'!T46+'Plan Energi 2009'!T51+'Plan Energi 2009'!T53+'Plan Energi 2009'!T61+'Plan Energi 2009'!T63+'Plan Energi 2009'!T64+'Plan Energi 2009'!T65+'Plan Energi 2009'!T67+'Plan Energi 2009'!U32+'Plan Energi 2009'!U33+'Plan Energi 2009'!U34+'Plan Energi 2009'!U35+'Plan Energi 2009'!U40+'Plan Energi 2009'!U42+'Plan Energi 2009'!U44+'Plan Energi 2009'!U45+'Plan Energi 2009'!U46+'Plan Energi 2009'!U51+'Plan Energi 2009'!U53+'Plan Energi 2009'!U61+'Plan Energi 2009'!U63+'Plan Energi 2009'!U64+'Plan Energi 2009'!U65+'Plan Energi 2009'!U67+'Plan Energi 2009'!V32+'Plan Energi 2009'!V33+'Plan Energi 2009'!V34+'Plan Energi 2009'!V35+'Plan Energi 2009'!V40+'Plan Energi 2009'!V42+'Plan Energi 2009'!V44+'Plan Energi 2009'!V45+'Plan Energi 2009'!V46+'Plan Energi 2009'!V51+'Plan Energi 2009'!V53+'Plan Energi 2009'!V61+'Plan Energi 2009'!V63+'Plan Energi 2009'!V64+'Plan Energi 2009'!V65+'Plan Energi 2009'!V67)*-1 -> -248.6031 | O10: 0 | Q10: 0 | X10: -345.51 | AE10: =('Plan Energi 2009'!F32+'Plan Energi 2009'!F33+'Plan Energi 2009'!F34+'Plan Energi 2009'!F35+'Plan Energi 2009'!F40+'Plan Energi 2009'!F42+'Plan Energi 2009'!F44+'Plan Energi 2009'!F45+'Plan Energi 2009'!F46+'Plan Energi 2009'!F51+'Plan Energi 2009'!F53+'Plan Energi 2009'!F61+'Plan Energi 2009'!F63+'Plan Energi 2009'!F64+'Plan Energi 2009'!F65+'Plan Energi 2009'!F67)*-1 -> 0 | AF10: =('Plan Energi 2009'!D32+'Plan Energi 2009'!D33+'Plan Energi 2009'!D34+'Plan Energi 2009'!D35+'Plan Energi 2009'!D40+'Plan Energi 2009'!D42+'Plan Energi 2009'!D44+'Plan Energi 2009'!D45+'Plan Energi 2009'!D46+'Plan Energi 2009'!D51+'Plan Energi 2009'!D53+'Plan Energi 2009'!D61+'Plan Energi 2009'!D63+'Plan Energi 2009'!D64+'Plan Energi 2009'!D65+'Plan Energi 2009'!D67+'Plan Energi 2009'!E32+'Plan Energi 2009'!E33+'Plan Energi 2009'!E34+'Plan Energi 2009'!E35+'Plan Energi 2009'!E40+'Plan Energi 2009'!E42+'Plan Energi 2009'!E44+'Plan Energi 2009'!E45+'Plan Energi 2009'!E46+'Plan Energi 2009'!E51+'Plan Energi 2009'!E53+'Plan Energi 2009'!E61+'Plan Energi 2009'!E63+'Plan Energi 2009'!E64+'Plan Energi 2009'!E65+'Plan Energi 2009'!E67)*-1 -> -345.51 | AN10: 0 | AO10: -3192.74826 | AP10: El og varmeproduktion | AQ10: ELOGVARME | AR10: TS | AT10: 2507.921996 | AU10: =AT10/AO10*-1 -> 0.7855057124 | AZ10: 0 | BI10: =BJ10+BK10+BN10+BO10+BP10 -> 0 | BK10: 0 | BR10: =SUM(BS10:CC10) -> 0 | CD10: ='Plan Energi 2009'!AD32+'Plan Energi 2009'!AD33+'Plan Energi 2009'!AD34+'Plan Energi 2009'!AD35+'Plan Energi 2009'!AD40+'Plan Energi 2009'!AD41+'Plan Energi 2009'!AD42+'Plan Energi 2009'!AD44+'Plan Energi 2009'!AD45+'Plan Energi 2009'!AD46+'Plan Energi 2009'!AD51+'Plan Energi 2009'!AD53+'Plan Energi 2009'!AD54+'Plan Energi 2009'!AD47+'Plan Energi 2009'!AD61+'Plan Energi 2009'!AD63+'Plan Energi 2009'!AD64+'Plan Energi 2009'!AD65+'Plan Energi 2009'!AD66+'Plan Energi 2009'!AD67+'Plan Energi 2009'!AD68 -> 705.9339295 | CE10: ='Plan Energi 2009'!AF32+'Plan Energi 2009'!AF33+'Plan Energi 2009'!AF34+'Plan Energi 2009'!AF35+'Plan Energi 2009'!AF40+'Plan Energi 2009'!AF42+'Plan Energi 2009'!AF44+'Plan Energi 2009'!AF45+'Plan Energi 2009'!AF46+'Plan Energi 2009'!AF51+'Plan Energi 2009'!AF53+'Plan Energi 2009'!AF61+'Plan Energi 2009'!AF63+'Plan Energi 2009'!AF64+'Plan Energi 2009'!AF65+'Plan Energi 2009'!AF67 -> 1801.988067 | CI10: =(AT10+AO10)*-1 -> 684.8262635 | CJ10: =-(C10*'Plan Energi 2009'!$I$89/1000+D10*'Plan Energi 2009'!$C$89/1000+E10*'Plan Energi 2009'!$W$89/1000+X10*'Plan Energi 2009'!$F$89/1000) -> 176.5920521
C11: =C12+C13 -> 0 | D11: 0 | E11: 0 | F11: 0 | G11: 0 | H11: 0 | I11: 0 | J11: 0 | K11: 0 | L11: 0 | M11: 0 | N11: 0 | O11: -14.16 | P11: 0 | Q11: -14.16 | R11: 0 | S11: -14.16 | T11: 0 | U11: 0 | V11: 0 | W11: 0 | X11: 0 | Y11: 0 | Z11: 0 | AA11: 0 | AB11: 0 | AC11: 0 | AD11: 0 | AE11: 0 | AF11: 0 | AG11: 0 | AH11: 0 | AI11: 0 | AJ11: 0 | AK11: 0 | AL11: 0 | AM11: 0 | AN11: 0 | AO11: -14.16 | AP11: Vindmøller | AQ11: VIND | AR11: TS | AT11: 14.08 | AW11: =AW12+AW13 -> 0 | AX11: 0 | AY11: 0 | AZ11: 0 | BA11: =BA12+BA13 -> 0 | BB11: 0 | BC11: 0 | BD11: 0 | BE11: 0 | BF11: 0 | BG11: 0 | BH11: 0 | BI11: 0 | BJ11: =BJ12+BJ13 -> 0 | BK11: 0 | BL11: =BL12+BL13 -> 0 | BM11: 0 | BN11: 0 | BO11: 0 | BP11: 0 | BQ11: 0 | BR11: 0 | BS11: =BS12+BS13 -> 0 | BT11: 0 | BU11: 0 | BV11: 0 | BW11: 0 | BX11: 0 | BY11: 0 | BZ11: 0 | CA11: 0 | CB11: 0 | CC11: 0 | CD11: =('Plan Energi 2009'!J27+'Plan Energi 2009'!J28) -> 14.08 | CE11: 0 | CF11: 0 | CG11: 0 | CH11: 0 | CI11: 0 | CJ11: 0
F12: 0 | O12: 0 | Q12: 0 | R12: =CD12*-1 -> 0 | X12: 0 | AN12: 0 | AO12: 0 | AP12: Kystvindmøller | AQ12: KYST | AR12: VIND | AT12: 0 | AZ12: 0 | BI12: =BJ12+BK12+BN12+BO12+BP12 -> 0 | BK12: 0 | BR12: =SUM(BS12:CC12) -> 0 | CD12: =Energi!B34*0.0000036 -> 0 | CI12: 0 | CJ12: =-(C12*'Plan Energi 2009'!$I$89/1000+D12*'Plan Energi 2009'!$C$89/1000+E12*'Plan Energi 2009'!$W$89/1000+X12*'Plan Energi 2009'!$F$89/1000) -> 0
F13: 0 | O13: -14.16 | Q13: -14.16 | S13: =CD13*-1 -> -14.16 | X13: 0 | AN13: 0 | AO13: -14.16 | AP13: Landvindmøller | AQ13: LAND | AR13: VIND | AT13: 14.16 | AZ13: 0 | BI13: =BJ13+BK13+BN13+BO13+BP13 -> 0 | BK13: 0 | BR13: =SUM(BS13:CC13) -> 0 | CD13: =Energi!B35*0.0000036 -> 14.16 | CI13: 0 | CJ13: =-(C13*'Plan Energi 2009'!$I$89/1000+D13*'Plan Energi 2009'!$C$89/1000+E13*'Plan Energi 2009'!$W$89/1000+X13*'Plan Energi 2009'!$F$89/1000) -> 0
F14: 0 | O14: 0 | P14: =CD14*-1 -> 0 | Q14: 0 | X14: 0 | AN14: 0 | AO14: 0 | AP14: Solceller | AQ14: SOLSTR | AR14: TS | AT14: 0 | AZ14: 0 | BI14: =BJ14+BK14+BN14+BO14+BP14 -> 0 | BK14: 0 | BR14: =SUM(BS14:CC14) -> 0 | CD14: ='Plan Energi 2009'!L26 -> 0 | CI14: 0 | CJ14: =-(C14*'Plan Energi 2009'!$I$89/1000+D14*'Plan Energi 2009'!$C$89/1000+E14*'Plan Energi 2009'!$W$89/1000+X14*'Plan Energi 2009'!$F$89/1000) -> 0
C15: =('Plan Energi 2009'!I36+'Plan Energi 2009'!I41+'Plan Energi 2009'!I47+'Plan Energi 2009'!I54+'Plan Energi 2009'!I56+'Plan Energi 2009'!I66)*-1 -> 0 | D15: =('Plan Energi 2009'!C36+'Plan Energi 2009'!C41+'Plan Energi 2009'!C47+'Plan Energi 2009'!C54+'Plan Energi 2009'!C56+'Plan Energi 2009'!C66)*-1 -> 0 | E15: =('Plan Energi 2009'!W36+'Plan Energi 2009'!W41+'Plan Energi 2009'!W47+'Plan Energi 2009'!W54+'Plan Energi 2009'!W56+'Plan Energi 2009'!W66)*-1 -> 0 | F15: 0 | G15: =('Plan Energi 2009'!Q36+'Plan Energi 2009'!Q41+'Plan Energi 2009'!Q47+'Plan Energi 2009'!Q54+'Plan Energi 2009'!Q56+'Plan Energi 2009'!Q66)*-1 -> 0 | H15: =('Plan Energi 2009'!R36+'Plan Energi 2009'!R41+'Plan Energi 2009'!R47+'Plan Energi 2009'!R54+'Plan Energi 2009'!R56+'Plan Energi 2009'!R66)*-1 -> 0 | J15: =('Plan Energi 2009'!S36+'Plan Energi 2009'!S41+'Plan Energi 2009'!S47+'Plan Energi 2009'!S54+'Plan Energi 2009'!S56+'Plan Energi 2009'!S66)*-1 -> 0 | L15: =('Plan Energi 2009'!O36+'Plan Energi 2009'!O41+'Plan Energi 2009'!O47+'Plan Energi 2009'!O54+'Plan Energi 2009'!O56+'Plan Energi 2009'!O66)*-1 -> 0 | N15: =('Plan Energi 2009'!T36+'Plan Energi 2009'!T41+'Plan Energi 2009'!T47+'Plan Energi 2009'!T54+'Plan Energi 2009'!T56+'Plan Energi 2009'!T66+'Plan Energi 2009'!U36+'Plan Energi 2009'!U41+'Plan Energi 2009'!U47+'Plan Energi 2009'!U54+'Plan Energi 2009'!U56+'Plan Energi 2009'!U66+'Plan Energi 2009'!V36+'Plan Energi 2009'!V41+'Plan Energi 2009'!V47+'Plan Energi 2009'!V54+'Plan Energi 2009'!V56+'Plan Energi 2009'!V66)*-1 -> 0 | O15: 0 | Q15: 0 | X15: 0 | AE15: =('Plan Energi 2009'!F36+'Plan Energi 2009'!F41+'Plan Energi 2009'!F47+'Plan Energi 2009'!F54+'Plan Energi 2009'!F56+'Plan Energi 2009'!F66)*-1 -> 0 | AF15: =('Plan Energi 2009'!D36+'Plan Energi 2009'!D41+'Plan Energi 2009'!D47+'Plan Energi 2009'!D54+'Plan Energi 2009'!D56+'Plan Energi 2009'!D66+'Plan Energi 2009'!E36+'Plan Energi 2009'!E41+'Plan Energi 2009'!E47+'Plan Energi 2009'!E54+'Plan Energi 2009'!E56+'Plan Energi 2009'!E66)*-1 -> 0 | AN15: 0 | AO15: 0 | AP15: Fjernvarmekedler | AQ15: KEDLER | AR15: TS | AT15: 0 | AZ15: 0 | BI15: 0 | BK15: 0 | BR15: 0 | CE15: ='Plan Energi 2009'!AF36+'Plan Energi 2009'!AF41+'Plan Energi 2009'!AF47+'Plan Energi 2009'!AF54+'Plan Energi 2009'!AF56+'Plan Energi 2009'!AF66 -> 0 | CI15: 0 | CJ15: =-(C15*'Plan Energi 2009'!$I$89/1000+D15*'Plan Energi 2009'!$C$89/1000+E15*'Plan Energi 2009'!$W$89/1000+X15*'Plan Energi 2009'!$F$89/1000) -> 0
F16: 0 | O16: 0 | P16: =('Plan Energi 2009'!L37+'Plan Energi 2009'!L38+'Plan Energi 2009'!L48+'Plan Energi 2009'!L49+'Plan Energi 2009'!L50+'Plan Energi 2009'!L57+'Plan Energi 2009'!L58+'Plan Energi 2009'!L59+'Plan Energi 2009'!L60+'Plan Energi 2009'!L68)*-1 -> 0 | Q16: 0 | U16: =('Plan Energi 2009'!M37+'Plan Energi 2009'!M38+'Plan Energi 2009'!M48+'Plan Energi 2009'!M49+'Plan Energi 2009'!M50+'Plan Energi 2009'!M57+'Plan Energi 2009'!M58+'Plan Energi 2009'!M59+'Plan Energi 2009'!M60+'Plan Energi 2009'!M68)*-1 -> 0 | V16: =('Plan Energi 2009'!N37+'Plan Energi 2009'!N38+'Plan Energi 2009'!N48+'Plan Energi 2009'!N49+'Plan Energi 2009'!N50+'Plan Energi 2009'!N57+'Plan Energi 2009'!N58+'Plan Energi 2009'!N59+'Plan Energi 2009'!N60+'Plan Energi 2009'!N68)*-1 -> 0 | X16: 0 | AJ16: =('Plan Energi 2009'!AD37+'Plan Energi 2009'!AD38+'Plan Energi 2009'!AD48+'Plan Energi 2009'!AD49+'Plan Energi 2009'!AD50+'Plan Energi 2009'!AD57+'Plan Energi 2009'!AD58+'Plan Energi 2009'!AD59+'Plan Energi 2009'!AD60+'Plan Energi 2009'!AD68) -> 0 | AL16: ='Plan Energi 2009'!AF68*-1 -> -406.7415 | AN16: 0 | AO16: -406.7415 | AP16: Anden varmeproduktion | AQ16: ANDENV | AR16: TS | AT16: 406.7415 | AU16: =AT16/AO16*-1 -> 1 | AZ16: 0 | BI16: 0 | BK16: 0 | BR16: 0 | CE16: ='Plan Energi 2009'!AF37+'Plan Energi 2009'!AF38+'Plan Energi 2009'!AF48+'Plan Energi 2009'!AF49+'Plan Energi 2009'!AF50+'Plan Energi 2009'!AF57+'Plan Energi 2009'!AF58+'Plan Energi 2009'!AF59+'Plan Energi 2009'!AF60+'Plan Energi 2009'!AF68 -> 406.7415 | CI16: 0 | CJ16: =-(C16*'Plan Energi 2009'!$I$89/1000+D16*'Plan Energi 2009'!$C$89/1000+E16*'Plan Energi 2009'!$W$89/1000+X16*'Plan Energi 2009'!$F$89/1000) -> 0
F17: 0 | O17: 0 | Q17: 0 | X17: 0 | AN17: 0 | AO17: 0 | AP17: Raffinaderi | AQ17: RAF | AR17: TS | AT17: 0 | AZ17: 0 | BI17: 0 | BK17: 0 | BR17: 0 | CI17: 0 | CJ17: =-(C17*'Plan Energi 2009'!$I$89/1000+D17*'Plan Energi 2009'!$C$89/1000+E17*'Plan Energi 2009'!$W$89/1000+X17*'Plan Energi 2009'!$F$89/1000) -> 0
F18: 0 | O18: 0 | Q18: 0 | X18: -2907.912384 | Y18: =BS18*-1 -> 0 | Z18: =BT18*-1 -> -22.2 | AA18: 0 | AB18: -657.85508 | AC18: 0 | AD18: -318.2 | AE18: -959.257304 | AF18: -950.4 | AG18: 0 | AH18: 0 | AI18: 0 | AJ18: =CD18*-1/'Plan Energi 2009'!D2*100 -> -1466.310519 | AK18: =CE18*('Plan Energi 2009'!AF39+'Plan Energi 2009'!AF43+'Plan Energi 2009'!AF52+'Plan Energi 2009'!AF55+'Plan Energi 2009'!AF62+'Plan Energi 2009'!AF71)/('Plan Energi 2009'!AG39+'Plan Energi 2009'!AG43+'Plan Energi 2009'!AG52+'Plan Energi 2009'!AG55+'Plan Energi 2009'!AG62+'Plan Energi 2009'!AG71) -> -2208.729567 | AN18: 0 | AO18: -6582.95247 | AP18: Transport af el, fjernvarme, mv. | AQ18: TRAS | AT18: 5972.321461 | AZ18: 0 | BI18: =BJ18+BK18+BN18+BO18+BP18 -> 0 | BK18: =BL18+BM18 -> 0 | BR18: =X20*-1 -> 2907.912384 | BS18: 0 | BT18: 22.2 | BU18: 0 | BV18: 657.85508 | BW18: 0 | BX18: 318.2 | BY18: 959.257304 | BZ18: 950.4 | CA18: 0 | CB18: 0 | CC18: 0 | CD18: 1359.269851 | CE18: 1705.139226 | CI18: 610.6310092
F19: 0 | O19: 0 | Q19: 0 | X19: 0 | AN19: 0 | AO19: 0 | AP19: Indgang ikke-nettilsluttet VE | AQ19: TLP2 | AT19: 3.306 | AZ19: 0 | BI19: =BJ19+BK19+BN19+BO19+BP19 -> 3.306 | BJ19: =P20*-1 -> 2.8 | BK19: =BL19+BM19 -> 0 | BL19: =R20*-1 -> 0 | BM19: =S20*-1 -> 0 | BN19: 0 | BO19: 0 | BP19: 0.506 | BR19: =SUM(BS19:CC19) -> 0 | CI19: 0
C20: =SUM(C21:C22,C32,C33,C34,C35,C36) -> -4770.88 | D20: 0 | E20: 0 | F20: -247.7 | G20: -33 | H20: -169 | I20: 0 | J20: -45.7 | K20: 0 | L20: 0 | M20: 0 | N20: 0 | O20: -3.306 | P20: -2.8 | Q20: 0 | R20: 0 | S20: 0 | T20: 0 | U20: 0 | V20: -0.506 | W20: -3.269376 | X20: -2907.912384 | Y20: 0 | Z20: -22.2 | AA20: 0 | AB20: -657.85508 | AC20: 0 | AD20: -318.2 | AE20: -959.257304 | AF20: -950.4 | AG20: 0 | AH20: 0 | AI20: 0 | AJ20: -1359.269851 | AK20: -1705.139226 | AL20: 0 | AM20: 0 | AN20: 0 | AO20: -10997.47684 | AP20: Afgang fra energisystemet | AQ20: A | AT20: 8761.066185 | AW20: =SUM(AW21:AW22,AW32,AW33,AW34,AW35,AW36) -> 0 | AX20: 0 | AY20: 0 | AZ20: 0 | BA20: 0 | BB20: 0 | BC20: 0 | BD20: 0 | BE20: 0 | BF20: 0 | BG20: 0 | BH20: 0 | BI20: 0 | BJ20: 0 | BK20: 0 | BL20: 0 | BM20: 0 | BN20: 0 | BO20: 0 | BP20: 0 | BQ20: 0 | BR20: 0 | BS20: 0 | BT20: 0 | BU20: 0 | BV20: 0 | BW20: 0 | BX20: 0 | BY20: 0 | BZ20: 0 | CA20: 0 | CB20: 0 | CC20: 0 | CD20: 0 | CE20: 0 | CF20: 0 | CG20: 8761.066185 | CH20: 0 | CI20: 2236.410652 | CJ20: 485.6467036
F21: 0 | O21: 0 | Q21: 0 | X21: 0 | AJ21: =IF(CD10+CD11+CD14+(1+Energi!B29/100)*(AJ22+AJ32+AJ33+AJ34+AJ35)>0,(CD10+CD11+CD14+(1+Energi!B29/100)*(AJ22+AJ32+AJ33+AJ34+AJ35))*-1,0) -> 0 | AN21: 0 | AO21: 0 | AP21: Netto eksport/lager | AQ21: AES | AR21: A | AT21: 0 | AZ21: 0 | BI21: =BJ21+BK21+BN21+BO21+BP21 -> 0 | BK21: =BL21+BM21 -> 0 | BR21: =SUM(BS21:CC21) -> 0 | CI21: 0 | CJ21: =AJ9*'Plan Energi 2009'!A89/1000 -> 0
C22: =C23+SUM(C28:C31) -> 0 | D22: =D23+SUM(D28:D31) -> 0 | E22: 0 | F22: 0 | G22: 0 | H22: 0 | I22: 0 | J22: 0 | K22: 0 | L22: 0 | M22: 0 | N22: 0 | O22: 0 | P22: 0 | Q22: 0 | R22: 0 | S22: 0 | T22: 0 | U22: 0 | V22: 0 | W22: -3.269376 | X22: -1949.152384 | Y22: 0 | Z22: -4.44 | AA22: 0 | AB22: -657.85508 | AC22: 0 | AD22: -318.2 | AE22: -959.257304 | AF22: -9.4 | AG22: 0 | AH22: 0 | AI22: 0 | AJ22: 0 | AK22: 0 | AL22: 0 | AM22: 0 | AN22: 0 | AO22: -1952.42176 | AP22: Transport | AQ22: AT | AR22: A | AT22: 522.429 | AU22: 0.3 | AW22: =AW23+SUM(AW28:AW31) -> 0 | AX22: 0 | AY22: 0 | AZ22: 0 | BA22: 0 | BB22: 0 | BC22: 0 | BD22: 0 | BE22: 0 | BF22: 0 | BG22: 0 | BH22: 0 | BI22: 0 | BJ22: 0 | BK22: 0 | BL22: 0 | BM22: 0 | BN22: 0 | BO22: 0 | BP22: 0 | BQ22: 0 | BR22: 0 | BS22: 0 | BT22: 0 | BU22: 0 | BV22: 0 | BW22: 0 | BX22: 0 | BY22: 0 | BZ22: 0 | CA22: 0 | CB22: 0 | CC22: 0 | CD22: 0 | CE22: 0 | CF22: 0 | CG22: 522.429 | CH22: 0 | CI22: 1429.99276 | CJ22: 144.2372764
C23: =SUM(C24:C27) -> 0 | D23: =SUM(D24:D27) -> 0 | E23: =SUM(E24:E27) -> 0 | F23: 0 | G23: =SUM(G24:G27) -> 0 | H23: 0 | I23: 0 | J23: 0 | K23: 0 | L23: 0 | M23: 0 | N23: 0 | O23: 0 | P23: =SUM(P24:P27) -> 0 | Q23: 0 | R23: =SUM(R24:R27) -> 0 | S23: 0 | T23: 0 | U23: 0 | V23: 0 | W23: -3.269376 | X23: -1493.470624 | Y23: =SUM(Y24:Y27) -> 0 | Z23: 0 | AA23: 0 | AB23: -657.05508 | AC23: 0 | AD23: 0 | AE23: -836.415544 | AF23: 0 | AG23: 0 | AH23: 0 | AI23: 0 | AJ23: 0 | AK23: 0 | AL23: 0 | AM23: 0 | AN23: 0 | AO23: -1496.74 | AP23: Vejtrafik | AQ23: ATV | AR23: AT | AT23: 373.5 | AU23: 0.3 | AW23: =SUM(AW24:AW27) -> 0 | AX23: =SUM(AX24:AX27) -> 0 | AY23: =SUM(AY24:AY27) -> 0 | AZ23: 0 | BA23: =SUM(BA24:BA27) -> 0 | BB23: 0 | BC23: 0 | BD23: 0 | BE23: 0 | BF23: 0 | BG23: 0 | BH23: 0 | BI23: =BJ23+BK23+BN23+BO23+BP23 -> 0 | BJ23: =SUM(BJ24:BJ27) -> 0 | BK23: =BL23+BM23 -> 0 | BL23: =SUM(BL24:BL27) -> 0 | BM23: 0 | BN23: 0 | BO23: 0 | BP23: 0 | BQ23: 0 | BR23: =SUM(BS23:CC23) -> 0 | BS23: =SUM(BS24:BS27) -> 0 | BT23: 0 | BU23: 0 | BV23: 0 | BW23: 0 | BX23: 0 | BY23: 0 | BZ23: 0 | CA23: 0 | CB23: 0 | CC23: 0 | CD23: 0 | CE23: 0 | CF23: 0 | CG23: 373.5 | CH23: 0 | CI23: 1123.24 | CJ23: 110.5168262
F24: 0 | O24: 0 | Q24: 0 | W24: =('Plan Energi 2009'!P72+'Plan Energi 2009'!P73)*-1 -> -2.257992 | X24: =SUM(Y24:AI24) -> -914.812008 | AB24: ='Plan Energi 2009'!H72*-1 -> -657.05508 | AE24: ='Plan Energi 2009'!F73*-1 -> -257.756928 | AN24: 0 | AO24: -917.07 | AP24: Personbil | AQ24: PERSON | AR24: ATV | AT24: 196.3225 | AU24: 0.3 | AZ24: 0 | BI24: =BJ24+BK24+BN24+BO24+BP24 -> 0 | BK24: =BL24+BM24 -> 0 | BR24: =SUM(BS24:CC24) -> 0 | CG24: ='Plan Energi 2009'!AQ72+'Plan Energi 2009'!AQ73 -> 196.3225 | CI24: 720.7475 | CJ24: =-(C24*'Plan Energi 2009'!$I$89/1000+D24*'Plan Energi 2009'!$C$89/1000+E24*'Plan Energi 2009'!$W$89/1000+X24*'Plan Energi 2009'!$F$89/1000) -> 67.69608859
F25: 0 | O25: 0 | Q25: 0 | W25: ='Plan Energi 2009'!P76*-1 -> -0.591824 | X25: =SUM(Y25:AI25) -> -369.298176 | AB25: 0 | AE25: ='Plan Energi 2009'!F76*-1 -> -369.298176 | AN25: 0 | AO25: -369.89 | AP25: Lastbil | AQ25: LAST | AR25: ATV | AT25: 122.0637 | AU25: 0.3 | AZ25: 0 | BI25: =BJ25+BK25+BN25+BO25+BP25 -> 0 | BK25: =BL25+BM25 -> 0 | BR25: =SUM(BS25:CC25) -> 0 | CG25: ='Plan Energi 2009'!AQ76 -> 122.0637 | CI25: 247.8263 | CJ25: =-(C25*'Plan Energi 2009'!$I$89/1000+D25*'Plan Energi 2009'!$C$89/1000+E25*'Plan Energi 2009'!$W$89/1000+X25*'Plan Energi 2009'!$F$89/1000) -> 27.32806502
F26: 0 | O26: 0 | Q26: 0 | W26: ='Plan Energi 2009'!P74*-1 -> -0.39502 | X26: -197.11498 | AB26: 0 | AE26: ='Plan Energi 2009'!F74*-1 -> -197.11498 | AN26: 0 | AO26: -197.51 | AP26: Varebil | AQ26: VARE | AR26: ATV | AT26: 49.3775 | AU26: 0.3 | AZ26: 0 | BI26: 0 | BK26: 0 | BR26: 0 | CG26: ='Plan Energi 2009'!AQ74 -> 49.3775 | CI26: 148.1325 | CJ26: =-(C26*'Plan Energi 2009'!$I$89/1000+D26*'Plan Energi 2009'!$C$89/1000+E26*'Plan Energi 2009'!$W$89/1000+X26*'Plan Energi 2009'!$F$89/1000) -> 14.58650852
F27: 0 | O27: 0 | Q27: 0 | W27: ='Plan Energi 2009'!P75*-1 -> -0.02454 | X27: -12.24546 | AB27: 0 | AE27: ='Plan Energi 2009'!F75*-1 -> -12.24546 | AN27: 0 | AO27: -12.27 | AP27: Bus | AQ27: BUS | AR27: ATV | AT27: 5.7363 | AU27: 0.3 | AZ27: 0 | BI27: 0 | BK27: 0 | BR27: 0 | CG27: ='Plan Energi 2009'!AQ75+'Plan Energi 2009'!AQ16 -> 5.7363 | CI27: 6.5337 | CJ27: =-(C27*'Plan Energi 2009'!$I$89/1000+D27*'Plan Energi 2009'!$C$89/1000+E27*'Plan Energi 2009'!$W$89/1000+X27*'Plan Energi 2009'!$F$89/1000) -> 0.90616404
C28: 0 | D28: 0 | E28: 0 | F28: 0 | G28: 0 | H28: 0 | I28: 0 | J28: 0 | K28: 0 | L28: 0 | M28: 0 | N28: 0 | O28: 0 | P28: 0 | Q28: 0 | R28: 0 | S28: 0 | T28: 0 | U28: 0 | V28: 0 | W28: 0 | X28: -28 | Y28: 0 | Z28: 0 | AA28: 0 | AB28: 0 | AC28: 0 | AD28: 0 | AE28: ='Plan Energi 2009'!F78*-1 -> -28 | AF28: 0 | AG28: 0 | AH28: 0 | AI28: 0 | AJ28: ='Plan Energi 2009'!AQ13*-1 -> 0 | AK28: 0 | AL28: 0 | AM28: 0 | AN28: 0 | AO28: -28 | AP28: Tog | AQ28: ATT | AR28: AT | AT28: 9.24 | AU28: 0.3 | AW28: 0 | AX28: 0 | AY28: 0 | AZ28: 0 | BA28: 0 | BB28: 0 | BC28: 0 | BD28: 0 | BE28: 0 | BF28: 0 | BG28: 0 | BH28: 0 | BI28: 0 | BJ28: 0 | BK28: 0 | BL28: 0 | BM28: 0 | BN28: 0 | BO28: 0 | BP28: 0 | BQ28: 0 | BR28: 0 | BS28: 0 | BT28: 0 | BU28: 0 | BV28: 0 | BW28: 0 | BX28: 0 | BY28: 0 | BZ28: 0 | CA28: 0 | CB28: 0 | CC28: 0 | CD28: 0 | CE28: 0 | CF28: 0 | CG28: ='Plan Energi 2009'!AQ78+'Plan Energi 2009'!AQ13 -> 9.24 | CH28: 0 | CI28: 18.76 | CJ28: =-(C28*'Plan Energi 2009'!$I$89/1000+D28*'Plan Energi 2009'!$C$89/1000+E28*'Plan Energi 2009'!$W$89/1000+X28*'Plan Energi 2009'!$F$89/1000) -> 2.072
C29: 0 | D29: 0 | E29: 0 | F29: 0 | G29: 0 | H29: 0 | I29: 0 | J29: 0 | K29: 0 | L29: 0 | M29: 0 | N29: 0 | O29: 0 | P29: 0 | Q29: 0 | R29: 0 | S29: 0 | T29: 0 | U29: 0 | V29: 0 | W29: 0 | X29: -319 | Y29: 0 | Z29: 0 | AA29: 0 | AB29: ='Plan Energi 2009'!H79*-1 -> -0.8 | AC29: 0 | AD29: ='Plan Energi 2009'!G79*-1 -> -318.2 | AE29: 0 | AF29: 0 | AG29: 0 | AH29: 0 | AI29: 0 | AJ29: 0 | AK29: 0 | AL29: 0 | AM29: 0 | AN29: 0 | AO29: -319 | AP29: Fly | AQ29: ATF | AR29: AT | AT29: 105.27 | AU29: 0.3 | AW29: 0 | AX29: 0 | AY29: 0 | AZ29: 0 | BA29: 0 | BB29: 0 | BC29: 0 | BD29: 0 | BE29: 0 | BF29: 0 | BG29: 0 | BH29: 0 | BI29: 0 | BJ29: 0 | BK29: 0 | BL29: 0 | BM29: 0 | BN29: 0 | BO29: 0 | BP29: 0 | BQ29: 0 | BR29: 0 | BS29: 0 | BT29: 0 | BU29: 0 | BV29: 0 | BW29: 0 | BX29: 0 | BY29: 0 | BZ29: 0 | CA29: 0 | CB29: 0 | CC29: 0 | CD29: 0 | CE29: 0 | CF29: 0 | CG29: ='Plan Energi 2009'!AQ79 -> 105.27 | CH29: 0 | CI29: 213.73 | CJ29: =-(C29*'Plan Energi 2009'!$I$89/1000+D29*'Plan Energi 2009'!$C$89/1000+E29*'Plan Energi 2009'!$W$89/1000+X29*'Plan Energi 2009'!$F$89/1000) -> 23.606
C30: 0 | D30: 0 | E30: 0 | F30: 0 | G30: 0 | H30: 0 | I30: 0 | J30: 0 | K30: 0 | L30: 0 | M30: 0 | N30: 0 | O30: 0 | P30: 0 | Q30: 0 | R30: 0 | S30: 0 | T30: 0 | U30: 0 | V30: 0 | W30: 0 | X30: -67.9 | Y30: 0 | Z30: 0 | AA30: 0 | AB30: 0 | AC30: 0 | AD30: 0 | AE30: ='Plan Energi 2009'!F80*-1 -> -58.5 | AF30: ='Plan Energi 2009'!D80*-1 -> -9.4 | AG30: 0 | AH30: 0 | AI30: 0 | AJ30: 0 | AK30: 0 | AL30: 0 | AM30: 0 | AN30: 0 | AO30: -67.9 | AP30: Færge | AQ30: ATFÆRGE | AR30: AT | AT30: 22.407 | AU30: 0.3 | AW30: 0 | AX30: 0 | AY30: 0 | AZ30: 0 | BA30: 0 | BB30: 0 | BC30: 0 | BD30: 0 | BE30: 0 | BF30: 0 | BG30: 0 | BH30: 0 | BI30: 0 | BJ30: 0 | BK30: 0 | BL30: 0 | BM30: 0 | BN30: 0 | BO30: 0 | BP30: 0 | BQ30: 0 | BR30: 0 | BS30: 0 | BT30: 0 | BU30: 0 | BV30: 0 | BW30: 0 | BX30: 0 | BY30: 0 | BZ30: 0 | CA30: 0 | CB30: 0 | CC30: 0 | CD30: 0 | CE30: 0 | CF30: 0 | CG30: ='Plan Energi 2009'!AQ80 -> 22.407 | CH30: 0 | CI30: 45.493 | CJ30: =-(C30*'Plan Energi 2009'!$I$89/1000+D30*'Plan Energi 2009'!$C$89/1000+E30*'Plan Energi 2009'!$W$89/1000+X30*'Plan Energi 2009'!$F$89/1000) -> 5.0246
C31: 0 | D31: 0 | E31: 0 | F31: 0 | G31: 0 | H31: 0 | I31: 0 | J31: 0 | K31: 0 | L31: 0 | M31: 0 | N31: 0 | O31: 0 | P31: 0 | Q31: 0 | R31: 0 | S31: 0 | T31: 0 | U31: 0 | V31: 0 | W31: 0 | X31: -40.78176 | Y31: 0 | Z31: ='Plan Energi 2009'!B16*'Plan Energi 2009'!AQ16/SUM('Plan Energi 2009'!AI16:AQ16)*-1 -> -4.44 | AA31: 0 | AB31: 0 | AC31: 0 | AD31: 0 | AE31: ='Plan Energi 2009'!F77*-1 -> -36.34176 | AF31: 0 | AG31: 0 | AH31: 0 | AI31: 0 | AJ31: 0 | AK31: 0 | AL31: 0 | AM31: 0 | AN31: 0 | AO31: -40.78176 | AP31: Non-Road (landbrug) | AQ31: ATNONR | AR31: AT | AT31: 12.012 | AU31: 0.3 | AW31: 0 | AX31: 0 | AY31: 0 | AZ31: 0 | BA31: 0 | BB31: 0 | BC31: 0 | BD31: 0 | BE31: 0 | BF31: 0 | BG31: 0 | BH31: 0 | BI31: 0 | BJ31: 0 | BK31: 0 | BL31: 0 | BM31: 0 | BN31: 0 | BO31: 0 | BP31: 0 | BQ31: 0 | BR31: 0 | BS31: 0 | BT31: 0 | BU31: 0 | BV31: 0 | BW31: 0 | BX31: 0 | BY31: 0 | BZ31: 0 | CA31: 0 | CB31: 0 | CC31: 0 | CD31: 0 | CE31: 0 | CF31: 0 | CG31: ='Plan Energi 2009'!AP77 -> 12.012 | CH31: 0 | CI31: 28.76976 | CJ31: =-(C31*'Plan Energi 2009'!$I$89/1000+D31*'Plan Energi 2009'!$C$89/1000+E31*'Plan Energi 2009'!$W$89/1000+X31*'Plan Energi 2009'!$F$89/1000) -> 3.01785024
C32: =SUM('Plan Energi 2009'!I17:I22)*-1 -> -0.63 | D32: =SUM('Plan Energi 2009'!C17:C22)*-1 -> 0 | E32: =SUM('Plan Energi 2009'!W17:W22)*-1 -> 0 | F32: -244 | G32: =SUM('Plan Energi 2009'!Q17:Q22)*-1 -> -33 | H32: =SUM('Plan Energi 2009'!R17:R22)*-1 -> -169 | I32: 0 | J32: =SUM('Plan Energi 2009'!S17:S22)*-1 -> -42 | K32: 0 | L32: =SUM('Plan Energi 2009'!O17:O22)*-1 -> 0 | M32: 0 | N32: =SUM('Plan Energi 2009'!T17:V22)*-1 -> 0 | O32: -3.306 | P32: =SUM('Plan Energi 2009'!L17:L22)*-1 -> -2.8 | Q32: =SUM('Plan Energi 2009'!J17:J22)*-1 -> 0 | R32: 0 | S32: 0 | T32: 0 | U32: =SUM('Plan Energi 2009'!M17:M22)*-1 -> 0 | V32: =('Plan Energi 2009'!N14+SUM('Plan Energi 2009'!N17:N22))*-1 -> -0.506 | W32: =SUM('Plan Energi 2009'!P17:P22)*-1 -> 0 | X32: -135.44 | Y32: 0 | Z32: ='Plan Energi 2009'!B16*'Plan Energi 2009'!AI16/SUM('Plan Energi 2009'!AI16:AQ16)*-1 -> -4.44 | AA32: 0 | AB32: =SUM('Plan Energi 2009'!H17:H22)*-1 -> 0 | AC32: 0 | AD32: =SUM('Plan Energi 2009'!G17:G22)*-1 -> 0 | AE32: =SUM('Plan Energi 2009'!F17:F22)*-1 -> 0 | AF32: =SUM('Plan Energi 2009'!D17:E22)*-1 -> -131 | AG32: 0 | AH32: 0 | AI32: 0 | AJ32: =('Plan Energi 2009'!AE14+'Plan Energi 2009'!AI8*'Plan Energi 2009'!AE8/'Plan Energi 2009'!AH8+'Plan Energi 2009'!AI9*'Plan Energi 2009'!AE9/'Plan Energi 2009'!AH9+'Plan Energi 2009'!AI10*'Plan Energi 2009'!AE10/'Plan Energi 2009'!AH10+'Plan Energi 2009'!AI11*'Plan Energi 2009'!AE11/'Plan Energi 2009'!AH11+'Plan Energi 2009'!AI12*'Plan Energi 2009'!AE12/'Plan Energi 2009'!AH12+'Plan Energi 2009'!AI13*'Plan Energi 2009'!AE13/'Plan Energi 2009'!AH13)*-1 -> -322.0606237 | AK32: =('Plan Energi 2009'!AI39+'Plan Energi 2009'!AI43+'Plan Energi 2009'!AI52+'Plan Energi 2009'!AI55+'Plan Energi 2009'!AI62+'Plan Energi 2009'!AI71)*-1 -> -1086.173687 | AL32: 0 | AM32: 0 | AN32: 0 | AO32: -1791.610311 | AP32: Husholdninger | AQ32: AH | AR32: A | AT32: 1637.465522 | AU32: =AT32/AO32*-1 -> 0.913962993 | AW32: 0 | AX32: 0 | AY32: 0 | AZ32: 0 | BA32: 0 | BB32: 0 | BC32: 0 | BD32: 0 | BE32: 0 | BF32: 0 | BG32: 0 | BH32: 0 | BI32: 0 | BJ32: 0 | BK32: 0 | BL32: 0 | BM32: 0 | BN32: 0 | BO32: 0 | BP32: 0 | BQ32: 0 | BR32: 0 | BS32: 0 | BT32: 0 | BU32: 0 | BV32: 0 | BW32: 0 | BX32: 0 | BY32: 0 | BZ32: 0 | CA32: 0 | CB32: 0 | CC32: 0 | CD32: 0 | CE32: 0 | CF32: 0 | CG32: ='Plan Energi 2009'!AI81 -> 1637.465522 | CH32: 0 | CI32: 154.1447887 | CJ32: =-(C32*'Plan Energi 2009'!$I$89/1000+D32*'Plan Energi 2009'!$C$89/1000+E32*'Plan Energi 2009'!$W$89/1000+X32*'Plan Energi 2009'!$F$89/1000) -> 10.0582747
C33: 0 | D33: 0 | E33: 0 | F33: 0 | G33: 0 | H33: 0 | I33: 0 | J33: 0 | K33: 0 | L33: 0 | M33: 0 | N33: 0 | O33: 0 | P33: 0 | Q33: 0 | R33: 0 | S33: 0 | T33: 0 | U33: 0 | V33: 0 | W33: 0 | X33: 0 | Y33: 0 | Z33: ='Plan Energi 2009'!B16*'Plan Energi 2009'!AJ16/SUM('Plan Energi 2009'!AI16:AQ16)*-1 -> 0 | AA33: 0 | AB33: 0 | AC33: 0 | AD33: 0 | AE33: 0 | AF33: 0 | AG33: 0 | AH33: 0 | AI33: 0 | AJ33: =('Plan Energi 2009'!AJ8*'Plan Energi 2009'!AE8/'Plan Energi 2009'!AH8+'Plan Energi 2009'!AJ9*'Plan Energi 2009'!AE9/'Plan Energi 2009'!AH9+'Plan Energi 2009'!AJ10*'Plan Energi 2009'!AE10/'Plan Energi 2009'!AH10+'Plan Energi 2009'!AJ11*'Plan Energi 2009'!AE11/'Plan Energi 2009'!AH11+'Plan Energi 2009'!AJ12*'Plan Energi 2009'!AE12/'Plan Energi 2009'!AH12+'Plan Energi 2009'!AJ13*'Plan Energi 2009'!AE13/'Plan Energi 2009'!AH13)*-1 -> -196.695378 | AK33: =('Plan Energi 2009'!AJ39+'Plan Energi 2009'!AJ43+'Plan Energi 2009'!AJ52+'Plan Energi 2009'!AJ55+'Plan Energi 2009'!AJ62+'Plan Energi 2009'!AJ71)*-1 -> -156.8728088 | AL33: 0 | AM33: 0 | AN33: 0 | AO33: -353.5681868 | AP33: Offentlig | AQ33: AO | AR33: A | AT33: 308.8241668 | AU33: =AT33/AO33*-1 -> 0.8734500965 | AW33: 0 | AX33: 0 | AY33: 0 | AZ33: 0 | BA33: 0 | BB33: 0 | BC33: 0 | BD33: 0 | BE33: 0 | BF33: 0 | BG33: 0 | BH33: 0 | BI33: 0 | BJ33: 0 | BK33: 0 | BL33: 0 | BM33: 0 | BN33: 0 | BO33: 0 | BP33: 0 | BQ33: 0 | BR33: 0 | BS33: 0 | BT33: 0 | BU33: 0 | BV33: 0 | BW33: 0 | BX33: 0 | BY33: 0 | BZ33: 0 | CA33: 0 | CB33: 0 | CC33: 0 | CD33: 0 | CE33: 0 | CF33: 0 | CG33: ='Plan Energi 2009'!AJ81 -> 308.8241668 | CH33: 0 | CI33: 44.74401992 | CJ33: =-(C33*'Plan Energi 2009'!$I$89/1000+D33*'Plan Energi 2009'!$C$89/1000+E33*'Plan Energi 2009'!$W$89/1000+X33*'Plan Energi 2009'!$F$89/1000) -> 0
C34: =SUM('Plan Energi 2009'!I23:I24)*-1 -> -271.13 | D34: =SUM('Plan Energi 2009'!C23:C24)*-1 -> 0 | E34: =SUM('Plan Energi 2009'!W23:W24)*-1 -> 0 | F34: 0 | G34: =SUM('Plan Energi 2009'!Q23:Q24)*-1 -> 0 | H34: =SUM('Plan Energi 2009'!R23:R24)*-1 -> 0 | I34: 0 | J34: =SUM('Plan Energi 2009'!S23:S24)*-1 -> 0 | K34: 0 | L34: 0 | M34: 0 | N34: =SUM('Plan Energi 2009'!T23:V24)*-1 -> 0 | O34: 0 | P34: =SUM('Plan Energi 2009'!L23:L24)*-1 -> 0 | Q34: 0 | R34: 0 | S34: 0 | T34: 0 | U34: =SUM('Plan Energi 2009'!M23:M24)*-1 -> 0 | V34: =SUM('Plan Energi 2009'!N23:N24)*-1 -> 0 | W34: =SUM('Plan Energi 2009'!P23:P24)*-1 -> 0 | X34: -29 | Y34: 0 | Z34: ='Plan Energi 2009'!B16*(SUM('Plan Energi 2009'!AK16:AM16,'Plan Energi 2009'!AO16:AP16))/SUM('Plan Energi 2009'!AI16:AQ16)*-1 -> 0 | AA34: 0 | AB34: =SUM('Plan Energi 2009'!H23:H24)*-1 -> 0 | AC34: 0 | AD34: =SUM('Plan Energi 2009'!G23:G24)*-1 -> 0 | AE34: =SUM('Plan Energi 2009'!F23:F24)*-1 -> 0 | AF34: =SUM('Plan Energi 2009'!D23:E24)*-1 -> -29 | AG34: 0 | AH34: 0 | AI34: 0 | AJ34: =(SUM('Plan Energi 2009'!AK8:AM8,'Plan Energi 2009'!AO8:AP8)*'Plan Energi 2009'!AE8/'Plan Energi 2009'!AH8+SUM('Plan Energi 2009'!AK9:AM9,'Plan Energi 2009'!AO9:AP9)*'Plan Energi 2009'!AE9/'Plan Energi 2009'!AH9+SUM('Plan Energi 2009'!AK10:AM10,'Plan Energi 2009'!AO10:AP10)*'Plan Energi 2009'!AE10/'Plan Energi 2009'!AH10+SUM('Plan Energi 2009'!AK11:AM11,'Plan Energi 2009'!AO11:AP11)*'Plan Energi 2009'!AE11/'Plan Energi 2009'!AH11+SUM('Plan Energi 2009'!AK12:AM12,'Plan Energi 2009'!AO12:AP12)*'Plan Energi 2009'!AE12/'Plan Energi 2009'!AH12+SUM('Plan Energi 2009'!AK13:AM13,'Plan Energi 2009'!AO13:AP13)*'Plan Energi 2009'!AE13/'Plan Energi 2009'!AH13+SUM('Plan Energi 2009'!AK69:AM69,'Plan Energi 2009'!AO69:AP69)*'Plan Energi 2009'!D2/100++'Plan Energi 2009'!AN8*'Plan Energi 2009'!AE8/'Plan Energi 2009'!AH8+'Plan Energi 2009'!AN9*'Plan Energi 2009'!AE9/'Plan Energi 2009'!AH9+'Plan Energi 2009'!AN10*'Plan Energi 2009'!AE10/'Plan Energi 2009'!AH10+'Plan Energi 2009'!AN11*'Plan Energi 2009'!AE11/'Plan Energi 2009'!AH11)*-1 -> -276.984716 | AK34: =(SUM('Plan Energi 2009'!AK70:AM70,'Plan Energi 2009'!AO70:AP70)+SUM('Plan Energi 2009'!AK39:AM39,'Plan Energi 2009'!AO39:AP39)+SUM('Plan Energi 2009'!AK43:AM43,'Plan Energi 2009'!AO43:AP43)+SUM('Plan Energi 2009'!AK52:AM52,'Plan Energi 2009'!AO52:AP52)+SUM('Plan Energi 2009'!AK55:AM55,'Plan Energi 2009'!AO55:AP55)+SUM('Plan Energi 2009'!AK62:AM62,'Plan Energi 2009'!AO62:AP62)+SUM('Plan Energi 2009'!AK71:AM71,'Plan Energi 2009'!AO71:AP71)+'Plan Energi 2009'!AN70+'Plan Energi 2009'!AN39+'Plan Energi 2009'!AN43+'Plan Energi 2009'!AN52+'Plan Energi 2009'!AN55+'Plan Energi 2009'!AN62+'Plan Energi 2009'!AN71)*-1 -> -462.0927302 | AL34: 0 | AM34: 0 | AN34: 0 | AO34: -1039.207446 | AP34: Erhverv | AQ34: AE | AR34: A | AT34: 893.6773069 | AU34: 0.8599604538 | AW34: 0 | AX34: 0 | AY34: 0 | AZ34: 0 | BA34: 0 | BB34: 0 | BC34: 0 | BD34: 0 | BE34: 0 | BF34: 0 | BG34: 0 | BH34: 0 | BI34: 0 | BJ34: 0 | BK34: 0 | BL34: 0 | BM34: 0 | BN34: 0 | BO34: 0 | BP34: 0 | BQ34: 0 | BR34: 0 | BS34: 0 | BT34: 0 | BU34: 0 | BV34: 0 | BW34: 0 | BX34: 0 | BY34: 0 | BZ34: 0 | CA34: 0 | CB34: 0 | CC34: 0 | CD34: 0 | CE34: 0 | CF34: 0 | CG34: =SUM('Plan Energi 2009'!AK8:AM80,'Plan Energi 2009'!AO8:AP80)+'Plan Energi 2009'!AN23+'Plan Energi 2009'!AN24 -> 893.6773069 | CH34: 0 | CI34: 145.5301392 | CJ34: =-(C34*'Plan Energi 2009'!$I$89/1000+D34*'Plan Energi 2009'!$C$89/1000+E34*'Plan Energi 2009'!$W$89/1000+X34*'Plan Energi 2009'!$F$89/1000) -> 17.5163597
C35: =SUM('Plan Energi 2009'!I25:I25)*-1 -> -4499.12 | D35: =SUM('Plan Energi 2009'!C25:C25)*-1 -> 0 | E35: =SUM('Plan Energi 2009'!W25:W25)*-1 -> 0 | F35: -3.7 | G35: =SUM('Plan Energi 2009'!Q25:Q25)*-1 -> 0 | H35: =SUM('Plan Energi 2009'!R25:R25)*-1 -> 0 | I35: 0 | J35: =SUM('Plan Energi 2009'!S25:S25)*-1 -> -3.7 | K35: 0 | L35: =SUM('Plan Energi 2009'!O23:O25)*-1 -> 0 | M35: 0 | N35: =SUM('Plan Energi 2009'!T25:V25)*-1 -> 0 | O35: 0 | P35: =SUM('Plan Energi 2009'!L25:L25)*-1 -> 0 | Q35: =SUM('Plan Energi 2009'!J23:J25)*-1 -> 0 | R35: 0 | S35: 0 | T35: 0 | U35: =SUM('Plan Energi 2009'!M25:M25)*-1 -> 0 | V35: =SUM('Plan Energi 2009'!N25:N25)*-1 -> 0 | W35: =SUM('Plan Energi 2009'!P25:P25)*-1 -> 0 | X35: -794.32 | Y35: 0 | Z35: ='Plan Energi 2009'!B16*'Plan Energi 2009'!AN16/SUM('Plan Energi 2009'!AI16:AQ16)*-1 -> -13.32 | AA35: 0 | AB35: =SUM('Plan Energi 2009'!H25:H25)*-1 -> 0 | AC35: 0 | AD35: =SUM('Plan Energi 2009'!G25:G25)*-1 -> 0 | AE35: =SUM('Plan Energi 2009'!F25:F25)*-1 -> 0 | AF35: =SUM('Plan Energi 2009'!D25:E25)*-1 -> -781 | AG35: 0 | AH35: 0 | AI35: 0 | AJ35: =('Plan Energi 2009'!AN12*'Plan Energi 2009'!AE12/'Plan Energi 2009'!AH12+'Plan Energi 2009'!AN13*'Plan Energi 2009'!AE13/'Plan Energi 2009'!AH13+'Plan Energi 2009'!AN69*'Plan Energi 2009'!D2/100)*-1 -> -563.5291333 | AK35: 0 | AL35: 0 | AM35: 0 | AN35: 0 | AO35: -5860.669133 | AP35: Tung proces | AQ35: AP | AR35: A | AT35: 5398.670189 | AU35: 0.9211695912 | AW35: 0 | AX35: 0 | AY35: 0 | AZ35: 0 | BA35: 0 | BB35: 0 | BC35: 0 | BD35: 0 | BE35: 0 | BF35: 0 | BG35: 0 | BH35: 0 | BI35: 0 | BJ35: 0 | BK35: 0 | BL35: 0 | BM35: 0 | BN35: 0 | BO35: 0 | BP35: 0 | BQ35: 0 | BR35: 0 | BS35: 0 | BT35: 0 | BU35: 0 | BV35: 0 | BW35: 0 | BX35: 0 | BY35: 0 | BZ35: 0 | CA35: 0 | CB35: 0 | CC35: 0 | CD35: 0 | CE35: 0 | CF35: 0 | CG35: =SUM('Plan Energi 2009'!AN8:AN80)-'Plan Energi 2009'!AN23-'Plan Energi 2009'!AN24 -> 5398.670189 | CH35: 0 | CI35: 461.9989439 | CJ35: =-(C35*'Plan Energi 2009'!$I$89/1000+D35*'Plan Energi 2009'!$C$89/1000+E35*'Plan Energi 2009'!$W$89/1000+X35*'Plan Energi 2009'!$F$89/1000) -> 313.8347928
F36: 0 | O36: 0 | Q36: 0 | X36: 0 | AN36: 0 | AO36: 0 | AP36: Ikke energiformål | AQ36: AIE | AR36: A | AU36: 0.9 | AZ36: 0 | BI36: 0 | BK36: 0 | BR36: 0 | CG36: =AO36*AU36*-1 -> 0 | CI36: 0
AP37: Energitjenester | AQ37: EN
C38: =C6+'Plan Energi 2009'!I81 -> 0 | D38: =D6+'Plan Energi 2009'!C81 -> 0 | E38: =E6+'Plan Energi 2009'!W81 -> 0 | G38: =G6+'Plan Energi 2009'!Q81 -> 0 | H38: =H6+'Plan Energi 2009'!R81 -> 0 | J38: =J6+'Plan Energi 2009'!S81 -> 0 | L38: =L6+'Plan Energi 2009'!O81 -> 0 | N38: =N6+'Plan Energi 2009'!T81+'Plan Energi 2009'!U81+'Plan Energi 2009'!V81 -> 0 | P38: =P8+P20+'Plan Energi 2009'!L81 -> 0 | Q38: =Q20+Q8+'Plan Energi 2009'!J81 -> -0.08 | U38: =U20+U8+'Plan Energi 2009'!M81 -> 0 | V38: =V20+V8+'Plan Energi 2009'!N81 -> 0 | W38: =W20+W8+'Plan Energi 2009'!P81 -> 0.05824 | Z38: =Z18+Z8+'Plan Energi 2009'!B81 -> 0 | AB38: =AB18+AB8+'Plan Energi 2009'!H81 -> 0 | AD38: =AD18+AD8+'Plan Energi 2009'!G81 -> 0 | AE38: =AE18+AE8+'Plan Energi 2009'!F81 -> 0 | AF38: =AF18+AF8+'Plan Energi 2009'!D81+'Plan Energi 2009'!E81 -> 0 | AJ38: =AJ9+'Plan Energi 2009'!A15 -> 682.2031045 | AK38: =AK18-('Plan Energi 2009'!AF32+'Plan Energi 2009'!AF39+'Plan Energi 2009'!AF43+'Plan Energi 2009'!AF52+'Plan Energi 2009'!AF55+'Plan Energi 2009'!AF62+'Plan Energi 2009'!AF71) -> 0
AJ39: =CD9-'Plan Energi 2009'!A15 -> 64.09348499

Sheet Plan Energi 2009 (hidden)
A1: Antal indbyggere: | D1: 49690 | Y1: Geografisk energibalance for
A2: Elnetvirkningsgrad: | D2: 92.7 | E2: %
A3: Enheder: | D3: TJ, tons | Y3: Fredericia Kommune 2008
A6: Brændsel | Y6: Anlægstype | Z6: Virkningsgrad | AD6: Elnet | AF6: Fjernvarmenet | AI6: Slutforbrug
A7: Elimport | B7: LPG og petroleum | C7: Kul | D7: Fuelolie | E7: Brændselsolie | F7: Dieselolie | G7: JP1 | H7: Benzin | I7: Naturgas | J7: Vindenergi | K7: Vandenergi | L7: Solenergi | M7: Geotermi | N7: Varmekilder til varmepumper | O7: Husdyrsgødning | P7: Biobrændstof og energiafgrøder | Q7: Halm | R7: Brænde og træflis | S7: Træpiller og træaffald | T7: Organisk affald, industri | U7: Organisk affald, husholdninger | V7: Deponi, slam, renseanlæg | W7: Affald, ikke bionedbrydeligt | X7: Faktisk energiforbrug | Z7: El | AA7: Proces | AB7: Varme | AC7: Fjernvarmenet | AD7: Ab værk | AE7: An forbruger | AF7: Ab værk | AG7: An forbruger | AH7: Samlet | AI7: Boliger og fritidshuse | AJ7: Offentlig service | AK7: Privat service | AL7: Detail- og engroshandel | AM7: Bygge- og anlægsvirksomhed | AN7: Fremstillingsvirksomhed | AO7: Gartneri | AP7: Landbrug | AQ7: Transport
X8: =SUM(A8:W8) -> 0 | Y8: Elkomfur | AA8: 44 | AD8: =-AE8/$D$2% -> -48.64990694 | AE8: =AH8/AA8% -> 45.09846373 | AH8: =SUM(AI8:AQ8) -> 19.84332404 | AI8: 19.84332404
X9: 0 | Y9: Elvandvarmer | AB9: 90 | AD9: -6.347526152 | AE9: =AH9/AB9% -> 5.884156743 | AH9: 5.295741069 | AI9: 5.295741069
X10: 0 | Y10: Elradiator | AB10: 100 | AD10: -26.93164667 | AE10: =AH10/AB10% -> 24.96563647 | AH10: 24.96563647 | AI10: 24.96563647
X11: 0 | Y11: Belysning | AA11: 50 | AD11: -196.0448632 | AE11: =AH11/AA11% -> 181.7335882 | AH11: 90.86679412 | AI11: 22.54923187 | AJ11: 26.55387603 | AK11: 14.18342985 | AL11: 13.2196959 | AM11: 0.342162036 | AN11: 12.40214738 | AO11: 0.10771218 | AP11: 1.50853887
X12: 0 | Y12: Elkompressorer | AA12: 150 | AD12: -161.0136032 | AE12: =AH12/AA12% -> 149.2596102 | AH12: 223.8894153 | AI12: 79.86792448 | AJ12: 0 | AK12: 47.6563243 | AL12: 44.41817822 | AM12: 1.368648144 | AN12: 49.60858954 | AO12: 0.064627308 | AP12: 0.905123322
X13: 0 | Y13: Elmotorer m.m. | AA13: 85 | AD13: -838.3461492 | AE13: =AH13/AA13% -> 777.1468804 | AH13: 660.5748483 | AI13: 125.3882771 | AJ13: 122.049482 | AK13: 45.3302418 | AL13: 42.2501481 | AM13: 8.337348277 | AN13: 302.1989913 | AO13: 1.001005193 | AP13: 14.01935457
N14: =AH14-AE14 -> 0.506 | X14: 0.506 | Y14: Varmepumper, individuel | AB14: 300 | AD14: -0.2729234088 | AE14: 0.253 | AH14: 0.759 | AI14: =AE14*AB14/100 -> 0.759
A15: =Z15%*AD15 -> 682.2031045 | X15: 682.2031045 | Y15: Elimport | Z15: 100 | AD15: =-SUM(AD16:AD80,AD8:AD14) -> 682.2031045 | AH15: =SUM(AI15:AQ15) -> 0
B16: 22.2 | X16: 22.2 | Y16: Gaskomfur, proces, m.m. | AB16: 38 | AH16: 8.436 | AI16: =X16*AB16/100*0.2 -> 1.6872 | AN16: =X16*AB16/100*0.6 -> 5.0616 | AQ16: =X16*AB16/100*0.2 -> 1.6872
E17: 131 | X17: 131 | Y17: Gasoliekedel, individuel | AB17: 80 | AH17: 104.8 | AI17: =X17*AB17/100 -> 104.8
I18: 0.63 | X18: 0.63 | Y18: Naturgaskedel, individuel | AB18: 85 | AH18: 0.5355 | AI18: 0.5355
S19: 42 | X19: 42 | Y19: Træpillekedel, individuel | AB19: 75 | AH19: 31.5 | AI19: 31.5
R20: 169 | X20: 169 | Y20: Brændekedel og -ovn, individuel | AB20: 65 | AH20: 109.85 | AI20: 109.85
Q21: 33 | X21: 33 | Y21: Halmfyr, individuel | AB21: 65 | AH21: 21.45 | AI21: 21.45
L22: 2.8 | X22: 2.8 | Y22: Solvarmeanlæg | AB22: 100 | AH22: 2.8 | AI22: 2.8
E23: 29 | X23: 29 | Y23: Gasoliekedel, erhverv | AA23: 90 | AH23: 26.1 | AN23: =X23*AA23/100 -> 26.1
I24: 271.13 | X24: 271.13 | Y24: Naturgaskedel, erhverv | AA24: 90 | AH24: 244.017 | AN24: =X24*AA24/100 -> 244.017
D25: 781 | I25: 4499.12 | S25: 3.7 | X25: 5283.82 | Y25: Industrikedel, erhverv | AA25: 90 | AH25: 4755.438 | AN25: =X25*AA25/100 -> 4755.438
X26: 0 | Y26: Solcelleanlæg | Z26: 100 | AD26: =X26*Z26/100 -> 0 | AH26: 0
J27: 14.08 | X27: 14.08 | Y27: Vindkraftanlæg, land | Z27: 100 | AD27: =Z27*X27/100 -> 14.08 | AH27: 0
X28: 0 | Y28: Vindkraftanlæg, kystnære (50 %) | Z28: 100 | AD28: =Z28*X28/100 -> 0 | AH28: 0
X29: 0 | Y29: Vandkraftanlæg | Z29: 100 | AD29: 64.09348499 | AH29: 0
X30: 0 | Y30: Bølgekraftanlæg | Z30: 100 | AD30: =Z30*X30/100 -> 0 | AH30: 0
I31: =-(O31+T31)*AA31% -> 0 | X31: 0 | Y31: Biogasanlæg, opgradering
X32: 0 | Y32: Biogasanlæg, motor | AD32: =X32*Z32/100 -> 0 | AF32: =X32*AB32/100 -> 0 | AH32: =SUM(AI32:AQ32) -> 0
X33: 0 | Y33: Centrale kraftværker, dampturbine | AD33: =X33*Z33/100 -> 0 | AF33: =X33*AB33/100 -> 0 | AH33: 0
X34: 0 | Y34: Centrale kraftværker, forbrændingsmotor | AD34: =X34*Z34/100 -> 0 | AF34: =X34*AB34 -> 0 | AH34: 0
X35: 0 | Y35: Centrale kraftværker, gasturbine | AD35: =X35*Z35/100 -> 0 | AF35: =X35*AB35 -> 0 | AH35: 0
X36: 0 | Y36: Centrale kraftværker, kedel | AF36: =X36*AB36/100 -> 0 | AH36: 0
N37: =AF37-AE37 -> 0 | X37: 0 | Y37: Centrale kraftværker, varmepumpe | AD37: =-AE37/$D$2% -> 0 | AF37: =AE37*AB37% -> 0
X38: 0 | Y38: Centrale kraftværker, elpatron | AD38: =-AE38/$D$2% -> 0 | AF38: =AE38*AB38% -> 0
X39: 0 | Y39: Centrale kraftværker, fjernvarmeproduktion | AC39: 77.2 | AF39: =-SUM(AF33:AF36) -> 0 | AG39: =-AF39*AC39/100 -> 0 | AH39: 0 | AI39: =AG39*63.5% -> 0 | AJ39: =AG39*9.3% -> 0 | AK39: =AG39*12.9% -> 0 | AL39: =AG39*7.1% -> 0 | AM39: =AG39*0% -> 0 | AN39: =AG39*5.2% -> 0 | AO39: =AG39*2% -> 0
X40: 0 | Y40: Affaldsforbrændingsanlæg, dampturbine | AD40: =X40*Z40/100 -> 0 | AF40: =X40*AB40/100 -> 0 | AH40: 0
X41: 0 | Y41: Affaldsforbrændingsanlæg, kedel | AD41: =X41*Z41/100 -> 0 | AF41: =X41*AB41/100 -> 0 | AH41: 0
X42: 0 | Y42: Affaldsforbrændingsanlæg, kombianlæg | AD42: =X42*Z42/100 -> 0 | AF42: =X42*AB42/100 -> 0 | AH42: 0
X43: 0 | Y43: Affaldsforbrændingsanlæg, fjernvarmeproduktion | AC43: 77.2 | AF43: =-SUM(AF40:AF42) -> 0 | AG43: =-AF43*AC43/100 -> 0 | AH43: 0 | AI43: =AG43*63.5% -> 0 | AJ43: =AG43*9.3% -> 0 | AK43: =AG43*12.9% -> 0 | AL43: =AG43*7.1% -> 0 | AM43: =AG43*0% -> 0 | AN43: =AG43*5.2% -> 0 | AO43: =AG43*2% -> 0
X44: 0 | Y44: Decentrale KV-værker, dampturbine | AD44: =X44*Z44/100 -> 0 | AF44: =X44*AB44/100 -> 0 | AH44: 0
X45: 0 | Y45: Decentrale KV-værker, forbrændingsmotor | AD45: =X45*Z45/100 -> 0 | AF45: 0 | AH45: 0
X46: 0 | Y46: Decentrale KV-værker, gasturbine | AD46: =X46*Z46/100 -> 0 | AF46: 0 | AH46: 0
X47: 0 | Y47: Decentrale KV-værker, kedel | AD47: =X47*Z47/100 -> 0 | AF47: 0 | AH47: 0
N48: =AH48-AE48 -> 0 | X48: 0 | Y48: Decentrale KV-værker, varmepumpe | AD48: =-AG48/$D$2% -> 0 | AF48: =X48*AB48/100 -> 0
X49: 0 | Y49: Decentrale KV-værker, elpatron | AD49: =-AG49/$D$2% -> 0 | AF49: =X49*AB49/100 -> 0
X50: 0 | Y50: Decentrale KV-værker, solvarme | AF50: 0 | AH50: 0
X51: 0 | Y51: Decentrale KV-værker, kombianlæg | AD51: =X51*Z51/100 -> 0 | AF51: 0 | AH51: 0
X52: 0 | Y52: Decentrale KV-værker, fjernvarmeproduktion | AC52: 77.2 | AF52: =-SUM(AF44:AF51) -> 0 | AG52: =-AF52*AC52/100 -> 0 | AH52: 0 | AI52: =AG52*63.5% -> 0 | AJ52: =AG52*9.3% -> 0 | AK52: =AG52*12.9% -> 0 | AL52: =AG52*7.1% -> 0 | AM52: =AG52*0% -> 0 | AN52: =AG52*5.2% -> 0 | AO52: =AG52*2% -> 0
V53: 9 | X53: 9 | Y53: Lokale KV-værker, motor | Z53: 25.8 | AA53: 37.2 | AD53: =X53*Z53/100 -> 2.322 | AH53: =SUM(AI53:AQ53) -> 3.348 | AJ53: =X53*AA53/100 -> 3.348
X54: 0 | Y54: Lokale KV-værker, kedel | AD54: =X54*Z54/100 -> 0 | AF54: =X54*AB54/100 -> 0 | AH54: 0
X55: 0 | Y55: Lokale KV-værker, fjernvarmeproduktion | AC55: 77.2 | AF55: =-SUM(AF53:AF54) -> 0 | AG55: =-AF55*AC55/100 -> 0 | AH55: 0 | AI55: =AG55*63.5% -> 0 | AJ55: =AG55*9.3% -> 0 | AK55: =AG55*12.9% -> 0 | AL55: =AG55*7.1% -> 0 | AM55: =AG55*0% -> 0 | AN55: =AG55*5.2% -> 0 | AO55: =AG55*2% -> 0
X56: 0 | Y56: Fjernvarmeværker, kedel | AF56: =X56*AB56/100 -> 0 | AH56: 0
N57: =AF57-AE57 -> 0 | X57: 0 | Y57: Fjernvarmeværker, varmepumpe | AD57: =-AG57/$D$2% -> 0 | AF57: =AE57*AB57% -> 0
X58: 0 | Y58: Fjernvarmeværker, elpatron | AF58: =X58*AB58/100 -> 0
X59: 0 | Y59: Fjernvarmeværker, geotermi | AF59: =X59*AB59/100 -> 0
X60: 0 | Y60: Fjernvarmeværker, sol | AF60: =X60*AB60/100 -> 0 | AH60: 0
E61: 345.51 | I61: 2402.5485 | R61: 4.917 | S61: 3.234 | U61: 229.6701 | V61: 9.933 | W61: 187.9119 | X61: 3183.7245 | Y61: Import fjernvarme | Z61: 22.1 | AB61: 56.6 | AD61: =X61*Z61% -> 703.6031145 | AF61: =X61*AB61% -> 1801.988067 | AH61: 0
X62: 0 | Y62: Fjernvarmeværker, fjernvarmeproduktion | AC62: 77.2 | AF62: =-SUM(AF56:AF61) -> -1801.988067 | AG62: =-AF62*AC62/100 -> 1391.134788 | AH62: 1391.134788 | AI62: =AG62*63.7% -> 886.1528598 | AJ62: =AG62*9.2% -> 127.9844005 | AK62: =AG62*13.2% -> 183.629792 | AL62: =AG62*7% -> 97.37943514 | AM62: =AG62*0% -> 0 | AN62: =AG62*5% -> 69.55673939 | AO62: =AG62*1.9% -> 26.43156097
X63: 0 | Y63: Industrielle KV-værker, dampturbine | Z63: 0 | AB63: 97.7 | AD63: =Z63/100*X63 -> 0 | AF63: =X63*AB63/100 -> 0 | AH63: 0
I64: 0.02376 | X64: 0.02376 | Y64: Industrielle KV-værker, forbrændingsmotor | Z64: 37.1 | AD64: 0.00881496 | AF64: =X64*AB64/100 -> 0 | AH64: 0
X65: 0 | Y65: Industrielle KV-værker, gasturbine | AD65: 0 | AF65: =X65*AB65/100 -> 0 | AH65: 0
X66: 0 | Y66: Industrielle KV-værker, kedel | AD66: 0 | AF66: =X66*AB66/100 -> 0 | AH66: 0
X67: 0 | Y67: Industrielle KV-værker, kombianlæg | AD67: 0 | AF67: =X67*AB67/100 -> 0 | AH67: 0
X68: 0 | Y68: Industrielle KV-værker, overskudsvarme | AD68: 0 | AF68: =(16.55+1216)*0.33 -> 406.7415 | AH68: 0
X69: 0 | Y69: Industrielle KV-værker, forbrug, eget forbrug, el | AD69: =-AE69 -> -188.7039 | AE69: =571.83*0.33 -> 188.7039 | AH69: 188.7039 | AN69: =AE69 -> 188.7039
X70: 0 | Y70: Industrielle KV-værker, forbrug, eget forbrug, varme | AH70: 0 | AN70: =-AF70 -> 0
X71: 0 | Y71: Industrielle KV-værker, fjernvarmeproduktion | AC71: 77.2 | AF71: =-SUM(AF63:AF70) -> -406.7415 | AG71: =-AF71*AC71/100 -> 314.004438 | AH71: 314.004438 | AI71: =AG71*63.7% -> 200.020827 | AJ71: =AG71*9.2% -> 28.8884083 | AK71: =AG71*13.2% -> 41.44858582 | AL71: =AG71*7% -> 21.98031066 | AM71: =AG71*0% -> 0 | AN71: =AG71*5% -> 15.7002219 | AO71: =AG71*1.9% -> 5.966084322
H72: 657.05508 | P72: 1.84492 | X72: =SUM(A72:W72) -> 658.9 | Y72: Benzinbiler | AA72: 20 | AH72: 131.78 | AQ72: =X72*AA72/100 -> 131.78
F73: 257.756928 | P73: 0.413072 | X73: =SUM(A73:W73) -> 258.17 | Y73: Dieselbiler | AA73: 25 | AH73: 64.5425 | AQ73: =X73*AA73/100 -> 64.5425
F74: =197.51*(1-0.2%) -> 197.11498 | P74: =197.51*0.2% -> 0.39502 | X74: =SUM(A74:W74) -> 197.51 | Y74: Varebiler | AA74: 25 | AH74: 49.3775 | AQ74: =X74*AA74/100 -> 49.3775
F75: =12.27*(1-0.2%) -> 12.24546 | P75: =12.27*0.2% -> 0.02454 | X75: =SUM(A75:W75) -> 12.27 | Y75: Busser | AA75: 33 | AH75: 4.0491 | AQ75: =X75*AA75/100 -> 4.0491
F76: =369.89*0.9984 -> 369.298176 | P76: =369.89*0.0016 -> 0.591824 | X76: 369.89 | Y76: Lastbiler m.m. | AA76: 33 | AH76: 122.0637 | AQ76: =X76*AA76/100 -> 122.0637
F77: =36.4*0.9984 -> 36.34176 | P77: =36.4*0.0016 -> 0.05824 | X77: 36.4 | Y77: Traktorer | AA77: 33 | AH77: 12.012 | AP77: =X77*AA77% -> 12.012
F78: 28 | X78: 28 | Y78: Tog | AA78: 33 | AD78: =-AE78/$D$2% -> 0 | AH78: 9.24 | AQ78: =X78*AA78/100+AE78*AA78% -> 9.24
G79: 318.2 | H79: 0.8 | X79: 319 | Y79: Fly | AA79: 33 | AH79: 105.27 | AQ79: =X79*AA79/100 -> 105.27
D80: 9.4 | F80: 58.5 | X80: 67.9 | Y80: Skibe | AA80: 33 | AH80: 22.407 | AQ80: =X80*AA80/100 -> 22.407
A81: =SUM(A8:A80) -> 682.2031045 | B81: 22.2 | C81: 0 | D81: 790.4 | E81: 505.51 | F81: 959.257304 | G81: 318.2 | H81: 657.85508 | I81: 7173.45226 | J81: 14.08 | K81: 0 | L81: 2.8 | M81: 0 | N81: 0.506 | O81: 0 | P81: 3.327616 | Q81: 33 | R81: 173.917 | S81: 48.934 | T81: 0 | U81: 229.6701 | V81: 18.933 | W81: 187.9119 | X81: =SUM(X8:X80) -> 11822.15736 | Y81: Samlet | AD81: =SUM(AD8:AD80) -> -1.705302566e-13 | AE81: 1373.045236 | AF81: 0 | AG81: 1705.139226 | AH81: 8749.054185 | AI81: 1637.465522 | AJ81: 308.8241668 | AK81: 332.2483737 | AL81: 219.247768 | AM81: 10.04815846 | AN81: 5668.787189 | AO81: 33.57098997 | AP81: 28.44501676 | AQ81: 510.417
A82: =A81*A89/1000 -> 143.2626519 | B82: =B81*B89/1000 -> 1.443 | C82: 0 | D82: 61.6512 | E82: 37.40774 | F82: 70.9850405 | G82: 22.9104 | H82: 48.02342084 | I82: 406.6630086 | J82: 0 | K82: 0 | L82: 0 | M82: 0 | N82: 0 | O82: 0 | P82: 0 | Q82: 0 | R82: 0 | S82: 0 | T82: 0 | U82: 0 | V82: 0 | W82: 14.82249067 | X82: =SUM(A82:W82) -> 807.1689526 | Y82: CO2-emissioner (1.000 tons) | Z82: =X82*1000/D1 -> 16.24409242 | AA82: tons/indbygger
O83: 229.6636516 | P83: 674.5806144 | Q83: 690.9963311 | R83: 438.6526335 | X83: =SUM(A83:W83) -> 2033.893231 | Y83: Lokalt biomassepotentiale | Z83: =(SUM(J14:V14)+AD15*A87%+SUM(J19:V19)+SUM(J20:V20)+SUM(J21:V21)+SUM(J22:V22)+SUM(J25:V25)+SUM(J72:V72)+SUM(J73:V73)+SUM(J74:V74)+SUM(J75:V75)+SUM(J76:V76)+SUM(J77:V77)+SUM(J78:V78)+SUM(J79:V79)+SUM(J80:V80)+SUM(J26:V26)*(Z26%+AB26%)+SUM(J27:V27)*(Z27%+AB27%)+SUM(J28:V28)*(Z28%+AB28%)+SUM(J29:V29)*(Z29%+AB29%)+SUM(J30:V30)*(Z30%+AB30%)+SUM(J32:V32)*(Z32%+AA32%+AB32%)+SUM(J31:V31)*(AA31%)+SUM(J33:V33)*(Z33%+AB33%)+SUM(J34:V34)*(Z34%+AB34%)+SUM(J35:V35)*(Z35%+AB35%)+SUM(J36:V36)*(Z36%+AB36%)+SUM(J37:V37)*(Z37%+AB37%)+SUM(J40:V40)*(Z40%+AB40%)+SUM(J41:V41)*(Z41%+AB41%)+SUM(J42:V42)*(Z42%+AB42%)+SUM(J44:V44)*(Z44%+AB44%)+SUM(J45:V45)*(Z45%+AB45%)+SUM(J46:V46)*(Z46%+AB46%)+SUM(J47:V47)*(Z47%+AB47%)+SUM(J48:V48)*(Z48%+AB48%)+SUM(J50:V50)*(Z50%+AB50%)+SUM(J51:V51)*(Z51%+AB51%)+SUM(J53:V53)*(Z53%+AA53%+AB53%)+SUM(J54:V54)*(Z54%+AA54%+AB54%)+SUM(J56:V56)*(Z56%+AB56%)+SUM(J57:V57)*(Z57%+AB57%)+SUM(J59:V59)*(Z59%+AB59%)+SUM(J60:V60)*(Z60%+AB60%)+SUM(J61:V61)*(Z61%+AB61%)+SUM(J63:V63)*(Z63%+AB63%)+SUM(J64:V64)*(Z64%+AB64%)+SUM(J65:V65)*(Z65%+AB65%)+SUM(J66:V66)*(Z66%+AB66%)+SUM(J67:V67)*(Z67%+AB67%)+SUM(J68:V68)*(Z68%+AB68%))/(SUM(X8:X14)+SUM(X16:X25)+SUM(X72:X80)+(AG39/AC39%+AG43/AC43%+AG52/AC52%+AG55/AC55%+AG62/AC62%+AG71/AC71%)+AE81+SUM(AE8:AE14)*(1-D2%)+(-AF70))*100 -> 4.866452194 | AA83: % VE (Global)
O84: 0 | P84: 0.4310909531 | Q84: 4.775712767 | R84: 39.64800088 | X84: =SUMIF(J83:W83,">0",J81:W81)/SUM(J83:W83)% -> 10.33705274 | Y84: Udnyttelsesprocent af lokalt biomassepotentiale
A86: %) | B86: =B7 -> LPG og petroleum | C86: Kul | D86: Fuelolie | E86: Brændselsolie | F86: Dieselolie | G86: JP1 | H86: Benzin | I86: Naturgas | J86: Vindenergi | K86: Vandenergi | L86: Solenergi | M86: Geotermi | N86: Varmekilder til varmepumper | O86: Husdyrsgødning | P86: Biobrændstof og energiafgrøder | Q86: Halm | R86: Brænde og træflis | S86: Træpiller og træaffald | T86: Organisk affald, industri | U86: Organisk affald, husholdninger | V86: Deponi, slam, renseanlæg | W86: Affald, ikke bionedbrydeligt
A87: 14
A88: Elimport (heraf VE-andel:
A89: 210 | B89: 65 | C89: 95 | D89: 78 | E89: 74 | F89: 74 | G89: 72 | H89: 73 | I89: 56.69 | W89: 78.88 | X89: CO2-emission (tons/TJ)

Sheet e2g-format 2011 (hidden)
B1: Forbrug | C1: Naturgas | D1: Kul | E1: Affald (ikke-bionedbrydeligt) | F1: Biobrændsler | G1: Halm | H1: Skovflis | I1: Brænde | J1: Træpiller | K1: Træaffald | L1: Biogas | M1: Biomasse | N1: Affald (bionedbrydeligt) | O1: Ikke-brændsel VE | P1: Sol | Q1: Vind | R1: Havvind | S1: Landvind | T1: Vand | U1: Geotermisk | V1: Varmepumpe - omgivelsesvarme | W1: Bioolie, biodiesel og bioethanol | X1: Olieprodukter | Y1: Raffinaderigas | Z1: LPG | AA1: Flybenzin | AB1: Benzin | AC1: Petroleum / Kerosen | AD1: JP1 | AE1: Gasolie/Dieselolie | AF1: Fuelolie | AG1: Spildolie | AH1: Petrokoks | AI1: Terpentin, smøreolie og bitumen | AJ1: El | AK1: Fjernvarme | AL1: Overskudsvarme | AM1: Energitjenester | AN1: Total energiforbrug | AO1: Brutto brændsel | AP1: =Andet!B4 -> Fredericia | AS1: Faktor | AT1: Brutto produktion | AU1: Virkningsgrad | AV1: Produktion | AW1: Naturgas | AX1: Kul | AY1: Affald (ikke-bionedbrydeligt) | AZ1: Biobrændsler | BA1: Halm | BB1: Skovflis | BC1: Brænde | BD1: Træpiller | BE1: Træaffald | BF1: Biogas | BG1: Biomasse | BH1: Affald (bionedbrydeligt) | BI1: Ikke-brændsel VE | BJ1: Sol | BK1: Vind | BL1: Havvind | BM1: Landvind | BN1: Vand | BO1: Geotermisk | BP1: Varmepumpe - omgivelsesvarme | BQ1: Bioolie, biodiesel og bioethanol | BR1: Olieprodukter | BS1: Raffinaderigas | BT1: LPG | BU1: Flybenzin | BV1: Benzin | BW1: Petroleum / Kerosen | BX1: JP1 | BY1: Gasolie/Dieselolie | BZ1: Fuelolie | CA1: Spildolie | CB1: Petrokoks | CC1: Terpentin, smøreolie og bitumen | CD1: El | CE1: Fjernvarme | CF1: Nyttiggjort overskudsvarme | CG1: Energitjenester | CH1: Total energiforbrug | CI1: Tab | CJ1: CO2-udledning
A2: ID | B2: F | C2: FN | D2: FK | E2: FMA | F2: FVB | G2: FB1 | H2: FB2 | I2: FB3 | J2: FB4 | K2: FB5 | L2: FB6 | M2: FB7 | N2: FB8 | O2: FLVE | P2: FLVE1 | Q2: FLVE2 | R2: FLVE21 | S2: FLVE22 | T2: FLVE3 | U2: FLVE4 | V2: FLVE5 | W2: FS | X2: FOO | Y2: FO1 | Z2: FO2 | AA2: FO3 | AB2: FO4 | AC2: FO5 | AD2: FO6 | AE2: FO7 | AF2: FO8 | AG2: FO9 | AH2: FOO1 | AI2: FOO2 | AJ2: FE | AK2: FF | AL2: FOV | AM2: FWEN | AN2: FTOTAL | AO2: fbrbr | AQ2: ID | AR2: ID Parent | AS2: factor | AT2: pbrpr | AU2: pvrkg | AV2: P | AW2: PN | AX2: PK | AY2: PMA | AZ2: PVB | BA2: PB1 | BB2: PB2 | BC2: PB3 | BD2: PB4 | BE2: PB5 | BF2: PB6 | BG2: PB7 | BH2: PB8 | BI2: PLVE | BJ2: PLVE1 | BK2: PLVE2 | BL2: PLVE21 | BM2: PLVE22 | BN2: PLVE3 | BO2: PLVE4 | BP2: PLVE5 | BQ2: PS | BR2: POO | BS2: PO1 | BT2: PO2 | BU2: PO3 | BV2: PO4 | BW2: PO5 | BX2: PO6 | BY2: PO7 | BZ2: PO8 | CA2: PO9 | CB2: POO1 | CC2: POO2 | CD2: PE | CE2: PF | CF2: POV | CG2: PWEN | CH2: PTOTAL | CI2: PTAB | CJ2: PCO2
A3: ID Parent | C3: F | D3: F | E3: F | F3: F | G3: FVB | H3: FVB | I3: FVB | J3: FVB | K3: FVB | L3: FVB | M3: FVB | N3: FVB | O3: F | P3: FLVE | Q3: FLVE | R3: FLVE2 | S3: FLVE2 | T3: FLVE | U3: FLVE | V3: FLVE | W3: F | X3: F | Y3: FOO | Z3: FOO | AA3: FOO | AB3: FOO | AC3: FOO | AD3: FOO | AE3: FOO | AF3: FOO | AG3: FOO | AH3: FOO | AI3: FOO | AJ3: F | AK3: F | AL3: F | AM3: F | AN3: F | AP3: Structures | AW3: P | AX3: P | AY3: P | AZ3: P | BA3: PVB | BB3: PVB | BC3: PVB | BD3: PVB | BE3: PVB | BF3: PVB | BG3: PVB | BH3: PVB | BI3: P | BJ3: PLVE | BK3: PLVE | BL3: PLVE2 | BM3: PLVE2 | BN3: PLVE | BO3: PLVE | BP3: PLVE | BQ3: P | BR3: P | BS3: POO | BT3: POO | BU3: POO | BV3: POO | BW3: POO | BX3: POO | BY3: POO | BZ3: POO | CA3: POO | CB3: POO | CC3: POO | CD3: P | CE3: P | CF3: P | CG3: P | CH3: P
AV4: =B4 -> 0 | AZ4: =F4 -> 0 | BI4: =O4 -> 0 | BK4: =Q4 -> 0 | BR4: =X4 -> 0 | CI4: =B4 -> 0
F5: =SUM(G5:N5) -> 0 | O5: =P5+Q5+T5+U5+V5 -> 0 | Q5: =R5+S5 -> 0 | X5: =SUM(Y5:AI5) -> 0 | AN5: 0 | AO5: =SUM(C5:F5,O5,W5,X5,AJ5:AL5) -> 0 | AP5: Indgang for brændsler (bio, kul mv.) | AQ5: TP | AT5: =SUM(AW5:AZ5,BI5,BQ5,BR5,CD5:CG5) -> 8463.34464 | AW5: =-C6 -> 7659.02464 | AX5: 0 | AY5: 205.4601 | AZ5: 598.8599 | BA5: 29.672 | BB5: 184.386 | BC5: 0 | BD5: 121.478 | BE5: 0 | BF5: 0 | BG5: 0 | BH5: 263.3239 | BI5: =BJ5+BK5+BN5+BO5+BP5 -> 0 | BK5: =BL5+BM5 -> 0 | BR5: =SUM(BS5:CC5) -> 0
C6: =-AW6 -> -7659.02464 | D6: =-AX6 -> 0 | E6: -205.4601 | F6: -598.8599 | G6: -29.672 | H6: -184.386 | I6: 0 | J6: -121.478 | K6: 0 | L6: 0 | M6: 0 | N6: -263.3239 | O6: 0 | Q6: 0 | X6: 0 | AN6: 0 | AO6: -8463.34464 | AP6: Transport af brændsler | AQ6: TRAP | AT6: 8463.34464 | AW6: =-1*(C8+C20) -> 7659.02464 | AX6: 0 | AY6: 205.4601 | AZ6: 598.8599 | BA6: 29.672 | BB6: 184.386 | BC6: 0 | BD6: 121.478 | BE6: 0 | BF6: 0 | BG6: 0 | BH6: 263.3239 | BI6: =BJ6+BK6+BN6+BO6+BP6 -> 0 | BK6: 0 | BR6: =SUM(BS6:CC6) -> 0
F7: 0 | O7: 0 | Q7: 0 | X7: 0 | AN7: 0 | AO7: 0 | AP7: Indgang nettilsluttet VE | AQ7: TLP1 | AT7: 14.26 | AZ7: =SUM(BA7:BH7) -> 0 | BI7: =BJ7+BK7+BN7+BO7+BP7 -> 14.26 | BJ7: =P8*-1 -> 0.1 | BK7: 14.16 | BL7: =R8*-1 -> 0 | BM7: =S8*-1 -> 14.16 | BR7: =SUM(BS7:CC7) -> 0
C8: =SUM(C9:C11,C14:C17) -> -2972.08564 | D8: 0 | E8: -205.4601 | F8: -348.1599 | G8: -2.672 | H8: -26.386 | I8: 0 | J8: -55.778 | K8: 0 | L8: 0 | M8: 0 | N8: -263.3239 | O8: -14.26 | P8: -0.1 | Q8: -14.16 | R8: 0 | S8: -14.16 | T8: 0 | U8: 0 | V8: 0 | W8: 0 | X8: -48.096 | Y8: 0 | Z8: 0 | AA8: 0 | AB8: 0 | AC8: 0 | AD8: 0 | AE8: 0 | AF8: -48.096 | AG8: 0 | AH8: 0 | AI8: 0 | AJ8: 0 | AK8: 0 | AL8: -354.49515 | AM8: =SUM(AM9:AM11,AM14:AM17) -> 0 | AN8: 0 | AO8: -3942.55679 | AP8: Indgang el, varme og olieprodukter | AQ8: TS | AT8: 6082.339906 | AW8: =SUM(AW9:AW11,AW14:AW17) -> 0 | AX8: 0 | AY8: 0 | AZ8: 0 | BA8: 0 | BB8: 0 | BC8: 0 | BD8: 0 | BE8: 0 | BF8: 0 | BG8: 0 | BH8: 0 | BI8: =BJ8+BK8+BN8+BO8+BP8 -> 0 | BJ8: 0 | BK8: 0 | BL8: 0 | BM8: 0 | BN8: 0 | BO8: 0 | BP8: 0 | BQ8: 0 | BR8: 2541.874893 | BS8: 0 | BT8: 0 | BU8: 0 | BV8: 560.783316 | BW8: 0 | BX8: 344 | BY8: 970.191577 | BZ8: 0 | CA8: 0 | CB8: 0 | CC8: 0 | CD8: 1278.907986 | CE8: 2261.557027 | CF8: 0 | CG8: 0 | CH8: 0 | CI8: 847.676787 | CJ8: 268.0067462
F9: 0 | O9: 0 | Q9: 0 | X9: 0 | AN9: 0 | AO9: 0 | AP9: Netto import/lager | AQ9: IMP | AR9: TS | AT9: 2986.391903 | AZ9: 0 | BI9: =BJ9+BK9+BN9+BO9+BP9 -> 0 | BK9: 0 | BR9: =IF(BR17+X18<0,(BR17+X18)*-1,0) -> 2541.874893 | BV9: =IF(BV17+AB18<0,(BV17+AB18)*-1) -> 560.783316 | BX9: =IF(BX17+AD18<0,(BX17+AD18)*-1) -> 344 | BY9: =IF(BY17+AE20<0,(BY17+AE20)*-1,0) -> 970.191577 | CD9: =IF(CD10+CD11+CD14+AJ18<0,(CD10+CD11+CD14+AJ18)*-1,0) -> 444.5170105 | CJ9: =CD9*'Plan Energi 2011'!A89/1000 -> 78.23499385
C10: =('Plan Energi 2011'!I32+'Plan Energi 2011'!I33+'Plan Energi 2011'!I34+'Plan Energi 2011'!I35+'Plan Energi 2011'!I40+'Plan Energi 2011'!I42+'Plan Energi 2011'!I44+'Plan Energi 2011'!I45+'Plan Energi 2011'!I46+'Plan Energi 2011'!I51+'Plan Energi 2011'!I53+'Plan Energi 2011'!I61+'Plan Energi 2011'!I63+'Plan Energi 2011'!I64+'Plan Energi 2011'!I65+'Plan Energi 2011'!I67)*-1 -> -2972.08564 | D10: =('Plan Energi 2011'!C32+'Plan Energi 2011'!C33+'Plan Energi 2011'!C34+'Plan Energi 2011'!C35+'Plan Energi 2011'!C40+'Plan Energi 2011'!C42+'Plan Energi 2011'!C44+'Plan Energi 2011'!C45+'Plan Energi 2011'!C46+'Plan Energi 2011'!C51+'Plan Energi 2011'!C53+'Plan Energi 2011'!C61+'Plan Energi 2011'!C63+'Plan Energi 2011'!C64+'Plan Energi 2011'!C65+'Plan Energi 2011'!C67)*-1 -> 0 | E10: =('Plan Energi 2011'!W32+'Plan Energi 2011'!W33+'Plan Energi 2011'!W34+'Plan Energi 2011'!W35+'Plan Energi 2011'!W40+'Plan Energi 2011'!W42+'Plan Energi 2011'!W44+'Plan Energi 2011'!W45+'Plan Energi 2011'!W46+'Plan Energi 2011'!W51+'Plan Energi 2011'!W53+'Plan Energi 2011'!W61+'Plan Energi 2011'!W63+'Plan Energi 2011'!W64+'Plan Energi 2011'!W65+'Plan Energi 2011'!W67)*-1 -> -205.4601 | F10: -348.1599 | G10: =('Plan Energi 2011'!Q32+'Plan Energi 2011'!Q33+'Plan Energi 2011'!Q34+'Plan Energi 2011'!Q35+'Plan Energi 2011'!Q40+'Plan Energi 2011'!Q42+'Plan Energi 2011'!Q44+'Plan Energi 2011'!Q45+'Plan Energi 2011'!Q46+'Plan Energi 2011'!Q51+'Plan Energi 2011'!Q53+'Plan Energi 2011'!Q61+'Plan Energi 2011'!Q63+'Plan Energi 2011'!Q64+'Plan Energi 2011'!Q65+'Plan Energi 2011'!Q67)*-1 -> -2.672 | H10: =('Plan Energi 2011'!R32+'Plan Energi 2011'!R33+'Plan Energi 2011'!R34+'Plan Energi 2011'!R35+'Plan Energi 2011'!R40+'Plan Energi 2011'!R42+'Plan Energi 2011'!R44+'Plan Energi 2011'!R45+'Plan Energi 2011'!R46+'Plan Energi 2011'!R51+'Plan Energi 2011'!R53+'Plan Energi 2011'!R61+'Plan Energi 2011'!R63+'Plan Energi 2011'!R64+'Plan Energi 2011'!R65+'Plan Energi 2011'!R67)*-1 -> -26.386 | J10: =('Plan Energi 2011'!S32+'Plan Energi 2011'!S33+'Plan Energi 2011'!S34+'Plan Energi 2011'!S35+'Plan Energi 2011'!S40+'Plan Energi 2011'!S42+'Plan Energi 2011'!S44+'Plan Energi 2011'!S45+'Plan Energi 2011'!S46+'Plan Energi 2011'!S51+'Plan Energi 2011'!S53+'Plan Energi 2011'!S61+'Plan Energi 2011'!S63+'Plan Energi 2011'!S64+'Plan Energi 2011'!S65+'Plan Energi 2011'!S67)*-1 -> -55.778 | L10: =('Plan Energi 2011'!O32+'Plan Energi 2011'!O33+'Plan Energi 2011'!O34+'Plan Energi 2011'!O35+'Plan Energi 2011'!O40+'Plan Energi 2011'!O42+'Plan Energi 2011'!O44+'Plan Energi 2011'!O45+'Plan Energi 2011'!O46+'Plan Energi 2011'!O51+'Plan Energi 2011'!O53+'Plan Energi 2011'!O61+'Plan Energi 2011'!O63+'Plan Energi 2011'!O64+'Plan Energi 2011'!O65+'Plan Energi 2011'!O67)*-1 -> 0 | N10: =('Plan Energi 2011'!T32+'Plan Energi 2011'!T33+'Plan Energi 2011'!T34+'Plan Energi 2011'!T35+'Plan Energi 2011'!T40+'Plan Energi 2011'!T42+'Plan Energi 2011'!T44+'Plan Energi 2011'!T45+'Plan Energi 2011'!T46+'Plan Energi 2011'!T51+'Plan Energi 2011'!T53+'Plan Energi 2011'!T61+'Plan Energi 2011'!T63+'Plan Energi 2011'!T64+'Plan Energi 2011'!T65+'Plan Energi 2011'!T67+'Plan Energi 2011'!U32+'Plan Energi 2011'!U33+'Plan Energi 2011'!U34+'Plan Energi 2011'!U35+'Plan Energi 2011'!U40+'Plan Energi 2011'!U42+'Plan Energi 2011'!U44+'Plan Energi 2011'!U45+'Plan Energi 2011'!U46+'Plan Energi 2011'!U51+'Plan Energi 2011'!U53+'Plan Energi 2011'!U61+'Plan Energi 2011'!U63+'Plan Energi 2011'!U64+'Plan Energi 2011'!U65+'Plan Energi 2011'!U67+'Plan Energi 2011'!V32+'Plan Energi 2011'!V33+'Plan Energi 2011'!V34+'Plan Energi 2011'!V35+'Plan Energi 2011'!V40+'Plan Energi 2011'!V42+'Plan Energi 2011'!V44+'Plan Energi 2011'!V45+'Plan Energi 2011'!V46+'Plan Energi 2011'!V51+'Plan Energi 2011'!V53+'Plan Energi 2011'!V61+'Plan Energi 2011'!V63+'Plan Energi 2011'!V64+'Plan Energi 2011'!V65+'Plan Energi 2011'!V67)*-1 -> -263.3239 | O10: 0 | Q10: 0 | X10: -48.096 | AE10: =('Plan Energi 2011'!F32+'Plan Energi 2011'!F33+'Plan Energi 2011'!F34+'Plan Energi 2011'!F35+'Plan Energi 2011'!F40+'Plan Energi 2011'!F42+'Plan Energi 2011'!F44+'Plan Energi 2011'!F45+'Plan Energi 2011'!F46+'Plan Energi 2011'!F51+'Plan Energi 2011'!F53+'Plan Energi 2011'!F61+'Plan Energi 2011'!F63+'Plan Energi 2011'!F64+'Plan Energi 2011'!F65+'Plan Energi 2011'!F67)*-1 -> 0 | AF10: =('Plan Energi 2011'!D32+'Plan Energi 2011'!D33+'Plan Energi 2011'!D34+'Plan Energi 2011'!D35+'Plan Energi 2011'!D40+'Plan Energi 2011'!D42+'Plan Energi 2011'!D44+'Plan Energi 2011'!D45+'Plan Energi 2011'!D46+'Plan Energi 2011'!D51+'Plan Energi 2011'!D53+'Plan Energi 2011'!D61+'Plan Energi 2011'!D63+'Plan Energi 2011'!D64+'Plan Energi 2011'!D65+'Plan Energi 2011'!D67+'Plan Energi 2011'!E32+'Plan Energi 2011'!E33+'Plan Energi 2011'!E34+'Plan Energi 2011'!E35+'Plan Energi 2011'!E40+'Plan Energi 2011'!E42+'Plan Energi 2011'!E44+'Plan Energi 2011'!E45+'Plan Energi 2011'!E46+'Plan Energi 2011'!E51+'Plan Energi 2011'!E53+'Plan Energi 2011'!E61+'Plan Energi 2011'!E63+'Plan Energi 2011'!E64+'Plan Energi 2011'!E65+'Plan Energi 2011'!E67)*-1 -> -48.096 | AN10: 0 | AO10: -3573.80164 | AP10: El og varmeproduktion | AQ10: ELOGVARME | AR10: TS | AT10: 2726.124853 | AU10: =AT10/AO10*-1 -> 0.762808104 | AZ10: 0 | BI10: =BJ10+BK10+BN10+BO10+BP10 -> 0 | BK10: 0 | BR10: =SUM(BS10:CC10) -> 0 | CD10: ='Plan Energi 2011'!AD32+'Plan Energi 2011'!AD33+'Plan Energi 2011'!AD34+'Plan Energi 2011'!AD35+'Plan Energi 2011'!AD40+'Plan Energi 2011'!AD41+'Plan Energi 2011'!AD42+'Plan Energi 2011'!AD44+'Plan Energi 2011'!AD45+'Plan Energi 2011'!AD46+'Plan Energi 2011'!AD51+'Plan Energi 2011'!AD53+'Plan Energi 2011'!AD54+'Plan Energi 2011'!AD47+'Plan Energi 2011'!AD61+'Plan Energi 2011'!AD63+'Plan Energi 2011'!AD64+'Plan Energi 2011'!AD65+'Plan Energi 2011'!AD66+'Plan Energi 2011'!AD67+'Plan Energi 2011'!AD68 -> 819.0629756 | CE10: ='Plan Energi 2011'!AF32+'Plan Energi 2011'!AF33+'Plan Energi 2011'!AF34+'Plan Energi 2011'!AF35+'Plan Energi 2011'!AF40+'Plan Energi 2011'!AF42+'Plan Energi 2011'!AF44+'Plan Energi 2011'!AF45+'Plan Energi 2011'!AF46+'Plan Energi 2011'!AF51+'Plan Energi 2011'!AF53+'Plan Energi 2011'!AF61+'Plan Energi 2011'!AF63+'Plan Energi 2011'!AF64+'Plan Energi 2011'!AF65+'Plan Energi 2011'!AF67 -> 1907.061877 | CI10: =(AT10+AO10)*-1 -> 847.676787 | CJ10: =-(C10*'Plan Energi 2011'!$I$89/1000+D10*'Plan Energi 2011'!$C$89/1000+E10*'Plan Energi 2011'!$W$89/1000+X10*'Plan Energi 2011'!$F$89/1000) -> 189.7717523
C11: =C12+C13 -> 0 | D11: 0 | E11: 0 | F11: 0 | G11: 0 | H11: 0 | I11: 0 | J11: 0 | K11: 0 | L11: 0 | M11: 0 | N11: 0 | O11: -14.16 | P11: 0 | Q11: -14.16 | R11: 0 | S11: -14.16 | T11: 0 | U11: 0 | V11: 0 | W11: 0 | X11: 0 | Y11: 0 | Z11: 0 | AA11: 0 | AB11: 0 | AC11: 0 | AD11: 0 | AE11: 0 | AF11: 0 | AG11: 0 | AH11: 0 | AI11: 0 | AJ11: 0 | AK11: 0 | AL11: 0 | AM11: 0 | AN11: 0 | AO11: -14.16 | AP11: Vindmøller | AQ11: VIND | AR11: TS | AT11: 15.228 | AW11: =AW12+AW13 -> 0 | AX11: 0 | AY11: 0 | AZ11: 0 | BA11: =BA12+BA13 -> 0 | BB11: 0 | BC11: 0 | BD11: 0 | BE11: 0 | BF11: 0 | BG11: 0 | BH11: 0 | BI11: 0 | BJ11: =BJ12+BJ13 -> 0 | BK11: 0 | BL11: =BL12+BL13 -> 0 | BM11: 0 | BN11: 0 | BO11: 0 | BP11: 0 | BQ11: 0 | BR11: 0 | BS11: =BS12+BS13 -> 0 | BT11: 0 | BU11: 0 | BV11: 0 | BW11: 0 | BX11: 0 | BY11: 0 | BZ11: 0 | CA11: 0 | CB11: 0 | CC11: 0 | CD11: =('Plan Energi 2011'!J27+'Plan Energi 2011'!J28) -> 15.228 | CE11: 0 | CF11: 0 | CG11: 0 | CH11: 0 | CI11: 0 | CJ11: 0
F12: 0 | O12: 0 | Q12: 0 | R12: =CD12*-1 -> 0 | X12: 0 | AN12: 0 | AO12: 0 | AP12: Kystvindmøller | AQ12: KYST | AR12: VIND | AT12: 0 | AZ12: 0 | BI12: =BJ12+BK12+BN12+BO12+BP12 -> 0 | BK12: 0 | BR12: =SUM(BS12:CC12) -> 0 | CD12: =Energi!B34*0.0000036 -> 0 | CI12: 0 | CJ12: =-(C12*'Plan Energi 2011'!$I$89/1000+D12*'Plan Energi 2011'!$C$89/1000+E12*'Plan Energi 2011'!$W$89/1000+X12*'Plan Energi 2011'!$F$89/1000) -> 0
F13: 0 | O13: -14.16 | Q13: -14.16 | S13: =CD13*-1 -> -14.16 | X13: 0 | AN13: 0 | AO13: -14.16 | AP13: Landvindmøller | AQ13: LAND | AR13: VIND | AT13: 14.16 | AZ13: 0 | BI13: =BJ13+BK13+BN13+BO13+BP13 -> 0 | BK13: 0 | BR13: =SUM(BS13:CC13) -> 0 | CD13: =Energi!B35*0.0000036 -> 14.16 | CI13: 0 | CJ13: =-(C13*'Plan Energi 2011'!$I$89/1000+D13*'Plan Energi 2011'!$C$89/1000+E13*'Plan Energi 2011'!$W$89/1000+X13*'Plan Energi 2011'!$F$89/1000) -> 0
F14: 0 | O14: -0.1 | P14: =CD14*-1 -> -0.1 | Q14: 0 | X14: 0 | AN14: 0 | AO14: -0.1 | AP14: Solceller | AQ14: SOLSTR | AR14: TS | AT14: 0.1 | AZ14: 0 | BI14: =BJ14+BK14+BN14+BO14+BP14 -> 0 | BK14: 0 | BR14: =SUM(BS14:CC14) -> 0 | CD14: ='Plan Energi 2011'!L26 -> 0.1 | CI14: 0 | CJ14: =-(C14*'Plan Energi 2011'!$I$89/1000+D14*'Plan Energi 2011'!$C$89/1000+E14*'Plan Energi 2011'!$W$89/1000+X14*'Plan Energi 2011'!$F$89/1000) -> 0
C15: =('Plan Energi 2011'!I36+'Plan Energi 2011'!I41+'Plan Energi 2011'!I47+'Plan Energi 2011'!I54+'Plan Energi 2011'!I56+'Plan Energi 2011'!I66)*-1 -> 0 | D15: =('Plan Energi 2011'!C36+'Plan Energi 2011'!C41+'Plan Energi 2011'!C47+'Plan Energi 2011'!C54+'Plan Energi 2011'!C56+'Plan Energi 2011'!C66)*-1 -> 0 | E15: =('Plan Energi 2011'!W36+'Plan Energi 2011'!W41+'Plan Energi 2011'!W47+'Plan Energi 2011'!W54+'Plan Energi 2011'!W56+'Plan Energi 2011'!W66)*-1 -> 0 | F15: 0 | G15: =('Plan Energi 2011'!Q36+'Plan Energi 2011'!Q41+'Plan Energi 2011'!Q47+'Plan Energi 2011'!Q54+'Plan Energi 2011'!Q56+'Plan Energi 2011'!Q66)*-1 -> 0 | H15: =('Plan Energi 2011'!R36+'Plan Energi 2011'!R41+'Plan Energi 2011'!R47+'Plan Energi 2011'!R54+'Plan Energi 2011'!R56+'Plan Energi 2011'!R66)*-1 -> 0 | J15: =('Plan Energi 2011'!S36+'Plan Energi 2011'!S41+'Plan Energi 2011'!S47+'Plan Energi 2011'!S54+'Plan Energi 2011'!S56+'Plan Energi 2011'!S66)*-1 -> 0 | L15: =('Plan Energi 2011'!O36+'Plan Energi 2011'!O41+'Plan Energi 2011'!O47+'Plan Energi 2011'!O54+'Plan Energi 2011'!O56+'Plan Energi 2011'!O66)*-1 -> 0 | N15: =('Plan Energi 2011'!T36+'Plan Energi 2011'!T41+'Plan Energi 2011'!T47+'Plan Energi 2011'!T54+'Plan Energi 2011'!T56+'Plan Energi 2011'!T66+'Plan Energi 2011'!U36+'Plan Energi 2011'!U41+'Plan Energi 2011'!U47+'Plan Energi 2011'!U54+'Plan Energi 2011'!U56+'Plan Energi 2011'!U66+'Plan Energi 2011'!V36+'Plan Energi 2011'!V41+'Plan Energi 2011'!V47+'Plan Energi 2011'!V54+'Plan Energi 2011'!V56+'Plan Energi 2011'!V66)*-1 -> 0 | O15: 0 | Q15: 0 | X15: 0 | AE15: =('Plan Energi 2011'!F36+'Plan Energi 2011'!F41+'Plan Energi 2011'!F47+'Plan Energi 2011'!F54+'Plan Energi 2011'!F56+'Plan Energi 2011'!F66)*-1 -> 0 | AF15: =('Plan Energi 2011'!D36+'Plan Energi 2011'!D41+'Plan Energi 2011'!D47+'Plan Energi 2011'!D54+'Plan Energi 2011'!D56+'Plan Energi 2011'!D66+'Plan Energi 2011'!E36+'Plan Energi 2011'!E41+'Plan Energi 2011'!E47+'Plan Energi 2011'!E54+'Plan Energi 2011'!E56+'Plan Energi 2011'!E66)*-1 -> 0 | AN15: 0 | AO15: 0 | AP15: Fjernvarmekedler | AQ15: KEDLER | AR15: TS | AT15: 0 | AZ15: 0 | BI15: 0 | BK15: 0 | BR15: 0 | CE15: ='Plan Energi 2011'!AF36+'Plan Energi 2011'!AF41+'Plan Energi 2011'!AF47+'Plan Energi 2011'!AF54+'Plan Energi 2011'!AF56+'Plan Energi 2011'!AF66 -> 0 | CI15: 0 | CJ15: =-(C15*'Plan Energi 2011'!$I$89/1000+D15*'Plan Energi 2011'!$C$89/1000+E15*'Plan Energi 2011'!$W$89/1000+X15*'Plan Energi 2011'!$F$89/1000) -> 0
F16: 0 | O16: 0 | P16: =('Plan Energi 2011'!L37+'Plan Energi 2011'!L38+'Plan Energi 2011'!L48+'Plan Energi 2011'!L49+'Plan Energi 2011'!L50+'Plan Energi 2011'!L57+'Plan Energi 2011'!L58+'Plan Energi 2011'!L59+'Plan Energi 2011'!L60+'Plan Energi 2011'!L68)*-1 -> 0 | Q16: 0 | U16: =('Plan Energi 2011'!M37+'Plan Energi 2011'!M38+'Plan Energi 2011'!M48+'Plan Energi 2011'!M49+'Plan Energi 2011'!M50+'Plan Energi 2011'!M57+'Plan Energi 2011'!M58+'Plan Energi 2011'!M59+'Plan Energi 2011'!M60+'Plan Energi 2011'!M68)*-1 -> 0 | V16: =('Plan Energi 2011'!N37+'Plan Energi 2011'!N38+'Plan Energi 2011'!N48+'Plan Energi 2011'!N49+'Plan Energi 2011'!N50+'Plan Energi 2011'!N57+'Plan Energi 2011'!N58+'Plan Energi 2011'!N59+'Plan Energi 2011'!N60+'Plan Energi 2011'!N68)*-1 -> 0 | X16: 0 | AJ16: =('Plan Energi 2011'!AD37+'Plan Energi 2011'!AD38+'Plan Energi 2011'!AD48+'Plan Energi 2011'!AD49+'Plan Energi 2011'!AD50+'Plan Energi 2011'!AD57+'Plan Energi 2011'!AD58+'Plan Energi 2011'!AD59+'Plan Energi 2011'!AD60+'Plan Energi 2011'!AD68) -> 0 | AL16: ='Plan Energi 2011'!AF68*-1 -> -354.49515 | AN16: 0 | AO16: -354.49515 | AP16: Anden varmeproduktion | AQ16: ANDENV | AR16: TS | AT16: 354.49515 | AU16: =AT16/AO16*-1 -> 1 | AZ16: 0 | BI16: 0 | BK16: 0 | BR16: 0 | CE16: ='Plan Energi 2011'!AF37+'Plan Energi 2011'!AF38+'Plan Energi 2011'!AF48+'Plan Energi 2011'!AF49+'Plan Energi 2011'!AF50+'Plan Energi 2011'!AF57+'Plan Energi 2011'!AF58+'Plan Energi 2011'!AF59+'Plan Energi 2011'!AF60+'Plan Energi 2011'!AF68 -> 354.49515 | CI16: 0 | CJ16: =-(C16*'Plan Energi 2011'!$I$89/1000+D16*'Plan Energi 2011'!$C$89/1000+E16*'Plan Energi 2011'!$W$89/1000+X16*'Plan Energi 2011'!$F$89/1000) -> 0
F17: 0 | O17: 0 | Q17: 0 | X17: 0 | AN17: 0 | AO17: 0 | AP17: Raffinaderi | AQ17: RAF | AR17: TS | AT17: 0 | AZ17: 0 | BI17: 0 | BK17: 0 | BR17: 0 | CI17: 0 | CJ17: =-(C17*'Plan Energi 2011'!$I$89/1000+D17*'Plan Energi 2011'!$C$89/1000+E17*'Plan Energi 2011'!$W$89/1000+X17*'Plan Energi 2011'!$F$89/1000) -> 0
F18: 0 | O18: 0 | Q18: 0 | X18: -2541.874893 | Y18: =BS18*-1 -> 0 | Z18: =BT18*-1 -> -21.3 | AA18: 0 | AB18: -560.783316 | AC18: 0 | AD18: -344 | AE18: -970.191577 | AF18: -645.6 | AG18: 0 | AH18: 0 | AI18: 0 | AJ18: =CD18*-1/'Plan Energi 2011'!D2*100 -> -1278.907986 | AK18: =CE18*('Plan Energi 2011'!AF39+'Plan Energi 2011'!AF43+'Plan Energi 2011'!AF52+'Plan Energi 2011'!AF55+'Plan Energi 2011'!AF62+'Plan Energi 2011'!AF71)/('Plan Energi 2011'!AG39+'Plan Energi 2011'!AG43+'Plan Energi 2011'!AG52+'Plan Energi 2011'!AG55+'Plan Energi 2011'!AG62+'Plan Energi 2011'!AG71) -> -2261.557027 | AN18: 0 | AO18: -6082.339906 | AP18: Transport af el, fjernvarme, mv. | AQ18: TRAS | AT18: 5465.415392 | AZ18: 0 | BI18: =BJ18+BK18+BN18+BO18+BP18 -> 0 | BK18: =BL18+BM18 -> 0 | BR18: =X20*-1 -> 2541.874893 | BS18: 0 | BT18: 21.3 | BU18: 0 | BV18: 560.783316 | BW18: 0 | BX18: 344 | BY18: 970.191577 | BZ18: 645.6 | CA18: 0 | CB18: 0 | CC18: 0 | CD18: 1177.618474 | CE18: 1745.922025 | CI18: 616.9245147
F19: 0 | O19: 0 | Q19: 0 | X19: 0 | AN19: 0 | AO19: 0 | AP19: Indgang ikke-nettilsluttet VE | AQ19: TLP2 | AT19: 3.734 | AZ19: 0 | BI19: =BJ19+BK19+BN19+BO19+BP19 -> 3.734 | BJ19: =P20*-1 -> 2.8 | BK19: =BL19+BM19 -> 0 | BL19: =R20*-1 -> 0 | BM19: =S20*-1 -> 0 | BN19: 0 | BO19: 0 | BP19: 0.934 | BR19: =SUM(BS19:CC19) -> 0 | CI19: 0
C20: =SUM(C21:C22,C32,C33,C34,C35,C36) -> -4686.939 | D20: 0 | E20: 0 | F20: -250.7 | G20: -27 | H20: -158 | I20: 0 | J20: -65.7 | K20: 0 | L20: 0 | M20: 0 | N20: 0 | O20: -3.734 | P20: -2.8 | Q20: 0 | R20: 0 | S20: 0 | T20: 0 | U20: 0 | V20: -0.934 | W20: -52.827137 | X20: -2541.874893 | Y20: 0 | Z20: -21.3 | AA20: 0 | AB20: -560.783316 | AC20: 0 | AD20: -344 | AE20: -970.191577 | AF20: -645.6 | AG20: 0 | AH20: 0 | AI20: 0 | AJ20: -1177.618474 | AK20: -1745.922025 | AL20: 0 | AM20: 0 | AN20: 0 | AO20: -10459.61553 | AP20: Afgang fra energisystemet | AQ20: A | AT20: 8295.132821 | AW20: =SUM(AW21:AW22,AW32,AW33,AW34,AW35,AW36) -> 0 | AX20: 0 | AY20: 0 | AZ20: 0 | BA20: 0 | BB20: 0 | BC20: 0 | BD20: 0 | BE20: 0 | BF20: 0 | BG20: 0 | BH20: 0 | BI20: 0 | BJ20: 0 | BK20: 0 | BL20: 0 | BM20: 0 | BN20: 0 | BO20: 0 | BP20: 0 | BQ20: 0 | BR20: 0 | BS20: 0 | BT20: 0 | BU20: 0 | BV20: 0 | BW20: 0 | BX20: 0 | BY20: 0 | BZ20: 0 | CA20: 0 | CB20: 0 | CC20: 0 | CD20: 0 | CE20: 0 | CF20: 0 | CG20: 8295.132821 | CH20: 0 | CI20: 2164.482708 | CJ20: 455.1136569
F21: 0 | O21: 0 | Q21: 0 | X21: 0 | AJ21: =IF(CD10+CD11+CD14+(1+Energi!B29/100)*(AJ22+AJ32+AJ33+AJ34+AJ35)>0,(CD10+CD11+CD14+(1+Energi!B29/100)*(AJ22+AJ32+AJ33+AJ34+AJ35))*-1,0) -> 0 | AN21: 0 | AO21: 0 | AP21: Netto eksport/lager | AQ21: AES | AR21: A | AT21: 0 | AZ21: 0 | BI21: =BJ21+BK21+BN21+BO21+BP21 -> 0 | BK21: =BL21+BM21 -> 0 | BR21: =SUM(BS21:CC21) -> 0 | CI21: 0 | CJ21: =AJ9*'Plan Energi 2011'!A89/1000 -> 0
C22: =C23+SUM(C28:C31) -> 0 | D22: =D23+SUM(D28:D31) -> 0 | E22: 0 | F22: 0 | G22: 0 | H22: 0 | I22: 0 | J22: 0 | K22: 0 | L22: 0 | M22: 0 | N22: 0 | O22: 0 | P22: 0 | Q22: 0 | R22: 0 | S22: 0 | T22: 0 | U22: 0 | V22: 0 | W22: -52.827137 | X22: -1885.834893 | Y22: 0 | Z22: -4.26 | AA22: 0 | AB22: -560.783316 | AC22: 0 | AD22: -344 | AE22: -970.191577 | AF22: -6.6 | AG22: 0 | AH22: 0 | AI22: 0 | AJ22: 0 | AK22: 0 | AL22: 0 | AM22: 0 | AN22: 0 | AO22: -1938.66203 | AP22: Transport | AQ22: AT | AR22: A | AT22: 524.01355 | AU22: 0.3 | AW22: =AW23+SUM(AW28:AW31) -> 0 | AX22: 0 | AY22: 0 | AZ22: 0 | BA22: 0 | BB22: 0 | BC22: 0 | BD22: 0 | BE22: 0 | BF22: 0 | BG22: 0 | BH22: 0 | BI22: 0 | BJ22: 0 | BK22: 0 | BL22: 0 | BM22: 0 | BN22: 0 | BO22: 0 | BP22: 0 | BQ22: 0 | BR22: 0 | BS22: 0 | BT22: 0 | BU22: 0 | BV22: 0 | BW22: 0 | BX22: 0 | BY22: 0 | BZ22: 0 | CA22: 0 | CB22: 0 | CC22: 0 | CD22: 0 | CE22: 0 | CF22: 0 | CG22: 524.01355 | CH22: 0 | CI22: 1414.64848 | CJ22: 139.5517821
C23: =SUM(C24:C27) -> 0 | D23: =SUM(D24:D27) -> 0 | E23: =SUM(E24:E27) -> 0 | F23: 0 | G23: =SUM(G24:G27) -> 0 | H23: 0 | I23: 0 | J23: 0 | K23: 0 | L23: 0 | M23: 0 | N23: 0 | O23: 0 | P23: =SUM(P24:P27) -> 0 | Q23: 0 | R23: =SUM(R24:R27) -> 0 | S23: 0 | T23: 0 | U23: 0 | V23: 0 | W23: -52.827137 | X23: -1414.335863 | Y23: =SUM(Y24:Y27) -> 0 | Z23: 0 | AA23: 0 | AB23: -560.183316 | AC23: 0 | AD23: 0 | AE23: -854.152547 | AF23: 0 | AG23: 0 | AH23: 0 | AI23: 0 | AJ23: 0 | AK23: 0 | AL23: 0 | AM23: 0 | AN23: 0 | AO23: -1467.163 | AP23: Vejtrafik | AQ23: ATV | AR23: AT | AT23: 369.37555 | AU23: 0.3 | AW23: =SUM(AW24:AW27) -> 0 | AX23: =SUM(AX24:AX27) -> 0 | AY23: =SUM(AY24:AY27) -> 0 | AZ23: 0 | BA23: =SUM(BA24:BA27) -> 0 | BB23: 0 | BC23: 0 | BD23: 0 | BE23: 0 | BF23: 0 | BG23: 0 | BH23: 0 | BI23: =BJ23+BK23+BN23+BO23+BP23 -> 0 | BJ23: =SUM(BJ24:BJ27) -> 0 | BK23: =BL23+BM23 -> 0 | BL23: =SUM(BL24:BL27) -> 0 | BM23: 0 | BN23: 0 | BO23: 0 | BP23: 0 | BQ23: 0 | BR23: =SUM(BS23:CC23) -> 0 | BS23: =SUM(BS24:BS27) -> 0 | BT23: 0 | BU23: 0 | BV23: 0 | BW23: 0 | BX23: 0 | BY23: 0 | BZ23: 0 | CA23: 0 | CB23: 0 | CC23: 0 | CD23: 0 | CE23: 0 | CF23: 0 | CG23: 369.37555 | CH23: 0 | CI23: 1097.78745 | CJ23: 104.6608539
F24: 0 | O24: 0 | Q24: 0 | W24: =('Plan Energi 2011'!P72+'Plan Energi 2011'!P73)*-1 -> -31.183871 | X24: =SUM(Y24:AI24) -> -863.606129 | AB24: ='Plan Energi 2011'!H72*-1 -> -560.183316 | AE24: ='Plan Energi 2011'!F73*-1 -> -303.422813 | AN24: 0 | AO24: -894.79 | AP24: Personbil | AQ24: PERSON | AR24: ATV | AT24: 194.7235 | AU24: 0.3 | AZ24: 0 | BI24: =BJ24+BK24+BN24+BO24+BP24 -> 0 | BK24: =BL24+BM24 -> 0 | BR24: =SUM(BS24:CC24) -> 0 | CG24: ='Plan Energi 2011'!AQ72+'Plan Energi 2011'!AQ73 -> 194.7235 | CI24: 700.0665 | CJ24: =-(C24*'Plan Energi 2011'!$I$89/1000+D24*'Plan Energi 2011'!$C$89/1000+E24*'Plan Energi 2011'!$W$89/1000+X24*'Plan Energi 2011'!$F$89/1000) -> 63.90685355
F25: 0 | O25: 0 | Q25: 0 | W25: ='Plan Energi 2011'!P76*-1 -> -13.434772 | X25: =SUM(Y25:AI25) -> -342.925228 | AB25: 0 | AE25: ='Plan Energi 2011'!F76*-1 -> -342.925228 | AN25: 0 | AO25: -356.36 | AP25: Lastbil | AQ25: LAST | AR25: ATV | AT25: 117.5988 | AU25: 0.3 | AZ25: 0 | BI25: =BJ25+BK25+BN25+BO25+BP25 -> 0 | BK25: =BL25+BM25 -> 0 | BR25: =SUM(BS25:CC25) -> 0 | CG25: ='Plan Energi 2011'!AQ76 -> 117.5988 | CI25: 238.7612 | CJ25: =-(C25*'Plan Energi 2011'!$I$89/1000+D25*'Plan Energi 2011'!$C$89/1000+E25*'Plan Energi 2011'!$W$89/1000+X25*'Plan Energi 2011'!$F$89/1000) -> 25.37646687
F26: 0 | O26: 0 | Q26: 0 | W26: ='Plan Energi 2011'!P74*-1 -> -7.528674 | X26: -190.594326 | AB26: 0 | AE26: ='Plan Energi 2011'!F74*-1 -> -190.594326 | AN26: 0 | AO26: -198.123 | AP26: Varebil | AQ26: VARE | AR26: ATV | AT26: 49.53075 | AU26: 0.3 | AZ26: 0 | BI26: 0 | BK26: 0 | BR26: 0 | CG26: ='Plan Energi 2011'!AQ74 -> 49.53075 | CI26: 148.59225 | CJ26: =-(C26*'Plan Energi 2011'!$I$89/1000+D26*'Plan Energi 2011'!$C$89/1000+E26*'Plan Energi 2011'!$W$89/1000+X26*'Plan Energi 2011'!$F$89/1000) -> 14.10398012
F27: 0 | O27: 0 | Q27: 0 | W27: ='Plan Energi 2011'!P75*-1 -> -0.67982 | X27: -17.21018 | AB27: 0 | AE27: ='Plan Energi 2011'!F75*-1 -> -17.21018 | AN27: 0 | AO27: -17.89 | AP27: Bus | AQ27: BUS | AR27: ATV | AT27: 7.5225 | AU27: 0.3 | AZ27: 0 | BI27: 0 | BK27: 0 | BR27: 0 | CG27: ='Plan Energi 2011'!AQ75+'Plan Energi 2011'!AQ16 -> 7.5225 | CI27: 10.3675 | CJ27: =-(C27*'Plan Energi 2011'!$I$89/1000+D27*'Plan Energi 2011'!$C$89/1000+E27*'Plan Energi 2011'!$W$89/1000+X27*'Plan Energi 2011'!$F$89/1000) -> 1.27355332
C28: 0 | D28: 0 | E28: 0 | F28: 0 | G28: 0 | H28: 0 | I28: 0 | J28: 0 | K28: 0 | L28: 0 | M28: 0 | N28: 0 | O28: 0 | P28: 0 | Q28: 0 | R28: 0 | S28: 0 | T28: 0 | U28: 0 | V28: 0 | W28: 0 | X28: -30.4 | Y28: 0 | Z28: 0 | AA28: 0 | AB28: 0 | AC28: 0 | AD28: 0 | AE28: ='Plan Energi 2011'!F78*-1 -> -30.4 | AF28: 0 | AG28: 0 | AH28: 0 | AI28: 0 | AJ28: ='Plan Energi 2011'!AQ13*-1 -> 0 | AK28: 0 | AL28: 0 | AM28: 0 | AN28: 0 | AO28: -30.4 | AP28: Tog | AQ28: ATT | AR28: AT | AT28: 10.032 | AU28: 0.3 | AW28: 0 | AX28: 0 | AY28: 0 | AZ28: 0 | BA28: 0 | BB28: 0 | BC28: 0 | BD28: 0 | BE28: 0 | BF28: 0 | BG28: 0 | BH28: 0 | BI28: 0 | BJ28: 0 | BK28: 0 | BL28: 0 | BM28: 0 | BN28: 0 | BO28: 0 | BP28: 0 | BQ28: 0 | BR28: 0 | BS28: 0 | BT28: 0 | BU28: 0 | BV28: 0 | BW28: 0 | BX28: 0 | BY28: 0 | BZ28: 0 | CA28: 0 | CB28: 0 | CC28: 0 | CD28: 0 | CE28: 0 | CF28: 0 | CG28: ='Plan Energi 2011'!AQ78+'Plan Energi 2011'!AQ13 -> 10.032 | CH28: 0 | CI28: 20.368 | CJ28: =-(C28*'Plan Energi 2011'!$I$89/1000+D28*'Plan Energi 2011'!$C$89/1000+E28*'Plan Energi 2011'!$W$89/1000+X28*'Plan Energi 2011'!$F$89/1000) -> 2.2496
C29: 0 | D29: 0 | E29: 0 | F29: 0 | G29: 0 | H29: 0 | I29: 0 | J29: 0 | K29: 0 | L29: 0 | M29: 0 | N29: 0 | O29: 0 | P29: 0 | Q29: 0 | R29: 0 | S29: 0 | T29: 0 | U29: 0 | V29: 0 | W29: 0 | X29: -344.6 | Y29: 0 | Z29: 0 | AA29: 0 | AB29: ='Plan Energi 2011'!H79*-1 -> -0.6 | AC29: 0 | AD29: ='Plan Energi 2011'!G79*-1 -> -344 | AE29: 0 | AF29: 0 | AG29: 0 | AH29: 0 | AI29: 0 | AJ29: 0 | AK29: 0 | AL29: 0 | AM29: 0 | AN29: 0 | AO29: -344.6 | AP29: Fly | AQ29: ATF | AR29: AT | AT29: 113.718 | AU29: 0.3 | AW29: 0 | AX29: 0 | AY29: 0 | AZ29: 0 | BA29: 0 | BB29: 0 | BC29: 0 | BD29: 0 | BE29: 0 | BF29: 0 | BG29: 0 | BH29: 0 | BI29: 0 | BJ29: 0 | BK29: 0 | BL29: 0 | BM29: 0 | BN29: 0 | BO29: 0 | BP29: 0 | BQ29: 0 | BR29: 0 | BS29: 0 | BT29: 0 | BU29: 0 | BV29: 0 | BW29: 0 | BX29: 0 | BY29: 0 | BZ29: 0 | CA29: 0 | CB29: 0 | CC29: 0 | CD29: 0 | CE29: 0 | CF29: 0 | CG29: ='Plan Energi 2011'!AQ79 -> 113.718 | CH29: 0 | CI29: 230.882 | CJ29: =-(C29*'Plan Energi 2011'!$I$89/1000+D29*'Plan Energi 2011'!$C$89/1000+E29*'Plan Energi 2011'!$W$89/1000+X29*'Plan Energi 2011'!$F$89/1000) -> 25.5004
C30: 0 | D30: 0 | E30: 0 | F30: 0 | G30: 0 | H30: 0 | I30: 0 | J30: 0 | K30: 0 | L30: 0 | M30: 0 | N30: 0 | O30: 0 | P30: 0 | Q30: 0 | R30: 0 | S30: 0 | T30: 0 | U30: 0 | V30: 0 | W30: 0 | X30: -57.5 | Y30: 0 | Z30: 0 | AA30: 0 | AB30: 0 | AC30: 0 | AD30: 0 | AE30: ='Plan Energi 2011'!F80*-1 -> -50.9 | AF30: ='Plan Energi 2011'!D80*-1 -> -6.6 | AG30: 0 | AH30: 0 | AI30: 0 | AJ30: 0 | AK30: 0 | AL30: 0 | AM30: 0 | AN30: 0 | AO30: -57.5 | AP30: Færge | AQ30: ATFÆRGE | AR30: AT | AT30: 18.975 | AU30: 0.3 | AW30: 0 | AX30: 0 | AY30: 0 | AZ30: 0 | BA30: 0 | BB30: 0 | BC30: 0 | BD30: 0 | BE30: 0 | BF30: 0 | BG30: 0 | BH30: 0 | BI30: 0 | BJ30: 0 | BK30: 0 | BL30: 0 | BM30: 0 | BN30: 0 | BO30: 0 | BP30: 0 | BQ30: 0 | BR30: 0 | BS30: 0 | BT30: 0 | BU30: 0 | BV30: 0 | BW30: 0 | BX30: 0 | BY30: 0 | BZ30: 0 | CA30: 0 | CB30: 0 | CC30: 0 | CD30: 0 | CE30: 0 | CF30: 0 | CG30: ='Plan Energi 2011'!AQ80 -> 18.975 | CH30: 0 | CI30: 38.525 | CJ30: =-(C30*'Plan Energi 2011'!$I$89/1000+D30*'Plan Energi 2011'!$C$89/1000+E30*'Plan Energi 2011'!$W$89/1000+X30*'Plan Energi 2011'!$F$89/1000) -> 4.255
C31: 0 | D31: 0 | E31: 0 | F31: 0 | G31: 0 | H31: 0 | I31: 0 | J31: 0 | K31: 0 | L31: 0 | M31: 0 | N31: 0 | O31: 0 | P31: 0 | Q31: 0 | R31: 0 | S31: 0 | T31: 0 | U31: 0 | V31: 0 | W31: 0 | X31: -38.99903 | Y31: 0 | Z31: ='Plan Energi 2011'!B16*'Plan Energi 2011'!AQ16/SUM('Plan Energi 2011'!AI16:AQ16)*-1 -> -4.26 | AA31: 0 | AB31: 0 | AC31: 0 | AD31: 0 | AE31: ='Plan Energi 2011'!F77*-1 -> -34.73903 | AF31: 0 | AG31: 0 | AH31: 0 | AI31: 0 | AJ31: 0 | AK31: 0 | AL31: 0 | AM31: 0 | AN31: 0 | AO31: -38.99903 | AP31: Non-Road (landbrug) | AQ31: ATNONR | AR31: AT | AT31: 11.913 | AU31: 0.3 | AW31: 0 | AX31: 0 | AY31: 0 | AZ31: 0 | BA31: 0 | BB31: 0 | BC31: 0 | BD31: 0 | BE31: 0 | BF31: 0 | BG31: 0 | BH31: 0 | BI31: 0 | BJ31: 0 | BK31: 0 | BL31: 0 | BM31: 0 | BN31: 0 | BO31: 0 | BP31: 0 | BQ31: 0 | BR31: 0 | BS31: 0 | BT31: 0 | BU31: 0 | BV31: 0 | BW31: 0 | BX31: 0 | BY31: 0 | BZ31: 0 | CA31: 0 | CB31: 0 | CC31: 0 | CD31: 0 | CE31: 0 | CF31: 0 | CG31: ='Plan Energi 2011'!AP77 -> 11.913 | CH31: 0 | CI31: 27.08603 | CJ31: =-(C31*'Plan Energi 2011'!$I$89/1000+D31*'Plan Energi 2011'!$C$89/1000+E31*'Plan Energi 2011'!$W$89/1000+X31*'Plan Energi 2011'!$F$89/1000) -> 2.88592822
C32: =SUM('Plan Energi 2011'!I17:I22)*-1 -> -0.7 | D32: =SUM('Plan Energi 2011'!C17:C22)*-1 -> 0 | E32: =SUM('Plan Energi 2011'!W17:W22)*-1 -> 0 | F32: -247 | G32: =SUM('Plan Energi 2011'!Q17:Q22)*-1 -> -27 | H32: =SUM('Plan Energi 2011'!R17:R22)*-1 -> -158 | I32: 0 | J32: =SUM('Plan Energi 2011'!S17:S22)*-1 -> -62 | K32: 0 | L32: =SUM('Plan Energi 2011'!O17:O22)*-1 -> 0 | M32: 0 | N32: =SUM('Plan Energi 2011'!T17:V22)*-1 -> 0 | O32: -3.734 | P32: =SUM('Plan Energi 2011'!L17:L22)*-1 -> -2.8 | Q32: =SUM('Plan Energi 2011'!J17:J22)*-1 -> 0 | R32: 0 | S32: 0 | T32: 0 | U32: =SUM('Plan Energi 2011'!M17:M22)*-1 -> 0 | V32: =('Plan Energi 2011'!N14+SUM('Plan Energi 2011'!N17:N22))*-1 -> -0.934 | W32: =SUM('Plan Energi 2011'!P17:P22)*-1 -> 0 | X32: -104.26 | Y32: 0 | Z32: ='Plan Energi 2011'!B16*'Plan Energi 2011'!AI16/SUM('Plan Energi 2011'!AI16:AQ16)*-1 -> -4.26 | AA32: 0 | AB32: =SUM('Plan Energi 2011'!H17:H22)*-1 -> 0 | AC32: 0 | AD32: =SUM('Plan Energi 2011'!G17:G22)*-1 -> 0 | AE32: =SUM('Plan Energi 2011'!F17:F22)*-1 -> 0 | AF32: =SUM('Plan Energi 2011'!D17:E22)*-1 -> -100 | AG32: 0 | AH32: 0 | AI32: 0 | AJ32: =('Plan Energi 2011'!AE14+'Plan Energi 2011'!AI8*'Plan Energi 2011'!AE8/'Plan Energi 2011'!AH8+'Plan Energi 2011'!AI9*'Plan Energi 2011'!AE9/'Plan Energi 2011'!AH9+'Plan Energi 2011'!AI10*'Plan Energi 2011'!AE10/'Plan Energi 2011'!AH10+'Plan Energi 2011'!AI11*'Plan Energi 2011'!AE11/'Plan Energi 2011'!AH11+'Plan Energi 2011'!AI12*'Plan Energi 2011'!AE12/'Plan Energi 2011'!AH12+'Plan Energi 2011'!AI13*'Plan Energi 2011'!AE13/'Plan Energi 2011'!AH13)*-1 -> -314.3188037 | AK32: =('Plan Energi 2011'!AI39+'Plan Energi 2011'!AI43+'Plan Energi 2011'!AI52+'Plan Energi 2011'!AI55+'Plan Energi 2011'!AI62+'Plan Energi 2011'!AI71)*-1 -> -1115.644174 | AL32: 0 | AM32: 0 | AN32: 0 | AO32: -1785.656978 | AP32: Husholdninger | AQ32: AH | AR32: A | AT32: 1639.629701 | AU32: =AT32/AO32*-1 -> 0.9182221004 | AW32: 0 | AX32: 0 | AY32: 0 | AZ32: 0 | BA32: 0 | BB32: 0 | BC32: 0 | BD32: 0 | BE32: 0 | BF32: 0 | BG32: 0 | BH32: 0 | BI32: 0 | BJ32: 0 | BK32: 0 | BL32: 0 | BM32: 0 | BN32: 0 | BO32: 0 | BP32: 0 | BQ32: 0 | BR32: 0 | BS32: 0 | BT32: 0 | BU32: 0 | BV32: 0 | BW32: 0 | BX32: 0 | BY32: 0 | BZ32: 0 | CA32: 0 | CB32: 0 | CC32: 0 | CD32: 0 | CE32: 0 | CF32: 0 | CG32: ='Plan Energi 2011'!AI81 -> 1639.629701 | CH32: 0 | CI32: 146.027277 | CJ32: =-(C32*'Plan Energi 2011'!$I$89/1000+D32*'Plan Energi 2011'!$C$89/1000+E32*'Plan Energi 2011'!$W$89/1000+X32*'Plan Energi 2011'!$F$89/1000) -> 7.755119
C33: 0 | D33: 0 | E33: 0 | F33: 0 | G33: 0 | H33: 0 | I33: 0 | J33: 0 | K33: 0 | L33: 0 | M33: 0 | N33: 0 | O33: 0 | P33: 0 | Q33: 0 | R33: 0 | S33: 0 | T33: 0 | U33: 0 | V33: 0 | W33: 0 | X33: 0 | Y33: 0 | Z33: ='Plan Energi 2011'!B16*'Plan Energi 2011'!AJ16/SUM('Plan Energi 2011'!AI16:AQ16)*-1 -> 0 | AA33: 0 | AB33: 0 | AC33: 0 | AD33: 0 | AE33: 0 | AF33: 0 | AG33: 0 | AH33: 0 | AI33: 0 | AJ33: =('Plan Energi 2011'!AJ8*'Plan Energi 2011'!AE8/'Plan Energi 2011'!AH8+'Plan Energi 2011'!AJ9*'Plan Energi 2011'!AE9/'Plan Energi 2011'!AH9+'Plan Energi 2011'!AJ10*'Plan Energi 2011'!AE10/'Plan Energi 2011'!AH10+'Plan Energi 2011'!AJ11*'Plan Energi 2011'!AE11/'Plan Energi 2011'!AH11+'Plan Energi 2011'!AJ12*'Plan Energi 2011'!AE12/'Plan Energi 2011'!AH12+'Plan Energi 2011'!AJ13*'Plan Energi 2011'!AE13/'Plan Energi 2011'!AH13)*-1 -> -200.0167404 | AK33: =('Plan Energi 2011'!AJ39+'Plan Energi 2011'!AJ43+'Plan Energi 2011'!AJ52+'Plan Energi 2011'!AJ55+'Plan Energi 2011'!AJ62+'Plan Energi 2011'!AJ71)*-1 -> -162.3707483 | AL33: 0 | AM33: 0 | AN33: 0 | AO33: -362.3874887 | AP33: Offentlig | AQ33: AO | AR33: A | AT33: 317.4393957 | AU33: =AT33/AO33*-1 -> 0.8759667637 | AW33: 0 | AX33: 0 | AY33: 0 | AZ33: 0 | BA33: 0 | BB33: 0 | BC33: 0 | BD33: 0 | BE33: 0 | BF33: 0 | BG33: 0 | BH33: 0 | BI33: 0 | BJ33: 0 | BK33: 0 | BL33: 0 | BM33: 0 | BN33: 0 | BO33: 0 | BP33: 0 | BQ33: 0 | BR33: 0 | BS33: 0 | BT33: 0 | BU33: 0 | BV33: 0 | BW33: 0 | BX33: 0 | BY33: 0 | BZ33: 0 | CA33: 0 | CB33: 0 | CC33: 0 | CD33: 0 | CE33: 0 | CF33: 0 | CG33: ='Plan Energi 2011'!AJ81 -> 317.4393957 | CH33: 0 | CI33: 44.94809302 | CJ33: =-(C33*'Plan Energi 2011'!$I$89/1000+D33*'Plan Energi 2011'!$C$89/1000+E33*'Plan Energi 2011'!$W$89/1000+X33*'Plan Energi 2011'!$F$89/1000) -> 0
C34: =SUM('Plan Energi 2011'!I23:I24)*-1 -> -292.239 | D34: =SUM('Plan Energi 2011'!C23:C24)*-1 -> 0 | E34: =SUM('Plan Energi 2011'!W23:W24)*-1 -> 0 | F34: 0 | G34: =SUM('Plan Energi 2011'!Q23:Q24)*-1 -> 0 | H34: =SUM('Plan Energi 2011'!R23:R24)*-1 -> 0 | I34: 0 | J34: =SUM('Plan Energi 2011'!S23:S24)*-1 -> 0 | K34: 0 | L34: 0 | M34: 0 | N34: =SUM('Plan Energi 2011'!T23:V24)*-1 -> 0 | O34: 0 | P34: =SUM('Plan Energi 2011'!L23:L24)*-1 -> 0 | Q34: 0 | R34: 0 | S34: 0 | T34: 0 | U34: =SUM('Plan Energi 2011'!M23:M24)*-1 -> 0 | V34: =SUM('Plan Energi 2011'!N23:N24)*-1 -> 0 | W34: =SUM('Plan Energi 2011'!P23:P24)*-1 -> 0 | X34: -22 | Y34: 0 | Z34: ='Plan Energi 2011'!B16*(SUM('Plan Energi 2011'!AK16:AM16,'Plan Energi 2011'!AO16:AP16))/SUM('Plan Energi 2011'!AI16:AQ16)*-1 -> 0 | AA34: 0 | AB34: =SUM('Plan Energi 2011'!H23:H24)*-1 -> 0 | AC34: 0 | AD34: =SUM('Plan Energi 2011'!G23:G24)*-1 -> 0 | AE34: =SUM('Plan Energi 2011'!F23:F24)*-1 -> 0 | AF34: =SUM('Plan Energi 2011'!D23:E24)*-1 -> -22 | AG34: 0 | AH34: 0 | AI34: 0 | AJ34: =(SUM('Plan Energi 2011'!AK8:AM8,'Plan Energi 2011'!AO8:AP8)*'Plan Energi 2011'!AE8/'Plan Energi 2011'!AH8+SUM('Plan Energi 2011'!AK9:AM9,'Plan Energi 2011'!AO9:AP9)*'Plan Energi 2011'!AE9/'Plan Energi 2011'!AH9+SUM('Plan Energi 2011'!AK10:AM10,'Plan Energi 2011'!AO10:AP10)*'Plan Energi 2011'!AE10/'Plan Energi 2011'!AH10+SUM('Plan Energi 2011'!AK11:AM11,'Plan Energi 2011'!AO11:AP11)*'Plan Energi 2011'!AE11/'Plan Energi 2011'!AH11+SUM('Plan Energi 2011'!AK12:AM12,'Plan Energi 2011'!AO12:AP12)*'Plan Energi 2011'!AE12/'Plan Energi 2011'!AH12+SUM('Plan Energi 2011'!AK13:AM13,'Plan Energi 2011'!AO13:AP13)*'Plan Energi 2011'!AE13/'Plan Energi 2011'!AH13+SUM('Plan Energi 2011'!AK69:AM69,'Plan Energi 2011'!AO69:AP69)*'Plan Energi 2011'!D2/100++'Plan Energi 2011'!AN8*'Plan Energi 2011'!AE8/'Plan Energi 2011'!AH8+'Plan Energi 2011'!AN9*'Plan Energi 2011'!AE9/'Plan Energi 2011'!AH9+'Plan Energi 2011'!AN10*'Plan Energi 2011'!AE10/'Plan Energi 2011'!AH10+'Plan Energi 2011'!AN11*'Plan Energi 2011'!AE11/'Plan Energi 2011'!AH11)*-1 -> -277.1242995 | AK34: =(SUM('Plan Energi 2011'!AK70:AM70,'Plan Energi 2011'!AO70:AP70)+SUM('Plan Energi 2011'!AK39:AM39,'Plan Energi 2011'!AO39:AP39)+SUM('Plan Energi 2011'!AK43:AM43,'Plan Energi 2011'!AO43:AP43)+SUM('Plan Energi 2011'!AK52:AM52,'Plan Energi 2011'!AO52:AP52)+SUM('Plan Energi 2011'!AK55:AM55,'Plan Energi 2011'!AO55:AP55)+SUM('Plan Energi 2011'!AK62:AM62,'Plan Energi 2011'!AO62:AP62)+SUM('Plan Energi 2011'!AK71:AM71,'Plan Energi 2011'!AO71:AP71)+'Plan Energi 2011'!AN70+'Plan Energi 2011'!AN39+'Plan Energi 2011'!AN43+'Plan Energi 2011'!AN52+'Plan Energi 2011'!AN55+'Plan Energi 2011'!AN62+'Plan Energi 2011'!AN71)*-1 -> -467.9071027 | AL34: 0 | AM34: 0 | AN34: 0 | AO34: -1059.270402 | AP34: Erhverv | AQ34: AE | AR34: A | AT34: 918.6135156 | AU34: 0.8672134269 | AW34: 0 | AX34: 0 | AY34: 0 | AZ34: 0 | BA34: 0 | BB34: 0 | BC34: 0 | BD34: 0 | BE34: 0 | BF34: 0 | BG34: 0 | BH34: 0 | BI34: 0 | BJ34: 0 | BK34: 0 | BL34: 0 | BM34: 0 | BN34: 0 | BO34: 0 | BP34: 0 | BQ34: 0 | BR34: 0 | BS34: 0 | BT34: 0 | BU34: 0 | BV34: 0 | BW34: 0 | BX34: 0 | BY34: 0 | BZ34: 0 | CA34: 0 | CB34: 0 | CC34: 0 | CD34: 0 | CE34: 0 | CF34: 0 | CG34: =SUM('Plan Energi 2011'!AK8:AM80,'Plan Energi 2011'!AO8:AP80)+'Plan Energi 2011'!AN23+'Plan Energi 2011'!AN24 -> 918.6135156 | CH34: 0 | CI34: 140.6568867 | CJ34: =-(C34*'Plan Energi 2011'!$I$89/1000+D34*'Plan Energi 2011'!$C$89/1000+E34*'Plan Energi 2011'!$W$89/1000+X34*'Plan Energi 2011'!$F$89/1000) -> 18.27685583
C35: =SUM('Plan Energi 2011'!I25:I25)*-1 -> -4394 | D35: =SUM('Plan Energi 2011'!C25:C25)*-1 -> 0 | E35: =SUM('Plan Energi 2011'!W25:W25)*-1 -> 0 | F35: -3.7 | G35: =SUM('Plan Energi 2011'!Q25:Q25)*-1 -> 0 | H35: =SUM('Plan Energi 2011'!R25:R25)*-1 -> 0 | I35: 0 | J35: =SUM('Plan Energi 2011'!S25:S25)*-1 -> -3.7 | K35: 0 | L35: =SUM('Plan Energi 2011'!O23:O25)*-1 -> 0 | M35: 0 | N35: =SUM('Plan Energi 2011'!T25:V25)*-1 -> 0 | O35: 0 | P35: =SUM('Plan Energi 2011'!L25:L25)*-1 -> 0 | Q35: =SUM('Plan Energi 2011'!J23:J25)*-1 -> 0 | R35: 0 | S35: 0 | T35: 0 | U35: =SUM('Plan Energi 2011'!M25:M25)*-1 -> 0 | V35: =SUM('Plan Energi 2011'!N25:N25)*-1 -> 0 | W35: =SUM('Plan Energi 2011'!P25:P25)*-1 -> 0 | X35: -529.78 | Y35: 0 | Z35: ='Plan Energi 2011'!B16*'Plan Energi 2011'!AN16/SUM('Plan Energi 2011'!AI16:AQ16)*-1 -> -12.78 | AA35: 0 | AB35: =SUM('Plan Energi 2011'!H25:H25)*-1 -> 0 | AC35: 0 | AD35: =SUM('Plan Energi 2011'!G25:G25)*-1 -> 0 | AE35: =SUM('Plan Energi 2011'!F25:F25)*-1 -> 0 | AF35: =SUM('Plan Energi 2011'!D25:E25)*-1 -> -517 | AG35: 0 | AH35: 0 | AI35: 0 | AJ35: =('Plan Energi 2011'!AN12*'Plan Energi 2011'!AE12/'Plan Energi 2011'!AH12+'Plan Energi 2011'!AN13*'Plan Energi 2011'!AE13/'Plan Energi 2011'!AH13+'Plan Energi 2011'!AN69*'Plan Energi 2011'!D2/100)*-1 -> -386.15863 | AK35: 0 | AL35: 0 | AM35: 0 | AN35: 0 | AO35: -5313.63863 | AP35: Tung proces | AQ35: AP | AR35: A | AT35: 4895.436659 | AU35: 0.9212964976 | AW35: 0 | AX35: 0 | AY35: 0 | AZ35: 0 | BA35: 0 | BB35: 0 | BC35: 0 | BD35: 0 | BE35: 0 | BF35: 0 | BG35: 0 | BH35: 0 | BI35: 0 | BJ35: 0 | BK35: 0 | BL35: 0 | BM35: 0 | BN35: 0 | BO35: 0 | BP35: 0 | BQ35: 0 | BR35: 0 | BS35: 0 | BT35: 0 | BU35: 0 | BV35: 0 | BW35: 0 | BX35: 0 | BY35: 0 | BZ35: 0 | CA35: 0 | CB35: 0 | CC35: 0 | CD35: 0 | CE35: 0 | CF35: 0 | CG35: =SUM('Plan Energi 2011'!AN8:AN80)-'Plan Energi 2011'!AN23-'Plan Energi 2011'!AN24 -> 4895.436659 | CH35: 0 | CI35: 418.2019709 | CJ35: =-(C35*'Plan Energi 2011'!$I$89/1000+D35*'Plan Energi 2011'!$C$89/1000+E35*'Plan Energi 2011'!$W$89/1000+X35*'Plan Energi 2011'!$F$89/1000) -> 289.5299
F36: 0 | O36: 0 | Q36: 0 | X36: 0 | AN36: 0 | AO36: 0 | AP36: Ikke energiformål | AQ36: AIE | AR36: A | AU36: 0.9 | AZ36: 0 | BI36: 0 | BK36: 0 | BR36: 0 | CG36: =AO36*AU36*-1 -> 0 | CI36: 0
AP37: Energitjenester | AQ37: EN
C38: =C6+'Plan Energi 2011'!I81 -> 0 | D38: =D6+'Plan Energi 2011'!C81 -> 0 | E38: =E6+'Plan Energi 2011'!W81 -> 0 | G38: =G6+'Plan Energi 2011'!Q81 -> 0 | H38: =H6+'Plan Energi 2011'!R81 -> 0 | J38: =J6+'Plan Energi 2011'!S81 -> 0 | L38: =L6+'Plan Energi 2011'!O81 -> 0 | N38: =N6+'Plan Energi 2011'!T81+'Plan Energi 2011'!U81+'Plan Energi 2011'!V81 -> 3.907985047e-14 | P38: =P8+P20+'Plan Energi 2011'!L81 -> 0 | Q38: =Q20+Q8+'Plan Energi 2011'!J81 -> 1.068 | U38: =U20+U8+'Plan Energi 2011'!M81 -> 0 | V38: =V20+V8+'Plan Energi 2011'!N81 -> 0 | W38: =W20+W8+'Plan Energi 2011'!P81 -> 1.36097 | Z38: =Z18+Z8+'Plan Energi 2011'!B81 -> 0 | AB38: =AB18+AB8+'Plan Energi 2011'!H81 -> 0 | AD38: =AD18+AD8+'Plan Energi 2011'!G81 -> 0 | AE38: =AE18+AE8+'Plan Energi 2011'!F81 -> 0 | AF38: =AF18+AF8+'Plan Energi 2011'!D81+'Plan Energi 2011'!E81 -> 0 | AJ38: =AJ9+'Plan Energi 2011'!A15 -> 444.5170105 | AK38: =AK18-('Plan Energi 2011'!AF32+'Plan Energi 2011'!AF39+'Plan Energi 2011'!AF43+'Plan Energi 2011'!AF52+'Plan Energi 2011'!AF55+'Plan Energi 2011'!AF62+'Plan Energi 2011'!AF71) -> 0
AJ39: =CD9-'Plan Energi 2011'!A15 -> 0

Sheet Plan Energi 2011 (hidden)
A1: Antal indbyggere: | D1: 50104 | Y1: Geografisk energibalance for
A2: Elnetvirkningsgrad: | D2: 92.08 | E2: %
A3: Enheder: | D3: TJ, tons | Y3: Fredericia Kommune 2011
A6: Brændsel | Y6: Anlægstype | Z6: Virkningsgrad | AD6: Elnet | AF6: Fjernvarmenet | AI6: Slutforbrug
A7: Elimport | B7: LPG og petroleum | C7: Kul | D7: Fuelolie | E7: Brændselsolie | F7: Dieselolie | G7: JP1 | H7: Benzin | I7: Naturgas | J7: Vindenergi | K7: Vandenergi | L7: Solenergi | M7: Geotermi | N7: Varmekilder til varmepumper | O7: Husdyrsgødning | P7: Biobrændstof og energiafgrøder | Q7: Halm | R7: Brænde og træflis | S7: Træpiller og træaffald | T7: Organisk affald, industri | U7: Organisk affald, husholdninger | V7: Deponi, slam, renseanlæg | W7: Affald, ikke bionedbrydeligt | X7: Faktisk energiforbrug | Z7: El | AA7: Proces | AB7: Varme | AC7: Fjernvarmenet | AD7: Ab værk | AE7: An forbruger | AF7: Ab værk | AG7: An forbruger | AH7: Samlet | AI7: Boliger og fritidshuse | AJ7: Offentlig service | AK7: Privat service | AL7: Detail- og engroshandel | AM7: Bygge- og anlægsvirksomhed | AN7: Fremstillingsvirksomhed | AO7: Gartneri | AP7: Landbrug | AQ7: Transport
X8: =SUM(A8:W8) -> 0 | Y8: Elkomfur | AA8: 44 | AD8: =-AE8/$D$2% -> -48.05049324 | AE8: =AH8/AA8% -> 44.24489417 | AH8: =SUM(AI8:AQ8) -> 19.46775344 | AI8: 19.46775344
X9: 0 | Y9: Elvandvarmer | AB9: 90 | AD9: -5.882993428 | AE9: =AH9/AB9% -> 5.417060349 | AH9: 4.875354314 | AI9: 4.875354314
X10: 0 | Y10: Elradiator | AB10: 100 | AD10: -24.96070069 | AE10: =AH10/AB10% -> 22.98381319 | AH10: 22.98381319 | AI10: 22.98381319
X11: 0 | Y11: Belysning | AA11: 50 | AD11: -189.2526624 | AE11: =AH11/AA11% -> 174.2638515 | AH11: 87.13192576 | AI11: 22.12244709 | AJ11: 27.00225995 | AK11: 14.46529406 | AL11: 12.62223407 | AM11: 0.3086790007 | AN11: 8.059886486 | AO11: 0.1016995724 | AP11: 2.44942554
X12: 0 | Y12: Elkompressorer | AA12: 150 | AD12: -147.969383 | AE12: =AH12/AA12% -> 136.2502079 | AH12: 204.3753119 | AI12: 78.35628032 | AJ12: 0 | AK12: 48.60338805 | AL12: 42.41070646 | AM12: 1.234716003 | AN12: 32.23954594 | AO12: 0.06101974345 | AP12: 1.469655324
X13: 0 | Y13: Elmotorer m.m. | AA13: 85 | AD13: -717.1765056 | AE13: =AH13/AA13% -> 660.3761263 | AH13: 561.3197074 | AI13: 123.0150783 | AJ13: 124.1103874 | AK13: 46.23107982 | AL13: 40.34066008 | AM13: 7.521478316 | AN13: 196.3925674 | AO13: 0.9451280263 | AP13: 22.76332802
N14: =AH14-AE14 -> 0.934 | X14: 0.934 | Y14: Varmepumper, individuel | AB14: 300 | AD14: -0.5071676803 | AE14: 0.467 | AH14: 1.401 | AI14: 1.401
A15: =Z15%*AD15 -> 444.5170105 | X15: 444.5170105 | Y15: Elimport | Z15: 100 | AD15: =-SUM(AD16:AD80,AD8:AD14) -> 444.5170105 | AH15: =SUM(AI15:AQ15) -> 0
B16: 21.3 | X16: 21.3 | Y16: Gaskomfur, proces, m.m. | AB16: 38 | AH16: 8.094 | AI16: =X16*AB16/100*0.2 -> 1.6188 | AN16: =X16*AB16/100*0.6 -> 4.8564 | AQ16: =X16*AB16/100*0.2 -> 1.6188
E17: 100 | X17: 100 | Y17: Gasoliekedel, individuel | AB17: 80 | AH17: 80 | AI17: =X17*AB17/100 -> 80
I18: 0.7 | X18: 0.7 | Y18: Naturgaskedel, individuel | AB18: 85 | AH18: 0.595 | AI18: 0.595
S19: 62 | X19: 62 | Y19: Træpillekedel, individuel | AB19: 75 | AH19: 46.5 | AI19: 46.5
R20: 158 | X20: 158 | Y20: Brændekedel og -ovn, individuel | AB20: 65 | AH20: 102.7 | AI20: 102.7
Q21: 27 | X21: 27 | Y21: Halmfyr, individuel | AB21: 65 | AH21: 17.55 | AI21: 17.55
L22: 2.8 | X22: 2.8 | Y22: Solvarmeanlæg | AB22: 100 | AH22: 2.8 | AI22: 2.8
E23: 22 | X23: 22 | Y23: Gasoliekedel, erhverv | AA23: 90 | AH23: 19.8 | AN23: =X23*AA23/100 -> 19.8
I24: 292.239 | X24: 292.239 | Y24: Naturgaskedel, erhverv | AA24: 90 | AH24: 263.0151 | AN24: =X24*AA24/100 -> 263.0151
D25: 517 | I25: 4394 | S25: 3.7 | X25: 4914.7 | Y25: Industrikedel, erhverv | AA25: 90 | AH25: 4423.23 | AN25: =X25*AA25/100 -> 4423.23
L26: 0.1 | X26: 0.1 | Y26: Solcelleanlæg | Z26: 100 | AD26: =X26*Z26/100 -> 0.1 | AH26: 0
J27: 15.228 | X27: 15.228 | Y27: Vindkraftanlæg, land | Z27: 100 | AD27: =Z27*X27/100 -> 15.228 | AH27: 0
X28: 0 | Y28: Vindkraftanlæg, kystnære (50 %) | Z28: 100 | AD28: =Z28*X28/100 -> 0 | AH28: 0
X29: 0 | Y29: Vandkraftanlæg | Z29: 100 | AD29: =Z29*X29/100 -> 0 | AH29: 0
X30: 0 | Y30: Bølgekraftanlæg | Z30: 100 | AD30: =Z30*X30/100 -> 0 | AH30: 0
I31: =-(O31+T31)*AA31% -> 0 | X31: 0 | Y31: Biogasanlæg, opgradering
X32: 0 | Y32: Biogasanlæg, motor | AD32: =X32*Z32/100 -> 0 | AF32: =X32*AB32/100 -> 0 | AH32: =SUM(AI32:AQ32) -> 0
X33: 0 | Y33: Centrale kraftværker, dampturbine | Z33: 34.4 | AB33: 51.6 | AD33: =X33*Z33/100 -> 0 | AF33: =X33*AB33/100 -> 0 | AH33: 0
X34: 0 | Y34: Centrale kraftværker, forbrændingsmotor | AD34: =X34*Z34/100 -> 0 | AF34: =X34*AB34 -> 0 | AH34: 0
X35: 0 | Y35: Centrale kraftværker, gasturbine | AD35: =X35*Z35/100 -> 0 | AF35: =X35*AB35 -> 0 | AH35: 0
X36: 0 | Y36: Centrale kraftværker, kedel | AF36: =X36*AB36/100 -> 0 | AH36: 0
N37: =AF37-AE37 -> 0 | X37: 0 | Y37: Centrale kraftværker, varmepumpe | AD37: =-AE37/$D$2% -> 0 | AF37: =AE37*AB37% -> 0
X38: 0 | Y38: Centrale kraftværker, elpatron | AD38: =-AE38/$D$2% -> 0 | AF38: =AE38*AB38% -> 0
X39: 0 | Y39: Centrale kraftværker, fjernvarmeproduktion | AC39: 77.2 | AF39: =-SUM(AF33:AF36) -> 0 | AG39: =-AF39*AC39/100 -> 0 | AH39: 0 | AI39: =AG39*63.8% -> 0 | AJ39: =AG39*9.6% -> 0 | AK39: =AG39*12.9% -> 0 | AL39: =AG39*7% -> 0 | AM39: =AG39*0% -> 0 | AN39: =AG39*4.8% -> 0 | AO39: =AG39*1.9% -> 0
X40: 0 | Y40: Affaldsforbrændingsanlæg, dampturbine | AD40: =X40*Z40/100 -> 0 | AF40: =X40*AB40/100 -> 0 | AH40: 0
X41: 0 | Y41: Affaldsforbrændingsanlæg, kedel | AD41: =X41*Z41/100 -> 0 | AF41: =X41*AB41/100 -> 0 | AH41: 0
X42: 0 | Y42: Affaldsforbrændingsanlæg, kombianlæg | AD42: =X42*Z42/100 -> 0 | AF42: =X42*AB42/100 -> 0 | AH42: 0
X43: 0 | Y43: Affaldsforbrændingsanlæg, fjernvarmeproduktion | AC43: 77.2 | AF43: =-SUM(AF40:AF42) -> 0 | AG43: =-AF43*AC43/100 -> 0 | AH43: 0 | AI43: =AG43*63.8% -> 0 | AJ43: =AG43*9.6% -> 0 | AK43: =AG43*12.9% -> 0 | AL43: =AG43*7% -> 0 | AM43: =AG43*0% -> 0 | AN43: =AG43*4.8% -> 0 | AO43: =AG43*1.9% -> 0
X44: 0 | Y44: Decentrale KV-værker, dampturbine | AD44: =X44*Z44/100 -> 0 | AF44: =X44*AB44/100 -> 0 | AH44: 0
X45: 0 | Y45: Decentrale KV-værker, forbrændingsmotor | AD45: =X45*Z45/100 -> 0 | AF45: 0 | AH45: 0
X46: 0 | Y46: Decentrale KV-værker, gasturbine | AD46: =X46*Z46/100 -> 0 | AF46: 0 | AH46: 0
X47: 0 | Y47: Decentrale KV-værker, kedel | AD47: =X47*Z47/100 -> 0 | AF47: 0 | AH47: 0
N48: =AH48-AE48 -> 0 | X48: 0 | Y48: Decentrale KV-værker, varmepumpe | AD48: =-AG48/$D$2% -> 0 | AF48: =X48*AB48/100 -> 0
X49: 0 | Y49: Decentrale KV-værker, elpatron | AD49: =-AG49/$D$2% -> 0 | AF49: =X49*AB49/100 -> 0
X50: 0 | Y50: Decentrale KV-værker, solvarme | AF50: 0 | AH50: 0
X51: 0 | Y51: Decentrale KV-værker, kombianlæg | AD51: =X51*Z51/100 -> 0 | AF51: 0 | AH51: 0
X52: 0 | Y52: Decentrale KV-værker, fjernvarmeproduktion | AC52: 77.2 | AF52: =-SUM(AF44:AF51) -> 0 | AG52: =-AF52*AC52/100 -> 0 | AH52: 0 | AI52: =AG52*63.8% -> 0 | AJ52: =AG52*9.6% -> 0 | AK52: =AG52*12.9% -> 0 | AL52: =AG52*7% -> 0 | AM52: =AG52*0% -> 0 | AN52: =AG52*4.8% -> 0 | AO52: =AG52*1.9% -> 0
V53: 9.2 | X53: 9.2 | Y53: Lokale KV-værker, motor | Z53: 30.1 | AA53: 43 | AD53: =X53*Z53/100 -> 2.7692 | AF53: =X53*AB53/100 -> 0 | AH53: =SUM(AI53:AQ53) -> 3.956 | AJ53: =X53*AA53/100 -> 3.956
X54: 0 | Y54: Lokale KV-værker, kedel | AD54: =X54*Z54/100 -> 0 | AF54: =X54*AB54/100 -> 0 | AH54: 0
X55: 0 | Y55: Lokale KV-værker, fjernvarmeproduktion | AC55: 77.2 | AF55: =-SUM(AF53:AF54) -> 0 | AG55: =-AF55*AC55/100 -> 0 | AH55: 0 | AI55: =AG55*63.8% -> 0 | AJ55: =AG55*9.6% -> 0 | AK55: =AG55*12.9% -> 0 | AL55: =AG55*7% -> 0 | AM55: =AG55*0% -> 0 | AN55: =AG55*4.8% -> 0 | AO55: =AG55*1.9% -> 0
X56: 0 | Y56: Fjernvarmeværker, kedel | AF56: =X56*AB56/100 -> 0 | AH56: 0
N57: =AF57-AE57 -> 0 | X57: 0 | Y57: Fjernvarmeværker, varmepumpe | AD57: =-AG57/$D$2% -> 0 | AF57: =AE57*AB57% -> 0
X58: 0 | Y58: Fjernvarmeværker, elpatron | AF58: =X58*AB58/100 -> 0
X59: 0 | Y59: Fjernvarmeværker, geotermi | AF59: =X59*AB59/100 -> 0
X60: 0 | Y60: Fjernvarmeværker, solvarme | AF60: =X60*AB60/100 -> 0 | AH60: 0
E61: =144*0.334 -> 48.096 | I61: =(1559.46+7339)*0.334 -> 2972.08564 | Q61: =8*0.334 -> 2.672 | R61: =79*0.334 -> 26.386 | S61: =(9+158)*0.334 -> 55.778 | U61: =1367*0.55*0.334 -> 251.1179 | V61: =9*0.334 -> 3.006 | W61: =1367*0.45*0.334 -> 205.4601 | X61: 3564.60164 | Y61: Import fjernvarme | Z61: 22.9 | AB61: 53.5 | AD61: =X61*Z61% -> 816.2937756 | AF61: =X61*AB61% -> 1907.061877 | AH61: 0
X62: 0 | Y62: Fjernvarmeværker, fjernvarmeproduktion | AC62: 77.2 | AF62: =-SUM(AF56:AF61) -> -1907.061877 | AG62: =-AF62*AC62/100 -> 1472.251769 | AH62: 1472.251769 | AI62: =AG62*63.9% -> 940.7688806 | AJ62: =AG62*9.3% -> 136.9194145 | AK62: =AG62*13.3% -> 195.8094853 | AL62: =AG62*7.1% -> 104.5298756 | AM62: =AG62*0% -> 0 | AN62: =AG62*4.9% -> 72.1403367 | AO62: =AG62*1.5% -> 22.08377654
X63: 0 | Y63: Industrielle KV-værker, dampturbine | AD63: =Z63/100*X63 -> 0 | AF63: =X63*AB63/100 -> 0 | AH63: 0
X64: 0 | Y64: Industrielle KV-værker, forbrændingsmotor | AD64: 0 | AF64: =X64*AB64/100 -> 0 | AH64: 0
X65: 0 | Y65: Industrielle KV-værker, gasturbine | AD65: 0 | AF65: =X65*AB65/100 -> 0 | AH65: 0
X66: 0 | Y66: Industrielle KV-værker, kedel | AD66: 0 | AF66: =X66*AB66/100 -> 0 | AH66: 0
X67: 0 | Y67: Industrielle KV-værker, kombianlæg | AD67: 0 | AF67: =X67*AB67/100 -> 0 | AH67: 0
X68: 0 | Y68: Industrielle KV-værker, overskudsvarme | AD68: 0 | AF68: =(16.55+1048)*0.333 -> 354.49515 | AH68: 0
X69: 0 | Y69: Industrielle KV-værker, forbrug, eget forbrug, el | AD69: =-AE69 -> -145.10808 | AE69: =435.76*0.333 -> 145.10808 | AH69: 145.10808 | AN69: =AE69 -> 145.10808
X70: 0 | Y70: Industrielle KV-værker, forbrug, eget forbrug, varme | AH70: 0 | AN70: =-AF70 -> 0
X71: 0 | Y71: Industrielle KV-værker, fjernvarmeproduktion | AC71: 77.2 | AF71: =-SUM(AF63:AF70) -> -354.49515 | AG71: =-AF71*AC71/100 -> 273.6702558 | AH71: 273.6702558 | AI71: =AG71*63.9% -> 174.8752935 | AJ71: =AG71*9.3% -> 25.45133379 | AK71: =AG71*13.3% -> 36.39814402 | AL71: =AG71*7.1% -> 19.43058816 | AM71: =AG71*0% -> 0 | AN71: =AG71*4.9% -> 13.40984253 | AO71: =AG71*1.5% -> 4.105053837
H72: 560.183316 | P72: 19.296684 | X72: =SUM(A72:W72) -> 579.48 | Y72: Benzinbiler | AA72: 20 | AH72: 115.896 | AQ72: =X72*AA72/100 -> 115.896
F73: 303.422813 | P73: 11.887187 | X73: 315.31 | Y73: Dieselbiler | AA73: 25 | AH73: 78.8275 | AQ73: =X73*AA73/100 -> 78.8275
F74: =198.123*(1-3.8%) -> 190.594326 | P74: =198.123*3.8% -> 7.528674 | X74: 198.123 | Y74: Varebiler | AA74: 25 | AH74: 49.53075 | AQ74: =X74*AA74/100 -> 49.53075
F75: =17.89*(1-3.8%) -> 17.21018 | P75: =17.89*3.8% -> 0.67982 | X75: 17.89 | Y75: Busser | AA75: 33 | AH75: 5.9037 | AQ75: =X75*AA75/100 -> 5.9037
F76: 342.925228 | P76: 13.434772 | X76: 356.36 | Y76: Lastbiler m.m. | AA76: 33 | AH76: 117.5988 | AQ76: =X76*AA76/100 -> 117.5988
F77: 34.73903 | P77: 1.36097 | X77: 36.1 | Y77: Traktorer | AA77: 33 | AH77: 11.913 | AP77: =X77*AA77% -> 11.913
F78: 30.4 | X78: 30.4 | Y78: Tog | AA78: 33 | AD78: =-AE78/$D$2% -> 0 | AH78: 10.032 | AQ78: =X78*AA78/100+AE78*AA78% -> 10.032
G79: 344 | H79: 0.6 | X79: 344.6 | Y79: Fly | AA79: 33 | AH79: 113.718 | AQ79: =X79*AA79/100 -> 113.718
D80: 6.6 | F80: 50.9 | X80: 57.5 | Y80: Skibe | AA80: 33 | AH80: 18.975 | AQ80: =X80*AA80/100 -> 18.975
A81: =SUM(A8:A80) -> 444.5170105 | B81: 21.3 | C81: 0 | D81: 523.6 | E81: 170.096 | F81: 970.191577 | G81: 344 | H81: 560.783316 | I81: 7659.02464 | J81: 15.228 | K81: 0 | L81: 2.9 | M81: 0 | N81: 0.934 | O81: 0 | P81: 54.188107 | Q81: 29.672 | R81: 184.386 | S81: 121.478 | T81: 0 | U81: 251.1179 | V81: 12.206 | W81: 205.4601 | X81: =SUM(X8:X80) -> 11571.08265 | Y81: Samlet | AD81: =SUM(AD8:AD80) -> -2.842170943e-14 | AE81: 1189.111033 | AF81: 0 | AG81: 1745.922025 | AH81: 8283.219821 | AI81: 1639.629701 | AJ81: 317.4393957 | AK81: 341.5073913 | AL81: 219.3340644 | AM81: 9.064873319 | AN81: 5178.251759 | AO81: 27.29667772 | AP81: 38.59540889 | AQ81: 512.10055
A82: =A81*A89/1000 -> 78.23499385 | B82: =B81*B87/1000 -> 0 | C82: =C81*C87/1000 -> 0 | D82: =D81*D89/1000 -> 40.8408 | E82: 12.587104 | F82: 71.7941767 | G82: 24.768 | H82: 40.93718207 | I82: 436.3346337 | J82: 0 | K82: 0 | L82: 0 | M82: 0 | N82: 0 | O82: 0 | P82: 0 | Q82: 0 | R82: 0 | S82: 0 | T82: 0 | U82: 0 | V82: 0 | W82: 16.89292942 | X82: =SUM(A82:W82) -> 722.3898198 | Y82: CO2-emissioner (1.000 tons) | Z82: =X82*1000/D1 -> 14.41780736 | AA82: tons/indbygger
O83: 229.6636516 | P83: 674.5806144 | Q83: 690.9963311 | R83: 438.6526335 | X83: =SUM(A83:W83) -> 2033.893231 | Y83: Lokalt biomassepotentiale | Z83: =(SUM(J14:V14)+AD15*A87%+SUM(J19:V19)+SUM(J20:V20)+SUM(J21:V21)+SUM(J22:V22)+SUM(J25:V25)+SUM(J72:V72)+SUM(J73:V73)+SUM(J74:V74)+SUM(J75:V75)+SUM(J76:V76)+SUM(J77:V77)+SUM(J78:V78)+SUM(J79:V79)+SUM(J80:V80)+SUM(J26:V26)*(Z26%+AB26%)+SUM(J27:V27)*(Z27%+AB27%)+SUM(J28:V28)*(Z28%+AB28%)+SUM(J29:V29)*(Z29%+AB29%)+SUM(J30:V30)*(Z30%+AB30%)+SUM(J32:V32)*(Z32%+AA32%+AB32%)+SUM(J31:V31)*(AA31%)+SUM(J33:V33)*(Z33%+AB33%)+SUM(J34:V34)*(Z34%+AB34%)+SUM(J35:V35)*(Z35%+AB35%)+SUM(J36:V36)*(Z36%+AB36%)+SUM(J37:V37)*(Z37%+AB37%)+SUM(J40:V40)*(Z40%+AB40%)+SUM(J41:V41)*(Z41%+AB41%)+SUM(J42:V42)*(Z42%+AB42%)+SUM(J44:V44)*(Z44%+AB44%)+SUM(J45:V45)*(Z45%+AB45%)+SUM(J46:V46)*(Z46%+AB46%)+SUM(J47:V47)*(Z47%+AB47%)+SUM(J48:V48)*(Z48%+AB48%)+SUM(J50:V50)*(Z50%+AB50%)+SUM(J51:V51)*(Z51%+AB51%)+SUM(J53:V53)*(Z53%+AA53%+AB53%)+SUM(J54:V54)*(Z54%+AA54%+AB54%)+SUM(J56:V56)*(Z56%+AB56%)+SUM(J57:V57)*(Z57%+AB57%)+SUM(J59:V59)*(Z59%+AB59%)+SUM(J60:V60)*(Z60%+AB60%)+SUM(J61:V61)*(Z61%+AB61%)+SUM(J63:V63)*(Z63%+AB63%)+SUM(J64:V64)*(Z64%+AB64%)+SUM(J65:V65)*(Z65%+AB65%)+SUM(J66:V66)*(Z66%+AB66%)+SUM(J67:V67)*(Z67%+AB67%)+SUM(J68:V68)*(Z68%+AB68%))/(SUM(X8:X14)+SUM(X16:X25)+SUM(X72:X80)+(AG39/AC39%+AG43/AC43%+AG52/AC52%+AG55/AC55%+AG62/AC62%+AG71/AC71%)+AE81+SUM(AE8:AE14)*(1-D2%)+(-AF70))*100 -> 6.490509371 | AA83: % VE (Global)
O84: 0 | P84: 6.816029399 | Q84: 4.29408937 | R84: 42.03462738 | X84: =SUMIF(J83:W83,">0",J81:W81)/SUM(J83:W83)% -> 13.18879983 | Y84: Udnyttelsesprocent af lokalt biomassepotentiale
A86: %) | B86: =B7 -> LPG og petroleum | C86: Kul | D86: Fuelolie | E86: Brændselsolie | F86: Dieselolie | G86: JP1 | H86: Benzin | I86: Naturgas | J86: Vindenergi | K86: Vandenergi | L86: Solenergi | M86: Geotermi | N86: Varmekilder til varmepumper | O86: Husdyrsgødning | P86: Biobrændstof og energiafgrøder | Q86: Halm | R86: Brænde og træflis | S86: Træpiller og træaffald | T86: Organisk affald, industri | U86: Organisk affald, husholdninger | V86: Deponi, slam, renseanlæg | W86: Affald, ikke bionedbrydeligt
A87: 29
A88: Elimport (heraf VE-andel:
A89: 176 | B89: 65 | C89: 95 | D89: 78 | E89: 74 | F89: 74 | G89: 72 | H89: 73 | I89: 56.97 | W89: 82.22 | X89: CO2-emission (tons/TJ)

Sheet e2g-format 2013 (hidden)
B1: Forbrug | C1: Naturgas | D1: Kul | E1: Affald (ikke-bionedbrydeligt) | F1: Biobrændsler | G1: Halm | H1: Skovflis | I1: Brænde | J1: Træpiller | K1: Træaffald | L1: Biogas | M1: Biomasse | N1: Affald (bionedbrydeligt) | O1: Ikke-brændsel VE | P1: Sol | Q1: Vind | R1: Havvind | S1: Landvind | T1: Vand | U1: Geotermisk | V1: Varmepumpe - omgivelsesvarme | W1: Bioolie, biodiesel og bioethanol | X1: Olieprodukter | Y1: Raffinaderigas | Z1: LPG | AA1: Flybenzin | AB1: Benzin | AC1: Petroleum / Kerosen | AD1: JP1 | AE1: Gasolie/Dieselolie | AF1: Fuelolie | AG1: Spildolie | AH1: Petrokoks | AI1: Terpentin, smøreolie og bitumen | AJ1: El | AK1: Fjernvarme | AL1: Overskudsvarme | AM1: Energitjenester | AN1: Total energiforbrug | AO1: Brutto brændsel | AP1: =Andet!B4 -> Fredericia | AS1: Faktor | AT1: Brutto produktion | AU1: Virkningsgrad | AV1: Produktion | AW1: Naturgas | AX1: Kul | AY1: Affald (ikke-bionedbrydeligt) | AZ1: Biobrændsler | BA1: Halm | BB1: Skovflis | BC1: Brænde | BD1: Træpiller | BE1: Træaffald | BF1: Biogas | BG1: Biomasse | BH1: Affald (bionedbrydeligt) | BI1: Ikke-brændsel VE | BJ1: Sol | BK1: Vind | BL1: Havvind | BM1: Landvind | BN1: Vand | BO1: Geotermisk | BP1: Varmepumpe - omgivelsesvarme | BQ1: Bioolie, biodiesel og bioethanol | BR1: Olieprodukter | BS1: Raffinaderigas | BT1: LPG | BU1: Flybenzin | BV1: Benzin | BW1: Petroleum / Kerosen | BX1: JP1 | BY1: Gasolie/Dieselolie | BZ1: Fuelolie | CA1: Spildolie | CB1: Petrokoks | CC1: Terpentin, smøreolie og bitumen | CD1: El | CE1: Fjernvarme | CF1: Nyttiggjort overskudsvarme | CG1: Energitjenester | CH1: Total energiforbrug | CI1: Tab | CJ1: CO2-udledning
A2: ID | B2: F | C2: FN | D2: FK | E2: FMA | F2: FVB | G2: FB1 | H2: FB2 | I2: FB3 | J2: FB4 | K2: FB5 | L2: FB6 | M2: FB7 | N2: FB8 | O2: FLVE | P2: FLVE1 | Q2: FLVE2 | R2: FLVE21 | S2: FLVE22 | T2: FLVE3 | U2: FLVE4 | V2: FLVE5 | W2: FS | X2: FOO | Y2: FO1 | Z2: FO2 | AA2: FO3 | AB2: FO4 | AC2: FO5 | AD2: FO6 | AE2: FO7 | AF2: FO8 | AG2: FO9 | AH2: FOO1 | AI2: FOO2 | AJ2: FE | AK2: FF | AL2: FOV | AM2: FWEN | AN2: FTOTAL | AO2: fbrbr | AQ2: ID | AR2: ID Parent | AS2: factor | AT2: pbrpr | AU2: pvrkg | AV2: P | AW2: PN | AX2: PK | AY2: PMA | AZ2: PVB | BA2: PB1 | BB2: PB2 | BC2: PB3 | BD2: PB4 | BE2: PB5 | BF2: PB6 | BG2: PB7 | BH2: PB8 | BI2: PLVE | BJ2: PLVE1 | BK2: PLVE2 | BL2: PLVE21 | BM2: PLVE22 | BN2: PLVE3 | BO2: PLVE4 | BP2: PLVE5 | BQ2: PS | BR2: POO | BS2: PO1 | BT2: PO2 | BU2: PO3 | BV2: PO4 | BW2: PO5 | BX2: PO6 | BY2: PO7 | BZ2: PO8 | CA2: PO9 | CB2: POO1 | CC2: POO2 | CD2: PE | CE2: PF | CF2: POV | CG2: PWEN | CH2: PTOTAL | CI2: PTAB | CJ2: PCO2
A3: ID Parent | C3: F | D3: F | E3: F | F3: F | G3: FVB | H3: FVB | I3: FVB | J3: FVB | K3: FVB | L3: FVB | M3: FVB | N3: FVB | O3: F | P3: FLVE | Q3: FLVE | R3: FLVE2 | S3: FLVE2 | T3: FLVE | U3: FLVE | V3: FLVE | W3: F | X3: F | Y3: FOO | Z3: FOO | AA3: FOO | AB3: FOO | AC3: FOO | AD3: FOO | AE3: FOO | AF3: FOO | AG3: FOO | AH3: FOO | AI3: FOO | AJ3: F | AK3: F | AL3: F | AM3: F | AN3: F | AP3: Structures | AW3: P | AX3: P | AY3: P | AZ3: P | BA3: PVB | BB3: PVB | BC3: PVB | BD3: PVB | BE3: PVB | BF3: PVB | BG3: PVB | BH3: PVB | BI3: P | BJ3: PLVE | BK3: PLVE | BL3: PLVE2 | BM3: PLVE2 | BN3: PLVE | BO3: PLVE | BP3: PLVE | BQ3: P | BR3: P | BS3: POO | BT3: POO | BU3: POO | BV3: POO | BW3: POO | BX3: POO | BY3: POO | BZ3: POO | CA3: POO | CB3: POO | CC3: POO | CD3: P | CE3: P | CF3: P | CG3: P | CH3: P
AV4: =B4 -> 0 | AZ4: =F4 -> 0 | BI4: =O4 -> 0 | BK4: =Q4 -> 0 | BR4: =X4 -> 0 | CI4: =B4 -> 0
F5: =SUM(G5:N5) -> 0 | O5: =P5+Q5+T5+U5+V5 -> 0 | Q5: =R5+S5 -> 0 | X5: =SUM(Y5:AI5) -> 0 | AN5: 0 | AO5: =SUM(C5:F5,O5,W5,X5,AJ5:AL5) -> 0 | AP5: Indgang for brændsler (bio, kul mv.) | AQ5: TP | AT5: =SUM(AW5:AZ5,BI5,BQ5,BR5,CD5:CG5) -> 8509.726269 | AW5: =-C6 -> 7636.297269 | AX5: 0 | AY5: 186.14475 | AZ5: 687.28425 | BA5: 26.943 | BB5: 177.255 | BC5: 0 | BD5: 245.382 | BE5: 0 | BF5: 0 | BG5: 0 | BH5: 237.70425 | BI5: =BJ5+BK5+BN5+BO5+BP5 -> 0 | BK5: =BL5+BM5 -> 0 | BR5: =SUM(BS5:CC5) -> 0
C6: =-AW6 -> -7636.297269 | D6: =-AX6 -> 0 | E6: -186.14475 | F6: -687.28425 | G6: -26.943 | H6: -177.255 | I6: 0 | J6: -245.382 | K6: 0 | L6: 0 | M6: 0 | N6: -237.70425 | O6: 0 | Q6: 0 | X6: 0 | AN6: 0 | AO6: -8509.726269 | AP6: Transport af brændsler | AQ6: TRAP | AT6: 8509.726269 | AW6: =-1*(C8+C20) -> 7636.297269 | AX6: 0 | AY6: 186.14475 | AZ6: 687.28425 | BA6: 26.943 | BB6: 177.255 | BC6: 0 | BD6: 245.382 | BE6: 0 | BF6: 0 | BG6: 0 | BH6: 237.70425 | BI6: =BJ6+BK6+BN6+BO6+BP6 -> 0 | BK6: 0 | BR6: =SUM(BS6:CC6) -> 0
F7: 0 | O7: 0 | Q7: 0 | X7: 0 | AN7: 0 | AO7: 0 | AP7: Indgang nettilsluttet VE | AQ7: TLP1 | AT7: 29.76 | AZ7: =SUM(BA7:BH7) -> 0 | BI7: =BJ7+BK7+BN7+BO7+BP7 -> 29.76 | BJ7: =P8*-1 -> 15.6 | BK7: 14.16 | BL7: =R8*-1 -> 0 | BM7: =S8*-1 -> 14.16 | BR7: =SUM(BS7:CC7) -> 0
C8: =SUM(C9:C11,C14:C17) -> -3144.290409 | D8: 0 | E8: -186.14475 | F8: -435.53925 | G8: -2.943 | H8: -21.255 | I8: 0 | J8: -173.637 | K8: 0 | L8: 0 | M8: 0 | N8: -237.70425 | O8: -29.76 | P8: -15.6 | Q8: -14.16 | R8: 0 | S8: -14.16 | T8: 0 | U8: 0 | V8: 0 | W8: 0 | X8: -47.088 | Y8: 0 | Z8: 0 | AA8: 0 | AB8: 0 | AC8: 0 | AD8: 0 | AE8: 0 | AF8: -47.088 | AG8: 0 | AH8: 0 | AI8: 0 | AJ8: 0 | AK8: 0 | AL8: -317.36985 | AM8: =SUM(AM9:AM11,AM14:AM17) -> 0 | AN8: 0 | AO8: -4160.192259 | AP8: Indgang el, varme og olieprodukter | AQ8: TS | AT8: 6276.744522 | AW8: =SUM(AW9:AW11,AW14:AW17) -> 0 | AX8: 0 | AY8: 0 | AZ8: 0 | BA8: 0 | BB8: 0 | BC8: 0 | BD8: 0 | BE8: 0 | BF8: 0 | BG8: 0 | BH8: 0 | BI8: =BJ8+BK8+BN8+BO8+BP8 -> 0 | BJ8: 0 | BK8: 0 | BL8: 0 | BM8: 0 | BN8: 0 | BO8: 0 | BP8: 0 | BQ8: 0 | BR8: 2578.576574 | BS8: 0 | BT8: 0 | BU8: 0 | BV8: 528.9056599 | BW8: 0 | BX8: 335.2258489 | BY8: 906.9248577 | BZ8: 0 | CA8: 0 | CB8: 0 | CC8: 0 | CD8: 1410.995833 | CE8: 2287.172115 | CF8: 0 | CG8: 0 | CH8: 0 | CI8: 946.9924774 | CJ8: 277.3769676
F9: 0 | O9: 0 | Q9: 0 | X9: 0 | AN9: 0 | AO9: 0 | AP9: Netto import/lager | AQ9: IMP | AR9: TS | AT9: 3062.80474 | AZ9: 0 | BI9: =BJ9+BK9+BN9+BO9+BP9 -> 0 | BK9: 0 | BR9: =IF(BR17+X18<0,(BR17+X18)*-1,0) -> 2578.576574 | BV9: =IF(BV17+AB18<0,(BV17+AB18)*-1) -> 528.9056599 | BX9: =IF(BX17+AD18<0,(BX17+AD18)*-1) -> 335.2258489 | BY9: =IF(BY17+AE20<0,(BY17+AE20)*-1,0) -> 906.9248577 | CD9: =IF(CD10+CD11+CD14+AJ18<0,(CD10+CD11+CD14+AJ18)*-1,0) -> 484.2281667 | CJ9: =CD9*'Plan Energi 2013'!A89/1000 -> 77.47650667
C10: =('Plan Energi 2013'!I32+'Plan Energi 2013'!I33+'Plan Energi 2013'!I34+'Plan Energi 2013'!I35+'Plan Energi 2013'!I40+'Plan Energi 2013'!I42+'Plan Energi 2013'!I44+'Plan Energi 2013'!I45+'Plan Energi 2013'!I46+'Plan Energi 2013'!I51+'Plan Energi 2013'!I53+'Plan Energi 2013'!I61+'Plan Energi 2013'!I63+'Plan Energi 2013'!I64+'Plan Energi 2013'!I65+'Plan Energi 2013'!I67)*-1 -> -3144.290409 | D10: =('Plan Energi 2013'!C32+'Plan Energi 2013'!C33+'Plan Energi 2013'!C34+'Plan Energi 2013'!C35+'Plan Energi 2013'!C40+'Plan Energi 2013'!C42+'Plan Energi 2013'!C44+'Plan Energi 2013'!C45+'Plan Energi 2013'!C46+'Plan Energi 2013'!C51+'Plan Energi 2013'!C53+'Plan Energi 2013'!C61+'Plan Energi 2013'!C63+'Plan Energi 2013'!C64+'Plan Energi 2013'!C65+'Plan Energi 2013'!C67)*-1 -> 0 | E10: =('Plan Energi 2013'!W32+'Plan Energi 2013'!W33+'Plan Energi 2013'!W34+'Plan Energi 2013'!W35+'Plan Energi 2013'!W40+'Plan Energi 2013'!W42+'Plan Energi 2013'!W44+'Plan Energi 2013'!W45+'Plan Energi 2013'!W46+'Plan Energi 2013'!W51+'Plan Energi 2013'!W53+'Plan Energi 2013'!W61+'Plan Energi 2013'!W63+'Plan Energi 2013'!W64+'Plan Energi 2013'!W65+'Plan Energi 2013'!W67)*-1 -> -186.14475 | F10: -435.53925 | G10: =('Plan Energi 2013'!Q32+'Plan Energi 2013'!Q33+'Plan Energi 2013'!Q34+'Plan Energi 2013'!Q35+'Plan Energi 2013'!Q40+'Plan Energi 2013'!Q42+'Plan Energi 2013'!Q44+'Plan Energi 2013'!Q45+'Plan Energi 2013'!Q46+'Plan Energi 2013'!Q51+'Plan Energi 2013'!Q53+'Plan Energi 2013'!Q61+'Plan Energi 2013'!Q63+'Plan Energi 2013'!Q64+'Plan Energi 2013'!Q65+'Plan Energi 2013'!Q67)*-1 -> -2.943 | H10: =('Plan Energi 2013'!R32+'Plan Energi 2013'!R33+'Plan Energi 2013'!R34+'Plan Energi 2013'!R35+'Plan Energi 2013'!R40+'Plan Energi 2013'!R42+'Plan Energi 2013'!R44+'Plan Energi 2013'!R45+'Plan Energi 2013'!R46+'Plan Energi 2013'!R51+'Plan Energi 2013'!R53+'Plan Energi 2013'!R61+'Plan Energi 2013'!R63+'Plan Energi 2013'!R64+'Plan Energi 2013'!R65+'Plan Energi 2013'!R67)*-1 -> -21.255 | J10: =('Plan Energi 2013'!S32+'Plan Energi 2013'!S33+'Plan Energi 2013'!S34+'Plan Energi 2013'!S35+'Plan Energi 2013'!S40+'Plan Energi 2013'!S42+'Plan Energi 2013'!S44+'Plan Energi 2013'!S45+'Plan Energi 2013'!S46+'Plan Energi 2013'!S51+'Plan Energi 2013'!S53+'Plan Energi 2013'!S61+'Plan Energi 2013'!S63+'Plan Energi 2013'!S64+'Plan Energi 2013'!S65+'Plan Energi 2013'!S67)*-1 -> -173.637 | L10: =('Plan Energi 2013'!O32+'Plan Energi 2013'!O33+'Plan Energi 2013'!O34+'Plan Energi 2013'!O35+'Plan Energi 2013'!O40+'Plan Energi 2013'!O42+'Plan Energi 2013'!O44+'Plan Energi 2013'!O45+'Plan Energi 2013'!O46+'Plan Energi 2013'!O51+'Plan Energi 2013'!O53+'Plan Energi 2013'!O61+'Plan Energi 2013'!O63+'Plan Energi 2013'!O64+'Plan Energi 2013'!O65+'Plan Energi 2013'!O67)*-1 -> 0 | N10: =('Plan Energi 2013'!T32+'Plan Energi 2013'!T33+'Plan Energi 2013'!T34+'Plan Energi 2013'!T35+'Plan Energi 2013'!T40+'Plan Energi 2013'!T42+'Plan Energi 2013'!T44+'Plan Energi 2013'!T45+'Plan Energi 2013'!T46+'Plan Energi 2013'!T51+'Plan Energi 2013'!T53+'Plan Energi 2013'!T61+'Plan Energi 2013'!T63+'Plan Energi 2013'!T64+'Plan Energi 2013'!T65+'Plan Energi 2013'!T67+'Plan Energi 2013'!U32+'Plan Energi 2013'!U33+'Plan Energi 2013'!U34+'Plan Energi 2013'!U35+'Plan Energi 2013'!U40+'Plan Energi 2013'!U42+'Plan Energi 2013'!U44+'Plan Energi 2013'!U45+'Plan Energi 2013'!U46+'Plan Energi 2013'!U51+'Plan Energi 2013'!U53+'Plan Energi 2013'!U61+'Plan Energi 2013'!U63+'Plan Energi 2013'!U64+'Plan Energi 2013'!U65+'Plan Energi 2013'!U67+'Plan Energi 2013'!V32+'Plan Energi 2013'!V33+'Plan Energi 2013'!V34+'Plan Energi 2013'!V35+'Plan Energi 2013'!V40+'Plan Energi 2013'!V42+'Plan Energi 2013'!V44+'Plan Energi 2013'!V45+'Plan Energi 2013'!V46+'Plan Energi 2013'!V51+'Plan Energi 2013'!V53+'Plan Energi 2013'!V61+'Plan Energi 2013'!V63+'Plan Energi 2013'!V64+'Plan Energi 2013'!V65+'Plan Energi 2013'!V67)*-1 -> -237.70425 | O10: 0 | Q10: 0 | X10: -47.088 | AE10: =('Plan Energi 2013'!F32+'Plan Energi 2013'!F33+'Plan Energi 2013'!F34+'Plan Energi 2013'!F35+'Plan Energi 2013'!F40+'Plan Energi 2013'!F42+'Plan Energi 2013'!F44+'Plan Energi 2013'!F45+'Plan Energi 2013'!F46+'Plan Energi 2013'!F51+'Plan Energi 2013'!F53+'Plan Energi 2013'!F61+'Plan Energi 2013'!F63+'Plan Energi 2013'!F64+'Plan Energi 2013'!F65+'Plan Energi 2013'!F67)*-1 -> 0 | AF10: =('Plan Energi 2013'!D32+'Plan Energi 2013'!D33+'Plan Energi 2013'!D34+'Plan Energi 2013'!D35+'Plan Energi 2013'!D40+'Plan Energi 2013'!D42+'Plan Energi 2013'!D44+'Plan Energi 2013'!D45+'Plan Energi 2013'!D46+'Plan Energi 2013'!D51+'Plan Energi 2013'!D53+'Plan Energi 2013'!D61+'Plan Energi 2013'!D63+'Plan Energi 2013'!D64+'Plan Energi 2013'!D65+'Plan Energi 2013'!D67+'Plan Energi 2013'!E32+'Plan Energi 2013'!E33+'Plan Energi 2013'!E34+'Plan Energi 2013'!E35+'Plan Energi 2013'!E40+'Plan Energi 2013'!E42+'Plan Energi 2013'!E44+'Plan Energi 2013'!E45+'Plan Energi 2013'!E46+'Plan Energi 2013'!E51+'Plan Energi 2013'!E53+'Plan Energi 2013'!E61+'Plan Energi 2013'!E63+'Plan Energi 2013'!E64+'Plan Energi 2013'!E65+'Plan Energi 2013'!E67)*-1 -> -47.088 | AN10: 0 | AO10: -3813.062409 | AP10: El og varmeproduktion | AQ10: ELOGVARME | AR10: TS | AT10: 2866.069932 | AU10: =AT10/AO10*-1 -> 0.7516451671 | AZ10: 0 | BI10: =BJ10+BK10+BN10+BO10+BP10 -> 0 | BK10: 0 | BR10: =SUM(BS10:CC10) -> 0 | CD10: ='Plan Energi 2013'!AD32+'Plan Energi 2013'!AD33+'Plan Energi 2013'!AD34+'Plan Energi 2013'!AD35+'Plan Energi 2013'!AD40+'Plan Energi 2013'!AD41+'Plan Energi 2013'!AD42+'Plan Energi 2013'!AD44+'Plan Energi 2013'!AD45+'Plan Energi 2013'!AD46+'Plan Energi 2013'!AD51+'Plan Energi 2013'!AD53+'Plan Energi 2013'!AD54+'Plan Energi 2013'!AD47+'Plan Energi 2013'!AD61+'Plan Energi 2013'!AD63+'Plan Energi 2013'!AD64+'Plan Energi 2013'!AD65+'Plan Energi 2013'!AD66+'Plan Energi 2013'!AD67+'Plan Energi 2013'!AD68 -> 896.2676661 | CE10: ='Plan Energi 2013'!AF32+'Plan Energi 2013'!AF33+'Plan Energi 2013'!AF34+'Plan Energi 2013'!AF35+'Plan Energi 2013'!AF40+'Plan Energi 2013'!AF42+'Plan Energi 2013'!AF44+'Plan Energi 2013'!AF45+'Plan Energi 2013'!AF46+'Plan Energi 2013'!AF51+'Plan Energi 2013'!AF53+'Plan Energi 2013'!AF61+'Plan Energi 2013'!AF63+'Plan Energi 2013'!AF64+'Plan Energi 2013'!AF65+'Plan Energi 2013'!AF67 -> 1969.802265 | CI10: =(AT10+AO10)*-1 -> 946.9924774 | CJ10: =-(C10*'Plan Energi 2013'!$I$89/1000+D10*'Plan Energi 2013'!$C$89/1000+E10*'Plan Energi 2013'!$W$89/1000+X10*'Plan Energi 2013'!$F$89/1000) -> 199.9004609
C11: =C12+C13 -> 0 | D11: 0 | E11: 0 | F11: 0 | G11: 0 | H11: 0 | I11: 0 | J11: 0 | K11: 0 | L11: 0 | M11: 0 | N11: 0 | O11: -14.16 | P11: 0 | Q11: -14.16 | R11: 0 | S11: -14.16 | T11: 0 | U11: 0 | V11: 0 | W11: 0 | X11: 0 | Y11: 0 | Z11: 0 | AA11: 0 | AB11: 0 | AC11: 0 | AD11: 0 | AE11: 0 | AF11: 0 | AG11: 0 | AH11: 0 | AI11: 0 | AJ11: 0 | AK11: 0 | AL11: 0 | AM11: 0 | AN11: 0 | AO11: -14.16 | AP11: Vindmøller | AQ11: VIND | AR11: TS | AT11: 14.9 | AW11: =AW12+AW13 -> 0 | AX11: 0 | AY11: 0 | AZ11: 0 | BA11: =BA12+BA13 -> 0 | BB11: 0 | BC11: 0 | BD11: 0 | BE11: 0 | BF11: 0 | BG11: 0 | BH11: 0 | BI11: 0 | BJ11: =BJ12+BJ13 -> 0 | BK11: 0 | BL11: =BL12+BL13 -> 0 | BM11: 0 | BN11: 0 | BO11: 0 | BP11: 0 | BQ11: 0 | BR11: 0 | BS11: =BS12+BS13 -> 0 | BT11: 0 | BU11: 0 | BV11: 0 | BW11: 0 | BX11: 0 | BY11: 0 | BZ11: 0 | CA11: 0 | CB11: 0 | CC11: 0 | CD11: =('Plan Energi 2013'!J27+'Plan Energi 2013'!J28) -> 14.9 | CE11: 0 | CF11: 0 | CG11: 0 | CH11: 0 | CI11: 0 | CJ11: 0
F12: 0 | O12: 0 | Q12: 0 | R12: =CD12*-1 -> 0 | X12: 0 | AN12: 0 | AO12: 0 | AP12: Kystvindmøller | AQ12: KYST | AR12: VIND | AT12: 0 | AZ12: 0 | BI12: =BJ12+BK12+BN12+BO12+BP12 -> 0 | BK12: 0 | BR12: =SUM(BS12:CC12) -> 0 | CD12: =Energi!B34*0.0000036 -> 0 | CI12: 0 | CJ12: =-(C12*'Plan Energi 2013'!$I$89/1000+D12*'Plan Energi 2013'!$C$89/1000+E12*'Plan Energi 2013'!$W$89/1000+X12*'Plan Energi 2013'!$F$89/1000) -> 0
F13: 0 | O13: -14.16 | Q13: -14.16 | S13: =CD13*-1 -> -14.16 | X13: 0 | AN13: 0 | AO13: -14.16 | AP13: Landvindmøller | AQ13: LAND | AR13: VIND | AT13: 14.16 | AZ13: 0 | BI13: =BJ13+BK13+BN13+BO13+BP13 -> 0 | BK13: 0 | BR13: =SUM(BS13:CC13) -> 0 | CD13: =Energi!B35*0.0000036 -> 14.16 | CI13: 0 | CJ13: =-(C13*'Plan Energi 2013'!$I$89/1000+D13*'Plan Energi 2013'!$C$89/1000+E13*'Plan Energi 2013'!$W$89/1000+X13*'Plan Energi 2013'!$F$89/1000) -> 0
F14: 0 | O14: -15.6 | P14: =CD14*-1 -> -15.6 | Q14: 0 | X14: 0 | AN14: 0 | AO14: -15.6 | AP14: Solceller | AQ14: SOLSTR | AR14: TS | AT14: 15.6 | AZ14: 0 | BI14: =BJ14+BK14+BN14+BO14+BP14 -> 0 | BK14: 0 | BR14: =SUM(BS14:CC14) -> 0 | CD14: ='Plan Energi 2013'!L26 -> 15.6 | CI14: 0 | CJ14: =-(C14*'Plan Energi 2013'!$I$89/1000+D14*'Plan Energi 2013'!$C$89/1000+E14*'Plan Energi 2013'!$W$89/1000+X14*'Plan Energi 2013'!$F$89/1000) -> 0
C15: =('Plan Energi 2013'!I36+'Plan Energi 2013'!I41+'Plan Energi 2013'!I47+'Plan Energi 2013'!I54+'Plan Energi 2013'!I56+'Plan Energi 2013'!I66)*-1 -> 0 | D15: =('Plan Energi 2013'!C36+'Plan Energi 2013'!C41+'Plan Energi 2013'!C47+'Plan Energi 2013'!C54+'Plan Energi 2013'!C56+'Plan Energi 2013'!C66)*-1 -> 0 | E15: =('Plan Energi 2013'!W36+'Plan Energi 2013'!W41+'Plan Energi 2013'!W47+'Plan Energi 2013'!W54+'Plan Energi 2013'!W56+'Plan Energi 2013'!W66)*-1 -> 0 | F15: 0 | G15: =('Plan Energi 2013'!Q36+'Plan Energi 2013'!Q41+'Plan Energi 2013'!Q47+'Plan Energi 2013'!Q54+'Plan Energi 2013'!Q56+'Plan Energi 2013'!Q66)*-1 -> 0 | H15: =('Plan Energi 2013'!R36+'Plan Energi 2013'!R41+'Plan Energi 2013'!R47+'Plan Energi 2013'!R54+'Plan Energi 2013'!R56+'Plan Energi 2013'!R66)*-1 -> 0 | J15: =('Plan Energi 2013'!S36+'Plan Energi 2013'!S41+'Plan Energi 2013'!S47+'Plan Energi 2013'!S54+'Plan Energi 2013'!S56+'Plan Energi 2013'!S66)*-1 -> 0 | L15: =('Plan Energi 2013'!O36+'Plan Energi 2013'!O41+'Plan Energi 2013'!O47+'Plan Energi 2013'!O54+'Plan Energi 2013'!O56+'Plan Energi 2013'!O66)*-1 -> 0 | N15: =('Plan Energi 2013'!T36+'Plan Energi 2013'!T41+'Plan Energi 2013'!T47+'Plan Energi 2013'!T54+'Plan Energi 2013'!T56+'Plan Energi 2013'!T66+'Plan Energi 2013'!U36+'Plan Energi 2013'!U41+'Plan Energi 2013'!U47+'Plan Energi 2013'!U54+'Plan Energi 2013'!U56+'Plan Energi 2013'!U66+'Plan Energi 2013'!V36+'Plan Energi 2013'!V41+'Plan Energi 2013'!V47+'Plan Energi 2013'!V54+'Plan Energi 2013'!V56+'Plan Energi 2013'!V66)*-1 -> 0 | O15: 0 | Q15: 0 | X15: 0 | AE15: =('Plan Energi 2013'!F36+'Plan Energi 2013'!F41+'Plan Energi 2013'!F47+'Plan Energi 2013'!F54+'Plan Energi 2013'!F56+'Plan Energi 2013'!F66)*-1 -> 0 | AF15: =('Plan Energi 2013'!D36+'Plan Energi 2013'!D41+'Plan Energi 2013'!D47+'Plan Energi 2013'!D54+'Plan Energi 2013'!D56+'Plan Energi 2013'!D66+'Plan Energi 2013'!E36+'Plan Energi 2013'!E41+'Plan Energi 2013'!E47+'Plan Energi 2013'!E54+'Plan Energi 2013'!E56+'Plan Energi 2013'!E66)*-1 -> 0 | AN15: 0 | AO15: 0 | AP15: Fjernvarmekedler | AQ15: KEDLER | AR15: TS | AT15: 0 | AZ15: 0 | BI15: 0 | BK15: 0 | BR15: 0 | CE15: ='Plan Energi 2013'!AF36+'Plan Energi 2013'!AF41+'Plan Energi 2013'!AF47+'Plan Energi 2013'!AF54+'Plan Energi 2013'!AF56+'Plan Energi 2013'!AF66 -> 0 | CI15: 0 | CJ15: =-(C15*'Plan Energi 2013'!$I$89/1000+D15*'Plan Energi 2013'!$C$89/1000+E15*'Plan Energi 2013'!$W$89/1000+X15*'Plan Energi 2013'!$F$89/1000) -> 0
F16: 0 | O16: 0 | P16: =('Plan Energi 2013'!L37+'Plan Energi 2013'!L38+'Plan Energi 2013'!L48+'Plan Energi 2013'!L49+'Plan Energi 2013'!L50+'Plan Energi 2013'!L57+'Plan Energi 2013'!L58+'Plan Energi 2013'!L59+'Plan Energi 2013'!L60+'Plan Energi 2013'!L68)*-1 -> 0 | Q16: 0 | U16: =('Plan Energi 2013'!M37+'Plan Energi 2013'!M38+'Plan Energi 2013'!M48+'Plan Energi 2013'!M49+'Plan Energi 2013'!M50+'Plan Energi 2013'!M57+'Plan Energi 2013'!M58+'Plan Energi 2013'!M59+'Plan Energi 2013'!M60+'Plan Energi 2013'!M68)*-1 -> 0 | V16: =('Plan Energi 2013'!N37+'Plan Energi 2013'!N38+'Plan Energi 2013'!N48+'Plan Energi 2013'!N49+'Plan Energi 2013'!N50+'Plan Energi 2013'!N57+'Plan Energi 2013'!N58+'Plan Energi 2013'!N59+'Plan Energi 2013'!N60+'Plan Energi 2013'!N68)*-1 -> 0 | X16: 0 | AJ16: =('Plan Energi 2013'!AD37+'Plan Energi 2013'!AD38+'Plan Energi 2013'!AD48+'Plan Energi 2013'!AD49+'Plan Energi 2013'!AD50+'Plan Energi 2013'!AD57+'Plan Energi 2013'!AD58+'Plan Energi 2013'!AD59+'Plan Energi 2013'!AD60+'Plan Energi 2013'!AD68) -> 0 | AL16: ='Plan Energi 2013'!AF68*-1 -> -317.36985 | AN16: 0 | AO16: -317.36985 | AP16: Anden varmeproduktion | AQ16: ANDENV | AR16: TS | AT16: 317.36985 | AU16: =AT16/AO16*-1 -> 1 | AZ16: 0 | BI16: 0 | BK16: 0 | BR16: 0 | CE16: ='Plan Energi 2013'!AF37+'Plan Energi 2013'!AF38+'Plan Energi 2013'!AF48+'Plan Energi 2013'!AF49+'Plan Energi 2013'!AF50+'Plan Energi 2013'!AF57+'Plan Energi 2013'!AF58+'Plan Energi 2013'!AF59+'Plan Energi 2013'!AF60+'Plan Energi 2013'!AF68 -> 317.36985 | CI16: 0 | CJ16: =-(C16*'Plan Energi 2013'!$I$89/1000+D16*'Plan Energi 2013'!$C$89/1000+E16*'Plan Energi 2013'!$W$89/1000+X16*'Plan Energi 2013'!$F$89/1000) -> 0
F17: 0 | O17: 0 | Q17: 0 | X17: 0 | AN17: 0 | AO17: 0 | AP17: Raffinaderi | AQ17: RAF | AR17: TS | AT17: 0 | AZ17: 0 | BI17: 0 | BK17: 0 | BR17: 0 | CI17: 0 | CJ17: =-(C17*'Plan Energi 2013'!$I$89/1000+D17*'Plan Energi 2013'!$C$89/1000+E17*'Plan Energi 2013'!$W$89/1000+X17*'Plan Energi 2013'!$F$89/1000) -> 0
F18: 0 | O18: 0 | Q18: 0 | X18: -2578.576574 | Y18: =BS18*-1 -> 0 | Z18: =BT18*-1 -> -20.38515702 | AA18: 0 | AB18: -528.9056599 | AC18: 0 | AD18: -335.2258489 | AE18: -906.9248577 | AF18: -787.1350501 | AG18: 0 | AH18: 0 | AI18: 0 | AJ18: =CD18*-1/'Plan Energi 2013'!D2*100 -> -1410.995833 | AK18: =CE18*('Plan Energi 2013'!AF39+'Plan Energi 2013'!AF43+'Plan Energi 2013'!AF52+'Plan Energi 2013'!AF55+'Plan Energi 2013'!AF62+'Plan Energi 2013'!AF71)/('Plan Energi 2013'!AG39+'Plan Energi 2013'!AG43+'Plan Energi 2013'!AG52+'Plan Energi 2013'!AG55+'Plan Energi 2013'!AG62+'Plan Energi 2013'!AG71) -> -2289.459288 | AN18: 0 | AO18: -6279.031694 | AP18: Transport af el, fjernvarme, mv. | AQ18: TRAS | AT18: 5649.960993 | AZ18: 0 | BI18: =BJ18+BK18+BN18+BO18+BP18 -> 0 | BK18: =BL18+BM18 -> 0 | BR18: =X20*-1 -> 2578.576574 | BS18: 0 | BT18: 20.38515702 | BU18: 0 | BV18: 528.9056599 | BW18: 0 | BX18: 335.2258489 | BY18: 906.9248577 | BZ18: 787.1350501 | CA18: 0 | CB18: 0 | CC18: 0 | CD18: 1303.92185 | CE18: 1767.46257 | CI18: 629.0707008
F19: 0 | O19: 0 | Q19: 0 | X19: 0 | AN19: 0 | AO19: 0 | AP19: Indgang ikke-nettilsluttet VE | AQ19: TLP2 | AT19: 3.852593184 | AZ19: 0 | BI19: =BJ19+BK19+BN19+BO19+BP19 -> 3.852593184 | BJ19: =P20*-1 -> 3.000753403 | BK19: =BL19+BM19 -> 0 | BL19: =R20*-1 -> 0 | BM19: =S20*-1 -> 0 | BN19: 0 | BO19: 0 | BP19: 0.8518397814 | BR19: =SUM(BS19:CC19) -> 0 | CI19: 0
C20: =SUM(C21:C22,C32,C33,C34,C35,C36) -> -4492.00686 | D20: 0 | E20: 0 | F20: -251.745 | G20: -24 | H20: -156 | I20: 0 | J20: -71.745 | K20: 0 | L20: 0 | M20: 0 | N20: 0 | O20: -3.852593184 | P20: -3.000753403 | Q20: 0 | R20: 0 | S20: 0 | T20: 0 | U20: 0 | V20: -0.8518397814 | W20: -84.465609 | X20: -2578.576574 | Y20: 0 | Z20: -20.38515702 | AA20: 0 | AB20: -528.9056599 | AC20: 0 | AD20: -335.2258489 | AE20: -906.9248577 | AF20: -787.1350501 | AG20: 0 | AH20: 0 | AI20: 0 | AJ20: -1303.92185 | AK20: -1767.46257 | AL20: 0 | AM20: 0 | AN20: 0 | AO20: -10482.03106 | AP20: Afgang fra energisystemet | AQ20: A | AT20: 8353.724316 | AW20: =SUM(AW21:AW22,AW32,AW33,AW34,AW35,AW36) -> 0 | AX20: 0 | AY20: 0 | AZ20: 0 | BA20: 0 | BB20: 0 | BC20: 0 | BD20: 0 | BE20: 0 | BF20: 0 | BG20: 0 | BH20: 0 | BI20: 0 | BJ20: 0 | BK20: 0 | BL20: 0 | BM20: 0 | BN20: 0 | BO20: 0 | BP20: 0 | BQ20: 0 | BR20: 0 | BS20: 0 | BT20: 0 | BU20: 0 | BV20: 0 | BW20: 0 | BX20: 0 | BY20: 0 | BZ20: 0 | CA20: 0 | CB20: 0 | CC20: 0 | CD20: 0 | CE20: 0 | CF20: 0 | CG20: 8353.724316 | CH20: 0 | CI20: 2128.306739 | CJ20: 449.5542616
F21: 0 | O21: 0 | Q21: 0 | X21: 0 | AJ21: =IF(CD10+CD11+CD14+(1+Energi!B29/100)*(AJ22+AJ32+AJ33+AJ34+AJ35)>0,(CD10+CD11+CD14+(1+Energi!B29/100)*(AJ22+AJ32+AJ33+AJ34+AJ35))*-1,0) -> 0 | AN21: 0 | AO21: 0 | AP21: Netto eksport/lager | AQ21: AES | AR21: A | AT21: 0 | AZ21: 0 | BI21: =BJ21+BK21+BN21+BO21+BP21 -> 0 | BK21: =BL21+BM21 -> 0 | BR21: =SUM(BS21:CC21) -> 0 | CI21: 0 | CJ21: =AJ9*'Plan Energi 2013'!A89/1000 -> 0
C22: =C23+SUM(C28:C31) -> 0 | D22: =D23+SUM(D28:D31) -> 0 | E22: 0 | F22: 0 | G22: 0 | H22: 0 | I22: 0 | J22: 0 | K22: 0 | L22: 0 | M22: 0 | N22: 0 | O22: 0 | P22: 0 | Q22: 0 | R22: 0 | S22: 0 | T22: 0 | U22: 0 | V22: 0 | W22: -84.465609 | X22: -1782.101799 | Y22: 0 | Z22: -4.077031404 | AA22: 0 | AB22: -528.9056599 | AC22: 0 | AD22: -335.2258489 | AE22: -906.9248577 | AF22: -6.968401475 | AG22: 0 | AH22: 0 | AI22: 0 | AJ22: 0 | AK22: 0 | AL22: 0 | AM22: 0 | AN22: 0 | AO22: -1866.567408 | AP22: Transport | AQ22: AT | AR22: A | AT22: 502.2402963 | AU22: 0.3 | AW22: =AW23+SUM(AW28:AW31) -> 0 | AX22: 0 | AY22: 0 | AZ22: 0 | BA22: 0 | BB22: 0 | BC22: 0 | BD22: 0 | BE22: 0 | BF22: 0 | BG22: 0 | BH22: 0 | BI22: 0 | BJ22: 0 | BK22: 0 | BL22: 0 | BM22: 0 | BN22: 0 | BO22: 0 | BP22: 0 | BQ22: 0 | BR22: 0 | BS22: 0 | BT22: 0 | BU22: 0 | BV22: 0 | BW22: 0 | BX22: 0 | BY22: 0 | BZ22: 0 | CA22: 0 | CB22: 0 | CC22: 0 | CD22: 0 | CE22: 0 | CF22: 0 | CG22: 502.2402963 | CH22: 0 | CI22: 1364.327112 | CJ22: 131.8755332
C23: =SUM(C24:C27) -> 0 | D23: =SUM(D24:D27) -> 0 | E23: =SUM(E24:E27) -> 0 | F23: 0 | G23: =SUM(G24:G27) -> 0 | H23: 0 | I23: 0 | J23: 0 | K23: 0 | L23: 0 | M23: 0 | N23: 0 | O23: 0 | P23: =SUM(P24:P27) -> 0 | Q23: 0 | R23: =SUM(R24:R27) -> 0 | S23: 0 | T23: 0 | U23: 0 | V23: 0 | W23: -84.465609 | X23: -1317.884391 | Y23: =SUM(Y24:Y27) -> 0 | Z23: 0 | AA23: 0 | AB23: -528.280596 | AC23: 0 | AD23: 0 | AE23: -789.603795 | AF23: 0 | AG23: 0 | AH23: 0 | AI23: 0 | AJ23: 0 | AK23: 0 | AL23: 0 | AM23: 0 | AN23: 0 | AO23: -1402.35 | AP23: Vejtrafik | AQ23: ATV | AR23: AT | AT23: 350.3939719 | AU23: 0.3 | AW23: =SUM(AW24:AW27) -> 0 | AX23: =SUM(AX24:AX27) -> 0 | AY23: =SUM(AY24:AY27) -> 0 | AZ23: 0 | BA23: =SUM(BA24:BA27) -> 0 | BB23: 0 | BC23: 0 | BD23: 0 | BE23: 0 | BF23: 0 | BG23: 0 | BH23: 0 | BI23: =BJ23+BK23+BN23+BO23+BP23 -> 0 | BJ23: =SUM(BJ24:BJ27) -> 0 | BK23: =BL23+BM23 -> 0 | BL23: =SUM(BL24:BL27) -> 0 | BM23: 0 | BN23: 0 | BO23: 0 | BP23: 0 | BQ23: 0 | BR23: =SUM(BS23:CC23) -> 0 | BS23: =SUM(BS24:BS27) -> 0 | BT23: 0 | BU23: 0 | BV23: 0 | BW23: 0 | BX23: 0 | BY23: 0 | BZ23: 0 | CA23: 0 | CB23: 0 | CC23: 0 | CD23: 0 | CE23: 0 | CF23: 0 | CG23: 350.3939719 | CH23: 0 | CI23: 1051.956028 | CJ23: 97.52344493
F24: 0 | O24: 0 | Q24: 0 | W24: =('Plan Energi 2013'!P72+'Plan Energi 2013'!P73)*-1 -> -53.581404 | X24: =SUM(Y24:AI24) -> -859.978596 | AB24: ='Plan Energi 2013'!H72*-1 -> -528.280596 | AE24: ='Plan Energi 2013'!F73*-1 -> -331.698 | AN24: 0 | AO24: -913.56 | AP24: Personbil | AQ24: PERSON | AR24: ATV | AT24: 200.412 | AU24: 0.3 | AZ24: 0 | BI24: =BJ24+BK24+BN24+BO24+BP24 -> 0 | BK24: =BL24+BM24 -> 0 | BR24: =SUM(BS24:CC24) -> 0 | CG24: ='Plan Energi 2013'!AQ72+'Plan Energi 2013'!AQ73 -> 200.412 | CI24: 713.148 | CJ24: =-(C24*'Plan Energi 2013'!$I$89/1000+D24*'Plan Energi 2013'!$C$89/1000+E24*'Plan Energi 2013'!$W$89/1000+X24*'Plan Energi 2013'!$F$89/1000) -> 63.6384161
F25: 0 | O25: 0 | Q25: 0 | W25: ='Plan Energi 2013'!P76*-1 -> -19.081785 | X25: =SUM(Y25:AI25) -> -282.368215 | AB25: 0 | AE25: ='Plan Energi 2013'!F76*-1 -> -282.368215 | AN25: 0 | AO25: -301.45 | AP25: Lastbil | AQ25: LAST | AR25: ATV | AT25: 99.4785 | AU25: 0.3 | AZ25: 0 | BI25: =BJ25+BK25+BN25+BO25+BP25 -> 0 | BK25: =BL25+BM25 -> 0 | BR25: =SUM(BS25:CC25) -> 0 | CG25: ='Plan Energi 2013'!AQ76 -> 99.4785 | CI25: 201.9715 | CJ25: =-(C25*'Plan Energi 2013'!$I$89/1000+D25*'Plan Energi 2013'!$C$89/1000+E25*'Plan Energi 2013'!$W$89/1000+X25*'Plan Energi 2013'!$F$89/1000) -> 20.89524791
F26: 0 | O26: 0 | Q26: 0 | W26: ='Plan Energi 2013'!P74*-1 -> -10.13355 | X26: -150.71645 | AB26: 0 | AE26: ='Plan Energi 2013'!F74*-1 -> -150.71645 | AN26: 0 | AO26: -160.85 | AP26: Varebil | AQ26: VARE | AR26: ATV | AT26: 40.2125 | AU26: 0.3 | AZ26: 0 | BI26: 0 | BK26: 0 | BR26: 0 | CG26: ='Plan Energi 2013'!AQ74 -> 40.2125 | CI26: 120.6375 | CJ26: =-(C26*'Plan Energi 2013'!$I$89/1000+D26*'Plan Energi 2013'!$C$89/1000+E26*'Plan Energi 2013'!$W$89/1000+X26*'Plan Energi 2013'!$F$89/1000) -> 11.1530173
F27: 0 | O27: 0 | Q27: 0 | W27: ='Plan Energi 2013'!P75*-1 -> -1.66887 | X27: -24.82113 | AB27: 0 | AE27: ='Plan Energi 2013'!F75*-1 -> -24.82113 | AN27: 0 | AO27: -26.49 | AP27: Bus | AQ27: BUS | AR27: ATV | AT27: 10.29097193 | AU27: 0.3 | AZ27: 0 | BI27: 0 | BK27: 0 | BR27: 0 | CG27: ='Plan Energi 2013'!AQ75+'Plan Energi 2013'!AQ16 -> 10.29097193 | CI27: 16.19902807 | CJ27: =-(C27*'Plan Energi 2013'!$I$89/1000+D27*'Plan Energi 2013'!$C$89/1000+E27*'Plan Energi 2013'!$W$89/1000+X27*'Plan Energi 2013'!$F$89/1000) -> 1.83676362
C28: 0 | D28: 0 | E28: 0 | F28: 0 | G28: 0 | H28: 0 | I28: 0 | J28: 0 | K28: 0 | L28: 0 | M28: 0 | N28: 0 | O28: 0 | P28: 0 | Q28: 0 | R28: 0 | S28: 0 | T28: 0 | U28: 0 | V28: 0 | W28: 0 | X28: -30.10709442 | Y28: 0 | Z28: 0 | AA28: 0 | AB28: 0 | AC28: 0 | AD28: 0 | AE28: ='Plan Energi 2013'!F78*-1 -> -30.10709442 | AF28: 0 | AG28: 0 | AH28: 0 | AI28: 0 | AJ28: ='Plan Energi 2013'!AQ13*-1 -> 0 | AK28: 0 | AL28: 0 | AM28: 0 | AN28: 0 | AO28: -30.10709442 | AP28: Tog | AQ28: ATT | AR28: AT | AT28: 9.93534116 | AU28: 0.3 | AW28: 0 | AX28: 0 | AY28: 0 | AZ28: 0 | BA28: 0 | BB28: 0 | BC28: 0 | BD28: 0 | BE28: 0 | BF28: 0 | BG28: 0 | BH28: 0 | BI28: 0 | BJ28: 0 | BK28: 0 | BL28: 0 | BM28: 0 | BN28: 0 | BO28: 0 | BP28: 0 | BQ28: 0 | BR28: 0 | BS28: 0 | BT28: 0 | BU28: 0 | BV28: 0 | BW28: 0 | BX28: 0 | BY28: 0 | BZ28: 0 | CA28: 0 | CB28: 0 | CC28: 0 | CD28: 0 | CE28: 0 | CF28: 0 | CG28: ='Plan Energi 2013'!AQ78+'Plan Energi 2013'!AQ13 -> 9.93534116 | CH28: 0 | CI28: 20.17175326 | CJ28: =-(C28*'Plan Energi 2013'!$I$89/1000+D28*'Plan Energi 2013'!$C$89/1000+E28*'Plan Energi 2013'!$W$89/1000+X28*'Plan Energi 2013'!$F$89/1000) -> 2.227924987
C29: 0 | D29: 0 | E29: 0 | F29: 0 | G29: 0 | H29: 0 | I29: 0 | J29: 0 | K29: 0 | L29: 0 | M29: 0 | N29: 0 | O29: 0 | P29: 0 | Q29: 0 | R29: 0 | S29: 0 | T29: 0 | U29: 0 | V29: 0 | W29: 0 | X29: -335.8509128 | Y29: 0 | Z29: 0 | AA29: 0 | AB29: ='Plan Energi 2013'!H79*-1 -> -0.625063895 | AC29: 0 | AD29: ='Plan Energi 2013'!G79*-1 -> -335.2258489 | AE29: 0 | AF29: 0 | AG29: 0 | AH29: 0 | AI29: 0 | AJ29: 0 | AK29: 0 | AL29: 0 | AM29: 0 | AN29: 0 | AO29: -335.8509128 | AP29: Fly | AQ29: ATF | AR29: AT | AT29: 110.8308012 | AU29: 0.3 | AW29: 0 | AX29: 0 | AY29: 0 | AZ29: 0 | BA29: 0 | BB29: 0 | BC29: 0 | BD29: 0 | BE29: 0 | BF29: 0 | BG29: 0 | BH29: 0 | BI29: 0 | BJ29: 0 | BK29: 0 | BL29: 0 | BM29: 0 | BN29: 0 | BO29: 0 | BP29: 0 | BQ29: 0 | BR29: 0 | BS29: 0 | BT29: 0 | BU29: 0 | BV29: 0 | BW29: 0 | BX29: 0 | BY29: 0 | BZ29: 0 | CA29: 0 | CB29: 0 | CC29: 0 | CD29: 0 | CE29: 0 | CF29: 0 | CG29: ='Plan Energi 2013'!AQ79 -> 110.8308012 | CH29: 0 | CI29: 225.0201116 | CJ29: =-(C29*'Plan Energi 2013'!$I$89/1000+D29*'Plan Energi 2013'!$C$89/1000+E29*'Plan Energi 2013'!$W$89/1000+X29*'Plan Energi 2013'!$F$89/1000) -> 24.85296754
C30: 0 | D30: 0 | E30: 0 | F30: 0 | G30: 0 | H30: 0 | I30: 0 | J30: 0 | K30: 0 | L30: 0 | M30: 0 | N30: 0 | O30: 0 | P30: 0 | Q30: 0 | R30: 0 | S30: 0 | T30: 0 | U30: 0 | V30: 0 | W30: 0 | X30: -56.58087009 | Y30: 0 | Z30: 0 | AA30: 0 | AB30: 0 | AC30: 0 | AD30: 0 | AE30: ='Plan Energi 2013'!F80*-1 -> -49.61246862 | AF30: ='Plan Energi 2013'!D80*-1 -> -6.968401475 | AG30: 0 | AH30: 0 | AI30: 0 | AJ30: 0 | AK30: 0 | AL30: 0 | AM30: 0 | AN30: 0 | AO30: -56.58087009 | AP30: Færge | AQ30: ATFÆRGE | AR30: AT | AT30: 18.67168713 | AU30: 0.3 | AW30: 0 | AX30: 0 | AY30: 0 | AZ30: 0 | BA30: 0 | BB30: 0 | BC30: 0 | BD30: 0 | BE30: 0 | BF30: 0 | BG30: 0 | BH30: 0 | BI30: 0 | BJ30: 0 | BK30: 0 | BL30: 0 | BM30: 0 | BN30: 0 | BO30: 0 | BP30: 0 | BQ30: 0 | BR30: 0 | BS30: 0 | BT30: 0 | BU30: 0 | BV30: 0 | BW30: 0 | BX30: 0 | BY30: 0 | BZ30: 0 | CA30: 0 | CB30: 0 | CC30: 0 | CD30: 0 | CE30: 0 | CF30: 0 | CG30: ='Plan Energi 2013'!AQ80 -> 18.67168713 | CH30: 0 | CI30: 37.90918296 | CJ30: =-(C30*'Plan Energi 2013'!$I$89/1000+D30*'Plan Energi 2013'!$C$89/1000+E30*'Plan Energi 2013'!$W$89/1000+X30*'Plan Energi 2013'!$F$89/1000) -> 4.186984387
C31: 0 | D31: 0 | E31: 0 | F31: 0 | G31: 0 | H31: 0 | I31: 0 | J31: 0 | K31: 0 | L31: 0 | M31: 0 | N31: 0 | O31: 0 | P31: 0 | Q31: 0 | R31: 0 | S31: 0 | T31: 0 | U31: 0 | V31: 0 | W31: 0 | X31: -41.67853105 | Y31: 0 | Z31: ='Plan Energi 2013'!B16*'Plan Energi 2013'!AQ16/SUM('Plan Energi 2013'!AI16:AQ16)*-1 -> -4.077031404 | AA31: 0 | AB31: 0 | AC31: 0 | AD31: 0 | AE31: ='Plan Energi 2013'!F77*-1 -> -37.60149964 | AF31: 0 | AG31: 0 | AH31: 0 | AI31: 0 | AJ31: 0 | AK31: 0 | AL31: 0 | AM31: 0 | AN31: 0 | AO31: -41.67853105 | AP31: Non-Road (landbrug) | AQ31: ATNONR | AR31: AT | AT31: 12.40849488 | AU31: 0.3 | AW31: 0 | AX31: 0 | AY31: 0 | AZ31: 0 | BA31: 0 | BB31: 0 | BC31: 0 | BD31: 0 | BE31: 0 | BF31: 0 | BG31: 0 | BH31: 0 | BI31: 0 | BJ31: 0 | BK31: 0 | BL31: 0 | BM31: 0 | BN31: 0 | BO31: 0 | BP31: 0 | BQ31: 0 | BR31: 0 | BS31: 0 | BT31: 0 | BU31: 0 | BV31: 0 | BW31: 0 | BX31: 0 | BY31: 0 | BZ31: 0 | CA31: 0 | CB31: 0 | CC31: 0 | CD31: 0 | CE31: 0 | CF31: 0 | CG31: ='Plan Energi 2013'!AP77 -> 12.40849488 | CH31: 0 | CI31: 29.27003617 | CJ31: =-(C31*'Plan Energi 2013'!$I$89/1000+D31*'Plan Energi 2013'!$C$89/1000+E31*'Plan Energi 2013'!$W$89/1000+X31*'Plan Energi 2013'!$F$89/1000) -> 3.084211298
C32: =SUM('Plan Energi 2013'!I17:I22)*-1 -> -0.6995427492 | D32: =SUM('Plan Energi 2013'!C17:C22)*-1 -> 0 | E32: =SUM('Plan Energi 2013'!W17:W22)*-1 -> 0 | F32: -248 | G32: =SUM('Plan Energi 2013'!Q17:Q22)*-1 -> -24 | H32: =SUM('Plan Energi 2013'!R17:R22)*-1 -> -156 | I32: 0 | J32: =SUM('Plan Energi 2013'!S17:S22)*-1 -> -68 | K32: 0 | L32: =SUM('Plan Energi 2013'!O17:O22)*-1 -> 0 | M32: 0 | N32: =SUM('Plan Energi 2013'!T17:V22)*-1 -> 0 | O32: -3.852593184 | P32: =SUM('Plan Energi 2013'!L17:L22)*-1 -> -3.000753403 | Q32: =SUM('Plan Energi 2013'!J17:J22)*-1 -> 0 | R32: 0 | S32: 0 | T32: 0 | U32: =SUM('Plan Energi 2013'!M17:M22)*-1 -> 0 | V32: =('Plan Energi 2013'!N14+SUM('Plan Energi 2013'!N17:N22))*-1 -> -0.8518397814 | W32: =SUM('Plan Energi 2013'!P17:P22)*-1 -> 0 | X32: -92.0770314 | Y32: 0 | Z32: ='Plan Energi 2013'!B16*'Plan Energi 2013'!AI16/SUM('Plan Energi 2013'!AI16:AQ16)*-1 -> -4.077031404 | AA32: 0 | AB32: =SUM('Plan Energi 2013'!H17:H22)*-1 -> 0 | AC32: 0 | AD32: =SUM('Plan Energi 2013'!G17:G22)*-1 -> 0 | AE32: =SUM('Plan Energi 2013'!F17:F22)*-1 -> 0 | AF32: =SUM('Plan Energi 2013'!D17:E22)*-1 -> -88 | AG32: 0 | AH32: 0 | AI32: 0 | AJ32: =('Plan Energi 2013'!AE14+'Plan Energi 2013'!AI8*'Plan Energi 2013'!AE8/'Plan Energi 2013'!AH8+'Plan Energi 2013'!AI9*'Plan Energi 2013'!AE9/'Plan Energi 2013'!AH9+'Plan Energi 2013'!AI10*'Plan Energi 2013'!AE10/'Plan Energi 2013'!AH10+'Plan Energi 2013'!AI11*'Plan Energi 2013'!AE11/'Plan Energi 2013'!AH11+'Plan Energi 2013'!AI12*'Plan Energi 2013'!AE12/'Plan Energi 2013'!AH12+'Plan Energi 2013'!AI13*'Plan Energi 2013'!AE13/'Plan Energi 2013'!AH13)*-1 -> -295.3471629 | AK32: =('Plan Energi 2013'!AI39+'Plan Energi 2013'!AI43+'Plan Energi 2013'!AI52+'Plan Energi 2013'!AI55+'Plan Energi 2013'!AI62+'Plan Energi 2013'!AI71)*-1 -> -1137.108786 | AL32: 0 | AM32: 0 | AN32: 0 | AO32: -1777.085117 | AP32: Husholdninger | AQ32: AH | AR32: A | AT32: 1636.47779 | AU32: =AT32/AO32*-1 -> 0.9208775511 | AW32: 0 | AX32: 0 | AY32: 0 | AZ32: 0 | BA32: 0 | BB32: 0 | BC32: 0 | BD32: 0 | BE32: 0 | BF32: 0 | BG32: 0 | BH32: 0 | BI32: 0 | BJ32: 0 | BK32: 0 | BL32: 0 | BM32: 0 | BN32: 0 | BO32: 0 | BP32: 0 | BQ32: 0 | BR32: 0 | BS32: 0 | BT32: 0 | BU32: 0 | BV32: 0 | BW32: 0 | BX32: 0 | BY32: 0 | BZ32: 0 | CA32: 0 | CB32: 0 | CC32: 0 | CD32: 0 | CE32: 0 | CF32: 0 | CG32: ='Plan Energi 2013'!AI81 -> 1636.47779 | CH32: 0 | CI32: 140.6073264 | CJ32: =-(C32*'Plan Energi 2013'!$I$89/1000+D32*'Plan Energi 2013'!$C$89/1000+E32*'Plan Energi 2013'!$W$89/1000+X32*'Plan Energi 2013'!$F$89/1000) -> 6.853993986
C33: 0 | D33: 0 | E33: 0 | F33: 0 | G33: 0 | H33: 0 | I33: 0 | J33: 0 | K33: 0 | L33: 0 | M33: 0 | N33: 0 | O33: 0 | P33: 0 | Q33: 0 | R33: 0 | S33: 0 | T33: 0 | U33: 0 | V33: 0 | W33: 0 | X33: 0 | Y33: 0 | Z33: ='Plan Energi 2013'!B16*'Plan Energi 2013'!AJ16/SUM('Plan Energi 2013'!AI16:AQ16)*-1 -> 0 | AA33: 0 | AB33: 0 | AC33: 0 | AD33: 0 | AE33: 0 | AF33: 0 | AG33: 0 | AH33: 0 | AI33: 0 | AJ33: =('Plan Energi 2013'!AJ8*'Plan Energi 2013'!AE8/'Plan Energi 2013'!AH8+'Plan Energi 2013'!AJ9*'Plan Energi 2013'!AE9/'Plan Energi 2013'!AH9+'Plan Energi 2013'!AJ10*'Plan Energi 2013'!AE10/'Plan Energi 2013'!AH10+'Plan Energi 2013'!AJ11*'Plan Energi 2013'!AE11/'Plan Energi 2013'!AH11+'Plan Energi 2013'!AJ12*'Plan Energi 2013'!AE12/'Plan Energi 2013'!AH12+'Plan Energi 2013'!AJ13*'Plan Energi 2013'!AE13/'Plan Energi 2013'!AH13)*-1 -> -242.7816803 | AK33: =('Plan Energi 2013'!AJ39+'Plan Energi 2013'!AJ43+'Plan Energi 2013'!AJ52+'Plan Energi 2013'!AJ55+'Plan Energi 2013'!AJ62+'Plan Energi 2013'!AJ71)*-1 -> -173.0382936 | AL33: 0 | AM33: 0 | AN33: 0 | AO33: -415.8199738 | AP33: Offentlig | AQ33: AO | AR33: A | AT33: 357.749853 | AU33: =AT33/AO33*-1 -> 0.8603479282 | AW33: 0 | AX33: 0 | AY33: 0 | AZ33: 0 | BA33: 0 | BB33: 0 | BC33: 0 | BD33: 0 | BE33: 0 | BF33: 0 | BG33: 0 | BH33: 0 | BI33: 0 | BJ33: 0 | BK33: 0 | BL33: 0 | BM33: 0 | BN33: 0 | BO33: 0 | BP33: 0 | BQ33: 0 | BR33: 0 | BS33: 0 | BT33: 0 | BU33: 0 | BV33: 0 | BW33: 0 | BX33: 0 | BY33: 0 | BZ33: 0 | CA33: 0 | CB33: 0 | CC33: 0 | CD33: 0 | CE33: 0 | CF33: 0 | CG33: ='Plan Energi 2013'!AJ81 -> 357.749853 | CH33: 0 | CI33: 58.07012083 | CJ33: =-(C33*'Plan Energi 2013'!$I$89/1000+D33*'Plan Energi 2013'!$C$89/1000+E33*'Plan Energi 2013'!$W$89/1000+X33*'Plan Energi 2013'!$F$89/1000) -> 0
C34: =SUM('Plan Energi 2013'!I23:I24)*-1 -> -378.8292858 | D34: =SUM('Plan Energi 2013'!C23:C24)*-1 -> 0 | E34: =SUM('Plan Energi 2013'!W23:W24)*-1 -> 0 | F34: 0 | G34: =SUM('Plan Energi 2013'!Q23:Q24)*-1 -> 0 | H34: =SUM('Plan Energi 2013'!R23:R24)*-1 -> 0 | I34: 0 | J34: =SUM('Plan Energi 2013'!S23:S24)*-1 -> 0 | K34: 0 | L34: 0 | M34: 0 | N34: =SUM('Plan Energi 2013'!T23:V24)*-1 -> 0 | O34: 0 | P34: =SUM('Plan Energi 2013'!L23:L24)*-1 -> 0 | Q34: 0 | R34: 0 | S34: 0 | T34: 0 | U34: =SUM('Plan Energi 2013'!M23:M24)*-1 -> 0 | V34: =SUM('Plan Energi 2013'!N23:N24)*-1 -> 0 | W34: =SUM('Plan Energi 2013'!P23:P24)*-1 -> 0 | X34: -21.16664865 | Y34: 0 | Z34: ='Plan Energi 2013'!B16*(SUM('Plan Energi 2013'!AK16:AM16,'Plan Energi 2013'!AO16:AP16))/SUM('Plan Energi 2013'!AI16:AQ16)*-1 -> 0 | AA34: 0 | AB34: =SUM('Plan Energi 2013'!H23:H24)*-1 -> 0 | AC34: 0 | AD34: =SUM('Plan Energi 2013'!G23:G24)*-1 -> 0 | AE34: =SUM('Plan Energi 2013'!F23:F24)*-1 -> 0 | AF34: =SUM('Plan Energi 2013'!D23:E24)*-1 -> -21.16664865 | AG34: 0 | AH34: 0 | AI34: 0 | AJ34: =(SUM('Plan Energi 2013'!AK8:AM8,'Plan Energi 2013'!AO8:AP8)*'Plan Energi 2013'!AE8/'Plan Energi 2013'!AH8+SUM('Plan Energi 2013'!AK9:AM9,'Plan Energi 2013'!AO9:AP9)*'Plan Energi 2013'!AE9/'Plan Energi 2013'!AH9+SUM('Plan Energi 2013'!AK10:AM10,'Plan Energi 2013'!AO10:AP10)*'Plan Energi 2013'!AE10/'Plan Energi 2013'!AH10+SUM('Plan Energi 2013'!AK11:AM11,'Plan Energi 2013'!AO11:AP11)*'Plan Energi 2013'!AE11/'Plan Energi 2013'!AH11+SUM('Plan Energi 2013'!AK12:AM12,'Plan Energi 2013'!AO12:AP12)*'Plan Energi 2013'!AE12/'Plan Energi 2013'!AH12+SUM('Plan Energi 2013'!AK13:AM13,'Plan Energi 2013'!AO13:AP13)*'Plan Energi 2013'!AE13/'Plan Energi 2013'!AH13+SUM('Plan Energi 2013'!AK69:AM69,'Plan Energi 2013'!AO69:AP69)*'Plan Energi 2013'!D2/100++'Plan Energi 2013'!AN8*'Plan Energi 2013'!AE8/'Plan Energi 2013'!AH8+'Plan Energi 2013'!AN9*'Plan Energi 2013'!AE9/'Plan Energi 2013'!AH9+'Plan Energi 2013'!AN10*'Plan Energi 2013'!AE10/'Plan Energi 2013'!AH10+'Plan Energi 2013'!AN11*'Plan Energi 2013'!AE11/'Plan Energi 2013'!AH11)*-1 -> -276.9981545 | AK34: =(SUM('Plan Energi 2013'!AK70:AM70,'Plan Energi 2013'!AO70:AP70)+SUM('Plan Energi 2013'!AK39:AM39,'Plan Energi 2013'!AO39:AP39)+SUM('Plan Energi 2013'!AK43:AM43,'Plan Energi 2013'!AO43:AP43)+SUM('Plan Energi 2013'!AK52:AM52,'Plan Energi 2013'!AO52:AP52)+SUM('Plan Energi 2013'!AK55:AM55,'Plan Energi 2013'!AO55:AP55)+SUM('Plan Energi 2013'!AK62:AM62,'Plan Energi 2013'!AO62:AP62)+SUM('Plan Energi 2013'!AK71:AM71,'Plan Energi 2013'!AO71:AP71)+'Plan Energi 2013'!AN70+'Plan Energi 2013'!AN39+'Plan Energi 2013'!AN43+'Plan Energi 2013'!AN52+'Plan Energi 2013'!AN55+'Plan Energi 2013'!AN62+'Plan Energi 2013'!AN71)*-1 -> -457.3154901 | AL34: 0 | AM34: 0 | AN34: 0 | AO34: -1134.309579 | AP34: Erhverv | AQ34: AE | AR34: A | AT34: 987.7918486 | AU34: 0.8708309149 | AW34: 0 | AX34: 0 | AY34: 0 | AZ34: 0 | BA34: 0 | BB34: 0 | BC34: 0 | BD34: 0 | BE34: 0 | BF34: 0 | BG34: 0 | BH34: 0 | BI34: 0 | BJ34: 0 | BK34: 0 | BL34: 0 | BM34: 0 | BN34: 0 | BO34: 0 | BP34: 0 | BQ34: 0 | BR34: 0 | BS34: 0 | BT34: 0 | BU34: 0 | BV34: 0 | BW34: 0 | BX34: 0 | BY34: 0 | BZ34: 0 | CA34: 0 | CB34: 0 | CC34: 0 | CD34: 0 | CE34: 0 | CF34: 0 | CG34: =SUM('Plan Energi 2013'!AK8:AM80,'Plan Energi 2013'!AO8:AP80)+'Plan Energi 2013'!AN23+'Plan Energi 2013'!AN24 -> 987.7918486 | CH34: 0 | CI34: 146.5177305 | CJ34: =-(C34*'Plan Energi 2013'!$I$89/1000+D34*'Plan Energi 2013'!$C$89/1000+E34*'Plan Energi 2013'!$W$89/1000+X34*'Plan Energi 2013'!$F$89/1000) -> 23.38689886
C35: =SUM('Plan Energi 2013'!I25:I25)*-1 -> -4112.478032 | D35: =SUM('Plan Energi 2013'!C25:C25)*-1 -> 0 | E35: =SUM('Plan Energi 2013'!W25:W25)*-1 -> 0 | F35: -3.745 | G35: =SUM('Plan Energi 2013'!Q25:Q25)*-1 -> 0 | H35: =SUM('Plan Energi 2013'!R25:R25)*-1 -> 0 | I35: 0 | J35: =SUM('Plan Energi 2013'!S25:S25)*-1 -> -3.745 | K35: 0 | L35: =SUM('Plan Energi 2013'!O23:O25)*-1 -> 0 | M35: 0 | N35: =SUM('Plan Energi 2013'!T25:V25)*-1 -> 0 | O35: 0 | P35: =SUM('Plan Energi 2013'!L25:L25)*-1 -> 0 | Q35: =SUM('Plan Energi 2013'!J23:J25)*-1 -> 0 | R35: 0 | S35: 0 | T35: 0 | U35: =SUM('Plan Energi 2013'!M25:M25)*-1 -> 0 | V35: =SUM('Plan Energi 2013'!N25:N25)*-1 -> 0 | W35: =SUM('Plan Energi 2013'!P25:P25)*-1 -> 0 | X35: -683.2310942 | Y35: 0 | Z35: ='Plan Energi 2013'!B16*'Plan Energi 2013'!AN16/SUM('Plan Energi 2013'!AI16:AQ16)*-1 -> -12.23109421 | AA35: 0 | AB35: =SUM('Plan Energi 2013'!H25:H25)*-1 -> 0 | AC35: 0 | AD35: =SUM('Plan Energi 2013'!G25:G25)*-1 -> 0 | AE35: =SUM('Plan Energi 2013'!F25:F25)*-1 -> 0 | AF35: =SUM('Plan Energi 2013'!D25:E25)*-1 -> -671 | AG35: 0 | AH35: 0 | AI35: 0 | AJ35: =('Plan Energi 2013'!AN12*'Plan Energi 2013'!AE12/'Plan Energi 2013'!AH12+'Plan Energi 2013'!AN13*'Plan Energi 2013'!AE13/'Plan Energi 2013'!AH13+'Plan Energi 2013'!AN69*'Plan Energi 2013'!D2/100)*-1 -> -488.7948518 | AK35: 0 | AL35: 0 | AM35: 0 | AN35: 0 | AO35: -5288.248978 | AP35: Tung proces | AQ35: AP | AR35: A | AT35: 4869.464528 | AU35: 0.9208084848 | AW35: 0 | AX35: 0 | AY35: 0 | AZ35: 0 | BA35: 0 | BB35: 0 | BC35: 0 | BD35: 0 | BE35: 0 | BF35: 0 | BG35: 0 | BH35: 0 | BI35: 0 | BJ35: 0 | BK35: 0 | BL35: 0 | BM35: 0 | BN35: 0 | BO35: 0 | BP35: 0 | BQ35: 0 | BR35: 0 | BS35: 0 | BT35: 0 | BU35: 0 | BV35: 0 | BW35: 0 | BX35: 0 | BY35: 0 | BZ35: 0 | CA35: 0 | CB35: 0 | CC35: 0 | CD35: 0 | CE35: 0 | CF35: 0 | CG35: =SUM('Plan Energi 2013'!AN8:AN80)-'Plan Energi 2013'!AN23-'Plan Energi 2013'!AN24 -> 4869.464528 | CH35: 0 | CI35: 418.7844494 | CJ35: =-(C35*'Plan Energi 2013'!$I$89/1000+D35*'Plan Energi 2013'!$C$89/1000+E35*'Plan Energi 2013'!$W$89/1000+X35*'Plan Energi 2013'!$F$89/1000) -> 287.4378356
F36: 0 | O36: 0 | Q36: 0 | X36: 0 | AN36: 0 | AO36: 0 | AP36: Ikke energiformål | AQ36: AIE | AR36: A | AU36: 0.9 | AZ36: 0 | BI36: 0 | BK36: 0 | BR36: 0 | CG36: =AO36*AU36*-1 -> 0 | CI36: 0
AP37: Energitjenester | AQ37: EN
C38: =C6+'Plan Energi 2013'!I81 -> 0 | D38: =D6+'Plan Energi 2013'!C81 -> 0 | E38: =E6+'Plan Energi 2013'!W81 -> 0 | G38: =G6+'Plan Energi 2013'!Q81 -> 0 | H38: =H6+'Plan Energi 2013'!R81 -> 0 | J38: =J6+'Plan Energi 2013'!S81 -> 0 | L38: =L6+'Plan Energi 2013'!O81 -> 0 | N38: =N6+'Plan Energi 2013'!T81+'Plan Energi 2013'!U81+'Plan Energi 2013'!V81 -> 0 | P38: =P8+P20+'Plan Energi 2013'!L81 -> 0 | Q38: =Q20+Q8+'Plan Energi 2013'!J81 -> 0.74 | U38: =U20+U8+'Plan Energi 2013'!M81 -> 0 | V38: =V20+V8+'Plan Energi 2013'!N81 -> 0 | W38: =W20+W8+'Plan Energi 2013'!P81 -> 0 | Z38: =Z18+Z8+'Plan Energi 2013'!B81 -> 0 | AB38: =AB18+AB8+'Plan Energi 2013'!H81 -> 0 | AD38: =AD18+AD8+'Plan Energi 2013'!G81 -> 0 | AE38: =AE18+AE8+'Plan Energi 2013'!F81 -> 0 | AF38: =AF18+AF8+'Plan Energi 2013'!D81+'Plan Energi 2013'!E81 -> 0 | AJ38: =AJ9+'Plan Energi 2013'!A15 -> 484.2281667 | AK38: =AK18-('Plan Energi 2013'!AF32+'Plan Energi 2013'!AF39+'Plan Energi 2013'!AF43+'Plan Energi 2013'!AF52+'Plan Energi 2013'!AF55+'Plan Energi 2013'!AF62+'Plan Energi 2013'!AF71) -> -2.287172115
AJ39: =CD9-'Plan Energi 2013'!A15 -> 0

Sheet Plan Energi 2013 (hidden)
A1: Antal indbyggere: | D1: 50374 | Y1: Geografisk energibalance for
A2: Elnetvirkningsgrad: | D2: 92.41145999 | E2: %
A3: Enheder: | D3: TJ, tons | Y3: Fredericia Kommune 2013
A6: Brændsel | Y6: Anlægstype | Z6: Virkningsgrad | AD6: Elnet | AF6: Fjernvarmenet | AI6: Slutforbrug
A7: Elimport | B7: LPG og petroleum | C7: Kul | D7: Fuelolie | E7: Brændselsolie | F7: Dieselolie | G7: JP1 | H7: Benzin | I7: Naturgas | J7: Vindenergi | K7: Vandenergi | L7: Solenergi | M7: Geotermi | N7: Varmekilder til varmepumper | O7: Husdyrsgødning | P7: Biobrændstof og energiafgrøder | Q7: Halm | R7: Brænde og træflis | S7: Træpiller og træaffald | T7: Organisk affald, industri | U7: Organisk affald, husholdninger | V7: Deponi, slam, renseanlæg | W7: Affald, ikke bionedbrydeligt | X7: Faktisk energiforbrug | Z7: El | AA7: Proces | AB7: Varme | AC7: Fjernvarmenet | AD7: Ab værk | AE7: An forbruger | AF7: Ab værk | AG7: An forbruger | AH7: Samlet | AI7: Boliger og fritidshuse | AJ7: Offentlig service | AK7: Privat service | AL7: Detail- og engroshandel | AM7: Bygge- og anlægsvirksomhed | AN7: Fremstillingsvirksomhed | AO7: Gartneri | AP7: Landbrug | AQ7: Transport
X8: =SUM(A8:W8) -> 0 | Y8: Elkomfur | AA8: 44 | AD8: =-AE8/$D$2% -> -44.91152326 | AE8: =AH8/AA8% -> 41.50339435 | AH8: =SUM(AI8:AQ8) -> 18.26149351 | AI8: 18.26149351
X9: 0 | Y9: Elvandvarmer | AB9: 90 | AD9: -5.605243319 | AE9: =AH9/AB9% -> 5.179887188 | AH9: 4.661898469 | AI9: 4.661898469
X10: 0 | Y10: Elradiator | AB10: 100 | AD10: -23.78224666 | AE10: =AH10/AB10% -> 21.97752135 | AH10: 21.97752135 | AI10: 21.97752135
X11: 0 | Y11: Belysning | AA11: 50 | AD11: -203.0836147 | AE11: =AH11/AA11% -> 187.6725334 | AH11: 93.83626669 | AI11: 20.75169717 | AJ11: 32.77552684 | AK11: 14.07452781 | AL11: 12.32609423 | AM11: 0.2970911518 | AN11: 11.08184588 | AO11: 0.1213162029 | AP11: 2.408167406
X12: 0 | Y12: Elkompressorer | AA12: 150 | AD12: -150.9485951 | AE12: =AH12/AA12% -> 139.4938006 | AH12: 209.2407009 | AI12: 73.50117257 | AJ12: 0 | AK12: 47.29041343 | AL12: 41.4156766 | AM12: 1.188364607 | AN12: 44.32738353 | AO12: 0.07278972174 | AP12: 1.444900443
X13: 0 | Y13: Elmotorer m.m. | AA13: 85 | AD13: -829.0152672 | AE13: =AH13/AA13% -> 766.105112 | AH13: 651.1893452 | AI13: 115.3928245 | AJ13: 150.6460326 | AK13: 44.98219087 | AL13: 39.39419714 | AM13: 7.239121065 | AN13: 270.0276447 | AO13: 1.127431912 | AP13: 22.37990242
N14: =AH14-AE14 -> 0.8518397814 | X14: 0.8518397814 | Y14: Varmepumper, individuel | AB14: 300 | AD14: -0.4608950997 | AE14: 0.4259198907 | AH14: 1.277759672 | AI14: 1.277759672
A15: =Z15%*AD15 -> 484.2281667 | X15: 484.2281667 | Y15: Elimport | Z15: 100 | AD15: =-SUM(AD16:AD80,AD8:AD14) -> 484.2281667 | AH15: =SUM(AI15:AQ15) -> 0
B16: 20.38515702 | X16: 20.38515702 | Y16: Gaskomfur, proces, m.m. | AB16: 38 | AH16: 7.746359667 | AI16: =X16*AB16/100*0.2 -> 1.549271933 | AN16: =X16*AB16/100*0.6 -> 4.6478158 | AQ16: =X16*AB16/100*0.2 -> 1.549271933
E17: 88 | X17: 88 | Y17: Gasoliekedel, individuel | AB17: 80 | AH17: 70.4 | AI17: =X17*AB17/100 -> 70.4
I18: 0.6995427492 | X18: 0.6995427492 | Y18: Naturgaskedel, individuel | AB18: 85 | AH18: 0.5946113368 | AI18: 0.5946113368
S19: 68 | X19: 68 | Y19: Træpillekedel, individuel | AB19: 75 | AH19: 51 | AI19: 51
R20: 156 | X20: 156 | Y20: Brændekedel og -ovn, individuel | AB20: 65 | AH20: 101.4 | AI20: 101.4
Q21: 24 | X21: 24 | Y21: Halmfyr, individuel | AB21: 65 | AH21: 15.6 | AI21: 15.6
L22: 3.000753403 | X22: 3.000753403 | Y22: Solvarmeanlæg | AB22: 100 | AH22: 3.000753403 | AI22: 3.000753403
E23: 21.16664865 | X23: 21.16664865 | Y23: Gasoliekedel, erhverv | AA23: 90 | AH23: 19.04998378 | AN23: =X23*AA23/100 -> 19.04998378
I24: 378.8292858 | X24: 378.8292858 | Y24: Naturgaskedel, erhverv | AA24: 90 | AH24: 340.9463572 | AN24: =X24*AA24/100 -> 340.9463572
D25: 671 | I25: 4112.478032 | S25: 3.745 | X25: 4787.223032 | Y25: Industrikedel, erhverv | AA25: 90 | AH25: 4308.500728 | AN25: =X25*AA25/100 -> 4308.500728
L26: 15.6 | X26: 15.6 | Y26: Solcelleanlæg | Z26: 100 | AD26: =X26*Z26/100 -> 15.6 | AH26: 0
J27: 14.9 | X27: 14.9 | Y27: Vindkraftanlæg, land | Z27: 100 | AD27: =Z27*X27/100 -> 14.9 | AH27: 0
X28: 0 | Y28: Vindkraftanlæg, kystnære (50 %) | Z28: 100 | AD28: =Z28*X28/100 -> 0 | AH28: 0
X29: 0 | Y29: Vandkraftanlæg | Z29: 100 | AD29: =Z29*X29/100 -> 0 | AH29: 0
X30: 0 | Y30: Bølgekraftanlæg | Z30: 100 | AD30: =Z30*X30/100 -> 0 | AH30: 0
I31: =-(O31+T31)*AA31% -> 0 | X31: 0 | Y31: Biogasanlæg, opgradering
X32: 0 | Y32: Biogasanlæg, motor | AD32: =X32*Z32/100 -> 0 | AF32: =X32*AB32/100 -> 0 | AH32: =SUM(AI32:AQ32) -> 0
X33: 0 | Y33: Centrale kraftværker, dampturbine | Z33: 34.4 | AB33: 51.6 | AD33: =X33*Z33/100 -> 0 | AF33: =X33*AB33/100 -> 0 | AH33: 0
X34: 0 | Y34: Centrale kraftværker, forbrændingsmotor | AB34: 0 | AD34: =X34*Z34/100 -> 0 | AF34: =X34*AB34 -> 0 | AH34: 0
X35: 0 | Y35: Centrale kraftværker, gasturbine | AB35: 0 | AD35: =X35*Z35/100 -> 0 | AF35: =X35*AB35 -> 0 | AH35: 0
X36: 0 | Y36: Centrale kraftværker, kedel | AF36: =X36*AB36/100 -> 0 | AH36: 0
N37: =AF37-AE37 -> 0 | X37: 0 | Y37: Centrale kraftværker, varmepumpe | AD37: =-AE37/$D$2% -> 0 | AF37: =AE37*AB37% -> 0
X38: 0 | Y38: Centrale kraftværker, elpatron | AD38: =-AE38/$D$2% -> 0 | AF38: =AE38*AB38% -> 0
X39: 0 | Y39: Centrale kraftværker, fjernvarmeproduktion | AC39: 77.2 | AF39: =-SUM(AF33:AF36) -> 0 | AG39: =-AF39*AC39/100 -> 0 | AH39: 0 | AI39: =AG39*64.5% -> 0 | AJ39: =AG39*9.9% -> 0 | AK39: =AG39*13% -> 0 | AL39: =AG39*6.9% -> 0 | AM39: =AG39*0% -> 0 | AN39: =AG39*4.1% -> 0 | AO39: =AG39*1.7% -> 0
X40: 0 | Y40: Affaldsforbrændingsanlæg, dampturbine | AD40: =X40*Z40/100 -> 0 | AF40: =X40*AB40/100 -> 0 | AH40: 0
X41: 0 | Y41: Affaldsforbrændingsanlæg, kedel | AD41: =X41*Z41/100 -> 0 | AF41: =X41*AB41/100 -> 0 | AH41: 0
X42: 0 | Y42: Affaldsforbrændingsanlæg, kombianlæg | AD42: =X42*Z42/100 -> 0 | AF42: =X42*AB42/100 -> 0 | AH42: 0
X43: 0 | Y43: Affaldsforbrændingsanlæg, fjernvarmeproduktion | AC43: 77.2 | AF43: =-SUM(AF40:AF42) -> 0 | AG43: =-AF43*AC43/100 -> 0 | AH43: 0 | AI43: =AG43*64.5% -> 0 | AJ43: =AG43*9.9% -> 0 | AK43: =AG43*13% -> 0 | AL43: =AG43*6.9% -> 0 | AM43: =AG43*0% -> 0 | AN43: =AG43*4.1% -> 0 | AO43: =AG43*1.7% -> 0
X44: 0 | Y44: Decentrale KV-værker, dampturbine | AD44: =X44*Z44/100 -> 0 | AF44: =X44*AB44/100 -> 0 | AH44: 0
X45: 0 | Y45: Decentrale KV-værker, forbrændingsmotor | AD45: =X45*Z45/100 -> 0 | AF45: 0 | AH45: 0
X46: 0 | Y46: Decentrale KV-værker, gasturbine | AD46: =X46*Z46/100 -> 0 | AF46: 0 | AH46: 0
X47: 0 | Y47: Decentrale KV-værker, kedel | AD47: =X47*Z47/100 -> 0 | AF47: 0 | AH47: 0
N48: =AH48-AE48 -> 0 | X48: 0 | Y48: Decentrale KV-værker, varmepumpe | AD48: =-AG48/$D$2% -> 0 | AF48: =X48*AB48/100 -> 0
X49: 0 | Y49: Decentrale KV-værker, elpatron | AD49: =-AG49/$D$2% -> 0 | AF49: =AE49*AB49% -> 0
X50: 0 | Y50: Decentrale KV-værker, solvarme | AF50: 0 | AH50: 0
X51: 0 | Y51: Decentrale KV-værker, kombianlæg | AD51: =X51*Z51/100 -> 0 | AF51: 0 | AH51: 0
X52: 0 | Y52: Decentrale KV-værker, fjernvarmeproduktion | AC52: 77.2 | AF52: =-SUM(AF44:AF51) -> 0 | AG52: =-AF52*AC52/100 -> 0 | AH52: 0 | AI52: =AG52*64.5% -> 0 | AJ52: =AG52*9.9% -> 0 | AK52: =AG52*13% -> 0 | AL52: =AG52*6.9% -> 0 | AM52: =AG52*0% -> 0 | AN52: =AG52*4.1% -> 0 | AO52: =AG52*1.7% -> 0
V53: 3 | X53: 3 | Y53: Lokale KV-værker, motor | Z53: 30.1 | AA53: 43 | AD53: =X53*Z53/100 -> 0.903 | AF53: =X53*AB53/100 -> 0 | AH53: =SUM(AI53:AQ53) -> 1.29 | AJ53: =X53*AA53/100 -> 1.29
X54: 0 | Y54: Lokale KV-værker, kedel | AD54: =X54*Z54/100 -> 0 | AF54: =X54*AB54/100 -> 0 | AH54: 0
X55: 0 | Y55: Lokale KV-værker, fjernvarmeproduktion | AC55: 77.2 | AF55: =-SUM(AF53:AF54) -> 0 | AG55: =-AF55*AC55/100 -> 0 | AH55: 0 | AI55: =AG55*64.5% -> 0 | AJ55: =AG55*9.9% -> 0 | AK55: =AG55*13% -> 0 | AL55: =AG55*6.9% -> 0 | AM55: =AG55*0% -> 0 | AN55: =AG55*4.1% -> 0 | AO55: =AG55*1.7% -> 0
X56: 0 | Y56: Fjernvarmeværker, kedel | AF56: =X56*AB56/100 -> 0 | AH56: 0
N57: =AF57-AE57 -> 0 | X57: 0 | Y57: Fjernvarmeværker, varmepumpe | AD57: =-AG57/$D$2% -> 0 | AF57: =AE57*AB57% -> 0
X58: 0 | Y58: Fjernvarmeværker, elpatron | AF58: =AE58*AB58% -> 0
X59: 0 | Y59: Fjernvarmeværker, geotermi | AF59: =X59*AB59/100 -> 0
X60: 0 | Y60: Fjernvarmeværker, solvarme | AF60: =X60*AB60/100 -> 0 | AH60: 0
E61: 47.088 | I61: 3144.290409 | Q61: 2.943 | R61: 21.255 | S61: 173.637 | U61: 227.51025 | V61: 7.194 | W61: 186.14475 | X61: 3810.062409 | Y61: Import fjernvarme | Z61: 23.5 | AB61: 51.7 | AD61: =X61*Z61% -> 895.3646661 | AF61: =X61*AB61% -> 1969.802265 | AH61: 0
X62: 0 | Y62: Fjernvarmeværker, fjernvarmeproduktion | AC62: 77.2 | AF62: =-SUM(AF56:AF61) -> -1969.802265 | AG62: =-AF62*AC62/100 -> 1520.687349 | AH62: 1522.208036 | AI62: =AG62*64.4% -> 979.3226527 | AJ62: =AG62*9.8% -> 149.0273602 | AK62: =AG62*13.1% -> 199.2100427 | AL62: =AG62*6.9% -> 104.9274271 | AM62: =AG62*0% -> 0 | AN62: =AG62*4.4% -> 66.91024335 | AO62: =AG62*1.5% -> 22.81031023
X63: 0 | Y63: Industrielle KV-værker, dampturbine | AD63: =Z63/100*X63 -> 0 | AF63: =X63*AB63/100 -> 0 | AH63: 0
X64: 0 | Y64: Industrielle KV-værker, forbrændingsmotor | AD64: 0 | AF64: =X64*AB64/100 -> 0 | AH64: 0
X65: 0 | Y65: Industrielle KV-værker, gasturbine | AD65: 0 | AF65: =X65*AB65/100 -> 0 | AH65: 0
X66: 0 | Y66: Industrielle KV-værker, kedel | AD66: 0 | AF66: =X66*AB66/100 -> 0 | AH66: 0
X67: 0 | Y67: Industrielle KV-værker, kombianlæg | AD67: 0 | AF67: =X67*AB67/100 -> 0 | AH67: 0
E68: 0 | X68: 0 | Y68: Industrielle KV-værker, overskudsvarme | AD68: 0 | AF68: =(16.55+954)*0.327 -> 317.36985 | AH68: 0
X69: 0 | Y69: Industrielle KV-værker, forbrug, eget forbrug, el | AD69: =-AE69 -> -153.1884474 | AE69: =468.4662*0.327 -> 153.1884474 | AH69: 153.1884474 | AN69: =AE69 -> 153.1884474
X70: 0 | Y70: Industrielle KV-værker, forbrug, eget forbrug, varme | AH70: 0 | AN70: =-AF70 -> 0
X71: 0 | Y71: Industrielle KV-værker, fjernvarmeproduktion | AC71: 77.2 | AF71: =-SUM(AF63:AF70) -> -317.36985 | AG71: =-AF71*AC71/100 -> 245.0095242 | AH71: 245.2545337 | AI71: =AG71*64.4% -> 157.7861336 | AJ71: =AG71*9.8% -> 24.01093337 | AK71: =AG71*13.1% -> 32.09624767 | AL71: =AG71*6.9% -> 16.90565717 | AM71: =AG71*0% -> 0 | AN71: =AG71*4.4% -> 10.78041906 | AO71: =AG71*1.5% -> 3.675142863
H72: =559.56*0.9441 -> 528.280596 | P72: =559.56*0.0559 -> 31.279404 | X72: =SUM(A72:W72) -> 559.56 | Y72: Benzinbiler | AA72: 20 | AH72: 111.912 | AQ72: =X72*AA72/100 -> 111.912
F73: =354*(1-6.3%) -> 331.698 | P73: =354*6.3% -> 22.302 | X73: 354 | Y73: Dieselbiler | AA73: 25 | AH73: 88.5 | AQ73: =X73*AA73/100 -> 88.5
F74: =160.85*(1-6.3%) -> 150.71645 | P74: =160.85*(6.3%) -> 10.13355 | X74: 160.85 | Y74: Varebiler | AA74: 25 | AH74: 40.2125 | AQ74: =X74*AA74/100 -> 40.2125
F75: =26.49*(1-6.3%) -> 24.82113 | P75: =26.49*(6.3%) -> 1.66887 | X75: 26.49 | Y75: Busser | AA75: 33 | AH75: 8.7417 | AQ75: =X75*AA75/100 -> 8.7417
F76: 282.368215 | P76: 19.081785 | X76: 301.45 | Y76: Lastbiler m.m. | AA76: 33 | AH76: 99.4785 | AQ76: =X76*AA76/100 -> 99.4785
F77: 37.60149964 | X77: 37.60149964 | Y77: Traktorer | AA77: 33 | AH77: 12.40849488 | AP77: =X77*AA77% -> 12.40849488
F78: 30.10709442 | X78: 30.10709442 | Y78: Tog | AA78: 33 | AD78: =-AE78/$D$2% -> 0 | AH78: 9.93534116 | AQ78: =X78*AA78/100+AE78*AA78% -> 9.93534116
G79: 335.2258489 | H79: 0.625063895 | X79: 335.8509128 | Y79: Fly | AA79: 33 | AH79: 110.8308012 | AQ79: =X79*AA79/100 -> 110.8308012
D80: 6.968401475 | F80: 49.61246862 | X80: 56.58087009 | Y80: Skibe | AA80: 33 | AH80: 18.67168713 | AQ80: =X80*AA80/100 -> 18.67168713
A81: =SUM(A8:A80) -> 484.2281667 | B81: 20.38515702 | C81: 0 | D81: 677.9684015 | E81: 156.2546486 | F81: 906.9248577 | G81: 335.2258489 | H81: 528.9056599 | I81: 7636.297269 | J81: 14.9 | K81: 0 | L81: 18.6007534 | M81: 0 | N81: 0.8518397814 | O81: 0 | P81: 84.465609 | Q81: 26.943 | R81: 177.255 | S81: 245.382 | T81: 0 | U81: 227.51025 | V81: 10.194 | W81: 186.14475 | X81: =SUM(X8:X80) -> 11738.43721 | Y81: Samlet | AD81: =SUM(AD8:AD80) -> -2.842170943e-14 | AE81: 1315.546616 | AF81: 0 | AG81: 1765.696873 | AH81: 8341.315821 | AI81: 1636.47779 | AJ81: 357.749853 | AK81: 337.6534225 | AL81: 214.9690522 | AM81: 8.724576824 | AN81: 5229.460869 | AO81: 27.80699093 | AP81: 38.64146516 | AQ81: 489.8318014
A82: =A81*A89/1000 -> 77.47650667 | B82: =B81*B89/1000 -> 1.286303408 | C82: =C81*C87/1000 -> 0 | D82: =D81*D89/1000 -> 52.88153532 | E82: 11.562844 | F82: 67.11243947 | G82: 24.13626112 | H82: 38.61011317 | I82: 439.8507227 | J82: =J81*J87/1000 -> 0 | K82: 0 | L82: 0 | M82: 0 | N82: 0 | O82: 0 | P82: 0 | Q82: 0 | R82: 0 | S82: 0 | T82: 0 | U82: 0 | V82: 0 | W82: =W81*W89/1000 -> 15.30482135 | X82: =SUM(A82:W82) -> 728.2215472 | Y82: CO2-emissioner (1.000 tons) | Z82: =X82*1000/D1 -> 14.45629784 | AA82: tons/indbygger
O83: 229.6636516 | P83: 674.5806144 | Q83: 690.9963311 | R83: 438.6526335 | X83: =SUM(A83:W83) -> 2033.893231 | Y83: Lokalt biomassepotentiale | Z83: =(SUM(J14:V14)+AD15*A87%+SUM(J19:V19)+SUM(J20:V20)+SUM(J21:V21)+SUM(J22:V22)+SUM(J25:V25)+SUM(J72:V72)+SUM(J73:V73)+SUM(J74:V74)+SUM(J75:V75)+SUM(J76:V76)+SUM(J77:V77)+SUM(J78:V78)+SUM(J79:V79)+SUM(J80:V80)+SUM(J26:V26)*(Z26%+AB26%)+SUM(J27:V27)*(Z27%+AB27%)+SUM(J28:V28)*(Z28%+AB28%)+SUM(J29:V29)*(Z29%+AB29%)+SUM(J30:V30)*(Z30%+AB30%)+SUM(J32:V32)*(Z32%+AA32%+AB32%)+SUM(J31:V31)*(AA31%)+SUM(J33:V33)*(Z33%+AB33%)+SUM(J34:V34)*(Z34%+AB34%)+SUM(J35:V35)*(Z35%+AB35%)+SUM(J36:V36)*(Z36%+AB36%)+SUM(J37:V37)*(Z37%+AB37%)+SUM(J40:V40)*(Z40%+AB40%)+SUM(J41:V41)*(Z41%+AB41%)+SUM(J42:V42)*(Z42%+AB42%)+SUM(J44:V44)*(Z44%+AB44%)+SUM(J45:V45)*(Z45%+AB45%)+SUM(J46:V46)*(Z46%+AB46%)+SUM(J47:V47)*(Z47%+AB47%)+SUM(J48:V48)*(Z48%+AB48%)+SUM(J50:V50)*(Z50%+AB50%)+SUM(J51:V51)*(Z51%+AB51%)+SUM(J53:V53)*(Z53%+AA53%+AB53%)+SUM(J54:V54)*(Z54%+AA54%+AB54%)+SUM(J56:V56)*(Z56%+AB56%)+SUM(J57:V57)*(Z57%+AB57%)+SUM(J59:V59)*(Z59%+AB59%)+SUM(J60:V60)*(Z60%+AB60%)+SUM(J61:V61)*(Z61%+AB61%)+SUM(J63:V63)*(Z63%+AB63%)+SUM(J64:V64)*(Z64%+AB64%)+SUM(J65:V65)*(Z65%+AB65%)+SUM(J66:V66)*(Z66%+AB66%)+SUM(J67:V67)*(Z67%+AB67%)+SUM(J68:V68)*(Z68%+AB68%))/(SUM(X8:X14)+SUM(X16:X25)+SUM(X72:X80)+(AG39/AC39%+AG43/AC43%+AG52/AC52%+AG55/AC55%+AG62/AC62%+AG71/AC71%)+AE81+SUM(AE8:AE14)*(1-D2%)+(-AF70))*100 -> 7.727023352 | AA83: % VE (Global)
J84: =IF(J83>0,J81/J83*100,"") ->  | K84: =IF(K83>0,K81/K83*100,"") ->  | O84: 0 | P84: 12.52120313 | Q84: 3.899152396 | R84: 40.40896747 | V84: =IF(V83>0,V81/V83*100,"") ->  | X84: =SUMIF(J83:W83,">0",J81:W81)/SUM(J83:W83)% -> 14.19266285 | Y84: Udnyttelsesprocent af lokalt biomassepotentiale
A86: %) | B86: =B7 -> LPG og petroleum | C86: Kul | D86: Fuelolie | E86: Brændselsolie | F86: Dieselolie | G86: JP1 | H86: Benzin | I86: Naturgas | J86: Vindenergi | K86: Vandenergi | L86: Solenergi | M86: Geotermi | N86: Varmekilder til varmepumper | O86: Husdyrsgødning | P86: Biobrændstof og energiafgrøder | Q86: Halm | R86: Brænde og træflis | S86: Træpiller og træaffald | T86: Organisk affald, industri | U86: Organisk affald, husholdninger | V86: Deponi, slam, renseanlæg | W86: Affald, ikke bionedbrydeligt
A87: 33
A88: Elimport (heraf VE-andel:
A89: 160 | B89: 63.1 | C89: 94.25 | D89: 78 | E89: 74 | F89: 74 | G89: 72 | H89: 73 | I89: 57.6 | W89: 82.22 | X89: CO2-emission (tons/TJ)

Sheet e2g-format 2015 (hidden)
B1: Forbrug | C1: Naturgas | D1: Kul | E1: Affald (ikke-bionedbrydeligt) | F1: Biobrændsler | G1: Halm | H1: Skovflis | I1: Brænde | J1: Træpiller | K1: Træaffald | L1: Biogas | M1: Biomasse | N1: Affald (bionedbrydeligt) | O1: Ikke-brændsel VE | P1: Sol | Q1: Vind | R1: Havvind | S1: Landvind | T1: Vand | U1: Geotermisk | V1: Varmepumpe - omgivelsesvarme | W1: Bioolie, biodiesel og bioethanol | X1: Olieprodukter | Y1: Raffinaderigas | Z1: LPG | AA1: Flybenzin | AB1: Benzin | AC1: Petroleum / Kerosen | AD1: JP1 | AE1: Gasolie/Dieselolie | AF1: Fuelolie | AG1: Spildolie | AH1: Petrokoks | AI1: Terpentin, smøreolie og bitumen | AJ1: El | AK1: Fjernvarme | AL1: Overskudsvarme | AM1: Energitjenester | AN1: Total energiforbrug | AO1: Brutto brændsel | AP1: =Andet!B4 -> Fredericia | AS1: Faktor | AT1: Brutto produktion | AU1: Virkningsgrad | AV1: Produktion | AW1: Naturgas | AX1: Kul | AY1: Affald (ikke-bionedbrydeligt) | AZ1: Biobrændsler | BA1: Halm | BB1: Skovflis | BC1: Brænde | BD1: Træpiller | BE1: Træaffald | BF1: Biogas | BG1: Biomasse | BH1: Affald (bionedbrydeligt) | BI1: Ikke-brændsel VE | BJ1: Sol | BK1: Vind | BL1: Havvind | BM1: Landvind | BN1: Vand | BO1: Geotermisk | BP1: Varmepumpe - omgivelsesvarme | BQ1: Bioolie, biodiesel og bioethanol | BR1: Olieprodukter | BS1: Raffinaderigas | BT1: LPG | BU1: Flybenzin | BV1: Benzin | BW1: Petroleum / Kerosen | BX1: JP1 | BY1: Gasolie/Dieselolie | BZ1: Fuelolie | CA1: Spildolie | CB1: Petrokoks | CC1: Terpentin, smøreolie og bitumen | CD1: El | CE1: Fjernvarme | CF1: Nyttiggjort overskudsvarme | CG1: Energitjenester | CH1: Total energiforbrug | CI1: Tab | CJ1: CO2-udledning
A2: ID | B2: F | C2: FN | D2: FK | E2: FMA | F2: FVB | G2: FB1 | H2: FB2 | I2: FB3 | J2: FB4 | K2: FB5 | L2: FB6 | M2: FB7 | N2: FB8 | O2: FLVE | P2: FLVE1 | Q2: FLVE2 | R2: FLVE21 | S2: FLVE22 | T2: FLVE3 | U2: FLVE4 | V2: FLVE5 | W2: FS | X2: FOO | Y2: FO1 | Z2: FO2 | AA2: FO3 | AB2: FO4 | AC2: FO5 | AD2: FO6 | AE2: FO7 | AF2: FO8 | AG2: FO9 | AH2: FOO1 | AI2: FOO2 | AJ2: FE | AK2: FF | AL2: FOV | AM2: FWEN | AN2: FTOTAL | AO2: fbrbr | AQ2: ID | AR2: ID Parent | AS2: factor | AT2: pbrpr | AU2: pvrkg | AV2: P | AW2: PN | AX2: PK | AY2: PMA | AZ2: PVB | BA2: PB1 | BB2: PB2 | BC2: PB3 | BD2: PB4 | BE2: PB5 | BF2: PB6 | BG2: PB7 | BH2: PB8 | BI2: PLVE | BJ2: PLVE1 | BK2: PLVE2 | BL2: PLVE21 | BM2: PLVE22 | BN2: PLVE3 | BO2: PLVE4 | BP2: PLVE5 | BQ2: PS | BR2: POO | BS2: PO1 | BT2: PO2 | BU2: PO3 | BV2: PO4 | BW2: PO5 | BX2: PO6 | BY2: PO7 | BZ2: PO8 | CA2: PO9 | CB2: POO1 | CC2: POO2 | CD2: PE | CE2: PF | CF2: POV | CG2: PWEN | CH2: PTOTAL | CI2: PTAB | CJ2: PCO2
A3: ID Parent | C3: F | D3: F | E3: F | F3: F | G3: FVB | H3: FVB | I3: FVB | J3: FVB | K3: FVB | L3: FVB | M3: FVB | N3: FVB | O3: F | P3: FLVE | Q3: FLVE | R3: FLVE2 | S3: FLVE2 | T3: FLVE | U3: FLVE | V3: FLVE | W3: F | X3: F | Y3: FOO | Z3: FOO | AA3: FOO | AB3: FOO | AC3: FOO | AD3: FOO | AE3: FOO | AF3: FOO | AG3: FOO | AH3: FOO | AI3: FOO | AJ3: F | AK3: F | AL3: F | AM3: F | AN3: F | AP3: Structures | AW3: P | AX3: P | AY3: P | AZ3: P | BA3: PVB | BB3: PVB | BC3: PVB | BD3: PVB | BE3: PVB | BF3: PVB | BG3: PVB | BH3: PVB | BI3: P | BJ3: PLVE | BK3: PLVE | BL3: PLVE2 | BM3: PLVE2 | BN3: PLVE | BO3: PLVE | BP3: PLVE | BQ3: P | BR3: P | BS3: POO | BT3: POO | BU3: POO | BV3: POO | BW3: POO | BX3: POO | BY3: POO | BZ3: POO | CA3: POO | CB3: POO | CC3: POO | CD3: P | CE3: P | CF3: P | CG3: P | CH3: P
AV4: =B4 -> 0 | AZ4: =F4 -> 0 | BI4: =O4 -> 0 | BK4: =Q4 -> 0 | BR4: =X4 -> 0 | CI4: =B4 -> 0
F5: =SUM(G5:N5) -> 0 | O5: =P5+Q5+T5+U5+V5 -> 0 | Q5: =R5+S5 -> 0 | X5: =SUM(Y5:AI5) -> 0 | AN5: 0 | AO5: =SUM(C5:F5,O5,W5,X5,AJ5:AL5) -> 0 | AP5: Indgang for brændsler (bio, kul mv.) | AQ5: TP | AT5: =SUM(AW5:AZ5,BI5,BQ5,BR5,CD5:CG5) -> 8952.7216 | AW5: =-C6 -> 8148.5669 | AX5: 0 | AY5: 229.99545 | AZ5: 574.15925 | BA5: 22 | BB5: 154.308 | BC5: 0 | BD5: 102.2269 | BE5: 0 | BF5: 0 | BG5: 0 | BH5: 295.62435 | BI5: =BJ5+BK5+BN5+BO5+BP5 -> 0 | BK5: =BL5+BM5 -> 0 | BR5: =SUM(BS5:CC5) -> 0
C6: =-AW6 -> -8148.5669 | D6: =-AX6 -> 0 | E6: -229.99545 | F6: -574.15925 | G6: -22 | H6: -154.308 | I6: 0 | J6: -102.2269 | K6: 0 | L6: 0 | M6: 0 | N6: -295.62435 | O6: 0 | Q6: 0 | X6: 0 | AN6: 0 | AO6: -8952.7216 | AP6: Transport af brændsler | AQ6: TRAP | AT6: 8952.7216 | AW6: =-1*(C8+C20) -> 8148.5669 | AX6: 0 | AY6: 229.99545 | AZ6: 574.15925 | BA6: 22 | BB6: 154.308 | BC6: 0 | BD6: 102.2269 | BE6: 0 | BF6: 0 | BG6: 0 | BH6: 295.62435 | BI6: =BJ6+BK6+BN6+BO6+BP6 -> 0 | BK6: 0 | BR6: =SUM(BS6:CC6) -> 0
F7: 0 | O7: 0 | Q7: 0 | X7: 0 | AN7: 0 | AO7: 0 | AP7: Indgang nettilsluttet VE | AQ7: TLP1 | AT7: 39.06 | AZ7: =SUM(BA7:BH7) -> 0 | BI7: =BJ7+BK7+BN7+BO7+BP7 -> 39.06 | BJ7: =P8*-1 -> 24.9 | BK7: 14.16 | BL7: =R8*-1 -> 0 | BM7: =S8*-1 -> 14.16 | BR7: =SUM(BS7:CC7) -> 0
C8: =SUM(C9:C11,C14:C17) -> -2973.9669 | D8: 0 | E8: -229.99545 | F8: -321.35925 | G8: 0 | H8: -1.308 | I8: 0 | J8: -24.4269 | K8: 0 | L8: 0 | M8: 0 | N8: -295.62435 | O8: -39.06 | P8: -24.9 | Q8: -14.16 | R8: 0 | S8: -14.16 | T8: 0 | U8: 0 | V8: 0 | W8: 0 | X8: -8.7309 | Y8: 0 | Z8: 0 | AA8: 0 | AB8: 0 | AC8: 0 | AD8: 0 | AE8: 0 | AF8: -8.7309 | AG8: 0 | AH8: 0 | AI8: 0 | AJ8: 0 | AK8: 0 | AL8: -389.13 | AM8: =SUM(AM9:AM11,AM14:AM17) -> 0 | AN8: 0 | AO8: -3962.2425 | AP8: Indgang el, varme og olieprodukter | AQ8: TS | AT8: 7037.543754 | AW8: =SUM(AW9:AW11,AW14:AW17) -> 0 | AX8: 0 | AY8: 0 | AZ8: 0 | BA8: 0 | BB8: 0 | BC8: 0 | BD8: 0 | BE8: 0 | BF8: 0 | BG8: 0 | BH8: 0 | BI8: =BJ8+BK8+BN8+BO8+BP8 -> 0 | BJ8: 0 | BK8: 0 | BL8: 0 | BM8: 0 | BN8: 0 | BO8: 0 | BP8: 0 | BQ8: 0 | BR8: 3420.412044 | BS8: 0 | BT8: 0 | BU8: 0 | BV8: 527.636 | BW8: 0 | BX8: 348.6 | BY8: 954.8760444 | BZ8: 0 | CA8: 0 | CB8: 0 | CC8: 0 | CD8: 1425.634935 | CE8: 2191.496775 | CF8: 0 | CG8: 0 | CH8: 0 | CI8: 1003.67091 | CJ8: 270.1989404
F9: 0 | O9: 0 | Q9: 0 | X9: 0 | AN9: 0 | AO9: 0 | AP9: Netto import/lager | AQ9: IMP | AR9: TS | AT9: 4076.132164 | AZ9: 0 | BI9: =BJ9+BK9+BN9+BO9+BP9 -> 0 | BK9: 0 | BR9: =IF(BR17+X18<0,(BR17+X18)*-1,0) -> 3420.412044 | BV9: =IF(BV17+AB18<0,(BV17+AB18)*-1) -> 527.636 | BX9: =IF(BX17+AD18<0,(BX17+AD18)*-1) -> 348.6 | BY9: =IF(BY17+AE20<0,(BY17+AE20)*-1,0) -> 954.8760444 | CD9: =IF(CD10+CD11+CD14+AJ18<0,(CD10+CD11+CD14+AJ18)*-1,0) -> 655.7201196 | CJ9: =CD9*'Plan Energi 2015'!A89/1000 -> 79.34213447
C10: =('Plan Energi 2015'!I32+'Plan Energi 2015'!I33+'Plan Energi 2015'!I34+'Plan Energi 2015'!I35+'Plan Energi 2015'!I40+'Plan Energi 2015'!I42+'Plan Energi 2015'!I44+'Plan Energi 2015'!I45+'Plan Energi 2015'!I46+'Plan Energi 2015'!I51+'Plan Energi 2015'!I53+'Plan Energi 2015'!I61+'Plan Energi 2015'!I63+'Plan Energi 2015'!I64+'Plan Energi 2015'!I65+'Plan Energi 2015'!I67)*-1 -> -2973.9669 | D10: =('Plan Energi 2015'!C32+'Plan Energi 2015'!C33+'Plan Energi 2015'!C34+'Plan Energi 2015'!C35+'Plan Energi 2015'!C40+'Plan Energi 2015'!C42+'Plan Energi 2015'!C44+'Plan Energi 2015'!C45+'Plan Energi 2015'!C46+'Plan Energi 2015'!C51+'Plan Energi 2015'!C53+'Plan Energi 2015'!C61+'Plan Energi 2015'!C63+'Plan Energi 2015'!C64+'Plan Energi 2015'!C65+'Plan Energi 2015'!C67)*-1 -> 0 | E10: =('Plan Energi 2015'!W32+'Plan Energi 2015'!W33+'Plan Energi 2015'!W34+'Plan Energi 2015'!W35+'Plan Energi 2015'!W40+'Plan Energi 2015'!W42+'Plan Energi 2015'!W44+'Plan Energi 2015'!W45+'Plan Energi 2015'!W46+'Plan Energi 2015'!W51+'Plan Energi 2015'!W53+'Plan Energi 2015'!W61+'Plan Energi 2015'!W63+'Plan Energi 2015'!W64+'Plan Energi 2015'!W65+'Plan Energi 2015'!W67)*-1 -> -229.99545 | F10: -321.35925 | G10: =('Plan Energi 2015'!Q32+'Plan Energi 2015'!Q33+'Plan Energi 2015'!Q34+'Plan Energi 2015'!Q35+'Plan Energi 2015'!Q40+'Plan Energi 2015'!Q42+'Plan Energi 2015'!Q44+'Plan Energi 2015'!Q45+'Plan Energi 2015'!Q46+'Plan Energi 2015'!Q51+'Plan Energi 2015'!Q53+'Plan Energi 2015'!Q61+'Plan Energi 2015'!Q63+'Plan Energi 2015'!Q64+'Plan Energi 2015'!Q65+'Plan Energi 2015'!Q67)*-1 -> 0 | H10: =('Plan Energi 2015'!R32+'Plan Energi 2015'!R33+'Plan Energi 2015'!R34+'Plan Energi 2015'!R35+'Plan Energi 2015'!R40+'Plan Energi 2015'!R42+'Plan Energi 2015'!R44+'Plan Energi 2015'!R45+'Plan Energi 2015'!R46+'Plan Energi 2015'!R51+'Plan Energi 2015'!R53+'Plan Energi 2015'!R61+'Plan Energi 2015'!R63+'Plan Energi 2015'!R64+'Plan Energi 2015'!R65+'Plan Energi 2015'!R67)*-1 -> -1.308 | J10: =('Plan Energi 2015'!S32+'Plan Energi 2015'!S33+'Plan Energi 2015'!S34+'Plan Energi 2015'!S35+'Plan Energi 2015'!S40+'Plan Energi 2015'!S42+'Plan Energi 2015'!S44+'Plan Energi 2015'!S45+'Plan Energi 2015'!S46+'Plan Energi 2015'!S51+'Plan Energi 2015'!S53+'Plan Energi 2015'!S61+'Plan Energi 2015'!S63+'Plan Energi 2015'!S64+'Plan Energi 2015'!S65+'Plan Energi 2015'!S67)*-1 -> -24.4269 | L10: =('Plan Energi 2015'!O32+'Plan Energi 2015'!O33+'Plan Energi 2015'!O34+'Plan Energi 2015'!O35+'Plan Energi 2015'!O40+'Plan Energi 2015'!O42+'Plan Energi 2015'!O44+'Plan Energi 2015'!O45+'Plan Energi 2015'!O46+'Plan Energi 2015'!O51+'Plan Energi 2015'!O53+'Plan Energi 2015'!O61+'Plan Energi 2015'!O63+'Plan Energi 2015'!O64+'Plan Energi 2015'!O65+'Plan Energi 2015'!O67)*-1 -> 0 | N10: =('Plan Energi 2015'!T32+'Plan Energi 2015'!T33+'Plan Energi 2015'!T34+'Plan Energi 2015'!T35+'Plan Energi 2015'!T40+'Plan Energi 2015'!T42+'Plan Energi 2015'!T44+'Plan Energi 2015'!T45+'Plan Energi 2015'!T46+'Plan Energi 2015'!T51+'Plan Energi 2015'!T53+'Plan Energi 2015'!T61+'Plan Energi 2015'!T63+'Plan Energi 2015'!T64+'Plan Energi 2015'!T65+'Plan Energi 2015'!T67+'Plan Energi 2015'!U32+'Plan Energi 2015'!U33+'Plan Energi 2015'!U34+'Plan Energi 2015'!U35+'Plan Energi 2015'!U40+'Plan Energi 2015'!U42+'Plan Energi 2015'!U44+'Plan Energi 2015'!U45+'Plan Energi 2015'!U46+'Plan Energi 2015'!U51+'Plan Energi 2015'!U53+'Plan Energi 2015'!U61+'Plan Energi 2015'!U63+'Plan Energi 2015'!U64+'Plan Energi 2015'!U65+'Plan Energi 2015'!U67+'Plan Energi 2015'!V32+'Plan Energi 2015'!V33+'Plan Energi 2015'!V34+'Plan Energi 2015'!V35+'Plan Energi 2015'!V40+'Plan Energi 2015'!V42+'Plan Energi 2015'!V44+'Plan Energi 2015'!V45+'Plan Energi 2015'!V46+'Plan Energi 2015'!V51+'Plan Energi 2015'!V53+'Plan Energi 2015'!V61+'Plan Energi 2015'!V63+'Plan Energi 2015'!V64+'Plan Energi 2015'!V65+'Plan Energi 2015'!V67)*-1 -> -295.62435 | O10: 0 | Q10: 0 | X10: -8.7309 | AE10: =('Plan Energi 2015'!F32+'Plan Energi 2015'!F33+'Plan Energi 2015'!F34+'Plan Energi 2015'!F35+'Plan Energi 2015'!F40+'Plan Energi 2015'!F42+'Plan Energi 2015'!F44+'Plan Energi 2015'!F45+'Plan Energi 2015'!F46+'Plan Energi 2015'!F51+'Plan Energi 2015'!F53+'Plan Energi 2015'!F61+'Plan Energi 2015'!F63+'Plan Energi 2015'!F64+'Plan Energi 2015'!F65+'Plan Energi 2015'!F67)*-1 -> 0 | AF10: =('Plan Energi 2015'!D32+'Plan Energi 2015'!D33+'Plan Energi 2015'!D34+'Plan Energi 2015'!D35+'Plan Energi 2015'!D40+'Plan Energi 2015'!D42+'Plan Energi 2015'!D44+'Plan Energi 2015'!D45+'Plan Energi 2015'!D46+'Plan Energi 2015'!D51+'Plan Energi 2015'!D53+'Plan Energi 2015'!D61+'Plan Energi 2015'!D63+'Plan Energi 2015'!D64+'Plan Energi 2015'!D65+'Plan Energi 2015'!D67+'Plan Energi 2015'!E32+'Plan Energi 2015'!E33+'Plan Energi 2015'!E34+'Plan Energi 2015'!E35+'Plan Energi 2015'!E40+'Plan Energi 2015'!E42+'Plan Energi 2015'!E44+'Plan Energi 2015'!E45+'Plan Energi 2015'!E46+'Plan Energi 2015'!E51+'Plan Energi 2015'!E53+'Plan Energi 2015'!E61+'Plan Energi 2015'!E63+'Plan Energi 2015'!E64+'Plan Energi 2015'!E65+'Plan Energi 2015'!E67)*-1 -> -8.7309 | AN10: 0 | AO10: -3534.0525 | AP10: El og varmeproduktion | AQ10: ELOGVARME | AR10: TS | AT10: 2530.38159 | AU10: =AT10/AO10*-1 -> 0.716 | AZ10: 0 | BI10: =BJ10+BK10+BN10+BO10+BP10 -> 0 | BK10: 0 | BR10: =SUM(BS10:CC10) -> 0 | CD10: ='Plan Energi 2015'!AD32+'Plan Energi 2015'!AD33+'Plan Energi 2015'!AD34+'Plan Energi 2015'!AD35+'Plan Energi 2015'!AD40+'Plan Energi 2015'!AD41+'Plan Energi 2015'!AD42+'Plan Energi 2015'!AD44+'Plan Energi 2015'!AD45+'Plan Energi 2015'!AD46+'Plan Energi 2015'!AD51+'Plan Energi 2015'!AD53+'Plan Energi 2015'!AD54+'Plan Energi 2015'!AD47+'Plan Energi 2015'!AD61+'Plan Energi 2015'!AD63+'Plan Energi 2015'!AD64+'Plan Energi 2015'!AD65+'Plan Energi 2015'!AD66+'Plan Energi 2015'!AD67+'Plan Energi 2015'!AD68 -> 728.014815 | CE10: ='Plan Energi 2015'!AF32+'Plan Energi 2015'!AF33+'Plan Energi 2015'!AF34+'Plan Energi 2015'!AF35+'Plan Energi 2015'!AF40+'Plan Energi 2015'!AF42+'Plan Energi 2015'!AF44+'Plan Energi 2015'!AF45+'Plan Energi 2015'!AF46+'Plan Energi 2015'!AF51+'Plan Energi 2015'!AF53+'Plan Energi 2015'!AF61+'Plan Energi 2015'!AF63+'Plan Energi 2015'!AF64+'Plan Energi 2015'!AF65+'Plan Energi 2015'!AF67 -> 1802.366775 | CI10: =(AT10+AO10)*-1 -> 1003.67091 | CJ10: =-(C10*'Plan Energi 2015'!$I$89/1000+D10*'Plan Energi 2015'!$C$89/1000+E10*'Plan Energi 2015'!$W$89/1000+X10*'Plan Energi 2015'!$F$89/1000) -> 190.8568059
C11: =C12+C13 -> 0 | D11: 0 | E11: 0 | F11: 0 | G11: 0 | H11: 0 | I11: 0 | J11: 0 | K11: 0 | L11: 0 | M11: 0 | N11: 0 | O11: -14.16 | P11: 0 | Q11: -14.16 | R11: 0 | S11: -14.16 | T11: 0 | U11: 0 | V11: 0 | W11: 0 | X11: 0 | Y11: 0 | Z11: 0 | AA11: 0 | AB11: 0 | AC11: 0 | AD11: 0 | AE11: 0 | AF11: 0 | AG11: 0 | AH11: 0 | AI11: 0 | AJ11: 0 | AK11: 0 | AL11: 0 | AM11: 0 | AN11: 0 | AO11: -14.16 | AP11: Vindmøller | AQ11: VIND | AR11: TS | AT11: 17 | AW11: =AW12+AW13 -> 0 | AX11: 0 | AY11: 0 | AZ11: 0 | BA11: =BA12+BA13 -> 0 | BB11: 0 | BC11: 0 | BD11: 0 | BE11: 0 | BF11: 0 | BG11: 0 | BH11: 0 | BI11: 0 | BJ11: =BJ12+BJ13 -> 0 | BK11: 0 | BL11: =BL12+BL13 -> 0 | BM11: 0 | BN11: 0 | BO11: 0 | BP11: 0 | BQ11: 0 | BR11: 0 | BS11: =BS12+BS13 -> 0 | BT11: 0 | BU11: 0 | BV11: 0 | BW11: 0 | BX11: 0 | BY11: 0 | BZ11: 0 | CA11: 0 | CB11: 0 | CC11: 0 | CD11: =('Plan Energi 2015'!J27+'Plan Energi 2015'!J28) -> 17 | CE11: 0 | CF11: 0 | CG11: 0 | CH11: 0 | CI11: 0 | CJ11: 0
F12: 0 | O12: 0 | Q12: 0 | R12: =CD12*-1 -> 0 | X12: 0 | AN12: 0 | AO12: 0 | AP12: Kystvindmøller | AQ12: KYST | AR12: VIND | AT12: 0 | AZ12: 0 | BI12: =BJ12+BK12+BN12+BO12+BP12 -> 0 | BK12: 0 | BR12: =SUM(BS12:CC12) -> 0 | CD12: =Energi!B34*0.0000036 -> 0 | CI12: 0 | CJ12: =-(C12*'Plan Energi 2015'!$I$89/1000+D12*'Plan Energi 2015'!$C$89/1000+E12*'Plan Energi 2015'!$W$89/1000+X12*'Plan Energi 2015'!$F$89/1000) -> 0
F13: 0 | O13: -14.16 | Q13: -14.16 | S13: =CD13*-1 -> -14.16 | X13: 0 | AN13: 0 | AO13: -14.16 | AP13: Landvindmøller | AQ13: LAND | AR13: VIND | AT13: 14.16 | AZ13: 0 | BI13: =BJ13+BK13+BN13+BO13+BP13 -> 0 | BK13: 0 | BR13: =SUM(BS13:CC13) -> 0 | CD13: =Energi!B35*0.0000036 -> 14.16 | CI13: 0 | CJ13: =-(C13*'Plan Energi 2015'!$I$89/1000+D13*'Plan Energi 2015'!$C$89/1000+E13*'Plan Energi 2015'!$W$89/1000+X13*'Plan Energi 2015'!$F$89/1000) -> 0
F14: 0 | O14: -24.9 | P14: =CD14*-1 -> -24.9 | Q14: 0 | X14: 0 | AN14: 0 | AO14: -24.9 | AP14: Solceller | AQ14: SOLSTR | AR14: TS | AT14: 24.9 | AZ14: 0 | BI14: =BJ14+BK14+BN14+BO14+BP14 -> 0 | BK14: 0 | BR14: =SUM(BS14:CC14) -> 0 | CD14: ='Plan Energi 2015'!L26 -> 24.9 | CI14: 0 | CJ14: =-(C14*'Plan Energi 2015'!$I$89/1000+D14*'Plan Energi 2015'!$C$89/1000+E14*'Plan Energi 2015'!$W$89/1000+X14*'Plan Energi 2015'!$F$89/1000) -> 0
